Workbook

Sheet TitlePage
A1: Title page | B1: ATTACHMENT 2
C6: Fusilade DX Foliar (Fluazifop-P-butyl)
E17: WorksheetMaker Version | F17: 6.00.13
A51: 2014-03-25

Sheet Disclaimer
A1: DISCLAIMER

Sheet General Notes
A1: General Notes
B2: Prepared by: | C2: Patrick R. Durkin
B3: Program Version: | C3: 6.00.10
B4: Database Used: | C4: FS WsMkr V06-00-01.mdb
B5: Template Workbook: | C5: FS WsMkr V06-00-01.mdb
B6: Base Workbook: | C6: FS WSMkr Blank V06-00-01.xlsm
A8: Color Codes in WorksheetMaker
A13: Color Codes used in Workbook for Front Matter, Data and Calculation Worksheets
B14: Green shading | C14: This is a default value or a user specified a value. You can change these values as you see fit but you should have a reason for doing so.
B15: Yellow shading | C15: This is a source for a link in other parts of the workbook. If you have good reason to change the value, you should note the change (with your reason) in the “Revisions” page.
B16: Blue shading | C16: This cell is linked to another cell in the workbook. Do not change this value. If you change any of these values, the workbook may not update correctly.
B17: Blue shading blue border | C17: This cell is linked to a Program parameter in Worksheet A01. Do not change this value. If you want the value to change, go to Worksheet A01 and change the value in that worksheet.
B18: Purple Shading | C18: Indicates (for information only) that the typical of order of Lower and Upper values is intentionally reversed. This is only used in the second (label) column.
B19: Italics, no shading | C19: The value in this cell is generated by a formula (the number that you see is the result of an equation). This cell is linked only to other cells in the worksheet. Do not change this value.
A25: Color Codes used in Workbook for Risk Characterization Worksheets
B26: HQ ≥ 2 | C26: For hazard quotient greater than 2, the number is in bold font with a red background and rounded to the nearest integer.
B27: HQ > 1 but < 2 | C27: For hazard quotient greater than 1 but less than two, the number is in bold font with a white background and rounded to one significant place after the decimal.
B28: HQ ≥ 0.1 but <1 | C28: For hazard quotient greater than 0.1 but less than one, the number is in regular font with a white background and rounded to one significant place after the decimal.
B29: HQ < 0.1 | C29: For hazard quotient less than 0.1, the number is in regular font with a white background. The number is expressed in scientific notation and rounded to one significant place -- e.g., 2E-02 rather than 0.02.
B55: Prepared by: | C55: Patrick R. Durkin
B56: Program Version: | C56: 6.00.10
B57: Database Used: | C57: FS WsMkr V06-00-01.mdb
B58: Template Workbook: | C58: FS WsMkr V06-00-01.mdb
B59: Base Workbook: | C59: FS WSMkr Blank V06-00-01.xlsm

Sheet Chemical Notes
A1: Chemical specific notes
A2: Risk Assessment: | D2: SERA TR-056-05-02-01a
A3: Report Date: | D3: February, 2014
A6: The area below is an embedded MS Word Document. Add chemical-specific notes as appropriate.

Sheet Revisions
A1: Revision Histroy
A8: The area below is an embedded MS Word Document. Add revision notes as appropriate.

Sheet Contents
B1: Table of Contents | C1: Toc
A2: Work-sheet No. | B2: Worksheet Title
A3: TitlePage | B3: Title page
A4: Disclaimer | B4: DISCLAIMER
A5: General Notes | B5: General Notes
A6: Chemical Notes | B6: Chemical specific notes
A7: Revisions | B7: Revision Histroy
A8: Contents
A9: A01 | B9: Program Data: Application rates, application volumns, and concentrations in field solutions
A10: A02a | B10: General reference values and exposure factors used in worksheets.
A11: A02b | B11: General reference values and exposure factors used in worksheets.
A12: A02c | B12: General reference values and exposure factors used in worksheets.
A13: A02d | B13: General reference values and exposure factors used in worksheets.
A14: A03 | B14: Food items for terrestrial animals
A15: A04 | B15: Drift from Backpack Directed Foliar application at distances downwindfrom the application site
A16: B01 | B16: Chemical and Physical Properties for Fluazifop-P
A17: B02 | B17: Toxicity values for Fluazifop-P
A18: B03a | B18: Calculation of Zero-Order Dermal Permeability Rate (Kp) in cm/hour
A19: B03b | B19: Calculation of First-Order Dermal Absorption Rate
A20: B04Rt | B20: Estimates of Water Contamination Rates -- i.e., the concentration in ambient water per pound applied per acre
A21: B04a | B21: Expected Concentrations in Surface Water
A22: B04b | B22: Pond: Concentration of pesticide (liquid formulation) in pond water after an accidental spill
A23: B04c1 | B23: Concentration in pond water after direct spray or after drift [very fine droplet size] at distances downwind in feet from the application site
A24: B04c2 | B24: Concentration in pond water after direct spray or after drift [coarse droplet size] at distances downwind in feet from the application site
A25: B04d1 | B25: Concentration in stream water after direct spray or after drift [fine droplets] at distances downwind in feet from the application site
A26: B04d2 | B26: Concentration in stream water after direct spray or after drift [coarse droplets] at distances downwind in feet from the application site
A27: B05a | B27: Concentration of Pesticide in Contaminated Fruit
A28: B05b | B28: Concentration of Pesticide in Contaminated Broadleaf Vegetation
A29: B05c | B29: Concentration of Pesticide in Contaminated Short Grass
A30: B05d | B30: Concentration of Pesticide in Contaminated Tall Grass
A31: B06 | B31: Reanalysis of Vegetation Half-times from Kulshrestha et al. 1999
A32: C01a | B32: Exposure estimates for Backpack Worker based on the amount of material handled per day
A33: C01a-Sup | B33: Derivation of Backpack Occupational Exposure Rates
A34: C01b | B34: Exposure estimates for Ground Boom Worker based on the amount of material handled per day
A35: C01c | B35: Exposure estimates for Aerial Spray Worker based on the amount of material handled per day
A36: PHED-Grnd | B36: Exposure estimates based on Pesticide Handlers Exposure Database (PHED) Method, Modified for Ground Broadcast using Scenario 13, Gourndboom Applications Open Cab, no gloves (per EPA).
A37: PHED-Aerial | B37: Exposure estimates based on Pesticide Handlers Exposure Database (PHED) Method, Modified for Aerial Application using Scenario 7, Aerial Applications Enclosed cockput/Liquid.
A38: C02a | B38: Accidental Dermal Exposure Assessment Using Zero-Order Absorption, Worker, Surface Area, Hands, for 1 minute(s)
A39: C02b | B39: Accidental Dermal Exposure Assessment Using Zero-Order Absorption, Worker, Surface Area, Hands, for 60 minute(s)
A40: C03a | B40: Accidental Dermal Exposure Assessment Using First-Order Absorption, Worker, Surface Area, Hands, for 60 minute(s)
A41: C03b | B41: Accidental Dermal Exposure Assessment Using First-Order Absorption, Worker, Surface Area, Lower legs, for 60 minute(s)
A42: D01a | B42: Accidental Dermal Exposure Assessment Using First-Order Absorption, Child, Surface Area, Whole body, for 60 minute(s)
A43: D01b | B43: Accidental Dermal Exposure Assessment Using First-Order Absorption, Adult Female, Surface Area, Feet and lower Legs, for 60 minute(s)
A44: D02 | B44: Dermal Contact with Contaminated Vegetation, Adult Female, Surface Area, Wearing shorts and T-shirt, for 1 hour(s)
A45: D03a | B45: Consumption of Fruit by a Adult Female, Acute exposure.
A46: D03b | B46: Consumption of Vegetation by a Adult Female, Acute exposure.
A47: D04a | B47: Consumption of Fruit by a Adult Female, Chronic exposure.
A48: D04b | B48: Consumption of Vegetation by a Adult Female, Chronic exposure.
A49: D05 | B49: Consumption of contaminated water by Child, Accidental Spill
A50: D06 | B50: Consumption of contaminated water by Child, Peak Conentrations
A51: D07 | B51: Consumption of contaminated water by Adult Male, Longer-term Conentrations
A52: D08a | B52: Consumption of Contaminated Fish (Accidental Spill), Adult Male, acute exposure
A53: D08b | B53: Consumption of Contaminated Fish (Accidental Spill), Subsistence Populations, acute exposure
A54: D09a | B54: Consumption of Contaminated Fish (Longer-term), Adult Male, chronic exposure
A55: D09b | B55: Consumption of Contaminated Fish (Longer-term), Subsistence Populations, chronic exposure
A56: D09c | B56: Consumption of Contaminated Fish (Peak Exposure), Adult Male, acute exposure
A57: D09d | B57: Consumption of Contaminated Fish (Peak Exposure), Subsistence Populations, acute exposure
A58: D11 | B58: Swimming Exposure Assessment Using Zero-Order Absorption, Adult Female, Surface Area, Whole body, for 60 minute(s)
A59: E01 | B59: Summary of Worker Exposure Assessments
A60: E02 | B60: Summary of Worker Hazard Quotients (Toxicity)
A61: E03 | B61: Summary of Exposure Assessments for the General Public
A62: E04 | B62: Summary of Hazard Quotients (Toxicity) for the General Public
A63: F01a | B63: Direct spray of Mammal, small assuming first-order absorption kinetics with spray of 0.5 of the body surface
A64: F01b | B64: Direct spray of Mammal, small assuming 100% absorption
A65: F02a | B65: Consumption of contaminated water by Mammal, small, Accidental Spill
A66: F02b | B66: Consumption of contaminated water by Mammal, 400 g, Accidental Spill
A67: F02c | B67: Consumption of contaminated water by Mammal, carnivorous, Accidental Spill
A68: F02d | B68: Consumption of contaminated water by Mammal, large, Accidental Spill
A69: F02e | B69: Consumption of contaminated water by Bird, small, Accidental Spill
A70: F02f | B70: Consumption of contaminated water by Bird, large, Accidental Spill
A71: F03a | B71: Acute scenario for the consumption of Contaminated Fish (Accidental Spill) by Mammal, large carnivorous
A72: F03b | B72: Acute scenario for the consumption of Contaminated Fish (Accidental Spill) by Mammal, carnivorous
A73: F03c | B73: Acute scenario for the consumption of Contaminated Fish (Accidental Spill) by Bird, piscivorous
A74: F04a | B74: Consumption of Fruit by a Mammal, small after Acute exposure.
A75: F04b | B75: Consumption of Fruit by a Mammal, 400 g after Acute exposure.
A76: F04c | B76: Consumption of Fruit by a Mammal, large after Acute exposure.
A77: F04d | B77: Consumption of Fruit by a Bird, small after Acute exposure.
A78: F04e | B78: Consumption of Fruit by a Bird, large after Acute exposure.
A79: F05a | B79: Consumption of BrdLfVeg by a Mammal, small after Acute exposure.
A80: F05b | B80: Consumption of BrdLfVeg by a Mammal, 400 g after Acute exposure.
A81: F05c | B81: Consumption of BrdLfVeg by a Mammal, large after Acute exposure.
A82: F05d | B82: Consumption of BrdLfVeg by a Bird, small after Acute exposure.
A83: F05e | B83: Consumption of BrdLfVeg by a Bird, large after Acute exposure.
A84: F06a | B84: Consumption of Tall grass by a Mammal, small after Acute exposure.
A85: F06b | B85: Consumption of Tall grass by a Mammal, 400 g after Acute exposure.
A86: F06c | B86: Consumption of Tall grass by a Mammal, large after Acute exposure.
A87: F06d | B87: Consumption of Tall grass by a Bird, small after Acute exposure.
A88: F06e | B88: Consumption of Tall grass by a Bird, large after Acute exposure.
A89: F07a | B89: Consumption of Short grass by a Mammal, small after Acute exposure.
A90: F07b | B90: Consumption of Short grass by a Mammal, 400 g after Acute exposure.
A91: F07c | B91: Consumption of Short grass by a Mammal, large after Acute exposure.
A92: F07d | B92: Consumption of Short grass by a Bird, small after Acute exposure.
A93: F07e | B93: Consumption of Short grass by a Bird, large after Acute exposure.
A94: F08a | B94: Consumption of contaminated water by Mammal, small, Peak Concentrations
A95: F08b | B95: Consumption of contaminated water by Mammal, 400 g, Peak Concentrations
A96: F08c | B96: Consumption of contaminated water by Mammal, carnivorous, Peak Concentrations
A97: F08d | B97: Consumption of contaminated water by Mammal, large, Peak Concentrations
A98: F08e | B98: Consumption of contaminated water by Bird, small, Peak Concentrations
A99: F08f | B99: Consumption of contaminated water by Bird, large, Peak Concentrations
A100: F09a | B100: Consumption of Small Insects by a Mammal, small after Acute exposure.
A101: F09b | B101: Consumption of Small Insects by a Mammal, 400 g after Acute exposure.
A102: F09c | B102: Consumption of Small Insects by a Bird, small after Acute exposure.
A103: F10a | B103: Consumption of Small Mammal by Mammal, carnivorous, acute exposure scenario
A104: F10b | B104: Consumption of Small Mammal by Bird, carnivorous, acute exposure scenario
A105: F11a | B105: Acute scenario for the consumption of Contaminated Fish (Peak) by Mammal, large carnivorous
A106: F11b | B106: Acute scenario for the consumption of Contaminated Fish (Peak) by Mammal, carnivorous
A107: F11c | B107: Acute scenario for the consumption of Contaminated Fish (Peak) by Bird, piscivorous
A108: F12a | B108: Consumption of Fruit by a Mammal, small after Chronic exposure.
A109: F12b | B109: Consumption of Fruit by a Mammal, 400 g after Chronic exposure.
A110: F12c | B110: Consumption of Fruit by a Mammal, large after Chronic exposure.
A111: F12d | B111: Consumption of Fruit by a Bird, small after Chronic exposure.
A112: F12e | B112: Consumption of Fruit by a Bird, large after Chronic exposure.
A113: F13a | B113: Consumption of BrdLfVeg by a Mammal, small after Chronic exposure.
A114: F13b | B114: Consumption of BrdLfVeg by a Mammal, 400 g after Chronic exposure.
A115: F13c | B115: Consumption of BrdLfVeg by a Mammal, large after Chronic exposure.
A116: F13d | B116: Consumption of BrdLfVeg by a Bird, small after Chronic exposure.
A117: F13e | B117: Consumption of BrdLfVeg by a Bird, large after Chronic exposure.
A118: F14a | B118: Consumption of Tall grass by a Mammal, small after Chronic exposure.
A119: F14b | B119: Consumption of Tall grass by a Mammal, 400 g after Chronic exposure.
A120: F14c | B120: Consumption of Tall grass by a Mammal, large after Chronic exposure.
A121: F14d | B121: Consumption of Tall grass by a Bird, small after Chronic exposure.
A122: F14e | B122: Consumption of Tall grass by a Bird, large after Chronic exposure.
A123: F15a | B123: Consumption of Short grass by a Mammal, small after Chronic exposure.
A124: F15b | B124: Consumption of Short grass by a Mammal, 400 g after Chronic exposure.
A125: F15c | B125: Consumption of Short grass by a Mammal, large after Chronic exposure.
A126: F15d | B126: Consumption of Short grass by a Bird, small after Chronic exposure.
A127: F15e | B127: Consumption of Short grass by a Bird, large after Chronic exposure.
A128: F16a | B128: Consumption of contaminated water by Mammal, small, Longer-term Concentrations
A129: F16b | B129: Consumption of contaminated water by Mammal, 400 g, Longer-term Concentrations
A130: F16c | B130: Consumption of contaminated water by Mammal, carnivorous, Longer-term Concentrations
A131: F16d | B131: Consumption of contaminated water by Mammal, large, Longer-term Concentrations
A132: F16e | B132: Consumption of contaminated water by Bird, small, Longer-term Concentrations
A133: F16f | B133: Consumption of contaminated water by Bird, large, Longer-term Concentrations
A134: F17a | B134: Chronic scenario for the consumption of Contaminated Fish (Longer-term) by Mammal, large carnivorous
A135: F17b | B135: Chronic scenario for the consumption of Contaminated Fish (Longer-term) by Mammal, carnivorous
A136: F17c | B136: Chronic scenario for the consumption of Contaminated Fish (Longer-term) by Bird, piscivorous
A137: G01a | B137: Summary of Exposure Assessments for the Mammals
A138: G01b | B138: Summary of Exposure Assessments for the Birds
A139: G02a | B139: Summary of Hazard Quotients (Toxicity) for the Mammals
A140: G02b | B140: Summary of Hazard Quotients (Toxicity) for the Birds
A141: G03 | B141: Worksheet G03: Summary of Hazard Quotients for Aquatic Species
A142: G04 | B142: Summary of Exposure Assessment and Risk Characterization for Terrestrial Plants from Runoff
A143: G05a | B143: Summary of Exposure Assessment and Risk Characterization for Sensitive and Tolerant Terrestrial Plants from Drift [fine droplets] After Foliar Applications.
A144: G05b | B144: Summary of Exposure Assessment and Risk Characterization for Sensitive and Tolerant Terrestrial Plants from Drift [coarse droplets] After Foliar Applications.
A145: G06a | B145: Potential exposure of non-target plants through the use of contaminated irrigation water based on estimates concentrations in ambient water.
A146: G06b | B146: Summary of Exposure Assessment and Risk Characterization for Sensitive and Tolerant Terrestrial Plants from Wind Erosion at the Specified Application Rate.
A147: G07a | B147: Consumption of Fruit by a Herbivorous Insect, Acute exposure.
A148: G07b | B148: Consumption of Broadleaf/Small Insects by a Herbivorous Insect, Acute exposure.
A149: G07c | B149: Consumption of Short grass by a Herbivorous Insect, Acute exposure.
A150: G07d | B150: Consumption of Tall Grass by a Herbivorous Insect, Acute exposure.
A151: G08a | B151: Summary of Exposure Assessments for the Herbivorous or Predatory Insects
A152: G08b | B152: Summary of Hazard Quotients (Toxicity) for the Herbivorous or Predatory Insects
A153: G09 | B153: Exposures and HQs for a Terrestrial Insect (Honeybee) Associated with Direct Spray or Drift Following Terrestrial Applications
A154: G10 | B154: Exposures and HQs for Based on Toxicity Data on Typhlodromus pyri Associated with Direct Spray or Drift Following Terrestrial Applications
A155: References | B155: References cited in workbook

Sheet A01
A1: Program Data: Application rates, application volumns, and concentrations in field solutions
A2: Parameter/Assumption | B2: Code / Range | C2: Equation/ Value | D2: Units | E2: Reference/ Equation
A3: Application Rate | B3: ApRt | C3: 0.32 | D3: lb/acre | E3: Program Input
A4: Application Volume | B4: ApVol
B5: Central | C5: 20 | D5: gal/acre | E5: Program Input
B6: Upper | C6: 40 | E6: Program Input
B7: Lower | C7: 5 | E7: Program Input
A8: Concentration in field solution (lb/gal) | B8: Concppg | C8: ApRt (lb/acre) / ApVol (gal/acre) | E8: Note 1
B9: Central | C9: =IF(C5>0, C$3/C5, "N/A") -> 0.016 | D9: lb/gal | E9: Eq
B10: Lower | C10: =IF(C6>0, C$3/C6, "N/A") -> 0.008 | E10: Eq
B11: Upper | C11: =IF(C7>0, C$3/C7, "N/A") -> 0.064 | E11: Eq
A12: Conversion Factor for lbs/gal to mg/mL | B12: CnvF | C12: 119.8 | D12: mg/mL per lb/gal
A13: Concentration in field solution (mg/mL) | B13: FldConc | C13: Concppg * CnvF | E13: Note 2
B14: Central | C14: =IF(C5>0, DigitRound( C9*C$12, C$17), "NA") -> 1.9 | D14: mg/mL | E14: Eq
B15: Lower | C15: =IF(C6>0, DigitRound( C10*C$12, C$17), "NA") -> 0.96 | E15: Eq
B16: Upper | C16: =IF(C7>0, DigitRound( C11*C$12, C$17), "NA") -> 7.7 | E16: Eq
A17: Number of significant figures used for FldConc. | B17: NSig | C17: 2
A20: Number of Applications | B20: nApps | C20: 2 | D20: Unitless | E20: Program Input
A21: Application Interval | B21: ApIntv | C21: 14 | D21: Days | E21: Program Input
A22: Standard Values/Options for Scenarios
A23: Surface area of pond for spill | B23: PondSA_M | C23: 1000 | D23: Sq. Meters | E23: Risk assessment.
A24: Pond depth | B24: PondDepthM | C24: 1 | D24: Meters | E24: Risk assessment.
A25: Stream flow rate for drift scenario | B25: StreamFlowLD | C25: 710000 | D25: Liters/day | E25: Risk assessment.
A26: Stream length for drift scenario | B26: StreamLengthFt | C26: 1038 | D26: Feet | E26: Risk assessment.
A27: Stream width for drift scenario | B27: StreamWidthFt | C27: 6 | D27: Feet | E27: Risk assessment.
A28: Duration for longer-term exposures | B28: SubChDays | C28: 90 | D28: Days | E28: Risk assessment.
A29: Duration for swimming scenarios | B29: SwimMin | C29: 60 | D29: Minutes | E29: Risk assessment.
A30: Protection factor for workers based on PPE. | B30: WrkProtectFact
B31: Central | C31: 0 | E31: Risk assessment.
B32: Lower | C32: 0
B33: Upper | C33: 0
A34: Toxic Equivalency Factor for formulation | B34: TEF
B35: Central | C35: 1 | E35: Risk assessment.
B36: Lower | C36: 1
B37: Upper | C37: 1
A38: Drift used in food commody worksheets | B38: DriftToFood
B39: Central | C39: 1 | E39: Risk assessment.
B40: Lower | C40: 1
B41: Upper | C41: 1
A42: Amount spilled into ponds | B42: PondSpillVolGal
B43: Central | C43: 100 | D43: Gal | E43: Risk assessment.
B44: Lower | C44: 20
B45: Upper | C45: 200
A46: Dislodgeable residue, as a proportion of the application rate. | B46: DislogRes
B47: Central | C47: 0.1 | E47: Risk assessment.
B48: Lower | C48: 0.1
B49: Upper | C49: 0.1
A50: Residue rates for short grass | B50: VegRRSGT
B51: Central | C51: 85 | D51: ppm per lb/ac | E51: Risk assessment.
B52: Lower | C52: 30
B53: Upper | C53: 240
A54: Residue rates for long grass | B54: VegRRTGT
B55: Central | C55: 36 | D55: ppm per lb/ac | E55: Risk assessment.
B56: Lower | C56: 12
B57: Upper | C57: 110
A58: Residue rates for broadleaf/forage plants and small insects | B58: VegRRBLT
B59: Central | C59: 45 | D59: ppm per lb/ac | E59: Risk assessment.
B60: Lower | C60: 15
B61: Upper | C61: 135
A62: Residue rates for fruit | B62: VegRRFRT
B63: Central | C63: 7 | D63: ppm per lb/ac | E63: Risk assessment.
B64: Lower | C64: 3.2
B65: Upper | C65: 15
A66: Worker Exposure Rate | B66: WrkExpRate
B67: Central | C67: 0.003 | D67: Mg/kg bw per lb | E67: Risk assessment.
B68: Lower | C68: 0.0003
B69: Upper | C69: 0.01
A70: Number of acres that the worker will treat per hour. | B70: WrkAcPerHr
B71: Central | C71: 0.625 | D71: Acres/hr | E71: Risk assessment.
B72: Lower | C72: 0.25
B73: Upper | C73: 1
A74: Number of hours of worker exposure per day. | B74: WrkHsPerDy
B75: Central | C75: 7 | D75: Hrs/day | E75: Risk assessment.
B76: Lower | C76: 6
B77: Upper | C77: 8

Sheet A02a
A1: General reference values and exposure factors used in worksheets.
A3: Receptor | B3: Factor | C3: Value | D3: Units | E3: Reference | F3: Reference Note
A4: Adult Female | B4: Body weight | C4: 64 | D4: kg | E4: U.S. EPA/ORD 1985 | F4: page 5, Table 2-2
A5: Adult Female | B5: Surface Area, Feet and lower Legs | C5: 2915 | D5: cm2 | E5: U.S. EPA/ORD 1992 | F5: p. 8-11, Table 8-3, total for feet and lower legs
A6: Adult Female | B6: Surface Area, Wearing shorts and T-shirt | C6: 5300 | D6: cm2 | E6: U.S. EPA/ORD 1992 | F6: p. 8-11, Table 8-3, total for arms, hands, lower legs, and feet.
A7: Adult Female | B7: Surface Area, Whole body | C7: 16900 | D7: cm2 | E7: U.S. EPA/ORD 1997 | F7: p. 6-13, Table 6-3, whole body, 50th percentile
A8: Adult Male | B8: Body weight | C8: 70 | D8: kg | E8: ICRP 1975 | F8: p. 13.
A9: Subsistence Populations | B9: Body weight | C9: 70 | D9: kg | E9: ICRP 1975 | F9: p. 13
A10: Worker, Aerial Spray | B10: Absorbed dose rate, central estimate | C10: 3e-05 | D10: (mg/kg bw)/(lbs handled per day) | E10: SERA 2007 | F10: Acres treated per hour
A11: Worker, Aerial Spray | B11: Absorbed dose rate, lower range | C11: 1e-06 | D11: (mg/kg bw)/(lbs handled per day) | E11: SERA 2007 | F11: Acres treated per hour
A12: Worker, Aerial Spray | B12: Absorbed dose rate, upper range | C12: 0.0001 | D12: (mg/kg bw)/(lbs handled per day) | E12: SERA 2007 | F12: Acres treated per hour
A13: Worker, Aerial Spray | B13: Hours of application per day, central estimate | C13: 7 | D13: Hours per day | E13: USDA 1989a | F13: N/A
A14: Worker, Aerial Spray | B14: Hours of application per day, lower range | C14: 6 | D14: Hours per day | E14: USDA 1989a | F14: N/A
A15: Worker, Aerial Spray | B15: Hours of application per day, upper range | C15: 8 | D15: Hours per day | E15: USDA 1989a | F15: N/A
A16: Worker, Aerial Spray | B16: Acres treated per hour, central estimate | C16: 70 | D16: acres/hour | E16: USDA 1989a | F16: Acres treated per hour
A17: Worker, Aerial Spray | B17: Acres treated per hour, lower range | C17: 40 | D17: acres/hour | E17: USDA 1989a | F17: Acres treated per hour
A18: Worker, Aerial Spray | B18: Acres treated per hour, upper range | C18: 100 | D18: acres/hour | E18: USDA 1989a | F18: Acres treated per hour
A19: Worker, Backpack | B19: Absorbed dose rate, central estimate | C19: 0.003 | D19: (mg/kg bw)/(lbs handled per day) | E19: SERA 2007 | F19: Acres treated per hour
A20: Worker, Backpack | B20: Absorbed dose rate, lower range | C20: 0.0003 | D20: (mg/kg bw)/(lbs handled per day) | E20: SERA 2007 | F20: Acres treated per hour
A21: Worker, Backpack | B21: Absorbed dose rate, upper range | C21: 0.01 | D21: (mg/kg bw)/(lbs handled per day) | E21: SERA 2007 | F21: Acres treated per hour
A22: Worker, Backpack | B22: Hours of application per day, central estimate | C22: 7 | D22: Hours per day | E22: USDA 1989a | F22: N/A
A23: Worker, Backpack | B23: Hours of application per day, lower range | C23: 6 | D23: Hours per day | E23: USDA 1989a | F23: N/A
A24: Worker, Backpack | B24: Hours of application per day, upper range | C24: 8 | D24: Hours per day | E24: USDA 1989a | F24: N/A
A25: Worker, Backpack | B25: Acres treated per hour, central estimate | C25: 0.625 | D25: acres/hour | E25: USDA 1989a | F25: Acres treated per hour
A26: Worker, Backpack | B26: Acres treated per hour, lower range | C26: 0.25 | D26: acres/hour | E26: USDA 1989a | F26: Acres treated per hour
A27: Worker, Backpack | B27: Acres treated per hour, upper range | C27: 1 | D27: acres/hour | E27: USDA 1989a | F27: Acres treated per hour
A28: Child | B28: Body weight | C28: 13.3 | D28: kg | E28: U.S. EPA/ORD 1996 | F28: p. 7-1, Table 7-2
A29: Child | B29: Surface Area, Whole body | C29: 6030 | D29: cm2 | E29: U.S. EPA/ORD 1996 | F29: p. 6-15, Table 6-6, 50th percentile.
A30: Worker, Ground Spray | B30: Absorbed dose rate, central estimate | C30: 0.0002 | D30: (mg/kg bw)/(lbs handled per day) | E30: SERA 2007 | F30: Acres treated per hour
A31: Worker, Ground Spray | B31: Absorbed dose rate, lower range | C31: 1e-05 | D31: (mg/kg bw)/(lbs handled per day) | E31: SERA 2007 | F31: Acres treated per hour
A32: Worker, Ground Spray | B32: Absorbed dose rate, upper range | C32: 0.0009 | D32: (mg/kg bw)/(lbs handled per day) | E32: SERA 2007 | F32: Acres treated per hour
A33: Worker, Ground Spray | B33: Hours of application per day, central estimate | C33: 7 | D33: Hours per day | E33: USDA 1989a | F33: N/A
A34: Worker, Ground Spray | B34: Hours of application per day, lower range | C34: 6 | D34: Hours per day | E34: USDA 1989a | F34: N/A
A35: Worker, Ground Spray | B35: Hours of application per day, upper range | C35: 8 | D35: Hours per day | E35: USDA 1989a | F35: N/A
A36: Worker, Ground Spray | B36: Acres treated per hour, central estimate | C36: 16 | D36: acres/hour | E36: USDA 1989a | F36: Acres treated per hour
A37: Worker, Ground Spray | B37: Acres treated per hour, lower range | C37: 11 | D37: acres/hour | E37: USDA 1989a | F37: Acres treated per hour
A38: Worker, Ground Spray | B38: Acres treated per hour, upper range | C38: 21 | D38: acres/hour | E38: USDA 1989a | F38: Acres treated per hour
A39: Worker | B39: Body weight | C39: 70 | D39: kg | E39: ICRP 1975 | F39: p. 13
A40: Worker | B40: Surface Area, Hands | C40: 840 | D40: cm2 | E40: U.S. EPA/ORD 1992 | F40: p. 8-11
A41: Worker | B41: Surface Area, Lower legs | C41: 2070 | D41: cm2 | E41: U.S. EPA/ORD 1992 | F41: p. 8-11

Sheet A02b
A1: General reference values and exposure factors used in worksheets.
A3: Receptor | B3: Factor | C3: Value | D3: Units | E3: Reference | F3: Reference Note
A4: Amphibian | B4: Kilocalories, alpha parameter for allometric equation | C4: 0.054 | D4: BW(g),Kcal (kcal/day) | E4: U.S. EPA/ORD 1993 | F4: p. 3-7, equation 3-14
A5: Amphibian | B5: Kilocalories, beta parameter for allometric equation | C5: 0.799 | D5: BW(g),Kcal (kcal/day) | E5: U.S. EPA/ORD 1993 | F5: p. 3-7, equation 3-14
A6: Amphibian, bull frog | B6: Food consumption, alpha parameter for allometric equation | C6: 1.09 | D6: BW(g),FC(g) | E6: SERA 2010 | F6: Figure 15
A7: Amphibian, bull frog | B7: Food consumption, beta parameter for allometric equation | C7: 0.1723 | D7: BW(g),FC(g) | E7: SERA 2010 | F7: Figure 15
A8: Bird, NOS | B8: Food consumption, alpha parameter for allometric equation | C8: 0.648 | D8: BW(g),FC(g) | E8: U.S. EPA/ORD 1993 | F8: Eq. 3-3, p. 3-4, all birds
A9: Bird, NOS | B9: Food consumption, beta parameter for allometric equation | C9: 0.651 | D9: BW(g),FC(g) | E9: U.S. EPA/ORD 1993 | F9: Eq. 3-3, p. 3-4, all birds
A10: Bird, carnivorous | B10: Body weight | C10: 0.64 | D10: kg | E10: Dunning 1993 | F10: p. 97. Female Spotted Owl (Strix occidentalis). Range of 548 to 760 g.
A11: Bird, carnivorous | B11: Kilocalories, alpha parameter for allometric equation | C11: 1.146 | D11: BW(g),KCal(kcal/day) | E11: U.S. EPA/ORD 1993 | F11: Eq. 3-37, nonpasserines
A12: Bird, carnivorous | B12: Kilocalories, beta parameter for allometric equation | C12: 0.749 | D12: BW(g),KCal(kcal/day) | E12: U.S. EPA/ORD 1993 | F12: Eq. 3-37, nonpasserines
A13: Bird, carnivorous | B13: Water consumption, alpha parameter for allometric equation | C13: 0.059 | D13: BW(kg), WC(L) | E13: U.S. EPA/ORD 1993 | F13: Eq. 3-15, p. 3-8
A14: Bird, carnivorous | B14: Water consumption, beta parameter for allometric equation | C14: 0.67 | D14: BW(kg), WC(L) | E14: U.S. EPA/ORD 1993 | F14: Eq. 3-15, p. 3-8
A15: Bird, large | B15: Body weight | C15: 4 | D15: kg | E15: Default | F15: Canada goose
A16: Bird, large | B16: Kilocalories, alpha parameter for allometric equation | C16: 1.146 | D16: BW(g),KCal(kcal/day) | E16: U.S. EPA/ORD 1993 | F16: Eq. 3-37, non-passerines
A17: Bird, large | B17: Kilocalories, beta parameter for allometric equation | C17: 0.749 | D17: BW(g),KCal(kcal/day) | E17: U.S. EPA/ORD 1993 | F17: Eq. 3-37, non-passerines
A18: Bird, large | B18: Water consumption, alpha parameter for allometric equation | C18: 0.059 | D18: BW(kg), WC(L) | E18: U.S. EPA/ORD 1993 | F18: Eq. 3-15, p. 3-8
A19: Bird, large | B19: Water consumption, beta parameter for allometric equation | C19: 0.67 | D19: BW(kg), WC(L) | E19: U.S. EPA/ORD 1993 | F19: Eq. 3-15, p. 3-8
A20: Bird, non-Passerine | B20: Food consumption, alpha parameter for allometric equation | C20: 0.301 | D20: BW(g),FC(g) | E20: U.S. EPA/ORD 1993 | F20: Eq. 3-5, p. 3-5, non-passerines
A21: Bird, non-Passerine | B21: Food consumption, beta parameter for allometric equation | C21: 0.751 | D21: BW(g),FC(g) | E21: U.S. EPA/ORD 1993 | F21: Eq. 3-5, p. 3-5, non-passerines
A22: Bird, Passerine | B22: Food consumption, alpha parameter for allometric equation | C22: 0.398 | D22: BW(g),FC(g) | E22: U.S. EPA/ORD 1993 | F22: Eq. 3-4, p. 3-4, passerines
A23: Bird, Passerine | B23: Food consumption, beta parameter for allometric equation | C23: 0.85 | D23: BW(g),FC(g) | E23: U.S. EPA/ORD 1993 | F23: Eq. 3-4, p. 3-4, passerines
A24: Bird, piscivorous | B24: Body weight | C24: 2.4 | D24: kg | E24: Sibley 2000 | F24: p. 60. Great Blue Heron
A25: Bird, piscivorous | B25: Food consumption, alpha parameter for allometric equation | C25: 0.495 | D25: BW(g), FC(g) | E25: U.S. EPA/ORD 1993 | F25: Eq. 3-6, p. 3-5, seabird
A26: Bird, piscivorous | B26: Food consumption, beta parameter for allometric equation | C26: 0.704 | D26: BW(g), FC(g) | E26: U.S. EPA/ORD 1993 | F26: Eq. 3-6, p. 3-5, seabird
A27: Bird, piscivorous | B27: Kilocalories, alpha parameter for allometric equation | C27: 1.916 | D27: BW(g),KCal(kcal/day) | E27: U.S. EPA/ORD 1993 | F27: Eq. 3-38, p. 3-23, seabird
A28: Bird, piscivorous | B28: Kilocalories, beta parameter for allometric equation | C28: 0.704 | D28: BW(g),KCal(kcal/day) | E28: U.S. EPA/ORD 1993 | F28: Eq. 3-38, p. 3-23, seabird
A29: Bird, piscivorous | B29: Water consumption, alpha parameter for allometric equation | C29: 0.059 | D29: BW(kg), WC(L) | E29: U.S. EPA/ORD 1993 | F29: Eq. 3-15, p. 3-8
A30: Bird, piscivorous | B30: Water consumption, beta parameter for allometric equation | C30: 0.67 | D30: BW(kg), WC(L) | E30: U.S. EPA/ORD 1993 | F30: Eq. 3-15, p. 3-8
A31: Bird, small | B31: Body weight | C31: 0.01 | D31: kg | E31: Default | F31: N/A
A32: Bird, small | B32: Kilocalories, alpha parameter for allometric equation | C32: 3.12 | D32: BW(g),KCal(kcal/day) | E32: U.S. EPA/ORD 1993 | F32: Equation 3-36, passerines
A33: Bird, small | B33: Kilocalories, beta parameter for allometric equation | C33: 0.605 | D33: BW(g),KCal(kcal/day) | E33: U.S. EPA/ORD 1993 | F33: Equation 3-36, passerines
A34: Bird, small | B34: Water consumption, alpha parameter for allometric equation | C34: 0.059 | D34: BW(kg), WC(L) | E34: U.S. EPA/ORD 1993 | F34: Eq. 3-15, p. 3-8
A35: Bird, small | B35: Water consumption, beta parameter for allometric equation | C35: 0.67 | D35: BW(kg), WC(L) | E35: U.S. EPA/ORD 1993 | F35: Eq. 3-15, p. 3-8
A36: Honeybee | B36: Body weight | C36: 0.000116 | D36: kg | E36: Winston 1987 | F36: p. 54. Arithmetic average of range: 81 to 151 mg/bee.
A37: Honeybee | B37: Surface Area, Whole body | C37: 1.42 | D37: cm2 | E37: Humphery and Dykes 2008 | F37: Based on a bee with a body length of 1.44 cm.
A38: Mammal, Nos | B38: Food consumption, alpha parameter for allometric equation | C38: 0.235 | D38: BW(g),FC(g) | E38: U.S. EPA/ORD 1993 | F38: Eq. 3-7 ,p. 3-6, all mammals
A39: Mammal, Nos | B39: Food consumption, beta parameter for allometric equation | C39: 0.822 | D39: BW(g),FC(g) | E39: U.S. EPA/ORD 1993 | F39: Eq. 3-7 ,p. 3-6, all mammals
A40: Mammal, 400 g | B40: Body weight | C40: 0.4 | D40: kg | E40: Default | F40: N/A
A41: Mammal, 400 g | B41: Food consumption, alpha parameter for allometric equation | C41: 0.621 | D41: BW(g),FC(g) | E41: U.S. EPA/ORD 1993 | F41: Eq. 3-8, p. 3-6, equation for rodents
A42: Mammal, 400 g | B42: Food consumption, beta parameter for allometric equation | C42: 0.564 | D42: BW(g),FC(g) | E42: U.S. EPA/ORD 1993 | F42: Eq. 3-8, p. 3-6, equation for rodents
A43: Mammal, 400 g | B43: Kilocalories, alpha parameter for allometric equation | C43: 2.514 | D43: BW(g),KCal(kcal/day) | E43: U.S. EPA/ORD 1993 | F43: Equation 3-48, rodent
A44: Mammal, 400 g | B44: Kilocalories, beta parameter for allometric equation | C44: 0.507 | D44: BW(g),KCal(kcal/day) | E44: U.S. EPA/ORD 1993 | F44: Equation 3-48, rodent
A45: Mammal, 400 g | B45: Water consumption, alpha parameter for allometric equation | C45: 0.099 | D45: BW(kg),WC(L) | E45: U.S. EPA/ORD 1993 | F45: Eq. 3-17, p. 3-10, all mammals
A46: Mammal, 400 g | B46: Water consumption, beta parameter for allometric equation | C46: 0.9 | D46: BW(kg),WC(L) | E46: U.S. EPA/ORD 1993 | F46: Eq. 3-17, p. 3-10, all mammals
A47: Mammal, carnivorous | B47: Body weight | C47: 5 | D47: kg | E47: U.S. EPA/ORD 1993 | F47: p. 2-221. Central value for red fox with a range of 3 to 7 kg.
A48: Mammal, carnivorous | B48: Kilocalories, alpha parameter for allometric equation | C48: 0.6167 | D48: BW(g),KCal(kcal/day) | E48: U.S. EPA/ORD 1993 | F48: Equation 3-47, non-herbivore
A49: Mammal, carnivorous | B49: Kilocalories, beta parameter for allometric equation | C49: 0.862 | D49: BW(g),KCal(kcal/day) | E49: U.S. EPA/ORD 1993 | F49: Equation 3-47, non-herbivore
A50: Mammal, carnivorous | B50: Water consumption, alpha parameter for allometric equation | C50: 0.099 | D50: BW(kg),WC(L) | E50: U.S. EPA/ORD 1993 | F50: Eq. 3-17, p. 3-10, all mammals
A51: Mammal, carnivorous | B51: Water consumption, beta parameter for allometric equation | C51: 0.9 | D51: BW(kg), WC(L) | E51: U.S. EPA/ORD 1993 | F51: Eq. 3-17, p. 3-10, all mammals
A52: Mammal, large carnivorous | B52: Body weight | C52: 70 | D52: kg | E52: Reid 2006 | F52: pp. 451-453. Black bear or small grizzly.
A53: Mammal, large carnivorous | B53: Kilocalories, alpha parameter for allometric equation | C53: 0.6167 | D53: BW(g),KCal(kcal/day) | E53: U.S. EPA/ORD 1993 | F53: Equation 3-47, non-herbivore
A54: Mammal, large carnivorous | B54: Kilocalories, beta parameter for allometric equation | C54: 0.862 | D54: BW(g),KCal(kcal/day) | E54: U.S. EPA/ORD 1993 | F54: Equation 3-47, non-herbivore
A55: Mammal, large carnivorous | B55: Water consumption, alpha parameter for allometric equation | C55: 0.099 | D55: BW(kg),WC(L) | E55: U.S. EPA/ORD 1993 | F55: Eq. 3-17, p. 3-10, all mammals
A56: Mammal, large carnivorous | B56: Water consumption, beta parameter for allometric equation | C56: 0.9 | D56: BW(kg), WC(L) | E56: U.S. EPA/ORD 1993 | F56: Eq. 3-17, p. 3-10, all mammals
A57: Mammal, herbivorous | B57: Food consumption, alpha parameter for allometric equation | C57: 0.577 | D57: BW(g),FC(g) | E57: U.S. EPA/ORD 1993 | F57: Eq. 3-9, p. 3-6, equation for herbivores
A58: Mammal, herbivorous | B58: Food consumption, beta parameter for allometric equation | C58: 0.727 | D58: BW(g),FC(g) | E58: U.S. EPA/ORD 1993 | F58: Eq. 3-9, p. 3-6, equation for herbivores
A59: Mammal, herbivorous | B59: Kilocalories, alpha parameter for allometric equation | C59: 1.518 | D59: BW(g),KCal(kcal/day) | E59: U.S. EPA/ORD 1993 | F59: Equation 3-46, herbivores
A60: Mammal, herbivorous | B60: Kilocalories, beta parameter for allometric equation | C60: 0.73 | D60: BW(g),KCal(kcal/day) | E60: U.S. EPA/ORD 1993 | F60: Equation 3-46, herbivores
A61: Mammal, large | B61: Body weight | C61: 70 | D61: kg | E61: Default | F61: N/A
A62: Mammal, large | B62: Kilocalories, alpha parameter for allometric equation | C62: 1.518 | D62: BW(g),KCal(kcal/day) | E62: U.S. EPA/ORD 1993 | F62: p. 3-6, Eq. 3-10, herbivores
A63: Mammal, large | B63: Kilocalories, beta parameter for allometric equation | C63: 0.73 | D63: BW(g),KCal(kcal/day) | E63: U.S. EPA/ORD 1993 | F63: p. 3-6, Eq. 3-10, herbivores
A64: Mammal, large | B64: Water consumption, alpha parameter for allometric equation | C64: 0.099 | D64: BW(kg),WC(L) | E64: U.S. EPA/ORD 1993 | F64: Eq. 3-17, p. 3-10, all mammals
A65: Mammal, large | B65: Water consumption, beta parameter for allometric equation | C65: 0.9 | D65: BW(kg), WC(L) | E65: U.S. EPA/ORD 1993 | F65: Eq. 3-17, p. 3-10, all mammals
A66: Mammal, rabbit | B66: Body weight | C66: 1.3 | D66: kg | E66: Default | F66: N/A
A67: Mammal, rabbit | B67: Surface Area, alpha parameter for allometric equation | C67: 0.11 | D67: BW(kg),SA(m2) | E67: U.S. EPA/ORD 1993 | F67: p. 3-14, Eq. 3-22, for all mammals
A68: Mammal, rabbit | B68: Surface Area, beta parameter for allometric equation | C68: 0.65 | D68: BW(kg),SA(m2) | E68: U.S. EPA/ORD 1993 | F68: p. 3-14, Eq. 3-22, for all mammals
A69: Mammal, rodent | B69: Food consumption, alpha parameter for allometric equation | C69: 0.621 | D69: BW(g),FC(g) | E69: U.S. EPA/ORD 1993 | F69: Eq. 3-8, p. 3-6, equation for rodents
A70: Mammal, rodent | B70: Food consumption, beta parameter for allometric equation | C70: 0.584 | D70: BW(g),FC(g) | E70: U.S. EPA/ORD 1993 | F70: Eq. 3-8,p. 3-6, equation for rodents
A71: Mammal, small | B71: Body weight | C71: 0.02 | D71: kg | E71: Default | F71: N/A
A72: Mammal, small | B72: Caloric content (wet weight) | C72: 1.7 | D72: kcal/g (wet weight) | E72: U.S. EPA/ORD 1993 | F72: Table 4-1, p. 4-13. Value for small mammals. Wet weight.
A73: Mammal, small | B73: Food consumption, alpha parameter for allometric equation | C73: 0.621 | D73: BW(g),FC(g) | E73: U.S. EPA/ORD 1993 | F73: Eq. 3-8, p. 3-6, equation for rodents
A74: Mammal, small | B74: Food consumption, beta parameter for allometric equation | C74: 0.564 | D74: BW(g),FC(g) | E74: U.S. EPA/ORD 1993 | F74: Eq. 3-8, p. 3-6, equation for rodents
A75: Mammal, small | B75: Kilocalories, alpha parameter for allometric equation | C75: 2.514 | D75: BW(g),KCal(kcal/day) | E75: U.S. EPA/ORD 1993 | F75: Equation 3-48, rodent
A76: Mammal, small | B76: Kilocalories, beta parameter for allometric equation | C76: 0.507 | D76: BW(g),KCal(kcal/day) | E76: U.S. EPA/ORD 1993 | F76: Equation 3-48, rodent
A77: Mammal, small | B77: Surface Area, alpha parameter for allometric equation | C77: 0.11 | D77: BW(kg),SA(m2) | E77: U.S. EPA/ORD 1993 | F77: p. 3-14, Eq. 3-22, for all mammals
A78: Mammal, small | B78: Surface Area, beta parameter for allometric equation | C78: 0.65 | D78: BW(kg),SA(m2) | E78: U.S. EPA/ORD 1993 | F78: p. 3-14, Eq. 3-22, for all mammals
A79: Mammal, small | B79: Water consumption, alpha parameter for allometric equation | C79: 0.099 | D79: BW(kg),WC(L) | E79: U.S. EPA/ORD 1993 | F79: Eq. 3-17, p. 3-10, all mammals
A80: Mammal, small | B80: Water consumption, beta parameter for allometric equation | C80: 0.9 | D80: BW(kg),WC(L) | E80: U.S. EPA/ORD 1993 | F80: Eq. 3-17, p. 3-10, all mammals

Sheet A02c
A1: General reference values and exposure factors used in worksheets.
A3: Receptor | B3: Factor | C3: Value | D3: Units | E3: Reference | F3: Reference Note
A4: Small Insects | B4: Caloric content (wet weight) | C4: 1.5 | D4: kcal/g (wet weight) | E4: U.S. EPA/ORD 1993 | F4: Table 4-1, p. 4-13. Value for beetles. Wet weight
A5: Fish | B5: Caloric content (wet weight) | C5: 1.2 | D5: kcal/g (wet weight) | E5: U.S. EPA/ORD 1993 | F5: Table 4-1, p. 4-13. Value for bony fish. Wet weight
A6: Vegetation | B6: Caloric content (dry weight) | C6: 2.26 | D6: kcal/g | E6: U.S. EPA/ORD 1993 | F6: p. 3-5, Table 3-1
A7: Vegetation | B7: Water content (proportion) | C7: 0.85 | D7: unitless | E7: U.S. EPA/ORD 1993 | F7: p. 4-14
A8: VegRR | B8: Broadleaf/forage plants and small insects, central estimate | C8: 45 | D8: mg chem/kg veg | E8: Fletcher et al. 1994 | F8: Broadleaf/forage plants and small insects
A9: VegRR | B9: Broadleaf/forage plants and small insects, upper range | C9: 135 | D9: mg chem/kg veg | E9: Fletcher et al. 1994 | F9: Broadleaf/forage plants and small insects
A10: VegRR | B10: Fruits, pods, seeds, and large insects, central estimate | C10: 7 | D10: mg chem/kg veg | E10: Fletcher et al. 1994 | F10: Fruits, pods, seeds, and large insects
A11: VegRR | B11: Fruits, pods, seeds, and large insects, upper range | C11: 15 | D11: mg chem/kg veg | E11: Fletcher et al. 1994 | F11: Fruits, pods, seeds, and large insects
A12: VegRR | B12: Broadleaf plants and small insects, granular applications, central estimate | C12: 1.8 | D12: mg chem/kg veg | E12: SERA 2005 | F12: Broadleaf forage plants and contaminated insects after granular application
A13: VegRR | B13: Broadleaf plants and small insects, granular applications, upper range | C13: 5.4 | D13: mg chem/kg veg | E13: SERA 2005 | F13: Broadleaf forage plants and contaminated insects after granular application
A14: VegRR | B14: Fruits, granular applications, central estimate | C14: 0.28 | D14: mg chem/kg veg | E14: SERA 2005 | F14: Fruit after granular application
A15: VegRR | B15: Fruits, granular applications, upper range | C15: 0.6 | D15: mg chem/kg veg | E15: SERA 2005 | F15: Fruit after granular application
A16: VegRR | B16: Short grass, granular applications, lower range | C16: 1.2 | D16: mg chem/kg veg | E16: SERA 2005 | F16: Short grass after granular application
A17: VegRR | B17: Short grass, granular applications, upper range | C17: 9.6 | D17: mg chem/kg veg | E17: SERA 2005 | F17: Short grass after granular application
A18: VegRR | B18: Tall grass, granular applications, central estimate | C18: 1.44 | D18: mg chem/kg veg | E18: SERA 2005 | F18: Tall grass after granular application
A19: VegRR | B19: Tall grass, granular applications, upper range | C19: 4.4 | D19: mg chem/kg veg | E19: SERA 2005 | F19: Tall grass after granular application
A20: VegRR | B20: Short grass, central estimate | C20: 85 | D20: mg chem/kg veg | E20: Fletcher et al. 1994 | F20: Short grass
A21: VegRR | B21: Short grass, lower range | C21: 30 | D21: mg chem/kg veg | E21: SERA 2007 | F21: Short grass
A22: VegRR | B22: Short grass, upper range | C22: 240 | D22: mg chem/kg veg | E22: Fletcher et al. 1994 | F22: Short grass
A23: VegRR | B23: Tall grass, central estimate | C23: 36 | D23: mg chem/kg veg | E23: Fletcher et al. 1994 | F23: Tall grass
A24: VegRR | B24: Tall grass, upper range | C24: 110 | D24: mg chem/kg veg | E24: Fletcher et al. 1994 | F24: Tall grass

Sheet A02d
A1: General reference values and exposure factors used in worksheets.
A3: Receptor | B3: Factor | C3: Value | D3: Units | E3: Reference | F3: Reference Note
A4: Conversion Factors | B4: acrefoot2gal | C4: 325900 | D4: gal/acre-foot | E4: Budavari 1989 | F4: N/A
A5: Conversion Factors | B5: liters per gal | C5: 3.785 | D5: L/gal | E5: Budavari 1989 | F5: N/A
A6: Conversion Factors | B6: pound per milligram | C6: 453600 | D6: mg/lb | E6: Budavari 1989 | F6: N/A
A7: Conversion Factors | B7: lbac2mgcm2 | C7: 0.01121 | D7: mg/cm2 per lb/acre | E7: Budavari 1989 | F7: N/A
A8: Conversion Factors | B8: lbac2ugcm2 | C8: 11.21 | D8: ug/cm2 per lb/acre | E8: Budavari 1989 | F8: N/A
A9: Conversion Factors | B9: conversion for milligrams to pounds | C9: 2.204e-06 | D9: lb/mg | E9: Budavari 1989 | F9: N/A
A10: Conversion Factors | B10: conversion for milliliters to gallons | C10: 3785 | D10: ml/gal | E10: Budavari 1989 | F10: N/A
A11: Misc | B11: Liquid adhering to skin | C11: 0.008 | D11: mL/cm2 | E11: Mason and Johnson 1987 | F11: Weight of liquid adhering to surface of skin after a spill
A12: Misc | B12: Dislodgeable residue as proportion | C12: 0.1 | D12: none | E12: Harris and Solomon 1992 | F12: Estimate of dislodgeable residue as a proportion of application rate shortly after application based on 2,4-D.
A13: Standard Pond | B13: Depth | C13: 1 | D13: m | E13: Default | F13: Depth of pond
A14: Standard Pond | B14: Surface Area | C14: 1000 | D14: m^2 | E14: Default | F14: Surface Area
A15: Standard Pond | B15: Volume of Spill | C15: 200 | D15: gallons | E15: Default | F15: Volume of spill
A16: VegRR | B16: Broadleaf/forage plants and small insects, lower range | C16: 15 | D16: mg chem/kg veg | E16: SERA 2007 | F16: Broadleaf/forage plants and small insects
A17: VegRR | B17: Fruits, pods, seeds, and large insects, lower range | C17: 3.2 | D17: mg chem/kg veg | E17: SERA 2007 | F17: Fruits, pods, seeds, and large insects
A18: VegRR | B18: Broadleaf plants and small insects, granular applications, lower range | C18: 0.6 | D18: mg chem/kg veg | E18: SERA 2007 | F18: Broadleaf/forage plants after granular application
A19: VegRR | B19: Fruits, granular applications, lower range | C19: 0.13 | D19: mg chem/kg veg | E19: SERA 2007 | F19: Fruit after granular application
A20: VegRR | B20: Short grass, granular applications, central estimate | C20: 3.4 | D20: mg chem/kg veg | E20: SERA 2005 | F20: Short grass after granular application
A21: VegRR | B21: Short grass, granular applications, lower range | C21: 1.2 | D21: mg chem/kg veg | E21: SERA 2007 | F21: Short grass after granular application
A22: VegRR | B22: Tall grass, granular applications, lower range | C22: 0.48 | D22: mg chem/kg veg | E22: SERA 2007 | F22: Tall grass after granular application
A23: VegRR | B23: Short grass, lower range | C23: 30 | D23: mg chem/kg veg | E23: Fletcher et al. 1994 | F23: Short grass
A24: VegRR | B24: Tall grass, lower range | C24: 12 | D24: mg chem/kg veg | E24: SERA 2007 | F24: Tall grass

Sheet A03
A1: Food items for terrestrial animals
A3: Receptor | B3: Consumer | C3: Qualifier | D3: Modifier | E3: Value | F3: Units | G3: Reference | H3: Reference Note
A4: Adult Female | B4: Fish | C4: Amount | D4: central estimate | E4: 0.01 | F4: kg/day | G4: U.S. EPA/ORD 1996 | H4: p. 10-51, average of means from four studies rounded to one significant place.
A5: Adult Female | B5: Fish | C5: Amount | D5: upper range | E5: 0.158 | F5: kg/day | G5: Ruffle et al. 1994 | H5: N/A
A6: Adult Female | B6: Fruit | C6: Proportion of body weight | D6: central estimate | E6: 0.00168 | F6: kg fruit/kg bw/day | G6: U.S. EPA/ORD 1996 | H6: Table 9-3, p. 9-11, mean value.
A7: Adult Female | B7: Fruit | C7: Proportion of body weight | D7: lower range | E7: 0.00168 | F7: kg fruit/kg bw/day | G7: U.S. EPA/ORD 1996 | H7: Table 9-3, p. 9-11. The 5th percentile is given as zero. For these worksheets, the central estimate is used for the lower bound.
A8: Adult Female | B8: Fruit | C8: Proportion of body weight | D8: upper range | E8: 0.01244 | F8: kg fruit/kg bw/day | G8: U.S. EPA/ORD 1996 | H8: Table 9-3, p. 9-11, 95th percentile value.
A9: Adult Female | B9: Vegetation, home grown | C9: Proportion of body weight | D9: central estimate | E9: 0.00076 | F9: kg veg/kg bw/day | G9: U.S. EPA/ORD 1996 | H9: Table 12-15, p. 9-14, mean for individuals between 20 and 39 years old.
A10: Adult Female | B10: Vegetation, home grown | C10: Proportion of body weight | D10: lower range | E10: 8e-05 | F10: kg veg/kg bw/day | G10: U.S. EPA/ORD 1996 | H10: Table 12-15, p. 9-14, 5th percentile for individuals between 20 and 39 years old.
A11: Adult Female | B11: Vegetation, home grown | C11: Proportion of body weight | D11: upper range | E11: 0.00492 | F11: kg veg/kg bw/day | G11: U.S. EPA/ORD 1996 | H11: Table 12-15, p. 9-14, 95th percentile for individuals between 20 and 39 years old.
A12: Adult Female | B12: Vegetation | C12: Amount | D12: Extreme | E12: 0.454 | F12: kg food | G12: U.S. EPA/ORD 1996 | H12: 1 lb. The approximate mid range of the above typical and upper limits based on the 64 kg body weight.
A13: Adult Female | B13: Vegetation | C13: Proportion of body weight | D13: central estimate | E13: 0.0036 | F13: kg veg/kg bw/day | G13: U.S. EPA/ORD 1996 | H13: Table 9-12, p. 9-12, mean.
A14: Adult Female | B14: Vegetation | C14: Proportion of body weight | D14: lower range | E14: 0.00075 | F14: kg veg/kg bw/day | G14: U.S. EPA/ORD 1996 | H14: Table 9-12, p. 9-12, 5th percentile.
A15: Adult Female | B15: Vegetation | C15: Proportion of body weight | D15: upper range | E15: 0.01 | F15: kg veg/kg bw/day | G15: U.S. EPA/ORD 1996 | H15: Table 9-12, p. 9-12, 95th percentile.
A16: Adult Female | B16: Water | C16: Amount | D16: central estimate | E16: 2 | F16: L/day | G16: U.S. EPA/ORD 1996 | H16: p. 3-28, Table 3-30, midpoint of mean (1.4 L/day) and 90th percentile (2.4 L/day) rounded to one significant place.
A17: Adult Female | B17: Water | C17: Amount | D17: lower range | E17: 1.4 | F17: L/day | G17: U.S. EPA/ORD 1996 | H17: p. 3-28, Table 3-30, mean
A18: Adult Female | B18: Water | C18: Amount | D18: upper range | E18: 2.4 | F18: L/day | G18: U.S. EPA/ORD 1996 | H18: p. 3-28, Table 3-30, 90th percentile
A19: Adult Male | B19: Fish | C19: Amount | D19: central estimate | E19: 0.01 | F19: kg/day | G19: U.S. EPA/ORD 1996 | H19: p. 10-51, average of means from four studies rounded to one significant place.
A20: Adult Male | B20: Fish | C20: Amount | D20: upper range | E20: 0.158 | F20: kg/day | G20: Ruffle et al. 1994 | H20: N/A
A21: Adult Male | B21: Fruit | C21: Proportion of body weight | D21: central estimate | E21: 0.00168 | F21: unitless | G21: U.S. EPA/ORD 1996 | H21: Table 9-3, p. 9-11, mean value.
A22: Adult Male | B22: Fruit | C22: Proportion of body weight | D22: lower range | E22: 0.00168 | F22: unitless | G22: U.S. EPA/ORD 1996 | H22: Table 9-3, p. 9-11. The 5th percentile is given as zero. For these worksheets, the central estimate is used for the lower bound.
A23: Adult Male | B23: Fruit | C23: Proportion of body weight | D23: upper range | E23: 0.01244 | F23: unitless | G23: U.S. EPA/ORD 1996 | H23: Table 9-3, p. 9-11, 95th percentile value.
A24: Adult Male | B24: Vegetation, home grown | C24: Proportion of body weight | D24: central estimate | E24: 0.00076 | F24: unitless | G24: U.S. EPA/ORD 1996 | H24: Table 12-15, p. 9-14, mean for individuals between 20 and 39 years old.
A25: Adult Male | B25: Vegetation, home grown | C25: Proportion of body weight | D25: lower range | E25: 8e-05 | F25: unitless | G25: U.S. EPA/ORD 1996 | H25: Table 12-15, p. 9-14, 5th percentile for individuals between 20 and 39 years old.
A26: Adult Male | B26: Vegetation, home grown | C26: Proportion of body weight | D26: upper range | E26: 0.00492 | F26: unitless | G26: U.S. EPA/ORD 1996 | H26: Table 12-15, p. 9-14, 95th percentile for individuals between 20 and 39 years old.
A27: Adult Male | B27: Vegetation | C27: Amount | D27: Extreme | E27: 0.454 | F27: kg/day | G27: U.S. EPA/ORD 1996 | H27: 1 lb. The approximate mid range of the above typical and upper limits based on the 64 kg body weight.
A28: Adult Male | B28: Vegetation | C28: Proportion of body weight | D28: central estimate | E28: 0.0036 | F28: unitless | G28: U.S. EPA/ORD 1996 | H28: Table 9-12, p. 9-12, mean.
A29: Adult Male | B29: Vegetation | C29: Proportion of body weight | D29: lower range | E29: 0.00075 | F29: unitless | G29: U.S. EPA/ORD 1996 | H29: Table 9-12, p. 9-12, 5th percentile.
A30: Adult Male | B30: Vegetation | C30: Proportion of body weight | D30: upper range | E30: 0.01 | F30: unitless | G30: U.S. EPA/ORD 1996 | H30: Table 9-12, p. 9-12, 95th percentile.
A31: Adult Male | B31: Water | C31: Amount | D31: central estimate | E31: 2 | F31: L/day | G31: U.S. EPA/ORD 1996 | H31: p. 3-28, Table 3-30, midpoint of mean (1.4 L/day) and 90th percentile (2.4 L/day) rounded to one significant place.
A32: Adult Male | B32: Water | C32: Amount | D32: lower range | E32: 1.4 | F32: L/day | G32: U.S. EPA/ORD 1996 | H32: p. 3-28, Table 3-30, mean
A33: Adult Male | B33: Water | C33: Amount | D33: upper range | E33: 2.4 | F33: L/day | G33: U.S. EPA/ORD 1996 | H33: p. 3-28, Table 3-30, 90th percentile
A34: Subsistence Populations | B34: Fish | C34: Amount | D34: central estimate | E34: 0.081 | F34: kg/day | G34: U.S. EPA/ORD 1996 | H34: p. 10-51, median value of 94 individuals
A35: Subsistence Populations | B35: Fish | C35: Amount | D35: upper range | E35: 0.77 | F35: kg/day | G35: U.S. EPA/ORD 1993 | H35: p. 10-51, highest value of 94 individuals
A36: Bird, NOS | B36: Fish | C36: Kilocalories | D36: FoodVal | E36: 3.87 | F36: Kcal/gram (dw) | G36: U.S. EPA/ORD 1993 | H36: Table 3-1, p. 3-5
A37: Bird, NOS | B37: Fish | C37: Wat | D37: FoodVal | E37: 0.7 | F37: Unitless | G37: Ali et al. 2005 | H37: N/A
A38: Bird, NOS | B38: Fruit | C38: Kilocalories | D38: FoodVal | E38: 1.1 | F38: Kcal/gram (dw) | G38: U.S. EPA/ORD 1993 | H38: Gross caloric value of 2.2 kcal/g dw (U.S. EPA/ORD 1993, Table 4-2) with assim fact of 0.51
A39: Bird, NOS | B39: Fruit | C39: Wat | D39: FoodVal | E39: 0.77 | F39: Unitless | G39: U.S. EPA/ORD 1993 | H39: Table 4-2, p. 4-14
A40: Bird, NOS | B40: Insect | C40: Kilocalories | D40: FoodVal | E40: 4.3 | F40: Kcal/gram (dw) | G40: U.S. EPA/ORD 1993 | H40: Table 4-2, p. 4-14
A41: Bird, NOS | B41: Insect | C41: Wat | D41: FoodVal | E41: 0.7 | F41: Unitless | G41: Chapman 1998 | H41: Typrical range 60-80%
A42: Bird, NOS | B42: Vegetation | C42: Kilocalories | D42: FoodVal | E42: 2 | F42: Kcal/gram (dw) | G42: U.S. EPA/ORD 1993 | H42: gross caloric value of 4.2 kcal/g dw for dicot leaves (U.S. EPA/ORD 1993, Table 4-2) with assim fact of 0.47
A43: Bird, NOS | B43: Vegetation | C43: Wat | D43: FoodVal | E43: 0.85 | F43: Unitless | G43: U.S. EPA/ORD 1993 | H43: Table 4-2, p. 4-14
A44: Child | B44: Water | C44: Amount | D44: central estimate | E44: 1 | F44: L/day | G44: U.S. EPA/ORD 1996 | H44: p. 3-28, Table 3-30, midpoint of mean (0.61L/day) and 90th percentile (1.5 L/day) rounded to one significant place.
A45: Child | B45: Water | C45: Amount | D45: lower range | E45: 0.61 | F45: L/day | G45: U.S. EPA/ORD 1996 | H45: p. 3-28, Table 3-30, mean
A46: Child | B46: Water | C46: Amount | D46: upper range | E46: 1.5 | F46: L/day | G46: U.S. EPA/ORD 1996 | H46: p. 3-28, Table 3-30, 90th percentile
A47: Herbivorous Insect | B47: Broadleaf/Small Insects | C47: Proportion of body weight | D47: central estimate | E47: 1.3 | F47: kg food/kg bw/day | G47: Waldbauer 1968 | H47: N/A
A48: Herbivorous Insect | B48: Broadleaf/Small Insects | C48: Proportion of body weight | D48: lower range | E48: 0.6 | F48: kg food/kg bw/day | G48: Reichle et al. 1973 | H48: N/A
A49: Herbivorous Insect | B49: Broadleaf/Small Insects | C49: Proportion of body weight | D49: upper range | E49: 2.2 | F49: kg food/kg bw/day | G49: Waldbauer 1968 | H49: N/A
A50: Herbivorous Insect | B50: Fruit | C50: Proportion of body weight | D50: central estimate | E50: 1.3 | F50: kg food/kg bw/day | G50: Waldbauer 1968 | H50: N/A
A51: Herbivorous Insect | B51: Fruit | C51: Proportion of body weight | D51: lower range | E51: 0.6 | F51: kg food/kg bw/day | G51: Reichle et al. 1973 | H51: N/A
A52: Herbivorous Insect | B52: Fruit | C52: Proportion of body weight | D52: upper range | E52: 2.2 | F52: kg food/kg bw/day | G52: Waldbauer 1968 | H52: N/A
A53: Herbivorous Insect | B53: Short grass | C53: Proportion of body weight | D53: central estimate | E53: 1.3 | F53: kg food/kg bw/day | G53: Waldbauer 1968 | H53: N/A
A54: Herbivorous Insect | B54: Short grass | C54: Proportion of body weight | D54: lower range | E54: 0.6 | F54: kg food/kg bw/day | G54: Reichle et al. 1973 | H54: N/A
A55: Herbivorous Insect | B55: Short grass | C55: Proportion of body weight | D55: upper range | E55: 2.2 | F55: kg food/kg bw/day | G55: Waldbauer 1968 | H55: N/A
A56: Herbivorous Insect | B56: Tall Grass | C56: Proportion of body weight | D56: central estimate | E56: 1.3 | F56: kg food/kg bw/day | G56: Waldbauer 1968 | H56: N/A
A57: Herbivorous Insect | B57: Tall Grass | C57: Proportion of body weight | D57: lower range | E57: 0.6 | F57: kg food/kg bw/day | G57: Reichle et al. 1973 | H57: N/A
A58: Herbivorous Insect | B58: Tall Grass | C58: Proportion of body weight | D58: upper range | E58: 2.2 | F58: kg food/kg bw/day | G58: Waldbauer 1968 | H58: N/A
A59: Mammal, Nos | B59: Fish | C59: Kilocalories | D59: FoodVal | E59: 4.47 | F59: Kcal/gram (dw) | G59: U.S. EPA/ORD 1993 | H59: Table 3-1, p. 3-5
A60: Mammal, Nos | B60: Fish | C60: Wat | D60: FoodVal | E60: 0.7 | F60: Unitless | G60: Ali et al. 2005 | H60: N/A
A61: Mammal, Nos | B61: Fruit | C61: Kilocalories | D61: FoodVal | E61: 1.1 | F61: Kcal/gram (dw) | G61: U.S. EPA/ORD 1993 | H61: Gross caloric value of 2.2 kcal/g dw (U.S. EPA/ORD 1993, Table 4-2) with assim fact of 0.51
A62: Mammal, Nos | B62: Fruit | C62: Wat | D62: FoodVal | E62: 0.77 | F62: Unitless | G62: U.S. EPA/ORD 1993 | H62: Table 4-2, p. 4-14
A63: Mammal, Nos | B63: Insect | C63: Kilocalories | D63: FoodVal | E63: 4.47 | F63: Kcal/gram (dw) | G63: U.S. EPA/ORD 1993 | H63: Table 4-2, p. 4-14
A64: Mammal, Nos | B64: Insect | C64: Wat | D64: FoodVal | E64: 0.7 | F64: Unitless | G64: Chapman 1998 | H64: Typrical range 60-80%
A65: Mammal, Nos | B65: Vegetation | C65: Kilocalories | D65: FoodVal | E65: 2.26 | F65: Kcal/gram (dw) | G65: U.S. EPA/ORD 1993 | H65: Table 3-1, p. 3-5
A66: Mammal, Nos | B66: Vegetation | C66: Wat | D66: FoodVal | E66: 0.85 | F66: Unitless | G66: U.S. EPA/ORD 1993 | H66: Table 4-2, p. 4-14

Sheet A04
A1: Drift from Backpack Directed Foliar application at distances downwindfrom the application site
A2: Short Title | B2: Drift | E2: DriftArea
A3: Receptor | B3: Downwind receptors
A4: Duration | B4: Acute
A5: Parameter/Assumption | B5: Code / Range | C5: Equation/ Value | D5: Units | E5: Reference/Designation
A6: Proportion of Drift at distances downwind in feet | B6: Prop | E6: Program Speciified
A7: Direct Spray | B7: feet | C7: 1 | D7: unitless
A8: 25 | B8: feet | C8: 0.00832
A9: 50 | B9: feet | C9: 0.00433
A10: 100 | B10: feet | C10: 0.00241
A11: 300 | B11: feet | C11: 0.000941
A12: 500 | B12: feet | C12: 0.000579
A13: 900 | B13: feet | C13: 0.000312

Sheet B01
A1: Chemical and Physical Properties for Fluazifop-P
A3: Property | B3: Receptor | C3: Value | D3: Units | E3: Document Reference
A4: Bioconcentration Factor (BCF), edible, acute | B4: N/A | C4: 120 | D4: L/kg fish | E4: MRID 93196
A5: Bioconcentration Factor (BCF), edible, chronic | B5: N/A | C5: 1.1 | D5: L/kg fish | E5: MRID 93196
A6: Bioconcentration Factor (BCF), whole fish, acute | B6: N/A | C6: 410 | D6: L/kg fish | E6: MRID 93196
A7: Bioconcentration Factor (BCF), whole fish, chronic | B7: N/A | C7: 2.1 | D7: L/kg fish | E7: MRID 93196
A8: Kow (Octanol-water partition coefficient) | B8: N/A | C8: 31600 | D8: unitless | E8: U.S. EPA/OPP 2004a, MRID 92067999
A9: Molecular weight | B9: N/A | C9: 383.37 | D9: grams/mole | E9: Fluazifop-P-butyl
A10: Water Solubility | B10: N/A | C10: 780 | D10: mg/L | E10: GLEAM Table
A11: First order dermal absorption rate (ka), central estimate | B11: N/A | C11: 0.0024 | D11: per hour | E11: N/A
A12: First order dermal absorption rate (ka), lower range | B12: N/A | C12: 0.00084 | D12: per hour | E12: N/A
A13: First order dermal absorption rate (ka), upper range | B13: N/A | C13: 0.007 | D13: per hour | E13: N/A
A14: Dermal permeability (Kp), central estimate | B14: N/A | C14: 0.012 | D14: cm/hour | E14: N/A
A15: Dermal permeability (Kp), lower range | B15: N/A | C15: 0.0059 | D15: cm/hour | E15: N/A
A16: Dermal permeability (Kp), upper range | B16: N/A | C16: 0.026 | D16: cm/hour | E16: N/A
A17: Halftime, central estimate | B17: Fruit | C17: 7.5 | D17: days | E17: Section 3.2.3.7.
A18: Halftime, lower range | B18: Fruit | C18: 6.6 | D18: days | E18: Section 3.2.3.7.
A19: Halftime, upper range | B19: Fruit | C19: 8.7 | D19: days | E19: Section 3.2.3.7.
A20: Halftime, central estimate | B20: Vegetation | C20: 7.5 | D20: days | E20: Section 3.2.3.7.
A21: Halftime, lower range | B21: Vegetation | C21: 6.6 | D21: days | E21: Section 3.2.3.7.
A22: Halftime, upper range | B22: Vegetation | C22: 8.7 | D22: days | E22: Section 3.2.3.7.

Sheet B02
A1: Toxicity values for Fluazifop-P
A3: Receptor | B3: Receptor | C3: Qualifier | D3: Endpoint | E3: Value | F3: Units | G3: Document Reference
A4: Human | B4: acute | C4: N/A | D4: Reference Dose (RfD) | E4: 0.43 | F4: mg/kg bw | G4: Section 3.3.
A5: Human | B5: chronic | C5: N/A | D5: Reference Dose (RfD) | E5: 0.0063 | F5: mg a.e./kg bw/day | G5: Section 3.3.
A6: Worker | B6: short-term | C6: N/A | D6: Reference Dose (RfD) | E6: 0.017 | F6: mg/kg bw/day | G6: Section 3.3.
A7: Mammal, Nos | B7: acute | C7: N/A | D7: NOAEL | E7: 43 | F7: mg/kg bw | G7: N/A
A8: Mammal, Nos | B8: chronic | C8: N/A | D8: NOAEL | E8: 0.63 | F8: mg/kg bw/day | G8: N/A
A9: Mammal, carnivorous | B9: acute | C9: N/A | D9: NOAEL | E9: 43 | F9: mg/kg bw | G9: N/A
A10: Mammal, carnivorous | B10: chronic | C10: N/A | D10: NOAEL | E10: 0.63 | F10: mg/kg bw/day | G10: N/A
A11: Bird, NOS | B11: acute | C11: N/A | D11: NOAEL | E11: 1069 | F11: mg/kg bw | G11: N/A
A12: Bird, NOS | B12: chronic | C12: N/A | D12: NOAEL | E12: 3.3 | F12: mg/kg bw/day | G12: N/A
A13: Honeybee | B13: acute | C13: oral | D13: NOAEL | E13: 736 | F13: mg/kg bw | G13: N/A
A14: Honeybee | B14: acute | C14: contact | D14: NOAEL | E14: 698 | F14: mg/kg bw | G14: N/A
A15: Herbivorous Insect | B15: acute | C15: oral | D15: NOAEL | E15: 736 | F15: mg/kg bw | G15: N/A
A16: Terrestrial plant | B16: Vegetative vigor | C16: sensitive species | D16: NOAEL | E16: 0.007 | F16: lb/acre | G16: N/A
A17: Terrestrial plant | B17: Vegetative vigor | C17: tolerant species | D17: NOAEL | E17: 0.57 | F17: lb/acre | G17: N/A
A18: Terrestrial plant | B18: Seedling Emergence | C18: sensitive species | D18: NOAEL | E18: 0.027 | F18: lb/acre | G18: N/A
A19: Terrestrial plant | B19: Seedling Emergence | C19: tolerant species | D19: NOAEL | E19: 0.76 | F19: lb/acre | G19: N/A
A20: Aquatic invertebrate | B20: acute | C20: sensitive species | D20: NOAEC | E20: 0.048 | F20: mg/L | G20: N/A
A21: Aquatic invertebrate | B21: acute | C21: tolerant species | D21: NOAEC | E21: 1.07 | F21: mg/L | G21: N/A
A22: Aquatic invertebrate | B22: chronic | C22: sensitive species | D22: NOAEC | E22: 0.0148 | F22: mg/L | G22: N/A
A23: Aquatic invertebrate | B23: chronic | C23: tolerant species | D23: NOAEC | E23: 0.085 | F23: mg/L | G23: N/A
A24: Fish | B24: acute | C24: sensitive species | D24: NOAEC | E24: 0.203 | F24: mg/L | G24: N/A
A25: Fish | B25: acute | C25: tolerant species | D25: NOAEC | E25: 0.68 | F25: mg/L | G25: N/A
A26: Fish | B26: chronic | C26: sensitive species | D26: NOAEC | E26: 0.2 | F26: mg/L | G26: N/A
A27: Algae | B27: N/A | C27: sensitive species | D27: NOAEC | E27: 0.001 | F27: mg/L | G27: N/A
A28: Algae | B28: N/A | C28: tolerant species | D28: NOAEC | E28: 1.14 | F28: mg/L | G28: N/A
A29: Macrophyte, aquatic | B29: N/A | C29: tolerant species | D29: NOAEC | E29: 327 | F29: mg/L | G29: N/A

Sheet B03a
A1: Calculation of Zero-Order Dermal Permeability Rate (Kp) in cm/hour
A2: Short Title | B2: Calculation of Kp | E2: ChemDrmKp
A3: Parameter/Assumption | B3: Code / Range | C3: Equation/ Value | D3: Units | E3: Reference/Designation
A4: Molecular weight | B4: MW | C4: ='B01'!$C$9 -> 383.37 | D4: g/mole | E4: Fluazifop-P-butyl
A5: Ko/w | B5: Kow | C5: ='B01'!$C$8 -> 31600 | D5: unitless | E5: U.S. EPA/OPP 2004a, MRID 92067999
A6: Vector a[] | B6: a[1] | C6: 1
B7: a[2] | C7: =C4 -> 383.37
B8: a[3] | C8: =LOG10(C5) -> 4.499687083
A9: Transpose of a[] (a') | B9: =$C$6 -> 1 | C9: =$C$7 -> 383.37 | D9: =$C$8 -> 4.499687083
A10: X'X Cross Product Matrix | B10: X'X
B11: 0.055931 | C11: -9.41546e-05 | D11: -0.0103443
B12: -9.41546e-05 | C12: 5.978e-07 | D12: -2.22508e-05
B13: -0.0103443 | C13: -2.22508e-05 | D13: 0.00740677
A14: a'X'X a | B14: a'X'X a | C14: =MMULT(B9:D9,MMULT(B11:D13, C6:C8)) -> 0.05170583998
A15: Coefficients for model
A16: Intercept | B16: K0 | C16: -2.72576
A17: Coeff for MW | B17: K1 | C17: -0.006151
A18: Coeff for Log10(Kow) | B18: K2 | C18: 0.706648
A19: Standard deviation of model | B19: s | C19: 0.727129
A20: Critical value at 0.025 with 87 d.f. | B20: t0.025 | C20: 1.96
A21: Log10 of Estimated dermal permeability rate (Kp) | B21: Log(Kp) = | C21: K0 + K1 MW + K2 Log10(Kow)
B22: Central | C22: =$C$16 + ($C$17*$C$4) + ($C$18*LOG10($C$5)) -> -1.904173992 | E22: Eq
B23: Lower 95% CI | C23: =$C$22 - ($C$20 * $C$19 * ($C$14^0.5)) -> -2.228242878 | E23: Eq
B24: Upper 95% CI | C24: =$C$22 + ($C$20 * $C$19 * ($C$14^0.5)) -> -1.580105106 | E24: Eq
A25: Estimated dermal permeability rate (Kp) | B25: Kp = | C25: 10Log(Kp)
B26: Central | C26: =10^C22 -> 0.01246883872 | D26: cm/hour | E26: Eq
B27: Lower 95% CI | C27: =10^C23 -> 0.005912308969 | E27: Eq
B28: Upper 95% CI | C28: =10^C24 -> 0.026296315 | E28: Eq

Sheet B03b
A1: Calculation of First-Order Dermal Absorption Rate
A2: Short Title | B2: Calculation of ka | E2: ChemDrmKa
A3: Parameter/Assumption | B3: Code / Range | C3: Equation/ Value | D3: Units | E3: Reference/Designation
A4: Molecular weight | B4: MW | C4: ='B01'!$C$9 -> 383.37 | D4: g/mole | E4: Fluazifop-P-butyl
A5: Ko/w | B5: Kow | C5: ='B01'!$C$8 -> 31600 | D5: unitless | E5: U.S. EPA/OPP 2004a, MRID 92067999
A6: Vector a[] | B6: a[1] | C6: 1
B7: a[2] | C7: =C4 -> 383.37
B8: a[3] | C8: =LOG10(C5) -> 4.499687083
A9: Transpose of a[] (a') | B9: =$C$6 -> 1 | C9: =$C$7 -> 383.37 | D9: =$C$8 -> 4.499687083
A10: X'X Cross Product Matrix | B10: X'X
B11: 0.307537 | C11: -0.00103089 | D11: 0.00822769
B12: -0.00103089 | C12: 4.377e-06 | D12: -9.44359e-05
B13: 0.00822769 | C13: -9.44359e-05 | D13: 0.0085286
A14: a'X'X a | B14: a'X'X a | C14: =MMULT(B9:D9,MMULT(B11:D13, C6:C8)) -> 0.08132311469
A15: Coefficients for model
A16: Intercept | B16: K0 | C16: -1.49615
A17: Coeff for MW | B17: K1 | C17: -0.005657
A18: Coeff for Log10(Kow) | B18: K2 | C18: 0.233255
A19: Standard deviation of model | B19: s | C19: 0.787218
A20: Critical value at 0.025 with 26 d.f. | B20: t0.025 | C20: 2.056
A21: Log10 of Estimated first-order absorption rate | B21: Log(ka) = | C21: K0 + K1 MW + K2 Log10(Kow)
B22: Central | C22: =$C$16 + ($C$17*$C$4) + ($C$18*LOG10($C$5)) -> -2.61529958 | E22: Eq
B23: Lower 95% CI | C23: =$C$22 - ($C$20 * $C$19 * ($C$14^0.5)) -> -3.076856352 | E23: Eq
B24: Upper 95% CI | C24: =$C$22 + ($C$20 * $C$19 * ($C$14^0.5)) -> -2.153742807 | E24: Eq
A25: Estimated first-order absorption rate | B25: ka = | C25: 10Log(ka)
B26: Central | C26: =10^C22 -> 0.002424936779 | D26: hour-1 | E26: Eq
B27: Lower 95% CI | C27: =10^C23 -> 0.00083780635 | E27: Eq
B28: Upper 95% CI | C28: =10^C24 -> 0.007018708298 | E28: Eq

Sheet B04Rt
A1: Estimates of Water Contamination Rates -- i.e., the concentration in ambient water per pound applied per acre
A2: Parameter/Assumption | B2: Code / Range | C2: Equation/ Value | D2: Units | E2: WCRV6
A3: Short-term peak concentrations | B3: Peak | E3: WCRV6
B4: Central | C4: 0.036 | D4: mg/L per lb/acre | E4: RA, Table 20
B5: Lower | C5: 0.0036
B6: Upper | C6: 0.41
A7: Longer-term average concentrations | B7: Average
B8: Central | C8: 0.014 | D8: mg/L per lb/acre
B9: Lower | C9: 0.0014
B10: Upper | C10: 0.16
A11: User Specified Gleams-Driver File: | B11: None

Sheet B04a
A1: Expected Concentrations in Surface Water | E1: EECRtV6
A2: Parameter/Assumption | B2: Code / Range | C2: Equation/ Value | D2: Units | E2: EECRtV6
A3: Application Rate | B3: ApRt | C3: ='A01'!ApRt_C -> 0.32 | D3: lb/acre | E3: Worksheet A01
A4: Water Contamination Rates
A5: Short-term peak water contamination rates (WCR) | B5: Peak
B6: Central | C6: =B04Rt!$C$4 -> 0.036 | D6: mg/L
B7: Lower | C7: =B04Rt!$C$5 -> 0.0036
B8: Upper | C8: =B04Rt!$C$6 -> 0.41
A9: Longer-term average water contamination rates (WCR) | B9: Average
B10: Central | C10: =B04Rt!$C$8 -> 0.014 | D10: mg/L
B11: Lower | C11: =B04Rt!$C$9 -> 0.0014
B12: Upper | C12: =B04Rt!$C$10 -> 0.16
A13: EECs in Surface Water
A14: Short-term peak concentrations | B14: Peak
B15: Central | C15: =$C$3*C6 -> 0.01152 | D15: mg/L | E15: Eq
B16: Lower | C16: =$C$3*C7 -> 0.001152 | E16: Eq
B17: Upper | C17: 0.1312 | E17: Eq
A18: Longer-term average concentrations | B18: Average
B19: Central | C19: =$C$3*C10 -> 0.00448 | D19: mg/L | E19: Eq
B20: Lower | C20: =$C$3*C11 -> 0.000448 | E20: Eq
B21: Upper | C21: 0.0512 | E21: Eq

Sheet B04b
A1: Pond: Concentration of pesticide (liquid formulation) in pond water after an accidental spill
A2: Short Title | B2: Pond Spill | E2: PondSpillLiqV6
A3: Receptor | B3: Pond
A4: Duration | B4: Acute
A5: Parameter/Assumption | B5: Code / Range | C5: Equation/ Value | D5: Units | E5: Reference/Designation
A6: Surface Area of Pond | B6: SA | C6: ='A01'!C$23 -> 1000 | D6: m2 | E6: Worksheet A01
A7: Depth of Pond | B7: Depth | C7: ='A01'!C$24 -> 1 | D7: meter | E7: Worksheet A01
A8: Volume of Pond | B8: VPM | C8: =C6*C7 -> 1000 | D8: m3 | E8: Eq
B9: VPL | C9: =1000*C8 -> 1000000 | D9: liters | E9: Eq
A10: Concentration in solution | B10: Conc
B11: Central | C11: ='A01'!FldConc_C -> 1.9 | D11: mg/mL | E11: Worksheet A01
B12: Lower | C12: ='A01'!FldConc_L -> 0.96 | E12: Worksheet A01
B13: Upper | C13: ='A01'!FldConc_U -> 7.7 | E13: Worksheet A01
A14: Volume of Spill (gallons) | B14: VSGal
B15: Central | C15: ='A01'!C$43 -> 100 | D15: gallons | E15: Worksheet A01
B16: Lower | C16: ='A01'!C$44 -> 20 | E16: Worksheet A01
B17: Upper | C17: ='A01'!C$45 -> 200 | E17: Worksheet A01
A18: Conversion factor for gallons to liters | B18: Conv | C18: 3.785 | D18: liters/gal
A19: Volume of Spill (liters) | B19: VSLit | C19: VSGal x Conv
B20: Central | C20: =C15*C$18 -> 378.5 | D20: liters | E20: Eq
B21: Lower | C21: =C16*C$18 -> 75.7 | D21: liters | E21: Eq
B22: Upper | C22: =C17*C$18 -> 757 | D22: liters | E22: Eq
A23: Concentration in pond water at various times after as spill | B23: ConcWat | C23: Conc × 1000 mL/L × VSL ÷ VPL
A24: Time | B24: Central | C24: Lower | D24: Upper
A25: 0 | B25: =C11*1000*C20/C$9 -> 0.71915 | C25: =C12*1000*C21/C$9 -> 0.072672 | D25: =C13*1000*C22/C$9 -> 5.8289 | E25: mg/L

Sheet B04c1
A1: Concentration in pond water after direct spray or after drift [very fine droplet size] at distances downwind in feet from the application site
A2: Short Title | B2: Pond, Drift | E2: PondDrift3Apps
A3: Receptor | B3: Pond
A4: Duration | B4: Acute
A5: Parameter/Assumption | B5: Code / Range | C5: Equation/ Value | D5: Units | E5: Reference/Designation
A6: Application rate | B6: ApRt | C6: ='A01'!ApRt_C -> 0.32 | D6: lb/acre | E6: Worksheet A01
A7: Surface Area of Water Column | B7: SA | C7: 1 | D7: m2
A8: Depth of Pond | B8: Depth | C8: ='A01'!C$24 -> 1 | D8: meter | E8: Worksheet A01
A9: Volume of Water Column | B9: V | C9: = SA × Depth
B10: VPM | C10: =C7*C8 -> 1 | D10: m3 | E10: Eq
B11: VPL | C11: =1000*C10 -> 1000 | D11: liters | E11: Eq
A12: Proportion of Drift at distances downwind in feet [0 feet = direct spray] | B12: Prop | C12: Aerial | D12: High Boom Ground Broadcast | E12: Low Boom Ground Broadcast | F12: Backpack
A13: 0 | C13: 1 | D13: 1 | E13: 1 | F13: 1
A14: 25 | C14: 0.223 | D14: 0.104 | E14: 0.035 | F14: 0.00832
A15: 50 | C15: 0.171 | D15: 0.05 | E15: 0.0177 | F15: 0.00433
A16: 100 | C16: 0.0979 | D16: 0.0248 | E16: 0.00948 | F16: 0.00241
A17: 300 | C17: 0.0312 | D17: 0.00753 | E17: 0.0035 | F17: 0.000941
A18: 500 | C18: 0.0192 | D18: 0.00391 | E18: 0.00209 | F18: 0.000579
A19: 900 | C19: 0.0124 | D19: 0.00166 | E19: 0.00109 | F19: 0.000312
A20: Converstion Factor | B20: Conv | C20: 112.1 | D20: mg/m2 per lb/acre
A21: Concentration in water at distances downwind in feet | B21: Conc = | C21: SA × Prop × ApR × Conv / VPL
A22: Concentration in water at distances downwind in feet | C22: Aerial | D22: High Boom Ground Broadcast | E22: Low Boom Ground Broadcast | F22: Backpack
A23: =A13 -> 0 | C23: =$C$7*C13*$C$6*$C$20/$C$11 -> 0.035872 | D23: =$C$7*D13*$C$6*$C$20/$C$11 -> 0.035872 | E23: =$C$7*E13*$C$6*$C$20/$C$11 -> 0.035872 | F23: =$C$7*F13*$C$6*$C$20/$C$11 -> 0.035872 | G23: mg/L
A24: 25 | C24: =$C$7*C14*$C$6*$C$20/$C$11 -> 0.007999456 | D24: 0.003730688 | E24: 0.00125552 | F24: 0.00029845504 | G24: mg/L
A25: 50 | C25: 0.006134112 | D25: 0.0017936 | E25: 0.0006349344 | F25: 0.00015532576 | G25: mg/L
A26: 100 | C26: 0.0035118688 | D26: 0.0008896256 | E26: 0.00034006656 | F26: 8.645152e-05 | G26: mg/L
A27: 300 | C27: 0.0011192064 | D27: 0.00027011616 | E27: 0.000125552 | F27: 3.3755552e-05 | G27: mg/L
A28: 500 | C28: 0.0006887424 | D28: 0.00014025952 | E28: 7.497248e-05 | F28: 2.0769888e-05 | G28: mg/L
A29: 900 | C29: 0.0004448128 | D29: 5.954752e-05 | E29: 3.910048e-05 | F29: 1.1192064e-05 | G29: mg/L

Sheet B04c2
A1: Concentration in pond water after direct spray or after drift [coarse droplet size] at distances downwind in feet from the application site
A2: Short Title | B2: Pond, Drift | E2: PondDrift3Apps
A3: Receptor | B3: Pond
A4: Duration | B4: Acute
A5: Parameter/Assumption | B5: Code / Range | C5: Equation/ Value | D5: Units | E5: Reference/Designation
A6: Application rate | B6: ApRt | C6: ='A01'!ApRt_C -> 0.32 | D6: lb/acre | E6: Worksheet A01
A7: Surface Area of Water Column | B7: SA | C7: 1 | D7: m2
A8: Depth of Pond | B8: Depth | C8: ='A01'!C$24 -> 1 | D8: meter | E8: Worksheet A01
A9: Volume of Water Column | B9: V | C9: = SA × Depth
B10: VPM | C10: =C7*C8 -> 1 | D10: m3 | E10: Eq
B11: VPL | C11: =1000*C10 -> 1000 | D11: liters | E11: Eq
A12: Proportion of Drift at distances downwind in feet [0 feet = direct spray] | B12: Prop | C12: Aerial | D12: High Boom Ground Broadcast | E12: Low Boom Ground Broadcast | F12: Backpack
A13: 0 | C13: 1 | D13: 1 | E13: 1 | F13: 1
A14: 25 | C14: 0.1418 | D14: 0.0165 | E14: 0.0126 | F14: 0.00832
A15: 50 | C15: 0.0742 | D15: 0.0083 | E15: 0.0074 | F15: 0.00433
A16: 100 | C16: 0.0363 | D16: 0.0044 | E16: 0.0044 | F16: 0.00241
A17: 300 | C17: 0.0091 | D17: 0.0015 | E17: 0.0019 | F17: 0.000941
A18: 500 | C18: 0.0055 | D18: 0.0009 | E18: 0.0012 | F18: 0.000579
A19: 900 | C19: 0.0032 | D19: 0.0004 | E19: 0.0007 | F19: 0.000312
A20: Converstion Factor | B20: Conv | C20: 112.1 | D20: mg/m2 per lb/acre
A21: Concentration in water at distances downwind in feet | B21: Conc = | C21: SA × Prop × ApR × Conv / VPL
A22: Concentration in water at distances downwind in feet | C22: Aerial | D22: High Boom Ground Broadcast | E22: Low Boom Ground Broadcast | F22: Backpack
A23: =A13 -> 0 | C23: =$C$7*C13*$C$6*$C$20/$C$11 -> 0.035872 | D23: =$C$7*D13*$C$6*$C$20/$C$11 -> 0.035872 | E23: =$C$7*E13*$C$6*$C$20/$C$11 -> 0.035872 | F23: =$C$7*F13*$C$6*$C$20/$C$11 -> 0.035872 | G23: mg/L
A24: 25 | C24: =$C$7*C14*$C$6*$C$20/$C$11 -> 0.0050866496 | D24: 0.000591888 | E24: 0.0004519872 | F24: 0.00029845504 | G24: mg/L
A25: 50 | C25: 0.0026617024 | D25: 0.0002977376 | E25: 0.0002654528 | F25: 0.00015532576 | G25: mg/L
A26: 100 | C26: 0.0013021536 | D26: 0.0001578368 | E26: 0.0001578368 | F26: 8.645152e-05 | G26: mg/L
A27: 300 | C27: 0.0003264352 | D27: 5.3808e-05 | E27: 6.81568e-05 | F27: 3.3755552e-05 | G27: mg/L
A28: 500 | C28: 0.000197296 | D28: 3.22848e-05 | E28: 4.30464e-05 | F28: 2.0769888e-05 | G28: mg/L
A29: 900 | C29: 0.0001147904 | D29: 1.43488e-05 | E29: 2.51104e-05 | F29: 1.1192064e-05 | G29: mg/L

Sheet B04d1
A1: Concentration in stream water after direct spray or after drift [fine droplets] at distances downwind in feet from the application site
A2: Short Title | B2: Stream, Drift | E2: StreamDrift3Apps
A3: Receptor | B3: Stream
A4: Duration | B4: Acute
A5: Parameter/Assumption | B5: Code / Range | C5: Equation/ Value | D5: Units | E5: Reference/Designation
A6: Application rate, lbs/acre | B6: ApRt | C6: ='A01'!ApRt_C -> 0.32 | D6: lb/acre | E6: Worksheet A01
A7: Flow rate of stream | B7: Flow | C7: ='A01'!C$25 -> 710000 | D7: L/day | E7: Worksheet A01
A8: Converstion Factor, lb/acre to mg/m2 | B8: Conv1 | C8: 112.1 | D8: mg/m2 per lb/acre
A9: Deposition rate, nominal | C9: Dep = ApR × Conv1
B10: Dep | C10: =C6*C8 -> 35.872 | D10: mg/m2 | E10: Eq
A11: Length of steam segment | B11: L | C11: ='A01'!C$26 -> 1038 | D11: feet | E11: Worksheet A01
A12: Width of steam segment | B12: W | C12: ='A01'!C$27 -> 6 | D12: feet | E12: Worksheet A01
A13: Surface Area of Stream Sprayed, square feet | B13: SA_ft | C13: =C11*C12 -> 6228 | D13: ft2 | E13: Eq
A14: Converstion Factor, square feet to square meters | B14: Conv2 | C14: 0.0929 | D14: m2/ft2
A15: Surface Area of Stream Sprayed, square meters | B15: SA_msq | C15: =C13*C14 -> 578.5812 | E15: Eq
A16: Amount deposited on stream surface on spray day | B16: Amnt | C16: =C10*C15 -> 20754.86481 | D16: mg/day | E16: Eq
A17: Proportion of Drift at distances downwind in feet [0 feet = direct spray] | B17: Prop | C17: Aerial | D17: High Boom Ground Broadcast | E17: Low Boom Ground Broadcast | F17: Backpack
A18: 0 | C18: 1 | D18: 1 | E18: 1 | F18: 1
A19: 25 | C19: 0.223 | D19: 0.104 | E19: 0.035 | F19: 0.00832
A20: 50 | C20: 0.171 | D20: 0.05 | E20: 0.0177 | F20: 0.00433
A21: 100 | C21: 0.0979 | D21: 0.0248 | E21: 0.00948 | F21: 0.00241
A22: 300 | C22: 0.0312 | D22: 0.00753 | E22: 0.0035 | F22: 0.000941
A23: 500 | C23: 0.0192 | D23: 0.00391 | E23: 0.00209 | F23: 0.000579
A24: 900 | C24: 0.0124 | D24: 0.00166 | E24: 0.00109 | F24: 0.000312
B25: Conc = | C25: Amnt × Prop / Flow
A26: Concentration in water at distances downwind in feet | C26: Aerial | D26: High Boom Ground Broadcast | E26: Low Boom Ground Broadcast | F26: Backpack
A27: =A18 -> 0 | C27: =$C$16 * C18 /$C$7 -> 0.02923220395 | D27: =$C$16 * D18 /$C$7 -> 0.02923220395 | E27: =$C$16 * E18 /$C$7 -> 0.02923220395 | F27: =$C$16 * F18 /$C$7 -> 0.02923220395 | G27: mg/L
A28: 25 | C28: =$C$16 * C19 /$C$7 -> 0.006518781481 | D28: 0.003040149211 | E28: 0.001023127138 | F28: 0.0002432119369 | G28: mg/L
A29: 50 | C29: 0.004998706876 | D29: 0.001461610198 | E29: 0.00051741001 | F29: 0.0001265754431 | G29: mg/L
A30: 100 | C30: 0.002861832767 | D30: 0.000724958658 | E30: 0.0002771212935 | F30: 7.044961153e-05 | G30: mg/L
A31: 300 | C31: 0.0009120447633 | D31: 0.0002201184958 | E31: 0.0001023127138 | F31: 2.750750392e-05 | G31: mg/L
A32: 500 | C32: 0.0005612583159 | D32: 0.0001142979175 | E32: 6.109530626e-05 | F32: 1.692544609e-05 | G32: mg/L
A33: 900 | C33: 0.000362479329 | D33: 4.852545856e-05 | E33: 3.186310231e-05 | F33: 9.120447633e-06 | G33: mg/L

Sheet B04d2
A1: Concentration in stream water after direct spray or after drift [coarse droplets] at distances downwind in feet from the application site
A2: Short Title | B2: Stream, Drift | E2: StreamDrift3Apps
A3: Receptor | B3: Stream
A4: Duration | B4: Acute
A5: Parameter/Assumption | B5: Code / Range | C5: Equation/ Value | D5: Units | E5: Reference/Designation
A6: Application rate, lbs/acre | B6: ApRt | C6: ='A01'!ApRt_C -> 0.32 | D6: lb/acre | E6: Worksheet A01
A7: Flow rate of stream | B7: Flow | C7: ='A01'!C$25 -> 710000 | D7: L/day | E7: Worksheet A01
A8: Converstion Factor, lb/acre to mg/m2 | B8: Conv1 | C8: 112.1 | D8: mg/m2 per lb/acre
A9: Deposition rate, nominal | C9: Dep = ApR × Conv1
B10: Dep | C10: =C6*C8 -> 35.872 | D10: mg/m2 | E10: Eq
A11: Length of steam segment | B11: L | C11: ='A01'!C$26 -> 1038 | D11: feet | E11: Worksheet A01
A12: Width of steam segment | B12: W | C12: ='A01'!C$27 -> 6 | D12: feet | E12: Worksheet A01
A13: Surface Area of Stream Sprayed, square feet | B13: SA_ft | C13: =C11*C12 -> 6228 | D13: ft2 | E13: Eq
A14: Converstion Factor, square feet to square meters | B14: Conv2 | C14: 0.0929 | D14: m2/ft2
A15: Surface Area of Stream Sprayed, square meters | B15: SA_msq | C15: =C13*C14 -> 578.5812 | E15: Eq
A16: Amount deposited on stream surface on spray day | B16: Amnt | C16: =C10*C15 -> 20754.86481 | D16: mg/day | E16: Eq
A17: Proportion of Drift at distances downwind in feet [0 feet = direct spray] | B17: Prop | C17: Aerial | D17: High Boom Ground Broadcast | E17: Low Boom Ground Broadcast | F17: Backpack
A18: 0 | C18: 1 | D18: 1 | E18: 1 | F18: 1
A19: 25 | C19: 0.1418 | D19: 0.0165 | E19: 0.0126 | F19: 0.00832
A20: 50 | C20: 0.0742 | D20: 0.0083 | E20: 0.0074 | F20: 0.00433
A21: 100 | C21: 0.0363 | D21: 0.0044 | E21: 0.0044 | F21: 0.00241
A22: 300 | C22: 0.0091 | D22: 0.0015 | E22: 0.0019 | F22: 0.000941
A23: 500 | C23: 0.0055 | D23: 0.0009 | E23: 0.0012 | F23: 0.000579
A24: 900 | C24: 0.0032 | D24: 0.0004 | E24: 0.0007 | F24: 0.000312
B25: Conc = | C25: Amnt × Prop / Flow
A26: Concentration in water at distances downwind in feet | C26: Aerial | D26: High Boom Ground Broadcast | E26: Low Boom Ground Broadcast | F26: Backpack
A27: =A18 -> 0 | C27: =$C$16 * C18 /$C$7 -> 0.02923220395 | D27: =$C$16 * D18 /$C$7 -> 0.02923220395 | E27: =$C$16 * E18 /$C$7 -> 0.02923220395 | F27: =$C$16 * F18 /$C$7 -> 0.02923220395 | G27: mg/L
A28: 25 | C28: =$C$16 * C19 /$C$7 -> 0.00414512652 | D28: 0.0004823313652 | E28: 0.0003683257698 | F28: 0.0002432119369 | G28: mg/L
A29: 50 | C29: 0.002169029533 | D29: 0.0002426272928 | E29: 0.0002163183092 | F29: 0.0001265754431 | G29: mg/L
A30: 100 | C30: 0.001061129003 | D30: 0.0001286216974 | E30: 0.0001286216974 | F30: 7.044961153e-05 | G30: mg/L
A31: 300 | C31: 0.000266013056 | D31: 4.384830593e-05 | E31: 5.554118751e-05 | F31: 2.750750392e-05 | G31: mg/L
A32: 500 | C32: 0.0001607771217 | D32: 2.630898356e-05 | E32: 3.507864474e-05 | F32: 1.692544609e-05 | G32: mg/L
A33: 900 | C33: 9.354305265e-05 | D33: 1.169288158e-05 | E33: 2.046254277e-05 | F33: 9.120447633e-06 | G33: mg/L

Sheet B05a
A1: Concentration of Pesticide in Contaminated Fruit
A2: Short Title | B2: Concentration in food item | E2: FoodConcV6
A3: Material consumed | C3: Fruit | E3: Scenario parameter
A4: Parameter/Assumption | B4: Code / Range | C4: Equation/ Value | D4: Units | E4: Reference/Designation
A5: Application Information
A6: Application Rate (lbs/acre) | B6: ApRt | C6: ='A01'!ApRt_C -> 0.32 | D6: lb/acre | E6: Worksheet A01
A7: Number of applications | B7: n | C7: ='A01'!C$20 -> 2 | D7: unitless | E7: Worksheet A01
A8: Interval between applications | B8: intv | C8: ='A01'!C$21 -> 14 | D8: days | E8: Worksheet A01
A9: Special Adjustments (See Note 1)
A10: Metabolite Adjustment Factor : (See risk assessment if this has a value other than 1.) | B10: MetFact
B11: Central | C11: 1 | D11: unitless | E11: Default
B12: Lower | C12: 1 | E12: Default
B13: Upper | C13: 1 | E13: Default
A14: Toxic Equivalency Factor for formulation: (See risk assessment if this has a value other than 1.) | B14: TEF
B15: Central | C15: ='A01'!C$35 -> 1 | D15: Unitless | E15: Worksheet A01
B16: Lower | C16: ='A01'!C$36 -> 1 | E16: Worksheet A01
B17: Upper | C17: ='A01'!C$37 -> 1 | E17: Worksheet A01
A18: Acute Concentrations
A19: Residue Rates | B19: rr
B20: Central | C20: ='A01'!C$63 -> 7 | D20: mg/kg food per lb/acre | E20: Worksheet A01
B21: Lower | C21: ='A01'!C$64 -> 3.2 | E21: Worksheet A01
B22: Upper | C22: ='A01'!C$65 -> 15 | E22: Worksheet A01
A23: Drift | B23: Drift
B24: Central | C24: ='A01'!C$39 -> 1 | D24: proportion | E24: Worksheet A01
B25: Lower | C25: ='A01'!C$40 -> 1 | E25: Worksheet A01
B26: Upper | C26: ='A01'!C$41 -> 1 | E26: Worksheet A01
A27: Concentration on commodity immediately after first application. | B27: C0 | C27: ApR × rr × Drift × MetFact × TEF
B28: Central | C28: =C$6*C20*$C$24*C11*C15 -> 2.24 | E28: Eq
B29: Lower | C29: =C$6*C21*$C$24*C12*C16 -> 1.024 | E29: Eq
B30: Upper | C30: =C$6*C22*$C$24*C13*C17 -> 4.8 | E30: Eq
A31: Half-life on commodity | B31: Halflife
B32: Central | C32: ='B01'!$C$17 -> 7.5 | D32: Days
B33: Lower | C33: ='B01'!$C$18 -> 6.6
B34: Upper | C34: ='B01'!$C$19 -> 8.7
A35: Decay Coefficient | B35: k | C35: Ln(2)/Halflife
B36: Central | C36: =LN(2)/C32 -> 0.09241962407 | D36: Days-1 | E36: Eq
B37: Upper | C37: =LN(2)/C33 -> 0.1050223001 | D37: Note 2 | E37: Eq
B38: Lower | C38: =LN(2)/C34 -> 0.07967208972 | D38: Note 2 | E38: Eq
A39: Proportion remaining at end of each application interval | B39: p | C39: exp( -k × intv)
B40: Central | C40: =EXP(-C36*C$8) -> 0.2742062449 | D40: proportion | E40: Eq
B41: Lower | C41: =EXP(-C37*C$8) -> 0.2298537134 | E41: Eq
B42: Upper | C42: =EXP(-C38*C$8) -> 0.327781105 | E42: Eq
A43: Concentration on commodity immediately after last application. | B43: Cn | C43: Cn = C0 × (1- pn) ÷ (1- p)
B44: Central | C44: =C28 * (1-C40^C$7)/(1-C40) -> 2.854221989 | D44: mg/kg food item | E44: Eq
B45: Lower | C45: =C29 * (1-C41^C$7)/(1-C41) -> 1.259370203 | E45: Eq
B46: Upper | C46: =C30 * (1-C42^C$7)/(1-C42) -> 6.373349304 | E46: Eq
A47: Longer-term Concentrations
A48: Duration for time-weighted average exposure | B48: T | C48: ='A01'!C$28 -> 90 | D48: Days | E48: Worksheet A01
A49: Time-weighted average concentration on commodity over time, T, after the last application. | B49: ConcTWA | C49: Cn × (1-e-kT) ÷ (k T)
B50: Central | C50: =C44*(1-EXP(-C36*$C$48))/(C36*$C$48) -> 0.3430638828 | D50: mg/kg food item | E50: Eq
B51: Lower | C51: =C45*(1-EXP(-C37*$C$48))/(C37*$C$48) -> 0.1332279272 | E51: Eq
B52: Upper | C52: 0.8881471481 | E52: Eq
A53: Maximum Time-weighted average concentration on commodity over time, T. | B53: ConcTWA | C53: See Documentation
B54: Central | C54: =IF($C$7=1, C50, MaxTWAWsFn(C28, $C$7, $C$8, $C$48, C36)) -> 0.5383006257 | D54: mg/kg food item | E54: Eq
B55: Lower | C55: =IF($C$7=1, C51, MaxTWAWsFn(C29, $C$7, $C$8, $C$48, C37)) -> 0.216628037 | E55: Eq
B56: Upper | C56: =IF($C$7=1, C52, MaxTWAWsFn(C30, $C$7, $C$8, $C$48, C38)) -> 1.336735875 | E56: Eq

Sheet B05b
A1: Concentration of Pesticide in Contaminated Broadleaf Vegetation
A2: Short Title | B2: Concentration in food item | E2: FoodConcV6
A3: Material consumed | C3: Broadleaf Vegetation | E3: Scenario parameter
A4: Parameter/Assumption | B4: Code / Range | C4: Equation/ Value | D4: Units | E4: Reference/Designation
A5: Application Information
A6: Application Rate (lbs/acre) | B6: ApRt | C6: ='A01'!ApRt_C -> 0.32 | D6: lb/acre | E6: Worksheet A01
A7: Number of applications | B7: n | C7: ='A01'!C$20 -> 2 | D7: unitless | E7: Worksheet A01
A8: Interval between applications | B8: intv | C8: ='A01'!C$21 -> 14 | D8: days | E8: Worksheet A01
A9: Special Adjustments (See Note 1)
A10: Metabolite Adjustment Factor : (See risk assessment if this has a value other than 1.) | B10: MetFact
B11: Central | C11: 1 | D11: unitless | E11: Default
B12: Lower | C12: 1 | E12: Default
B13: Upper | C13: 1 | E13: Default
A14: Toxic Equivalency Factor for formulation: (See risk assessment if this has a value other than 1.) | B14: TEF
B15: Central | C15: ='A01'!C$35 -> 1 | D15: Unitless | E15: Worksheet A01
B16: Lower | C16: ='A01'!C$36 -> 1 | E16: Worksheet A01
B17: Upper | C17: ='A01'!C$37 -> 1 | E17: Worksheet A01
A18: Acute Concentrations
A19: Residue Rates | B19: rr
B20: Central | C20: ='A01'!C$59 -> 45 | D20: mg/kg food per lb/acre | E20: Worksheet A01
B21: Lower | C21: ='A01'!C$60 -> 15 | E21: Worksheet A01
B22: Upper | C22: ='A01'!C$61 -> 135 | E22: Worksheet A01
A23: Drift | B23: Drift
B24: Central | C24: ='A01'!C$39 -> 1 | D24: proportion | E24: Worksheet A01
B25: Lower | C25: ='A01'!C$40 -> 1 | E25: Worksheet A01
B26: Upper | C26: ='A01'!C$41 -> 1 | E26: Worksheet A01
A27: Concentration on commodity immediately after first application. | B27: C0 | C27: ApR × rr × Drift × MetFact × TEF
B28: Central | C28: =C$6*C20*$C$24*C11*C15 -> 14.4 | E28: Eq
B29: Lower | C29: =C$6*C21*$C$24*C12*C16 -> 4.8 | E29: Eq
B30: Upper | C30: =C$6*C22*$C$24*C13*C17 -> 43.2 | E30: Eq
A31: Half-life on commodity | B31: Halflife
B32: Central | C32: ='B01'!$C$20 -> 7.5 | D32: Days
B33: Lower | C33: ='B01'!$C$21 -> 6.6
B34: Upper | C34: ='B01'!$C$22 -> 8.7
A35: Decay Coefficient | B35: k | C35: Ln(2)/Halflife
B36: Central | C36: =LN(2)/C32 -> 0.09241962407 | D36: Days-1 | E36: Eq
B37: Upper | C37: =LN(2)/C33 -> 0.1050223001 | D37: Note 2 | E37: Eq
B38: Lower | C38: =LN(2)/C34 -> 0.07967208972 | D38: Note 2 | E38: Eq
A39: Proportion remaining at end of each application interval | B39: p | C39: exp( -k × intv)
B40: Central | C40: =EXP(-C36*C$8) -> 0.2742062449 | D40: proportion | E40: Eq
B41: Lower | C41: =EXP(-C37*C$8) -> 0.2298537134 | E41: Eq
B42: Upper | C42: =EXP(-C38*C$8) -> 0.327781105 | E42: Eq
A43: Concentration on commodity immediately after last application. | B43: Cn | C43: Cn = C0 × (1- pn) ÷ (1- p)
B44: Central | C44: =C28 * (1-C40^C$7)/(1-C40) -> 18.34856993 | D44: mg/kg food item | E44: Eq
B45: Lower | C45: =C29 * (1-C41^C$7)/(1-C41) -> 5.903297824 | E45: Eq
B46: Upper | C46: =C30 * (1-C42^C$7)/(1-C42) -> 57.36014374 | E46: Eq
A47: Longer-term Concentrations
A48: Duration for time-weighted average exposure | B48: T | C48: ='A01'!C$28 -> 90 | D48: Days | E48: Worksheet A01
A49: Time-weighted average concentration on commodity over time, T, after the last application. | B49: ConcTWA | C49: Cn × (1-e-kT) ÷ (k T)
B50: Central | C50: =C44*(1-EXP(-C36*$C$48))/(C36*$C$48) -> 2.205410675 | D50: mg/kg food item | E50: Eq
B51: Lower | C51: =C45*(1-EXP(-C37*$C$48))/(C37*$C$48) -> 0.6245059089 | E51: Eq
B52: Upper | C52: 7.993324333 | E52: Eq
A53: Maximum Time-weighted average concentration on commodity over time, T. | B53: ConcTWA | C53: See Documentation
B54: Central | C54: =IF($C$7=1, C50, MaxTWAWsFn(C28, $C$7, $C$8, $C$48, C36)) -> 3.460504022 | D54: mg/kg food item | E54: Eq
B55: Lower | C55: =IF($C$7=1, C51, MaxTWAWsFn(C29, $C$7, $C$8, $C$48, C37)) -> 1.015443923 | E55: Eq
B56: Upper | C56: =IF($C$7=1, C52, MaxTWAWsFn(C30, $C$7, $C$8, $C$48, C38)) -> 12.03062287 | E56: Eq

Sheet B05c
A1: Concentration of Pesticide in Contaminated Short Grass
A2: Short Title | B2: Concentration in food item | E2: FoodConcV6
A3: Material consumed | C3: Short Grass | E3: Scenario parameter
A4: Parameter/Assumption | B4: Code / Range | C4: Equation/ Value | D4: Units | E4: Reference/Designation
A5: Application Information
A6: Application Rate (lbs/acre) | B6: ApRt | C6: ='A01'!ApRt_C -> 0.32 | D6: lb/acre | E6: Worksheet A01
A7: Number of applications | B7: n | C7: ='A01'!C$20 -> 2 | D7: unitless | E7: Worksheet A01
A8: Interval between applications | B8: intv | C8: ='A01'!C$21 -> 14 | D8: days | E8: Worksheet A01
A9: Special Adjustments (See Note 1)
A10: Metabolite Adjustment Factor : (See risk assessment if this has a value other than 1.) | B10: MetFact
B11: Central | C11: 1 | D11: unitless | E11: Default
B12: Lower | C12: 1 | E12: Default
B13: Upper | C13: 1 | E13: Default
A14: Toxic Equivalency Factor for formulation: (See risk assessment if this has a value other than 1.) | B14: TEF
B15: Central | C15: ='A01'!C$35 -> 1 | D15: Unitless | E15: Worksheet A01
B16: Lower | C16: ='A01'!C$36 -> 1 | E16: Worksheet A01
B17: Upper | C17: ='A01'!C$37 -> 1 | E17: Worksheet A01
A18: Acute Concentrations
A19: Residue Rates | B19: rr
B20: Central | C20: ='A01'!C$51 -> 85 | D20: mg/kg food per lb/acre | E20: Worksheet A01
B21: Lower | C21: ='A01'!C$52 -> 30 | E21: Worksheet A01
B22: Upper | C22: ='A01'!C$53 -> 240 | E22: Worksheet A01
A23: Drift | B23: Drift
B24: Central | C24: ='A01'!C$39 -> 1 | D24: proportion | E24: Worksheet A01
B25: Lower | C25: ='A01'!C$40 -> 1 | E25: Worksheet A01
B26: Upper | C26: ='A01'!C$41 -> 1 | E26: Worksheet A01
A27: Concentration on commodity immediately after first application. | B27: C0 | C27: ApR × rr × Drift × MetFact × TEF
B28: Central | C28: =C$6*C20*$C$24*C11*C15 -> 27.2 | E28: Eq
B29: Lower | C29: =C$6*C21*$C$24*C12*C16 -> 9.6 | E29: Eq
B30: Upper | C30: =C$6*C22*$C$24*C13*C17 -> 76.8 | E30: Eq
A31: Half-life on commodity | B31: Halflife
B32: Central | C32: ='B01'!$C$20 -> 7.5 | D32: Days
B33: Lower | C33: ='B01'!$C$21 -> 6.6
B34: Upper | C34: ='B01'!$C$22 -> 8.7
A35: Decay Coefficient | B35: k | C35: Ln(2)/Halflife
B36: Central | C36: =LN(2)/C32 -> 0.09241962407 | D36: Days-1 | E36: Eq
B37: Upper | C37: =LN(2)/C33 -> 0.1050223001 | D37: Note 2 | E37: Eq
B38: Lower | C38: =LN(2)/C34 -> 0.07967208972 | D38: Note 2 | E38: Eq
A39: Proportion remaining at end of each application interval | B39: p | C39: exp( -k × intv)
B40: Central | C40: =EXP(-C36*C$8) -> 0.2742062449 | D40: proportion | E40: Eq
B41: Lower | C41: =EXP(-C37*C$8) -> 0.2298537134 | E41: Eq
B42: Upper | C42: =EXP(-C38*C$8) -> 0.327781105 | E42: Eq
A43: Concentration on commodity immediately after last application. | B43: Cn | C43: Cn = C0 × (1- pn) ÷ (1- p)
B44: Central | C44: =C28 * (1-C40^C$7)/(1-C40) -> 34.65840986 | D44: mg/kg food item | E44: Eq
B45: Lower | C45: =C29 * (1-C41^C$7)/(1-C41) -> 11.80659565 | E45: Eq
B46: Upper | C46: =C30 * (1-C42^C$7)/(1-C42) -> 101.9735889 | E46: Eq
A47: Longer-term Concentrations
A48: Duration for time-weighted average exposure | B48: T | C48: ='A01'!C$28 -> 90 | D48: Days | E48: Worksheet A01
A49: Time-weighted average concentration on commodity over time, T, after the last application. | B49: ConcTWA | C49: Cn × (1-e-kT) ÷ (k T)
B50: Central | C50: =C44*(1-EXP(-C36*$C$48))/(C36*$C$48) -> 4.165775719 | D50: mg/kg food item | E50: Eq
B51: Lower | C51: =C45*(1-EXP(-C37*$C$48))/(C37*$C$48) -> 1.249011818 | E51: Eq
B52: Upper | C52: 14.21035437 | E52: Eq
A53: Maximum Time-weighted average concentration on commodity over time, T. | B53: ConcTWA | C53: See Documentation
B54: Central | C54: =IF($C$7=1, C50, MaxTWAWsFn(C28, $C$7, $C$8, $C$48, C36)) -> 6.536507598 | D54: mg/kg food item | E54: Eq
B55: Lower | C55: =IF($C$7=1, C51, MaxTWAWsFn(C29, $C$7, $C$8, $C$48, C37)) -> 2.030887847 | E55: Eq
B56: Upper | C56: =IF($C$7=1, C52, MaxTWAWsFn(C30, $C$7, $C$8, $C$48, C38)) -> 21.387774 | E56: Eq

Sheet B05d
A1: Concentration of Pesticide in Contaminated Tall Grass
A2: Short Title | B2: Concentration in food item | E2: FoodConcV6
A3: Material consumed | C3: Tall Grass | E3: Scenario parameter
A4: Parameter/Assumption | B4: Code / Range | C4: Equation/ Value | D4: Units | E4: Reference/Designation
A5: Application Information
A6: Application Rate (lbs/acre) | B6: ApRt | C6: ='A01'!ApRt_C -> 0.32 | D6: lb/acre | E6: Worksheet A01
A7: Number of applications | B7: n | C7: ='A01'!C$20 -> 2 | D7: unitless | E7: Worksheet A01
A8: Interval between applications | B8: intv | C8: ='A01'!C$21 -> 14 | D8: days | E8: Worksheet A01
A9: Special Adjustments (See Note 1)
A10: Metabolite Adjustment Factor : (See risk assessment if this has a value other than 1.) | B10: MetFact
B11: Central | C11: 1 | D11: unitless | E11: Default
B12: Lower | C12: 1 | E12: Default
B13: Upper | C13: 1 | E13: Default
A14: Toxic Equivalency Factor for formulation: (See risk assessment if this has a value other than 1.) | B14: TEF
B15: Central | C15: ='A01'!C$35 -> 1 | D15: Unitless | E15: Worksheet A01
B16: Lower | C16: ='A01'!C$36 -> 1 | E16: Worksheet A01
B17: Upper | C17: ='A01'!C$37 -> 1 | E17: Worksheet A01
A18: Acute Concentrations
A19: Residue Rates | B19: rr
B20: Central | C20: ='A01'!C$55 -> 36 | D20: mg/kg food per lb/acre | E20: Worksheet A01
B21: Lower | C21: ='A01'!C$56 -> 12 | E21: Worksheet A01
B22: Upper | C22: ='A01'!C$57 -> 110 | E22: Worksheet A01
A23: Drift | B23: Drift
B24: Central | C24: ='A01'!C$39 -> 1 | D24: proportion | E24: Worksheet A01
B25: Lower | C25: ='A01'!C$40 -> 1 | E25: Worksheet A01
B26: Upper | C26: ='A01'!C$41 -> 1 | E26: Worksheet A01
A27: Concentration on commodity immediately after first application. | B27: C0 | C27: ApR × rr × Drift × MetFact × TEF
B28: Central | C28: =C$6*C20*$C$24*C11*C15 -> 11.52 | E28: Eq
B29: Lower | C29: =C$6*C21*$C$24*C12*C16 -> 3.84 | E29: Eq
B30: Upper | C30: =C$6*C22*$C$24*C13*C17 -> 35.2 | E30: Eq
A31: Half-life on commodity | B31: Halflife
B32: Central | C32: ='B01'!$C$20 -> 7.5 | D32: Days
B33: Lower | C33: ='B01'!$C$21 -> 6.6
B34: Upper | C34: ='B01'!$C$22 -> 8.7
A35: Decay Coefficient | B35: k | C35: Ln(2)/Halflife
B36: Central | C36: =LN(2)/C32 -> 0.09241962407 | D36: Days-1 | E36: Eq
B37: Upper | C37: =LN(2)/C33 -> 0.1050223001 | D37: Note 2 | E37: Eq
B38: Lower | C38: =LN(2)/C34 -> 0.07967208972 | D38: Note 2 | E38: Eq
A39: Proportion remaining at end of each application interval | B39: p | C39: exp( -k × intv)
B40: Central | C40: =EXP(-C36*C$8) -> 0.2742062449 | D40: proportion | E40: Eq
B41: Lower | C41: =EXP(-C37*C$8) -> 0.2298537134 | E41: Eq
B42: Upper | C42: =EXP(-C38*C$8) -> 0.327781105 | E42: Eq
A43: Concentration on commodity immediately after last application. | B43: Cn | C43: Cn = C0 × (1- pn) ÷ (1- p)
B44: Central | C44: =C28 * (1-C40^C$7)/(1-C40) -> 14.67885594 | D44: mg/kg food item | E44: Eq
B45: Lower | C45: =C29 * (1-C41^C$7)/(1-C41) -> 4.722638259 | E45: Eq
B46: Upper | C46: =C30 * (1-C42^C$7)/(1-C42) -> 46.7378949 | E46: Eq
A47: Longer-term Concentrations
A48: Duration for time-weighted average exposure | B48: T | C48: ='A01'!C$28 -> 90 | D48: Days | E48: Worksheet A01
A49: Time-weighted average concentration on commodity over time, T, after the last application. | B49: ConcTWA | C49: Cn × (1-e-kT) ÷ (k T)
B50: Central | C50: =C44*(1-EXP(-C36*$C$48))/(C36*$C$48) -> 1.76432854 | D50: mg/kg food item | E50: Eq
B51: Lower | C51: =C45*(1-EXP(-C37*$C$48))/(C37*$C$48) -> 0.4996047272 | E51: Eq
B52: Upper | C52: 6.513079086 | E52: Eq
A53: Maximum Time-weighted average concentration on commodity over time, T. | B53: ConcTWA | C53: See Documentation
B54: Central | C54: =IF($C$7=1, C50, MaxTWAWsFn(C28, $C$7, $C$8, $C$48, C36)) -> 2.768403218 | D54: mg/kg food item | E54: Eq
B55: Lower | C55: =IF($C$7=1, C51, MaxTWAWsFn(C29, $C$7, $C$8, $C$48, C37)) -> 0.8123551387 | E55: Eq
B56: Upper | C56: =IF($C$7=1, C52, MaxTWAWsFn(C30, $C$7, $C$8, $C$48, C38)) -> 9.802729749 | E56: Eq

Sheet B06
A1: Reanalysis of Vegetation Half-times from Kulshrestha et al. 1999
A2: Kulshrestha et al. 1995, Table 2, p. 279
B4: Day | C4: Residue | E4: Ln(Residue)
B5: 0 | C5: 2.37 | E5: =LN(C5) -> 0.8628899551
B6: 1 | C6: 1.98 | E6: =LN(C6) -> 0.6830968447
B7: 2 | C7: 1.73 | E7: 0.5481214085
B8: 3 | C8: 1.27 | E8: 0.2390169005
B9: 7 | C9: 1 | E9: 0
B10: 14 | C10: 0.65 | E10: -0.4307829161
B11: 30 | C11: 0.07 | E11: -2.659260037
B12: 60 | C12: 0.01 | E12: -4.605170186
B15: Half-lives
B16: Central | C16: =LN(0.5)/C40 -> 7.512839961
B17: Lower | C17: =LN(0.5)/G40 -> 6.601546129
B18: Upper | C18: =LN(0.5)/H40 -> 8.716021184
B23: SUMMARY OUTPUT | N23: Step | O23: 5
N24: Time | O24: Q
B25: Regression Statistics | N25: 0 | O25: =EXP(($C$40*N25)+$C$39) -> 1.972034907
B26: Multiple R | C26: 0.9905866546 | N26: =N25+$O$23 -> 5 | O26: =EXP(($C$40*N26)+$C$39) -> 1.243285652
B27: R Square | C27: 0.9812619202 | N27: =N26+$O$23 -> 10 | O27: 0.7838396809
B28: Adjusted R Square | C28: 0.9781389069 | N28: 15 | O28: 0.4941781837
B29: Standard Error | C29: 0.287352079 | N29: 20 | O29: 0.3115587067
B30: Observations | C30: 8 | N30: 25 | O30: 0.1964247531
N31: 30 | O31: 0.1238376037
B32: ANOVA | N32: 35 | O32: 0.07807443735
C33: df | D33: SS | E33: MS | F33: F | G33: Significance F | N33: 40 | O33: 0.04922267216
B34: Regression | C34: 1 | D34: 25.94417103 | E34: 25.94417103 | F34: 314.2035673 | G34: 2.070621949e-06 | N34: 45 | O34: 0.03103283914
B35: Residual | C35: 6 | D35: 0.4954273037 | E35: 0.08257121728 | N35: 50 | O35: 0.01956490907
B36: Total | C36: 7 | D36: 26.43959833 | N36: 55 | O36: 0.01233485809
N37: 60 | O37: 0.007776612891
C38: Coefficients | D38: Standard Error | E38: t Stat | F38: P-value | G38: Lower 95% | H38: Upper 95%
B39: Intercept | C39: 0.6790659576 | D39: 0.1269488078 | E39: 5.349132217 | F39: 0.001746050454 | G39: 0.3684334153 | H39: 0.9896984998
B40: X Variable 1 | C40: -0.09226167257 | D40: 0.005204940482 | E40: -17.7257882 | F40: 2.070621949e-06 | G40: -0.1049977031 | H40: -0.07952564202

Sheet C01a
A1: Exposure estimates for Backpack Worker based on the amount of material handled per day
A2: Short Title | B2: General exposure | E2: WkGenExp
A3: Receptor | B3: Backpack Worker | E3: Worksheet A01
A4: Duration | B4: Chronic
A5: Parameter/Assumption | B5: Code / Range | C5: Equation/ Value | D5: Units | E5: Reference/Equation
A6: Application rates | B6: ApRt | C6: ='A01'!ApRt_C -> 0.32 | D6: lb/acre | E6: Worksheet A01
A7: Hours of application per day | B7: Hrs
B8: Central | C8: ='A01'!C$75 -> 7 | D8: hours | E8: Worksheet A01
B9: Lower | C9: ='A01'!C$76 -> 6 | E9: Worksheet A01
B10: Upper | C10: ='A01'!C$77 -> 8 | E10: Worksheet A01
A11: Acres treated per hour | B11: APH
B12: Central | C12: ='A01'!C$71 -> 0.625 | D12: acres/hour | E12: Worksheet A01
B13: Lower | C13: ='A01'!C$72 -> 0.25 | E13: Worksheet A01
B14: Upper | C14: ='A01'!C$73 -> 1 | E14: Worksheet A01
A15: Acres treated per day: | B15: ATD | C15: Hrs × APH
B16: Central | C16: =C8*C12 -> 4.375 | D16: acres/day | E16: Eq
B17: Lower | C17: =C9*C13 -> 1.5 | E17: Eq
B18: Upper | C18: =C10*C14 -> 8 | E18: Eq
A19: Toxic Equivalency Factor for formulation: (See risk assessment if this has a value other than 1.) | B19: TEF
B20: Central | C20: ='A01'!C$35 -> 1 | D20: unitless | E20: Worksheet A01
B21: Lower | C21: ='A01'!C$36 -> 1 | E21: Worksheet A01
B22: Upper | C22: ='A01'!C$37 -> 1 | E22: Worksheet A01
A23: Amount handled per day: | B23: Amnt | C23: ApRt × ATD × TEF
B24: Central | C24: =C$6*C16 *C20 -> 1.4 | D24: lb/day | E24: Eq
B25: Lower | C25: =C$6*C17 *C21 -> 0.48 | E25: Eq
B26: Upper | C26: =C$6*C18 *C22 -> 2.56 | E26: Eq
A27: Absorbed dose rate: | B27: ADR
B28: Central | C28: ='C01a-Sup'!$D$23 -> 0.011 | D28: (mg agent/kg bw) ÷ (lbs agent handled per day) | E28: Section 3.2.2.1
B29: Lower PI | C29: ='C01a-Sup'!$E$23 -> 0.0023 | E29: For details of calculations see Worksheet C01a-Sup. Value to the left are linked to Worksheet C01a-Sup.
B30: Lower CI | C30: ='C01a-Sup'!$F$23 -> 0.008
B31: Upper CI | C31: ='C01a-Sup'!$G$23 -> 0.015
B32: Upper PI | C32: ='C01a-Sup'!$H$23 -> 0.069
A33: Clothing Protection Factor | B33: Prot
B34: Central | C34: ='A01'!C$31 -> 0 | D34: Unitless (value between 0 [no protection] and 1 [complete protection]) | E34: Worksheet A01
B35: Upper | C35: ='A01'!C$33 -> 0 | E35: Worksheet A01
B36: Lower | C36: ='A01'!C$32 -> 0 | E36: Worksheet A01
A37: Absorbed dose | B37: Dose | C37: Amnt × ADR × (1-Prot)
B38: Central | C38: =C24*C28*(1-C34) -> 0.0154 | D38: mg/kg bw/day | E38: Eq
B39: Lower PI | C39: =C24*C29*(1-C$35) -> 0.00322
B40: Lower CI | C40: =C$25*C30*(1-C$35) -> 0.00384 | E40: Eq
B41: Upper CI | C41: =C$26*C31*(1-C$36) -> 0.0384 | E41: Eq
B42: Upper PI | C42: =C$26*C32*(1-C$36) -> 0.17664

Sheet C01a-Sup
A1: Derivation of Backpack Occupational Exposure Rates
B2: See Section 3.2.2.1 for discussion
D4: Backpack Worker Exposure Rates (mg/kg bw per lb handled
B5: Chemical | C5: ka | D5: Central | E5: Lower PI | F5: Lower CI | G5: Upper CI | H5: Upper PI
B6: Glyphosate | C6: 0.00041 | D6: 0.0003 | E6: 6e-05 | F6: 0.0002 | G6: 0.0005 | H6: 0.002
B7: 2,4-D | C7: 0.00066 | D7: 0.004 | E7: 0.0004 | F7: 0.0009 | G7: 0.006 | H7: 0.01
B8: Triclopyr BEE | C8: 0.0021 | D8: 0.01 | E8: 0.002 | F8: 0.007 | G8: 0.013 | H8: 0.06
B15: ka | C15: 0.0024 | D15: See Section 3.1.3.2.1.
B16: Surrogate Chemical | C16: Triclopyr BEE
B17: ka Surrogate Chemical | C17: =C8 -> 0.0021
B18: Relative Abs. rate | C18: =C15/C17 -> 1.142857143 | D18: ka for chemical under review divided by ka for surrogate chemical.
D20: Adjusted Backpack Worker Exposure Rates (mg/kg bw per lb handled
D21: Central | E21: Lower PI | F21: Lower CI | G21: Upper CI | H21: Upper PI
C22: No Rounding: | D22: =D8*$C$18 -> 0.01142857143 | E22: =E8*$C$18 -> 0.002285714286 | F22: 0.008 | G22: 0.01485714286 | H22: 0.06857142857
C23: Rounded to one significant figure: | D23: =ROUND(D22, 3) -> 0.011 | E23: =ROUND(E22, 4) -> 0.0023 | F23: =ROUND(F22, 3) -> 0.008 | G23: =ROUND(G22, 3) -> 0.015 | H23: =ROUND(H22, 3) -> 0.069

Sheet C01b
A1: Exposure estimates for Ground Boom Worker based on the amount of material handled per day
A2: Short Title | B2: General exposure | E2: WkGenExp
A3: Receptor | B3: Ground Boom Worker | E3: Worksheet A01
A4: Duration | B4: Chronic
A5: Parameter/Assumption | B5: Code / Range | C5: Equation/ Value | D5: Units | E5: Reference/Equation
A6: Application rates | B6: ApRt | C6: ='A01'!ApRt_C -> 0.32 | D6: lb/acre | E6: Worksheet A01
A7: Hours of application per day | B7: Hrs
B8: Central | C8: 7 | D8: hours | E8: Worksheet A01
B9: Lower | C9: 6 | E9: Worksheet A01
B10: Upper | C10: 8 | E10: Worksheet A01
A11: Acres treated per hour | B11: APH
B12: Central | C12: 16 | D12: acres/hour | E12: Worksheet A01
B13: Lower | C13: 11 | E13: Worksheet A01
B14: Upper | C14: 21 | E14: Worksheet A01
A15: Acres treated per day: | B15: ATD | C15: Hrs × APH
B16: Central | C16: =C8*C12 -> 112 | D16: acres/day | E16: Eq
B17: Lower | C17: =C9*C13 -> 66 | E17: Eq
B18: Upper | C18: =C10*C14 -> 168 | E18: Eq
A19: Toxic Equivalency Factor for formulation: (See risk assessment if this has a value other than 1.) | B19: TEF
B20: Central | C20: ='A01'!C$35 -> 1 | D20: unitless | E20: Worksheet A01
B21: Lower | C21: ='A01'!C$36 -> 1 | E21: Worksheet A01
B22: Upper | C22: ='A01'!C$37 -> 1 | E22: Worksheet A01
A23: Amount handled per day: | B23: Amnt | C23: ApRt × ATD × TEF
B24: Central | C24: =C$6*C16 *C20 -> 35.84 | D24: lb/day | E24: Eq
B25: Lower | C25: =C$6*C17 *C21 -> 21.12 | E25: Eq
B26: Upper | C26: =C$6*C18 *C22 -> 53.76 | E26: Eq
A27: Absorbed dose rate: | B27: ADR
B28: Central | C28: 0.0001 | D28: (mg agent/kg bw) ÷ (lbs agent handled per day) | E28: Section 3.2.2.1
B29: Lower PI | C29: 2e-06
B30: Lower CI | C30: 4e-05
B31: Upper CI | C31: 0.0002
B32: Upper PI | C32: 0.005
A33: Clothing Protection Factor | B33: Prot
B34: Central | C34: ='A01'!C$31 -> 0 | D34: Unitless (value between 0 [no protection] and 1 [complete protection]) | E34: Worksheet A01
B35: Upper PI | C35: 0
B36: Upper CI | C36: ='A01'!C$33 -> 0 | E36: Worksheet A01
B37: Lower CI | C37: ='A01'!C$32 -> 0 | E37: Worksheet A01
B38: Upper PI | C38: 0
A39: Absorbed dose | B39: Dose | C39: Amnt × ADR × (1-Prot)
B40: Central | C40: =C24*C28*(1-C34) -> 0.003584 | D40: mg/kg bw/day | E40: Eq
B41: Lower PI | C41: =C25*C29*(1-C35) -> 4.224e-05
B42: Lower CI | C42: =C25*C30*(1-C36) -> 0.0008448 | E42: Eq
B43: Upper CI | C43: =C26*C31*(1-C37) -> 0.010752 | E43: Eq
B44: Upper PI | C44: =C26*C32*(1-C37) -> 0.2688

Sheet C01c
A1: Exposure estimates for Aerial Spray Worker based on the amount of material handled per day
A2: Short Title | B2: General exposure | E2: WkGenExp
A3: Receptor | B3: Aerial Spray Worker | E3: Worksheet A01
A4: Duration | B4: Chronic
A5: Parameter/Assumption | B5: Code / Range | C5: Equation/ Value | D5: Units | E5: Reference/Equation
A6: Application rates | B6: ApRt | C6: ='A01'!ApRt_C -> 0.32 | D6: lb/acre | E6: Worksheet A01
A7: Hours of application per day | B7: Hrs
B8: Central | C8: 7 | D8: hours | E8: Worksheet A01
B9: Lower | C9: 6 | E9: Worksheet A01
B10: Upper | C10: 8 | E10: Worksheet A01
A11: Acres treated per hour | B11: APH
B12: Central | C12: 70 | D12: acres/hour | E12: Worksheet A01
B13: Lower | C13: 40 | E13: Worksheet A01
B14: Upper | C14: 100 | E14: Worksheet A01
A15: Acres treated per day: | B15: ATD | C15: Hrs × APH
B16: Central | C16: =C8*C12 -> 490 | D16: acres/day | E16: Eq
B17: Lower | C17: =C9*C13 -> 240 | E17: Eq
B18: Upper | C18: =C10*C14 -> 800 | E18: Eq
A19: Toxic Equivalency Factor for formulation: (See risk assessment if this has a value other than 1.) | B19: TEF
B20: Central | C20: ='A01'!C$35 -> 1 | D20: unitless | E20: Worksheet A01
B21: Lower | C21: ='A01'!C$36 -> 1 | E21: Worksheet A01
B22: Upper | C22: ='A01'!C$37 -> 1 | E22: Worksheet A01
A23: Amount handled per day: | B23: Amnt | C23: ApRt × ATD × TEF
B24: Central | C24: =C$6*C16 *C20 -> 156.8 | D24: lb/day | E24: Eq
B25: Lower | C25: =C$6*C17 *C21 -> 76.8 | E25: Eq
B26: Upper | C26: =C$6*C18 *C22 -> 256 | E26: Eq
A27: Absorbed dose rate: | B27: ADR
B28: Central | C28: 2e-05 | D28: (mg agent/kg bw) ÷ (lbs agent handled per day) | E28: Worksheet A01
B29: Lower PI | C29: 5e-07
B30: Lower CI | C30: 6e-06 | E30: Worksheet A01
B31: Upper CI | C31: 7e-05 | E31: Worksheet A01
B32: Upper PI | C32: 0.0008
A33: Clothing Protection Factor | B33: Prot
B34: Central | C34: ='A01'!C$31 -> 0 | D34: Unitless (value between 0 [no protection] and 1 [complete protection]) | E34: Worksheet A01
B35: Upper | C35: ='A01'!C$33 -> 0 | E35: Worksheet A01
B36: Lower | C36: ='A01'!C$32 -> 0 | E36: Worksheet A01
A37: Absorbed dose | B37: Dose | C37: Amnt × ADR × (1-Prot)
B38: Central | C38: =C24*C28*(1-C34) -> 0.003136 | D38: mg/kg bw/day | E38: Eq
B39: Lower PI | C39: =C25*C29*(1-C35) -> 3.84e-05 | E39: Eq
B40: Lower CI | C40: =C25*C30*(1-C35) -> 0.0004608 | E40: Eq
B41: Upper CI | C41: =C26*C31*(1-C36) -> 0.01792 | E41: Eq
B42: Upper PI | C42: =C26*C32*(1-C36) -> 0.2048 | E42: Eq

Sheet PHED-Grnd
A1: Exposure estimates based on Pesticide Handlers Exposure Database (PHED) Method, Modified for Ground Broadcast using Scenario 13, Gourndboom Applications Open Cab, no gloves (per EPA).
A2: Parameter/Assumption | B2: Code / Range | C2: Equation/ Value | D2: Units | E2: Reference/Equation
A3: Application Rate | B3: ApRt | C3: 0.375 | D3: lb a.i./acre | E3: U.S. EPA/OPP/HED 2011a, Table 9, p. 50
A4: Acres Treated | B4: Acres | C4: 80 | D4: acres | E4: U.S. EPA/OPP/HED 2011a, Table 9, p. 50
A5: Amount Handled | B5: Amnt | C5: ApRt x Acres
C6: =C3*C4 -> 30 | D6: lbs | E6: Eq.
A7: Body Weight | B7: BW | C7: 70 | E7: U.S. EPA/OPP/HED 2011a, Table 9, p. 50
A8: Dermal Exposure Rate: | B8: DermRate
C9: 0.014 | D9: mg per lb handled | E9: Keigwin 1998
A10: PPE Factor for Dermal Exposure: | B10: DermPPE
C11: 0 | D11: Proportion
A12: Amount Deposited on Skin | B12: DermAmnt | C12: Amnt × DermRate × (1-DermPPE)
C13: =C$6*C9 -> 0.42 | D13: mg/day | E13: Eq.
A14: Proportion absorbed by skin over period T | B14: Prop | C14: 1-exp(-ka T)
C15: 0.09 | D15: Proportion | E15: U.S. EPA/OPP/HED 2011a, Table 9, p. 50
A16: Absorbed Dermal Dose | B16: DermAbs | C16: Amnt × Prop
C17: =C13*C15 -> 0.0378 | D17: mg | E17: Eq.
B18: DermAbs/BW | C18: =C17/C7 -> 0.00054 | D18: mg/kg bw
A19: Inhalation Exposure Rate: | B19: InhExpRate
C20: 0.00074 | D20: mg/lb handled | E20: Keigwin 1998
A21: PPE Factor for Inhalation Exposure: | B21: InhPPE
C22: 0 | D22: Proportion
A23: Inhalation Absorption Rate: | B23: InhRate | C23: 1 | D23: Proportion
A24: Absorbed Inhalation Dose | B24: InhAbs | C24: Amnt × InhExpRate × (1-InhPPE)
C25: =C$6*C20*(1-C22) -> 0.0222 | D25: mg | E25: Eq.
A26: Total Absorbed dose | B26: Dose | C26: (DermAbs + InhAbs) ÷ BW
C27: =(C17+C25)/C$7 -> 0.0008571428571 | D27: mg/kg bw/day | E27: Eq
A28: Toxicity Value | B28: ToxVal | C28: 0.74 | E28: U.S. EPA/OPP/HED 2011a, Table 9, p. 50
A29: MOE | B29: MOE | C29: =C28/C27 -> 863.3333333

Sheet PHED-Aerial
A1: Exposure estimates based on Pesticide Handlers Exposure Database (PHED) Method, Modified for Aerial Application using Scenario 7, Aerial Applications Enclosed cockput/Liquid.
A2: Parameter/Assumption | B2: Code / Range | C2: Equation/ Value | D2: Units | E2: Reference/Equation
A3: Application Rate | B3: ApRt | C3: 0.375 | D3: lb a.i./acre | E3: U.S. EPA/OPP/HED 2011a, Table 9, p. 50
A4: Acres Treated | B4: Acres | C4: 350 | D4: acres | E4: U.S. EPA/OPP/HED 2011a, Table 9, p. 50
A5: Amount Handled | B5: Amnt | C5: ApRt x Acres
C6: =C3*C4 -> 131.25 | D6: lbs | E6: Eq.
A7: Body Weight | B7: BW | C7: 70 | E7: U.S. EPA/OPP/HED 2011a, Table 9, p. 50
A8: Dermal Exposure Rate: | B8: DermRate
C9: 0.005 | D9: mg per lb handled | E9: Keigwin 1998
A10: PPE Factor for Dermal Exposure: | B10: DermPPE
C11: 0 | D11: Proportion
A12: Amount Deposited on Skin | B12: DermAmnt | C12: Amnt × DermRate × (1-DermPPE)
C13: =C$6*C9 -> 0.65625 | D13: mg/day | E13: Eq.
A14: Proportion absorbed by skin over period T | B14: Prop | C14: 1-exp(-ka T)
C15: 0.09 | D15: Proportion | E15: U.S. EPA/OPP/HED 2011a, Table 9, p. 50
A16: Absorbed Dermal Dose | B16: DermAbs | C16: Amnt × Prop
C17: =C13*C15 -> 0.0590625 | D17: mg | E17: Eq.
B18: DermAbs/BW | C18: =C17/C7 -> 0.00084375 | D18: mg/kg bw
A19: Inhalation Exposure Rate: | B19: InhExpRate
C20: 6.8e-05 | D20: mg/lb handled | E20: Keigwin 1998
A21: PPE Factor for Inhalation Exposure: | B21: InhPPE
C22: 0 | D22: Proportion
A23: Inhalation Absorption Rate: | B23: InhRate | C23: 1 | D23: Proportion
A24: Absorbed Inhalation Dose | B24: InhAbs | C24: Amnt × InhExpRate × (1-InhPPE)
C25: =C$6*C20*(1-C22) -> 0.008925 | D25: mg | E25: Eq.
A26: Total Absorbed dose | B26: Dose | C26: (DermAbs + InhAbs) ÷ BW
C27: =(C17+C25)/C$7 -> 0.00097125 | D27: mg/kg bw/day | E27: Eq
A28: Toxicity Value | B28: ToxVal | C28: 0.74 | E28: U.S. EPA/OPP/HED 2011a, Table 9, p. 50
A29: MOE | B29: MOE | C29: =C28/C27 -> 761.9047619

Sheet C02a
A1: Accidental Dermal Exposure Assessment Using Zero-Order Absorption, Worker, Surface Area, Hands, for 1 minute(s)
A2: Short Title | B2: Contaminated Gloves, 1 minute | E2: DrmZr
A3: Receptor | B3: Worker
A4: Duration | B4: Acute
A5: Surface Contaminated | B5: Surface Area, Hands
A6: Parameter/Assumption | B6: Code / Range | C6: Equation/ Value | D6: Units | E6: Reference/Designation
A7: Surface Area | B7: SA | C7: =A02a!$C$40 -> 840 | D7: cm2 | E7: U.S. EPA/ORD 1992
A8: Duration of Exposure | B8: T_min | C8: 1 | D8: minutes | E8: Scenario parameter
B9: T_hr | C9: =C8/60 -> 0.01666666667 | D9: hours | E9: Eq
A10: Body weight | B10: BW | C10: =A02a!$C$39 -> 70 | D10: kg | E10: ICRP 1975
A11: Concentration in solution (mg/mL) | B11: Conc
B12: Central | C12: ='A01'!FldConc_C -> 1.9 | D12: mg/mL | E12: Worksheet A01
B13: Lower | C13: ='A01'!FldConc_L -> 0.96 | E13: Worksheet A01
B14: Upper | C14: ='A01'!FldConc_U -> 7.7 | E14: Worksheet A01
A15: Toxic Equivalency Factor for formulation: (See risk assessment if this has a value other than 1.) | B15: TEF
B16: Central | C16: ='A01'!C$35 -> 1 | D16: Unitless | E16: Worksheet A01
B17: Lower | C17: ='A01'!C$36 -> 1 | E17: Worksheet A01
B18: Upper | C18: ='A01'!C$37 -> 1 | E18: Worksheet A01
A19: Dermal permeability | B19: Kp
B20: Central | C20: ='B01'!$C$14 -> 0.012 | D20: cm/hour
B21: Lower | C21: ='B01'!$C$15 -> 0.0059
B22: Upper | C22: ='B01'!$C$16 -> 0.026
A23: Absorbed Dose | B23: Dose | C23: Kp × Conc × T_hr × SA x TEF ÷ BW
B24: Central | C24: =C20*C12*C$9*C$7*C16/C$10 -> 0.00456 | D24: mg/kg | E24: Eq
B25: Lower | C25: =C21*C13*C$9*C$7*C17/C$10 -> 0.0011328 | D25: mg/kg | E25: Eq
B26: Upper | C26: =C22*C14*C$9*C$7*C18/C$10 -> 0.04004 | D26: mg/kg | E26: Eq

Sheet C02b
A1: Accidental Dermal Exposure Assessment Using Zero-Order Absorption, Worker, Surface Area, Hands, for 60 minute(s)
A2: Short Title | B2: Contaminated Gloves, 1 Hour | E2: DrmZr
A3: Receptor | B3: Worker
A4: Duration | B4: Acute
A5: Surface Contaminated | B5: Surface Area, Hands
A6: Parameter/Assumption | B6: Code / Range | C6: Equation/ Value | D6: Units | E6: Reference/Designation
A7: Surface Area | B7: SA | C7: =A02a!$C$40 -> 840 | D7: cm2 | E7: U.S. EPA/ORD 1992
A8: Duration of Exposure | B8: T_min | C8: 60 | D8: minutes | E8: Scenario parameter
B9: T_hr | C9: =C8/60 -> 1 | D9: hours | E9: Eq
A10: Body weight | B10: BW | C10: =A02a!$C$39 -> 70 | D10: kg | E10: ICRP 1975
A11: Concentration in solution (mg/mL) | B11: Conc
B12: Central | C12: ='A01'!FldConc_C -> 1.9 | D12: mg/mL | E12: Worksheet A01
B13: Lower | C13: ='A01'!FldConc_L -> 0.96 | E13: Worksheet A01
B14: Upper | C14: ='A01'!FldConc_U -> 7.7 | E14: Worksheet A01
A15: Toxic Equivalency Factor for formulation: (See risk assessment if this has a value other than 1.) | B15: TEF
B16: Central | C16: ='A01'!C$35 -> 1 | D16: Unitless | E16: Worksheet A01
B17: Lower | C17: ='A01'!C$36 -> 1 | E17: Worksheet A01
B18: Upper | C18: ='A01'!C$37 -> 1 | E18: Worksheet A01
A19: Dermal permeability | B19: Kp
B20: Central | C20: ='B01'!$C$14 -> 0.012 | D20: cm/hour
B21: Lower | C21: ='B01'!$C$15 -> 0.0059
B22: Upper | C22: ='B01'!$C$16 -> 0.026
A23: Absorbed Dose | B23: Dose | C23: Kp × Conc × T_hr × SA x TEF ÷ BW
B24: Central | C24: =C20*C12*C$9*C$7*C16/C$10 -> 0.2736 | D24: mg/kg | E24: Eq
B25: Lower | C25: =C21*C13*C$9*C$7*C17/C$10 -> 0.067968 | D25: mg/kg | E25: Eq
B26: Upper | C26: =C22*C14*C$9*C$7*C18/C$10 -> 2.4024 | D26: mg/kg | E26: Eq

Sheet C03a
A1: Accidental Dermal Exposure Assessment Using First-Order Absorption, Worker, Surface Area, Hands, for 60 minute(s)
A2: Short Title | B2: Spill on hands, 1 hour | E2: DrmFOA
A3: Receptor | B3: Worker
A4: Duration | B4: Acute
A5: Surface Contaminated | B5: Surface Area, Hands
A6: Parameter/Assumption | B6: Code / Range | C6: Equation/ Value | D6: Units | E6: Reference/Designation
A7: Surface Area | B7: SA | C7: =A02a!$C$40 -> 840 | D7: cm2 | E7: U.S. EPA/ORD 1992
A8: Duration of Exposure | C8: 60 | D8: minutes | E8: Scenario parameter
B9: T | C9: =C8/60 -> 1 | D9: hours | E9: Eq
A10: Body weight | B10: BW | C10: =A02a!$C$39 -> 70 | D10: kg | E10: ICRP 1975
A11: Liquid adhering to skin | B11: L | C11: =A02d!$C$11 -> 0.008 | D11: mL/cm2 | E11: Mason and Johnson 1987
A12: Concentration in solution | B12: Conc
B13: Central | C13: ='A01'!FldConc_C -> 1.9 | D13: mg/mL | E13: Worksheet A01
B14: Lower | C14: ='A01'!FldConc_L -> 0.96 | E14: Worksheet A01
B15: Upper | C15: ='A01'!FldConc_U -> 7.7 | E15: Worksheet A01
A16: First-order dermal absorption rates | B16: ka
B17: Central | C17: ='B01'!$C$11 -> 0.0024 | D17: hour-1
B18: Lower | C18: ='B01'!$C$12 -> 0.00084
B19: Upper | C19: ='B01'!$C$13 -> 0.007
A20: Toxic Equivalency Factor for formulation: (See risk assessment if this has a value other than 1.) | B20: TEF
B21: Central | C21: ='A01'!C$35 -> 1 | D21: Unitless | E21: Worksheet A01
B22: Lower | C22: ='A01'!C$36 -> 1 | E22: Worksheet A01
B23: Upper | C23: ='A01'!C$37 -> 1 | E23: Worksheet A01
A24: Amount Deposited on Skin | B24: Amnt | C24: L × SA × Conc x TEF
B25: Central | C25: =$C$11*$C$7*C13*C21 -> 12.768 | D25: mg | E25: Eq
B26: Lower | C26: =$C$11*$C$7*C14*C22 -> 6.4512 | E26: Eq
B27: Upper | C27: =$C$11*$C$7*C15*C23 -> 51.744 | E27: Eq
A28: Skin Loading | B28: Loading
B29: Central | C29: =C25/C$7 -> 0.0152 | D29: mg/cm2 | E29: Eq
B30: Lower | C30: =C26/C$7 -> 0.00768 | E30: Eq
B31: Upper | C31: =C27/C$7 -> 0.0616 | E31: Eq
A32: Proportion absorbed over period T | B32: Prop | C32: 1-exp(-ka T)
B33: Central | C33: =1-EXP(-C17 *$C$9) -> 0.002397122303 | D33: hour-1 | E33: Eq
B34: Lower | C34: =1-EXP(-C18 *$C$9) -> 0.0008396472988 | E34: Eq
B35: Upper | C35: =1-EXP(-C19 *$C$9) -> 0.006975557067 | E35: Eq
A36: Absorbed Dose | B36: Dose | C36: Amnt × Prop ÷ BW
B37: Central | C37: =C25*C33/$C$10 -> 0.000437235108 | D37: mg/kg bw | E37: Eq
B38: Lower | C38: =C26*C34/$C$10 -> 7.738189505e-05 | E38: Eq
B39: Upper | C39: =C27*C35/$C$10 -> 0.005156331784 | E39: Eq

Sheet C03b
A1: Accidental Dermal Exposure Assessment Using First-Order Absorption, Worker, Surface Area, Lower legs, for 60 minute(s)
A2: Short Title | B2: Spill on lower legs, 1 hour | E2: DrmFOA
A3: Receptor | B3: Worker
A4: Duration | B4: Acute
A5: Surface Contaminated | B5: Surface Area, Lower legs
A6: Parameter/Assumption | B6: Code / Range | C6: Equation/ Value | D6: Units | E6: Reference/Designation
A7: Surface Area | B7: SA | C7: =A02a!$C$41 -> 2070 | D7: cm2 | E7: U.S. EPA/ORD 1992
A8: Duration of Exposure | C8: 60 | D8: minutes | E8: Scenario parameter
B9: T | C9: =C8/60 -> 1 | D9: hours | E9: Eq
A10: Body weight | B10: BW | C10: =A02a!$C$39 -> 70 | D10: kg | E10: ICRP 1975
A11: Liquid adhering to skin | B11: L | C11: =A02d!$C$11 -> 0.008 | D11: mL/cm2 | E11: Mason and Johnson 1987
A12: Concentration in solution | B12: Conc
B13: Central | C13: ='A01'!FldConc_C -> 1.9 | D13: mg/mL | E13: Worksheet A01
B14: Lower | C14: ='A01'!FldConc_L -> 0.96 | E14: Worksheet A01
B15: Upper | C15: ='A01'!FldConc_U -> 7.7 | E15: Worksheet A01
A16: First-order dermal absorption rates | B16: ka
B17: Central | C17: ='B01'!$C$11 -> 0.0024 | D17: hour-1
B18: Lower | C18: ='B01'!$C$12 -> 0.00084
B19: Upper | C19: ='B01'!$C$13 -> 0.007
A20: Toxic Equivalency Factor for formulation: (See risk assessment if this has a value other than 1.) | B20: TEF
B21: Central | C21: ='A01'!C$35 -> 1 | D21: Unitless | E21: Worksheet A01
B22: Lower | C22: ='A01'!C$36 -> 1 | E22: Worksheet A01
B23: Upper | C23: ='A01'!C$37 -> 1 | E23: Worksheet A01
A24: Amount Deposited on Skin | B24: Amnt | C24: L × SA × Conc x TEF
B25: Central | C25: =$C$11*$C$7*C13*C21 -> 31.464 | D25: mg | E25: Eq
B26: Lower | C26: =$C$11*$C$7*C14*C22 -> 15.8976 | E26: Eq
B27: Upper | C27: =$C$11*$C$7*C15*C23 -> 127.512 | E27: Eq
A28: Skin Loading | B28: Loading
B29: Central | C29: =C25/C$7 -> 0.0152 | D29: mg/cm2 | E29: Eq
B30: Lower | C30: =C26/C$7 -> 0.00768 | E30: Eq
B31: Upper | C31: =C27/C$7 -> 0.0616 | E31: Eq
A32: Proportion absorbed over period T | B32: Prop | C32: 1-exp(-ka T)
B33: Central | C33: =1-EXP(-C17 *$C$9) -> 0.002397122303 | D33: hour-1 | E33: Eq
B34: Lower | C34: =1-EXP(-C18 *$C$9) -> 0.0008396472988 | E34: Eq
B35: Upper | C35: =1-EXP(-C19 *$C$9) -> 0.006975557067 | E35: Eq
A36: Absorbed Dose | B36: Dose | C36: Amnt × Prop ÷ BW
B37: Central | C37: =C25*C33/$C$10 -> 0.00107747223 | D37: mg/kg bw | E37: Eq
B38: Lower | C38: =C26*C34/$C$10 -> 0.0001906910985 | E38: Eq
B39: Upper | C39: =C27*C35/$C$10 -> 0.01270667475 | E39: Eq

Sheet D01a
A1: Accidental Dermal Exposure Assessment Using First-Order Absorption, Child, Surface Area, Whole body, for 60 minute(s)
A2: Short Title | B2: Child direct spray, 1 hour | E2: DrmFOA
A3: Receptor | B3: Child
A4: Duration | B4: Acute
A5: Surface Contaminated | B5: Surface Area, Whole body
A6: Parameter/Assumption | B6: Code / Range | C6: Equation/ Value | D6: Units | E6: Reference/Designation
A7: Surface Area | B7: SA | C7: =A02a!$C$29 -> 6030 | D7: cm2 | E7: U.S. EPA/ORD 1996
A8: Duration of Exposure | C8: 60 | D8: minutes | E8: Scenario parameter
B9: T | C9: =C8/60 -> 1 | D9: hours | E9: Eq
A10: Body weight | B10: BW | C10: =A02a!$C$28 -> 13.3 | D10: kg | E10: U.S. EPA/ORD 1996
A11: Liquid adhering to skin | B11: L | C11: =A02d!$C$11 -> 0.008 | D11: mL/cm2 | E11: Mason and Johnson 1987
A12: Concentration in solution | B12: Conc
B13: Central | C13: ='A01'!FldConc_C -> 1.9 | D13: mg/mL | E13: Worksheet A01
B14: Lower | C14: ='A01'!FldConc_L -> 0.96 | E14: Worksheet A01
B15: Upper | C15: ='A01'!FldConc_U -> 7.7 | E15: Worksheet A01
A16: First-order dermal absorption rates | B16: ka
B17: Central | C17: ='B01'!$C$11 -> 0.0024 | D17: hour-1
B18: Lower | C18: ='B01'!$C$12 -> 0.00084
B19: Upper | C19: ='B01'!$C$13 -> 0.007
A20: Toxic Equivalency Factor for formulation: (See risk assessment if this has a value other than 1.) | B20: TEF
B21: Central | C21: ='A01'!C$35 -> 1 | D21: Unitless | E21: Worksheet A01
B22: Lower | C22: ='A01'!C$36 -> 1 | E22: Worksheet A01
B23: Upper | C23: ='A01'!C$37 -> 1 | E23: Worksheet A01
A24: Amount Deposited on Skin | B24: Amnt | C24: L × SA × Conc x TEF
B25: Central | C25: =$C$11*$C$7*C13*C21 -> 91.656 | D25: mg | E25: Eq
B26: Lower | C26: =$C$11*$C$7*C14*C22 -> 46.3104 | E26: Eq
B27: Upper | C27: =$C$11*$C$7*C15*C23 -> 371.448 | E27: Eq
A28: Skin Loading | B28: Loading
B29: Central | C29: =C25/C$7 -> 0.0152 | D29: mg/cm2 | E29: Eq
B30: Lower | C30: =C26/C$7 -> 0.00768 | E30: Eq
B31: Upper | C31: =C27/C$7 -> 0.0616 | E31: Eq
A32: Proportion absorbed over period T | B32: Prop | C32: 1-exp(-ka T)
B33: Central | C33: =1-EXP(-C17 *$C$9) -> 0.002397122303 | D33: hour-1 | E33: Eq
B34: Lower | C34: =1-EXP(-C18 *$C$9) -> 0.0008396472988 | E34: Eq
B35: Upper | C35: =1-EXP(-C19 *$C$9) -> 0.006975557067 | E35: Eq
A36: Absorbed Dose | B36: Dose | C36: Amnt × Prop ÷ BW
B37: Central | C37: =C25*C33/$C$10 -> 0.01651959713 | D37: mg/kg bw | E37: Eq
B38: Lower | C38: =C26*C34/$C$10 -> 0.002923639268 | E38: Eq
B39: Upper | C39: =C27*C35/$C$10 -> 0.1948162948 | E39: Eq

Sheet D01b
A1: Accidental Dermal Exposure Assessment Using First-Order Absorption, Adult Female, Surface Area, Feet and lower Legs, for 60 minute(s)
A2: Short Title | B2: Adult female, lower legs, 1 hour | E2: DrmFOA
A3: Receptor | B3: Adult Female
A4: Duration | B4: Acute
A5: Surface Contaminated | B5: Surface Area, Feet and lower Legs
A6: Parameter/Assumption | B6: Code / Range | C6: Equation/ Value | D6: Units | E6: Reference/Designation
A7: Surface Area | B7: SA | C7: =A02a!$C$5 -> 2915 | D7: cm2 | E7: U.S. EPA/ORD 1992
A8: Duration of Exposure | C8: 60 | D8: minutes | E8: Scenario parameter
B9: T | C9: =C8/60 -> 1 | D9: hours | E9: Eq
A10: Body weight | B10: BW | C10: =A02a!$C$4 -> 64 | D10: kg | E10: U.S. EPA/ORD 1985
A11: Liquid adhering to skin | B11: L | C11: =A02d!$C$11 -> 0.008 | D11: mL/cm2 | E11: Mason and Johnson 1987
A12: Concentration in solution | B12: Conc
B13: Central | C13: ='A01'!FldConc_C -> 1.9 | D13: mg/mL | E13: Worksheet A01
B14: Lower | C14: ='A01'!FldConc_L -> 0.96 | E14: Worksheet A01
B15: Upper | C15: ='A01'!FldConc_U -> 7.7 | E15: Worksheet A01
A16: First-order dermal absorption rates | B16: ka
B17: Central | C17: ='B01'!$C$11 -> 0.0024 | D17: hour-1
B18: Lower | C18: ='B01'!$C$12 -> 0.00084
B19: Upper | C19: ='B01'!$C$13 -> 0.007
A20: Toxic Equivalency Factor for formulation: (See risk assessment if this has a value other than 1.) | B20: TEF
B21: Central | C21: ='A01'!C$35 -> 1 | D21: Unitless | E21: Worksheet A01
B22: Lower | C22: ='A01'!C$36 -> 1 | E22: Worksheet A01
B23: Upper | C23: ='A01'!C$37 -> 1 | E23: Worksheet A01
A24: Amount Deposited on Skin | B24: Amnt | C24: L × SA × Conc x TEF
B25: Central | C25: =$C$11*$C$7*C13*C21 -> 44.308 | D25: mg | E25: Eq
B26: Lower | C26: =$C$11*$C$7*C14*C22 -> 22.3872 | E26: Eq
B27: Upper | C27: =$C$11*$C$7*C15*C23 -> 179.564 | E27: Eq
A28: Skin Loading | B28: Loading
B29: Central | C29: =C25/C$7 -> 0.0152 | D29: mg/cm2 | E29: Eq
B30: Lower | C30: =C26/C$7 -> 0.00768 | E30: Eq
B31: Upper | C31: =C27/C$7 -> 0.0616 | E31: Eq
A32: Proportion absorbed over period T | B32: Prop | C32: 1-exp(-ka T)
B33: Central | C33: =1-EXP(-C17 *$C$9) -> 0.002397122303 | D33: hour-1 | E33: Eq
B34: Lower | C34: =1-EXP(-C18 *$C$9) -> 0.0008396472988 | E34: Eq
B35: Upper | C35: =1-EXP(-C19 *$C$9) -> 0.006975557067 | E35: Eq
A36: Absorbed Dose | B36: Dose | C36: Amnt × Prop ÷ BW
B37: Central | C37: =C25*C33/$C$10 -> 0.001659557734 | D37: mg/kg bw | E37: Eq
B38: Lower | C38: =C26*C34/$C$10 -> 0.0002937086251 | E38: Eq
B39: Upper | C39: =C27*C35/$C$10 -> 0.01957123327 | E39: Eq

Sheet D02
A1: Dermal Contact with Contaminated Vegetation, Adult Female, Surface Area, Wearing shorts and T-shirt, for 1 hour(s)
A2: Short Title | B2: Vegetation Contact, shorts and T-shirt | E2: DrmVegC
A3: Receptor | B3: Adult Female
A4: Surface Contaminated | B4: Surface Area, Wearing shorts and T-shirt
A5: Duration | B5: Acute
A6: Parameter/Assumption | B6: Code / Range | C6: Equation/ Value | D6: Units | E6: Reference/Designation
A7: Application Rate (lbs/acre) | B7: ApRt | C7: ='A01'!ApRt_C -> 0.32 | D7: lb/acre | E7: Worksheet A01
A8: Conversion Factor | B8: CnvF | C8: 11.21 | D8: ug/cm2/lb/acre
A9: Metric Application Rate (ug/cm2) | B9: ApR_m | C9: ApR × CnvF
C10: =C7*C$8 -> 3.5872 | D10: ug/cm2 | E10: Eq
A11: Surface Area | B11: SA | C11: =A02a!$C$6 -> 5300 | D11: cm2 | E11: U.S. EPA/ORD 1992
A12: Contact Time | B12: Tc | C12: 1 | D12: hours | E12: Scenario parameter
A13: Exposure Time | B13: Te | C13: 24 | D13: hours | E13: Scenario parameter
A14: Body weight (W) | B14: BW | C14: =A02a!$C$4 -> 64 | D14: kg | E14: U.S. EPA/ORD 1985
A15: Proportion Dislodgeable | B15: PropDr
B16: Central | C16: ='A01'!C$47 -> 0.1 | D16: proportion | E16: Worksheet A01
B17: Lower | C17: ='A01'!C$48 -> 0.1 | E17: Worksheet A01
B18: Upper | C18: ='A01'!C$49 -> 0.1 | E18: Worksheet A01
A19: Dislodgeable Residue | B19: Dr | C19: ApR_m × PropDr
B20: Central | C20: =C$10*C16 -> 0.35872 | D20: ug/cm2 | E20: Eq
B21: Lower | C21: =C$10*C17 -> 0.35872 | E21: Eq
B22: Upper | C22: =C$10*C18 -> 0.35872 | E22: Eq
A23: Transfer Rate | B23: Tr | C23: 10 (1.09×Log10(Dr)+0.05) / 1000 µg/mg)
B24: Central | C24: =(10^( (1.09 * LOG(C20)) + 0.05)) / 1000 -> 0.0003670148139 | D24: mg/(cm2 hr) | E24: Eq
B25: Lower | C25: =(10^( (1.09 * LOG(C21)) + 0.05)) / 1000 -> 0.0003670148139 | E25: Eq
B26: Upper | C26: =(10^( (1.09 * LOG(C22)) + 0.05)) / 1000 -> 0.0003670148139 | E26: Eq
A27: Toxic Equivalency Factor for formulation: (See risk assessment if this has a value other than 1.) | B27: TEF
B28: Central | C28: ='A01'!C$35 -> 1 | D28: Unitless | E28: Worksheet A01
B29: Lower | C29: ='A01'!C$36 -> 1 | E29: Worksheet A01
B30: Upper | C30: ='A01'!C$37 -> 1 | E30: Worksheet A01
A31: Amount Transferred to Skin Surface | B31: Amnt | C31: SA × Tr × Tc x TEF
B32: Central | C32: =C$11 * C$12 * C24 * C28 -> 1.945178514 | D32: mg | E32: Eq
B33: Lower | C33: =C$11 * C$12 * C25 * C29 -> 1.945178514 | E33: Eq
B34: Upper | C34: =C$11 * C$12 * C26 * C30 -> 1.945178514 | E34: Eq
A35: First-order dermal absorption rates | B35: ka
B36: Central | C36: ='B01'!$C$11 -> 0.0024 | D36: hour-1
B37: Lower | C37: ='B01'!$C$12 -> 0.00084
B38: Upper | C38: ='B01'!$C$13 -> 0.007
A39: Skin Loading | B39: Loading
B40: Central | C40: =C36/C$11 -> 4.528301887e-07 | D40: mg/cm2 | E40: Eq
B41: Lower | C41: =C37/C$11 -> 1.58490566e-07 | E41: Eq
B42: Upper | C42: =C38/C$11 -> 1.320754717e-06 | E42: Eq
A43: Proportion absorbed over exposure period, Te | B43: Prop | C43: 1-exp(-ka Te)
B44: Central | C44: =1-EXP(-C36 *$C$13) -> 0.05597251708 | D44: hour-1 | E44: Eq
B45: Lower | C45: =1-EXP(-C37 *$C$13) -> 0.01995814594 | E45: Eq
B46: Upper | C46: =1-EXP(-C38 *$C$13) -> 0.1546461653 | E46: Eq
A47: Absorbed Dose | B47: Dose | C47: Amnt × Prop ÷ BW
B48: Central | C48: =C32*C44/$C$14 -> 0.0017011959 | D48: mg/kg bw | E48: Eq
B49: Lower | C49: =C33*C45/$C$14 -> 0.0006065961975 | E49: Eq
B50: Upper | C50: =C34*C46/$C$14 -> 0.004700224968 | E50: Eq
A52: Note 1: The method of Durkin et al. (1995, p. 68, equation 4) is used to calculate the transfer rate (Tr) in units of µg/(cm2 hr) based on the dislodgeable residue (Dr) in units of μg/cm2. This is converted to units of mg/(cm2 hr)) by dividing by 1000 µg/mg.

Sheet D03a
A1: Consumption of Fruit by a Adult Female, Acute exposure.
A2: Short Title | B2: Contaminated Fruit | E2: FdPropBwV6
A3: Receptor | B3: Adult Female
A4: Duration | B4: Acute | E4: Scenario parameter
A5: Material consumed | B5: Fruit
A6: Parameter/Assumption | B6: Code / Range | C6: Equation/ Value | D6: Units | E6: Reference/Designation
A7: Commodity
A8: Concentration on vegetation | B8: Conc
B9: Central | C9: =B05a!Acute_C -> 2.854221989 | D9: mg/kg food | E9: ='B05a'!Acute_C
B10: Lower | C10: =B05a!Acute_L -> 1.259370203 | E10: ='B05a'!Acute_L
B11: Upper | C11: =B05a!Acute_U -> 6.373349304 | E11: ='B05a'!Acute_U
A12: Receptor
A13: Amount consumed per day per unit body weight | B13: Amnt
B14: Central | C14: ='A03'!$E$6 -> 0.00168 | D14: kg food/kg BW per day | E14: U.S. EPA/ORD 1996
B15: Lower | C15: ='A03'!$E$7 -> 0.00168 | E15: U.S. EPA/ORD 1996
B16: Upper | C16: ='A03'!$E$8 -> 0.01244 | E16: U.S. EPA/ORD 1996
A17: Estimate
A18: Dose | B18: Dose | C18: Conc × Amnt
B19: Central | C19: =C14*C9 -> 0.004795092941 | D19: mg/kg bw | E19: Eq
B20: Lower | C20: =C15*C10 -> 0.00211574194 | E20: Eq
B21: Upper | C21: =C16*C11 -> 0.07928446534 | E21: Eq

Sheet D03b
A1: Consumption of Vegetation by a Adult Female, Acute exposure.
A2: Short Title | B2: Contaminated Vegetation | E2: FdPropBwV6
A3: Receptor | B3: Adult Female
A4: Duration | B4: Acute | E4: Scenario parameter
A5: Material consumed | B5: Vegetation
A6: Parameter/Assumption | B6: Code / Range | C6: Equation/ Value | D6: Units | E6: Reference/Designation
A7: Commodity
A8: Concentration on vegetation | B8: Conc
B9: Central | C9: =B05b!Acute_C -> 18.34856993 | D9: mg/kg food | E9: ='B05b'!Acute_C
B10: Lower | C10: =B05b!Acute_L -> 5.903297824 | E10: ='B05b'!Acute_L
B11: Upper | C11: =B05b!Acute_U -> 57.36014374 | E11: ='B05b'!Acute_U
A12: Receptor
A13: Amount consumed per day per unit body weight | B13: Amnt
B14: Central | C14: ='A03'!$E$13 -> 0.0036 | D14: kg food/kg BW per day | E14: U.S. EPA/ORD 1996
B15: Lower | C15: ='A03'!$E$14 -> 0.00075 | E15: U.S. EPA/ORD 1996
B16: Upper | C16: ='A03'!$E$15 -> 0.01 | E16: U.S. EPA/ORD 1996
A17: Estimate
A18: Dose | B18: Dose | C18: Conc × Amnt
B19: Central | C19: =C14*C9 -> 0.06605485174 | D19: mg/kg bw | E19: Eq
B20: Lower | C20: =C15*C10 -> 0.004427473368 | E20: Eq
B21: Upper | C21: =C16*C11 -> 0.5736014374 | E21: Eq

Sheet D04a
A1: Consumption of Fruit by a Adult Female, Chronic exposure.
A2: Short Title | B2: Contaminated Fruit | E2: FdPropBwV6
A3: Receptor | B3: Adult Female
A4: Duration | B4: Chronic | E4: Scenario parameter
A5: Material consumed | B5: Fruit
A6: Parameter/Assumption | B6: Code / Range | C6: Equation/ Value | D6: Units | E6: Reference/Designation
A7: Commodity
A8: Concentration on vegetation | B8: Conc
B9: Central | C9: =B05a!Chronic_C -> 0.5383006257 | D9: mg/kg food | E9: ='B05a'!Chronic_C
B10: Lower | C10: =B05a!Chronic_L -> 0.216628037 | E10: ='B05a'!Chronic_L
B11: Upper | C11: =B05a!Chronic_U -> 1.336735875 | E11: ='B05a'!Chronic_U
A12: Receptor
A13: Amount consumed per day per unit body weight | B13: Amnt
B14: Central | C14: ='A03'!$E$6 -> 0.00168 | D14: kg food/kg BW per day | E14: U.S. EPA/ORD 1996
B15: Lower | C15: ='A03'!$E$7 -> 0.00168 | E15: U.S. EPA/ORD 1996
B16: Upper | C16: ='A03'!$E$8 -> 0.01244 | E16: U.S. EPA/ORD 1996
A17: Estimate
A18: Dose | B18: Dose | C18: Conc × Amnt
B19: Central | C19: =C14*C9 -> 0.0009043450512 | D19: mg/kg bw | E19: Eq
B20: Lower | C20: =C15*C10 -> 0.0003639351022 | E20: Eq
B21: Upper | C21: =C16*C11 -> 0.01662899428 | E21: Eq

Sheet D04b
A1: Consumption of Vegetation by a Adult Female, Chronic exposure.
A2: Short Title | B2: Contaminated Vegetation | E2: FdPropBwV6
A3: Receptor | B3: Adult Female
A4: Duration | B4: Chronic | E4: Scenario parameter
A5: Material consumed | B5: Vegetation
A6: Parameter/Assumption | B6: Code / Range | C6: Equation/ Value | D6: Units | E6: Reference/Designation
A7: Commodity
A8: Concentration on vegetation | B8: Conc
B9: Central | C9: =B05b!Chronic_C -> 3.460504022 | D9: mg/kg food | E9: ='B05b'!Chronic_C
B10: Lower | C10: =B05b!Chronic_L -> 1.015443923 | E10: ='B05b'!Chronic_L
B11: Upper | C11: =B05b!Chronic_U -> 12.03062287 | E11: ='B05b'!Chronic_U
A12: Receptor
A13: Amount consumed per day per unit body weight | B13: Amnt
B14: Central | C14: ='A03'!$E$13 -> 0.0036 | D14: kg food/kg BW per day | E14: U.S. EPA/ORD 1996
B15: Lower | C15: ='A03'!$E$14 -> 0.00075 | E15: U.S. EPA/ORD 1996
B16: Upper | C16: ='A03'!$E$15 -> 0.01 | E16: U.S. EPA/ORD 1996
A17: Estimate
A18: Dose | B18: Dose | C18: Conc × Amnt
B19: Central | C19: =C14*C9 -> 0.01245781448 | D19: mg/kg bw | E19: Eq
B20: Lower | C20: =C15*C10 -> 0.0007615829426 | E20: Eq
B21: Upper | C21: =C16*C11 -> 0.1203062287 | E21: Eq

Sheet D05
A1: Consumption of contaminated water by Child, Accidental Spill
A2: Short Title | B2: Accidental Spill | E2: WatAmntV6
A3: Receptor | B3: Child
A4: Duration | B4: Acute | E4: Scenario parameter
A5: Parameter/Assumption | B5: Code / Range | C5: Equation/ Value | D5: Units | E5: Reference/Designation
A6: Concentration in water | B6: ConcWat
B7: Central | C7: =B04b!Acute_C -> 0.71915 | D7: mg/L | E7: ='B04b'!Acute_C
B8: Lower | C8: =B04b!Acute_L -> 0.072672 | E8: ='B04b'!Acute_L
B9: Upper | C9: =B04b!Acute_U -> 5.8289 | E9: ='B04b'!Acute_U
A10: Receptor
A11: Amount of water consumed in one day | B11: Amnt
B12: Central | C12: ='A03'!$E$44 -> 1 | D12: liters/day | E12: U.S. EPA/ORD 1996
B13: Lower | C13: ='A03'!$E$45 -> 0.61 | E13: U.S. EPA/ORD 1996
B14: Upper | C14: ='A03'!$E$46 -> 1.5 | E14: U.S. EPA/ORD 1996
A15: Body weight | B15: BW | C15: =A02a!$C$28 -> 13.3 | D15: kg | E15: U.S. EPA/ORD 1996
A16: Dose | B16: Dose | C16: ConcWat × Amnt ÷ BW
B17: Central | C17: =C7*C12/C$15 -> 0.05407142857 | D17: mg/kg | E17: Eq
B18: Lower | C18: =C8*C13/C$15 -> 0.003333076692 | D18: mg/kg | E18: Eq
B19: Upper | C19: =C9*C14/C$15 -> 0.6573947368 | D19: mg/kg | E19: Eq

Sheet D06
A1: Consumption of contaminated water by Child, Peak Conentrations
A2: Short Title | B2: Peak Conentrations | E2: WatAmntV6
A3: Receptor | B3: Child
A4: Duration | B4: Acute | E4: Scenario parameter
A5: Parameter/Assumption | B5: Code / Range | C5: Equation/ Value | D5: Units | E5: Reference/Designation
A6: Concentration in water | B6: ConcWat
B7: Central | C7: =B04a!Acute_C -> 0.01152 | D7: mg/L | E7: ='B04a'!Acute_C
B8: Lower | C8: =B04a!Acute_L -> 0.001152 | E8: ='B04a'!Acute_L
B9: Upper | C9: =B04a!Acute_U -> 0.1312 | E9: ='B04a'!Acute_U
A10: Receptor
A11: Amount of water consumed in one day | B11: Amnt
B12: Central | C12: ='A03'!$E$44 -> 1 | D12: liters/day | E12: U.S. EPA/ORD 1996
B13: Lower | C13: ='A03'!$E$45 -> 0.61 | E13: U.S. EPA/ORD 1996
B14: Upper | C14: ='A03'!$E$46 -> 1.5 | E14: U.S. EPA/ORD 1996
A15: Body weight | B15: BW | C15: =A02a!$C$28 -> 13.3 | D15: kg | E15: U.S. EPA/ORD 1996
A16: Dose | B16: Dose | C16: ConcWat × Amnt ÷ BW
B17: Central | C17: =C7*C12/C$15 -> 0.0008661654135 | D17: mg/kg | E17: Eq
B18: Lower | C18: =C8*C13/C$15 -> 5.283609023e-05 | D18: mg/kg | E18: Eq
B19: Upper | C19: =C9*C14/C$15 -> 0.01479699248 | D19: mg/kg | E19: Eq

Sheet D07
A1: Consumption of contaminated water by Adult Male, Longer-term Conentrations
A2: Short Title | B2: Longer-term Conentrations | E2: WatAmntV6
A3: Receptor | B3: Adult Male
A4: Duration | B4: Chronic | E4: Scenario parameter
A5: Parameter/Assumption | B5: Code / Range | C5: Equation/ Value | D5: Units | E5: Reference/Designation
A6: Concentration in water | B6: ConcWat
B7: Central | C7: =B04a!Chronic_C -> 0.00448 | D7: mg/L | E7: ='B04a'!Chronic_C
B8: Lower | C8: =B04a!Chronic_L -> 0.000448 | E8: ='B04a'!Chronic_L
B9: Upper | C9: =B04a!Chronic_U -> 0.0512 | E9: ='B04a'!Chronic_U
A10: Receptor
A11: Amount of water consumed in one day | B11: Amnt
B12: Central | C12: ='A03'!$E$31 -> 2 | D12: liters/day | E12: U.S. EPA/ORD 1996
B13: Lower | C13: ='A03'!$E$32 -> 1.4 | E13: U.S. EPA/ORD 1996
B14: Upper | C14: ='A03'!$E$33 -> 2.4 | E14: U.S. EPA/ORD 1996
A15: Body weight | B15: BW | C15: =A02a!$C$8 -> 70 | D15: kg | E15: ICRP 1975
A16: Dose | B16: Dose | C16: ConcWat × Amnt ÷ BW
B17: Central | C17: =C7*C12/C$15 -> 0.000128 | D17: mg/kg | E17: Eq
B18: Lower | C18: =C8*C13/C$15 -> 8.96e-06 | D18: mg/kg | E18: Eq
B19: Upper | C19: =C9*C14/C$15 -> 0.001755428571 | D19: mg/kg | E19: Eq

Sheet D08a
A1: Consumption of Contaminated Fish (Accidental Spill), Adult Male, acute exposure
A2: Short Title | B2: Fish consumption | E2: FishAmntV6
A3: Receptor | B3: Adult Male
A4: Duration | B4: acute
A5: Parameter/Assumption | B5: Code / Range | C5: Equation/ Value | D5: Units | E5: Reference/Designation
A6: Water
A7: Concentration in water | B7: ConcWat | C7: ApR × WCR
B8: Central | C8: =B04b!Acute_C -> 0.71915 | D8: mg/L | E8: ='B04b'!Acute_C
B9: Lower | C9: =B04b!Acute_L -> 0.072672 | E9: ='B04b'!Acute_L
B10: Upper | C10: =B04b!Acute_U -> 5.8289 | E10: ='B04b'!Acute_U
A11: Fish
A12: Bioconcentration factor | B12: BCF
B13: Central | C13: ='B01'!$C$4 -> 120 | D13: L/kg | E13: MRID 93196
B14: Lower | C14: ='B01'!$C$4 -> 120 | E14: MRID 93196
B15: Upper | C15: ='B01'!$C$4 -> 120 | E15: MRID 93196
A16: Concentration in fish | B16: ConcFish | C16: ConcWat × BCF
B17: Central | C17: =C8*C13 -> 86.298 | D17: mg/kg | E17: Eq
B18: Lower | C18: =C9*C14 -> 8.72064 | E18: Eq
B19: Upper | C19: =C10*C15 -> 699.468 | E19: Eq
A20: Receptor
A21: Amount of fish consumed | B21: Amnt
B22: Central | C22: ='A03'!$E$20 -> 0.158 | D22: kg/day | E22: Ruffle et al. 1994
B23: Lower | C23: ='A03'!$E$20 -> 0.158 | E23: Ruffle et al. 1994
B24: Upper | C24: ='A03'!$E$20 -> 0.158 | E24: Ruffle et al. 1994
A25: Toxic Equivalency Factor for formulation: (See risk assessment if this has a value other than 1.) | B25: TEF
B26: Central | C26: ='A01'!C$35 -> 1 | D26: Unitless | E26: Worksheet A01
B27: Lower | C27: ='A01'!C$36 -> 1 | E27: Worksheet A01
B28: Upper | C28: ='A01'!C$37 -> 1 | E28: Worksheet A01
A29: Body weight | B29: BW | C29: =A02a!$C$8 -> 70 | D29: kg | E29: ICRP 1975
A30: Dose | B30: Dose | C30: ConcFish× Amnt x TEF ÷ BW
B31: Central | C31: =C17*C22*C26/C$29 -> 0.1947869143 | D31: mg/kg | E31: Eq
B32: Lower | C32: =C18*C23*C27/C$29 -> 0.01968373029 | D32: mg/kg | E32: Eq
B33: Upper | C33: =C19*C24*C28/C$29 -> 1.5787992 | D33: mg/kg | E33: Eq
E34: FishAmntV6

Sheet D08b
A1: Consumption of Contaminated Fish (Accidental Spill), Subsistence Populations, acute exposure
A2: Short Title | B2: Fish consumption | E2: FishAmntV6
A3: Receptor | B3: Subsistence Populations
A4: Duration | B4: acute
A5: Parameter/Assumption | B5: Code / Range | C5: Equation/ Value | D5: Units | E5: Reference/Designation
A6: Water
A7: Concentration in water | B7: ConcWat | C7: ApR × WCR
B8: Central | C8: =B04b!Acute_C -> 0.71915 | D8: mg/L | E8: ='B04b'!Acute_C
B9: Lower | C9: =B04b!Acute_L -> 0.072672 | E9: ='B04b'!Acute_L
B10: Upper | C10: =B04b!Acute_U -> 5.8289 | E10: ='B04b'!Acute_U
A11: Fish
A12: Bioconcentration factor | B12: BCF
B13: Central | C13: ='B01'!$C$4 -> 120 | D13: L/kg | E13: MRID 93196
B14: Lower | C14: ='B01'!$C$4 -> 120 | E14: MRID 93196
B15: Upper | C15: ='B01'!$C$4 -> 120 | E15: MRID 93196
A16: Concentration in fish | B16: ConcFish | C16: ConcWat × BCF
B17: Central | C17: =C8*C13 -> 86.298 | D17: mg/kg | E17: Eq
B18: Lower | C18: =C9*C14 -> 8.72064 | E18: Eq
B19: Upper | C19: =C10*C15 -> 699.468 | E19: Eq
A20: Receptor
A21: Amount of fish consumed | B21: Amnt
B22: Central | C22: ='A03'!$E$35 -> 0.77 | D22: kg/day | E22: U.S. EPA/ORD 1993
B23: Lower | C23: ='A03'!$E$35 -> 0.77 | E23: U.S. EPA/ORD 1993
B24: Upper | C24: ='A03'!$E$35 -> 0.77 | E24: U.S. EPA/ORD 1993
A25: Toxic Equivalency Factor for formulation: (See risk assessment if this has a value other than 1.) | B25: TEF
B26: Central | C26: ='A01'!C$35 -> 1 | D26: Unitless | E26: Worksheet A01
B27: Lower | C27: ='A01'!C$36 -> 1 | E27: Worksheet A01
B28: Upper | C28: ='A01'!C$37 -> 1 | E28: Worksheet A01
A29: Body weight | B29: BW | C29: =A02a!$C$9 -> 70 | D29: kg | E29: ICRP 1975
A30: Dose | B30: Dose | C30: ConcFish× Amnt x TEF ÷ BW
B31: Central | C31: =C17*C22*C26/C$29 -> 0.949278 | D31: mg/kg | E31: Eq
B32: Lower | C32: =C18*C23*C27/C$29 -> 0.09592704 | D32: mg/kg | E32: Eq
B33: Upper | C33: =C19*C24*C28/C$29 -> 7.694148 | D33: mg/kg | E33: Eq
E34: FishAmntV6

Sheet D09a
A1: Consumption of Contaminated Fish (Longer-term), Adult Male, chronic exposure
A2: Short Title | B2: Fish consumption | E2: FishAmntV6
A3: Receptor | B3: Adult Male
A4: Duration | B4: chronic
A5: Parameter/Assumption | B5: Code / Range | C5: Equation/ Value | D5: Units | E5: Reference/Designation
A6: Water
A7: Concentration in water | B7: ConcWat | C7: ApR × WCR
B8: Central | C8: =B04a!Chronic_C -> 0.00448 | D8: mg/L | E8: ='B04a'!Chronic_C
B9: Lower | C9: =B04a!Chronic_L -> 0.000448 | E9: ='B04a'!Chronic_L
B10: Upper | C10: =B04a!Chronic_U -> 0.0512 | E10: ='B04a'!Chronic_U
A11: Fish
A12: Bioconcentration factor | B12: BCF
B13: Central | C13: ='B01'!$C$5 -> 1.1 | D13: L/kg | E13: MRID 93196
B14: Lower | C14: ='B01'!$C$5 -> 1.1 | E14: MRID 93196
B15: Upper | C15: ='B01'!$C$5 -> 1.1 | E15: MRID 93196
A16: Concentration in fish | B16: ConcFish | C16: ConcWat × BCF
B17: Central | C17: =C8*C13 -> 0.004928 | D17: mg/kg | E17: Eq
B18: Lower | C18: =C9*C14 -> 0.0004928 | E18: Eq
B19: Upper | C19: =C10*C15 -> 0.05632 | E19: Eq
A20: Receptor
A21: Amount of fish consumed | B21: Amnt
B22: Central | C22: ='A03'!$E$19 -> 0.01 | D22: kg/day | E22: U.S. EPA/ORD 1996
B23: Lower | C23: ='A03'!$E$19 -> 0.01 | E23: U.S. EPA/ORD 1996
B24: Upper | C24: ='A03'!$E$19 -> 0.01 | E24: U.S. EPA/ORD 1996
A25: Toxic Equivalency Factor for formulation: (See risk assessment if this has a value other than 1.) | B25: TEF
B26: Central | C26: ='A01'!C$35 -> 1 | D26: Unitless | E26: Worksheet A01
B27: Lower | C27: ='A01'!C$36 -> 1 | E27: Worksheet A01
B28: Upper | C28: ='A01'!C$37 -> 1 | E28: Worksheet A01
A29: Body weight | B29: BW | C29: =A02a!$C$8 -> 70 | D29: kg | E29: ICRP 1975
A30: Dose | B30: Dose | C30: ConcFish× Amnt x TEF ÷ BW
B31: Central | C31: =C17*C22*C26/C$29 -> 7.04e-07 | D31: mg/kg | E31: Eq
B32: Lower | C32: =C18*C23*C27/C$29 -> 7.04e-08 | D32: mg/kg | E32: Eq
B33: Upper | C33: =C19*C24*C28/C$29 -> 8.045714286e-06 | D33: mg/kg | E33: Eq
E34: FishAmntV6

Sheet D09b
A1: Consumption of Contaminated Fish (Longer-term), Subsistence Populations, chronic exposure
A2: Short Title | B2: Fish consumption | E2: FishAmntV6
A3: Receptor | B3: Subsistence Populations
A4: Duration | B4: chronic
A5: Parameter/Assumption | B5: Code / Range | C5: Equation/ Value | D5: Units | E5: Reference/Designation
A6: Water
A7: Concentration in water | B7: ConcWat | C7: ApR × WCR
B8: Central | C8: =B04a!Chronic_C -> 0.00448 | D8: mg/L | E8: ='B04a'!Chronic_C
B9: Lower | C9: =B04a!Chronic_L -> 0.000448 | E9: ='B04a'!Chronic_L
B10: Upper | C10: =B04a!Chronic_U -> 0.0512 | E10: ='B04a'!Chronic_U
A11: Fish
A12: Bioconcentration factor | B12: BCF
B13: Central | C13: ='B01'!$C$5 -> 1.1 | D13: L/kg | E13: MRID 93196
B14: Lower | C14: ='B01'!$C$5 -> 1.1 | E14: MRID 93196
B15: Upper | C15: ='B01'!$C$5 -> 1.1 | E15: MRID 93196
A16: Concentration in fish | B16: ConcFish | C16: ConcWat × BCF
B17: Central | C17: =C8*C13 -> 0.004928 | D17: mg/kg | E17: Eq
B18: Lower | C18: =C9*C14 -> 0.0004928 | E18: Eq
B19: Upper | C19: =C10*C15 -> 0.05632 | E19: Eq
A20: Receptor
A21: Amount of fish consumed | B21: Amnt
B22: Central | C22: ='A03'!$E$34 -> 0.081 | D22: kg/day | E22: U.S. EPA/ORD 1996
B23: Lower | C23: ='A03'!$E$34 -> 0.081 | E23: U.S. EPA/ORD 1996
B24: Upper | C24: ='A03'!$E$34 -> 0.081 | E24: U.S. EPA/ORD 1996
A25: Toxic Equivalency Factor for formulation: (See risk assessment if this has a value other than 1.) | B25: TEF
B26: Central | C26: ='A01'!C$35 -> 1 | D26: Unitless | E26: Worksheet A01
B27: Lower | C27: ='A01'!C$36 -> 1 | E27: Worksheet A01
B28: Upper | C28: ='A01'!C$37 -> 1 | E28: Worksheet A01
A29: Body weight | B29: BW | C29: =A02a!$C$9 -> 70 | D29: kg | E29: ICRP 1975
A30: Dose | B30: Dose | C30: ConcFish× Amnt x TEF ÷ BW
B31: Central | C31: =C17*C22*C26/C$29 -> 5.7024e-06 | D31: mg/kg | E31: Eq
B32: Lower | C32: =C18*C23*C27/C$29 -> 5.7024e-07 | D32: mg/kg | E32: Eq
B33: Upper | C33: =C19*C24*C28/C$29 -> 6.517028571e-05 | D33: mg/kg | E33: Eq
E34: FishAmntV6

Sheet D09c
A1: Consumption of Contaminated Fish (Peak Exposure), Adult Male, acute exposure
A2: Short Title | B2: Fish consumption | E2: FishAmntV6
A3: Receptor | B3: Adult Male
A4: Duration | B4: acute
A5: Parameter/Assumption | B5: Code / Range | C5: Equation/ Value | D5: Units | E5: Reference/Designation
A6: Water
A7: Concentration in water | B7: ConcWat | C7: ApR × WCR
B8: Central | C8: =B04a!Acute_C -> 0.01152 | D8: mg/L | E8: ='B04a'!Acute_C
B9: Lower | C9: =B04a!Acute_L -> 0.001152 | E9: ='B04a'!Acute_L
B10: Upper | C10: =B04a!Acute_U -> 0.1312 | E10: ='B04a'!Acute_U
A11: Fish
A12: Bioconcentration factor | B12: BCF
B13: Central | C13: ='B01'!$C$4 -> 120 | D13: L/kg | E13: MRID 93196
B14: Lower | C14: ='B01'!$C$4 -> 120 | E14: MRID 93196
B15: Upper | C15: ='B01'!$C$4 -> 120 | E15: MRID 93196
A16: Concentration in fish | B16: ConcFish | C16: ConcWat × BCF
B17: Central | C17: =C8*C13 -> 1.3824 | D17: mg/kg | E17: Eq
B18: Lower | C18: =C9*C14 -> 0.13824 | E18: Eq
B19: Upper | C19: =C10*C15 -> 15.744 | E19: Eq
A20: Receptor
A21: Amount of fish consumed | B21: Amnt
B22: Central | C22: ='A03'!$E$20 -> 0.158 | D22: kg/day | E22: Ruffle et al. 1994
B23: Lower | C23: ='A03'!$E$20 -> 0.158 | E23: Ruffle et al. 1994
B24: Upper | C24: ='A03'!$E$20 -> 0.158 | E24: Ruffle et al. 1994
A25: Toxic Equivalency Factor for formulation: (See risk assessment if this has a value other than 1.) | B25: TEF
B26: Central | C26: ='A01'!C$35 -> 1 | D26: Unitless | E26: Worksheet A01
B27: Lower | C27: ='A01'!C$36 -> 1 | E27: Worksheet A01
B28: Upper | C28: ='A01'!C$37 -> 1 | E28: Worksheet A01
A29: Body weight | B29: BW | C29: =A02a!$C$8 -> 70 | D29: kg | E29: ICRP 1975
A30: Dose | B30: Dose | C30: ConcFish× Amnt x TEF ÷ BW
B31: Central | C31: =C17*C22*C26/C$29 -> 0.003120274286 | D31: mg/kg | E31: Eq
B32: Lower | C32: =C18*C23*C27/C$29 -> 0.0003120274286 | D32: mg/kg | E32: Eq
B33: Upper | C33: =C19*C24*C28/C$29 -> 0.03553645714 | D33: mg/kg | E33: Eq
E34: FishAmntV6

Sheet D09d
A1: Consumption of Contaminated Fish (Peak Exposure), Subsistence Populations, acute exposure
A2: Short Title | B2: Fish consumption | E2: FishAmntV6
A3: Receptor | B3: Subsistence Populations
A4: Duration | B4: acute
A5: Parameter/Assumption | B5: Code / Range | C5: Equation/ Value | D5: Units | E5: Reference/Designation
A6: Water
A7: Concentration in water | B7: ConcWat | C7: ApR × WCR
B8: Central | C8: =B04a!Acute_C -> 0.01152 | D8: mg/L | E8: ='B04a'!Acute_C
B9: Lower | C9: =B04a!Acute_L -> 0.001152 | E9: ='B04a'!Acute_L
B10: Upper | C10: =B04a!Acute_U -> 0.1312 | E10: ='B04a'!Acute_U
A11: Fish
A12: Bioconcentration factor | B12: BCF
B13: Central | C13: ='B01'!$C$4 -> 120 | D13: L/kg | E13: MRID 93196
B14: Lower | C14: ='B01'!$C$4 -> 120 | E14: MRID 93196
B15: Upper | C15: ='B01'!$C$4 -> 120 | E15: MRID 93196
A16: Concentration in fish | B16: ConcFish | C16: ConcWat × BCF
B17: Central | C17: =C8*C13 -> 1.3824 | D17: mg/kg | E17: Eq
B18: Lower | C18: =C9*C14 -> 0.13824 | E18: Eq
B19: Upper | C19: =C10*C15 -> 15.744 | E19: Eq
A20: Receptor
A21: Amount of fish consumed | B21: Amnt
B22: Central | C22: ='A03'!$E$35 -> 0.77 | D22: kg/day | E22: U.S. EPA/ORD 1993
B23: Lower | C23: ='A03'!$E$35 -> 0.77 | E23: U.S. EPA/ORD 1993
B24: Upper | C24: ='A03'!$E$35 -> 0.77 | E24: U.S. EPA/ORD 1993
A25: Toxic Equivalency Factor for formulation: (See risk assessment if this has a value other than 1.) | B25: TEF
B26: Central | C26: ='A01'!C$35 -> 1 | D26: Unitless | E26: Worksheet A01
B27: Lower | C27: ='A01'!C$36 -> 1 | E27: Worksheet A01
B28: Upper | C28: ='A01'!C$37 -> 1 | E28: Worksheet A01
A29: Body weight | B29: BW | C29: =A02a!$C$9 -> 70 | D29: kg | E29: ICRP 1975
A30: Dose | B30: Dose | C30: ConcFish× Amnt x TEF ÷ BW
B31: Central | C31: =C17*C22*C26/C$29 -> 0.0152064 | D31: mg/kg | E31: Eq
B32: Lower | C32: =C18*C23*C27/C$29 -> 0.00152064 | D32: mg/kg | E32: Eq
B33: Upper | C33: =C19*C24*C28/C$29 -> 0.173184 | D33: mg/kg | E33: Eq
E34: FishAmntV6

Sheet D11
A1: Swimming Exposure Assessment Using Zero-Order Absorption, Adult Female, Surface Area, Whole body, for 60 minute(s)
A2: Short Title | B2: Swimming | E2: DrmZrSwm
A3: Receptor | B3: Adult Female
A4: Duration | B4: Acute
A5: Surface Contaminated | B5: Surface Area, Whole body
A6: Parameter/Assumption | B6: Code / Range | C6: Equation/ Value | D6: Units | E6: Reference/Designation
A7: Application Rate | B7: ApRt | C7: ='A01'!ApRt_C -> 0.32 | D7: lb/acre | E7: Worksheet A01
A8: Surface Area | B8: SA | C8: =A02a!$C$7 -> 16900 | D8: cm2 | E8: U.S. EPA/ORD 1997
A9: Duration of Exposure | B9: T_min | C9: ='A01'!C$29 -> 60 | D9: minutes | E9: Worksheet A01
B10: T_hr | C10: =C9/60 -> 1 | D10: hours | E10: Eq
A11: Body weight | B11: BW | C11: =A02a!$C$4 -> 64 | D11: kg | E11: U.S. EPA/ORD 1985
A12: Water contamination rate | B12: WCR
B13: Central | C13: =B04Rt!$C$4 -> 0.036 | D13: mg/L per lb/acre
B14: Lower | C14: =B04Rt!$C$5 -> 0.0036
B15: Upper | C15: =B04Rt!$C$6 -> 0.41
A16: Concentration in water in mg/mL | B16: ConcWat | C16: ApR × WCR / 1000
B17: Central | C17: =C$7*C13/1000 -> 1.152e-05 | D17: mg/mL | E17: Eq
B18: Lower | C18: =C$7*C14/1000 -> 1.152e-06 | E18: Eq
B19: Upper | C19: =C$7*C15/1000 -> 0.0001312 | E19: Eq
A20: Toxic Equivalency Factor for formulation: (See risk assessment if this has a value other than 1.) | B20: TEF
B21: Central | C21: ='A01'!C$35 -> 1 | D21: Unitless | E21: Worksheet A01
B22: Lower | C22: ='A01'!C$36 -> 1 | E22: Worksheet A01
B23: Upper | C23: ='A01'!C$37 -> 1 | E23: Worksheet A01
A24: Dermal permeability | B24: Kp
B25: Central | C25: ='B01'!$C$14 -> 0.012 | D25: cm/hour
B26: Lower | C26: ='B01'!$C$15 -> 0.0059
B27: Upper | C27: ='B01'!$C$16 -> 0.026
A28: Absorbed Dose | B28: Dose | C28: Kp × Conc × T_hr × SA × TEF ÷ BW
B29: Central | C29: =C25*C17*C$10*C$8*C21/C$11 -> 3.6504e-05 | D29: mg/kg
B30: Lower | C30: =C26*C18*C$10*C$8*C22/C$11 -> 1.79478e-06 | D30: mg/kg
B31: Upper | C31: =C27*C19*C$10*C$8*C23/C$11 -> 0.00090077 | D31: mg/kg

Sheet E01
A1: Summary of Worker Exposure Assessments
A2: Application Rate: | B2: ='A01'!ApRt_C -> 0.32 | C2: lb a.e./acre | H2: E01aV5-3Wrkr
A3: Scenario | B3: Receptor | C3: mg/kg/day or mg/kg/event | H3: Detail Worksheet
C4: Central | D4: Lower PI | E4: Lower CI | F4: Upper CI | G4: Upper PI
A5: Accidental/Incidental Exposures
A6: Contaminated Gloves, 1 min. | B6: Worker | C6: ='C02a'!Dose_C -> 0.00456 | D6: N/A | E6: ='C02a'!Dose_L -> 0.0011328 | F6: ='C02a'!Dose_U -> 0.04004 | G6: N/A | H6: C02a
A7: Contaminated Gloves, 1 hour | B7: Worker | C7: ='C02b'!Dose_C -> 0.2736 | D7: N/A | E7: ='C02b'!Dose_L -> 0.067968 | F7: ='C02b'!Dose_U -> 2.4024 | G7: N/A | H7: C02b
A8: Spill on Hands, 1 hour | B8: Worker | C8: ='C03a'!Dose_C -> 0.000437235108 | D8: N/A | E8: ='C03a'!Dose_L -> 7.738189505e-05 | F8: ='C03a'!Dose_U -> 0.005156331784 | G8: N/A | H8: C03a
A9: Spill on lower legs, 1 hour | B9: Worker | C9: ='C03b'!Dose_C -> 0.00107747223 | D9: N/A | E9: ='C03b'!Dose_L -> 0.0001906910985 | F9: ='C03b'!Dose_U -> 0.01270667475 | G9: N/A | H9: C03b
A10: General Exposures
B11: Backpack Applications: | C11: ='C01a'!Dose_C -> 0.0154 | D11: =OFFSET('C01a'!Dose_L, -1, 0) -> 0.00322 | E11: ='C01a'!Dose_L -> 0.00384 | F11: ='C01a'!Dose_U -> 0.0384 | G11: =OFFSET('C01a'!Dose_U, 1, 0) -> 0.17664 | H11: C01a
B12: Ground Broadcast Applications: | C12: ='C01b'!Dose_C -> 0.003584 | D12: =OFFSET('C01b'!Dose_L, -1, 0) -> 4.224e-05 | E12: ='C01b'!Dose_L -> 0.0008448 | F12: ='C01b'!Dose_U -> 0.010752 | G12: =OFFSET('C01b'!Dose_U, 1, 0) -> 0.2688 | H12: C01b
B13: Aerial Applications: | C13: ='C01c'!Dose_C -> 0.003136 | D13: =OFFSET('C01c'!Dose_L, -1, 0) -> 3.84e-05 | E13: ='C01c'!Dose_L -> 0.0004608 | F13: ='C01c'!Dose_U -> 0.01792 | G13: =OFFSET('C01c'!Dose_U, 1, 0) -> 0.2048 | H13: C01c

Sheet E02
A1: Summary of Worker Hazard Quotients (Toxicity)
A2: Application Rate: | B2: ='A01'!ApRt_C -> 0.32 | C2: lb a.e./acre | H2: E01aV5-3Wrkr
A3: Scenario | B3: Receptor | C3: Hazard Quotients | H3: Toxicity Value
C4: Central | D4: Lower PI | E4: Lower CI | F4: Upper CI | G4: Upper PI
A5: Accidental/Incidental Exposures
A6: Contaminated Gloves, 1 min. | B6: Worker | C6: ='C02a'!$C$24/$H$6 -> 0.01060465116 | D6: N/A | E6: ='C02a'!$C$25/$H$6 -> 0.002634418605 | F6: ='C02a'!$C$26/$H$6 -> 0.09311627907 | G6: N/A | H6: ='B02'!$E$4 -> 0.43
A7: Contaminated Gloves, 1 hour | B7: Worker | C7: ='C02b'!$C$24/$H$7 -> 0.6362790698 | D7: N/A | E7: ='C02b'!$C$25/$H$7 -> 0.1580651163 | F7: ='C02b'!$C$26/$H$7 -> 5.586976744 | G7: N/A | H7: ='B02'!$E$4 -> 0.43
A8: Spill on Hands, 1 hour | B8: Worker | C8: ='C03a'!$C$37/$H$8 -> 0.001016825833 | D8: N/A | E8: ='C03a'!$C$38/$H$8 -> 0.0001799578955 | F8: ='C03a'!$C$39/$H$8 -> 0.01199146926 | G8: N/A | H8: ='B02'!$E$4 -> 0.43
A9: Spill on lower legs, 1 hour | B9: Worker | C9: ='C03b'!$C$37/$H$9 -> 0.002505749373 | D9: N/A | E9: ='C03b'!$C$38/$H$9 -> 0.000443467671 | F9: ='C03b'!$C$39/$H$9 -> 0.0295504064 | G9: N/A | H9: ='B02'!$E$4 -> 0.43
A10: General Exposures - Short-term
B11: Backpack Applications: | C11: ='E01'!C11/'E02'!$H11 -> 0.9058823529 | D11: ='E01'!D11/'E02'!$H11 -> 0.1894117647 | E11: ='E01'!E11/'E02'!$H11 -> 0.2258823529 | F11: ='E01'!F11/'E02'!$H11 -> 2.258823529 | G11: ='E01'!G11/'E02'!$H11 -> 10.39058824 | H11: ='B02'!$E$6 -> 0.017
B12: Ground Broadcast Applications: | C12: ='E01'!C12/'E02'!$H12 -> 0.2108235294 | D12: ='E01'!D12/'E02'!$H12 -> 0.002484705882 | E12: ='E01'!E12/'E02'!$H12 -> 0.04969411765 | F12: ='E01'!F12/'E02'!$H12 -> 0.6324705882 | G12: ='E01'!G12/'E02'!$H12 -> 15.81176471 | H12: ='B02'!$E$6 -> 0.017
B13: Aerial Applications: | C13: ='E01'!C13/'E02'!$H13 -> 0.1844705882 | D13: ='E01'!D13/'E02'!$H13 -> 0.002258823529 | E13: ='E01'!E13/'E02'!$H13 -> 0.02710588235 | F13: ='E01'!F13/'E02'!$H13 -> 1.054117647 | G13: ='E01'!G13/'E02'!$H13 -> 12.04705882 | H13: ='B02'!$E$6 -> 0.017
A14: General Exposures - Chronic
B15: Backpack Applications: | C15: ='E01'!C11/'E02'!$H15 -> 2.444444444 | D15: ='E01'!D11/'E02'!$H15 -> 0.5111111111 | E15: ='E01'!E11/'E02'!$H15 -> 0.6095238095 | F15: ='E01'!F11/'E02'!$H15 -> 6.095238095 | G15: ='E01'!G11/'E02'!$H15 -> 28.03809524 | H15: ='B02'!$E$5 -> 0.0063
B16: Ground Broadcast Applications: | C16: ='E01'!C12/'E02'!$H16 -> 0.5688888889 | D16: ='E01'!D12/'E02'!$H16 -> 0.006704761905 | E16: ='E01'!E12/'E02'!$H16 -> 0.1340952381 | F16: ='E01'!F12/'E02'!$H16 -> 1.706666667 | G16: ='E01'!G12/'E02'!$H16 -> 42.66666667 | H16: ='B02'!$E$5 -> 0.0063
B17: Aerial Applications: | C17: ='E01'!C13/'E02'!$H17 -> 0.4977777778 | D17: ='E01'!D13/'E02'!$H17 -> 0.006095238095 | E17: ='E01'!E13/'E02'!$H17 -> 0.07314285714 | F17: ='E01'!F13/'E02'!$H17 -> 2.844444444 | G17: ='E01'!G13/'E02'!$H17 -> 32.50793651 | H17: ='B02'!$E$5 -> 0.0063
A19: Summary of Worker Margins of Exposure
A20: Scenario | B20: Receptor | C20: Equivalent Margins of Exposure
C21: Central | D21: Lower PI | E21: Lower CI | F21: Upper CI | G21: Upper PI
A22: General Exposures - Short-term - i.e., Exposure / 1.7 mg a.e./kg bw NOAEL
B23: Backpack Applications: | C23: =100/C11 -> 110.3896104 | D23: =100/D11 -> 527.9503106 | E23: 442.7083333 | F23: 44.27083333 | G23: 9.624094203
B24: Ground Broadcast Applications: | C24: =100/C12 -> 474.3303571 | D24: 40246.21212 | E24: 2012.310606 | F24: 158.110119 | G24: 6.324404762
B25: Aerial Applications: | C25: 542.0918367 | D25: 44270.83333 | E25: 3689.236111 | F25: 94.86607143 | G25: 8.30078125
A26: General Exposures - Intermediate -- i.e., Exposure / 0.63 mg a.e./kg bw NOAEL
B27: Backpack Applications: | C27: =100/C15 -> 40.90909091 | D27: =100/D15 -> 195.6521739 | E27: 164.0625 | F27: 16.40625 | G27: 3.566576087
B28: Ground Broadcast Applications: | C28: =100/C16 -> 175.78125 | D28: 14914.77273 | E28: 745.7386364 | F28: 58.59375 | G28: 2.34375
B29: Aerial Applications: | C29: =100/C17 -> 200.8928571 | D29: 16406.25 | E29: 1367.1875 | F29: 35.15625 | G29: 3.076171875

Sheet E03
A1: Summary of Exposure Assessments for the General Public
A2: Application Rate: | B2: ='A01'!ApRt_C -> 0.32 | C2: lb a.e./acre | F2: E03aV6
A3: Scenario | B3: Receptor | C3: mg/kg/day or mg/kg/event | F3: Detail Worksheet
C4: Central | D4: Lower | E4: Upper | K4: Lower | L4: Central | M4: Upper | N4: Check
A5: Accidental Acute Exposures (dose in mg/kg/event)
A6: Direct Spray of Child, whole body | B6: Child | C6: =D01a!Dose_C -> 0.01651959713 | D6: =D01a!Dose_L -> 0.002923639268 | E6: =D01a!Dose_U -> 0.1948162948 | F6: D01a | J6: Spray: Child | K6: =IF(D6>0, D6, "") -> 0.002923639268 | L6: =IF(ISERROR(C6-K6), "", C6-K6) -> 0.01359595786 | M6: =IF(ISERROR(E6-C6), "", E6-C6) -> 0.1782966977 | N6: =E6-SUM(K6:M6) -> 0
A7: Direct Spray of Woman, feet and lower legs | B7: Adult Female | C7: =D01b!Dose_C -> 0.001659557734 | D7: =D01b!Dose_L -> 0.0002937086251 | E7: =D01b!Dose_U -> 0.01957123327 | F7: D01b | J7: Spray: Woman | K7: =IF(D7>0, D7, "") -> 0.0002937086251 | L7: =IF(ISERROR(C7-K7), "", C7-K7) -> 0.001365849109 | M7: =IF(ISERROR(E7-C7), "", E7-C7) -> 0.01791167553 | N7: =E7-SUM(K7:M7) -> 0
A8: Water consumption (spill) | B8: Child | C8: ='D05'!Dose_C -> 0.05407142857 | D8: ='D05'!Dose_L -> 0.003333076692 | E8: ='D05'!Dose_U -> 0.6573947368 | F8: D05 | J8: Water: Child | K8: 0.003333076692 | L8: 0.05073835188 | M8: 0.6033233083 | N8: 0
A9: Fish consumption (spill) | B9: Adult Male | C9: =D08a!Dose_C -> 0.1947869143 | D9: =D08a!Dose_L -> 0.01968373029 | E9: =D08a!Dose_U -> 1.5787992 | F9: D08a | J9: Fish: General | K9: 0.01968373029 | L9: 0.175103184 | M9: 1.384012286 | N9: 0
A10: Fish consumption (spill) | B10: Subsistence Populations | C10: =D08b!Dose_C -> 0.949278 | D10: =D08b!Dose_L -> 0.09592704 | E10: =D08b!Dose_U -> 7.694148 | F10: D08b | J10: Fish: Subsist | K10: 0.09592704 | L10: 0.85335096 | M10: 6.74487 | N10: 0
A11: Non-Accidental Acute Exposures (dose in mg/kg/event)
A12: Vegetation Contact, shorts and T-shirt | B12: Adult Female | C12: ='D02'!Dose_C -> 0.0017011959 | D12: ='D02'!Dose_L -> 0.0006065961975 | E12: ='D02'!Dose_U -> 0.004700224968 | F12: D02 | J12: Contact: Female | K12: =IF(D12>0, D12, "") -> 0.0006065961975 | L12: =IF(ISERROR(C12-K12), "", C12-K12) -> 0.001094599702 | M12: =IF(ISERROR(E12-C12), "", E12-C12) -> 0.002999029069 | N12: =E12-SUM(K12:M12) -> 0
A13: Contaminated Fruit | B13: Adult Female | C13: =D03a!Dose_C -> 0.004795092941 | D13: =D03a!Dose_L -> 0.00211574194 | E13: =D03a!Dose_U -> 0.07928446534 | F13: D03a | J13: Fruit: Female | K13: 0.00211574194 | L13: 0.002679351001 | M13: 0.0744893724 | N13: 0
A14: Contaminated Vegetation | B14: Adult Female | C14: =D03b!Dose_C -> 0.06605485174 | D14: =D03b!Dose_L -> 0.004427473368 | E14: =D03b!Dose_U -> 0.5736014374 | F14: D03b | J14: Veg: Female | K14: 0.004427473368 | L14: 0.06162737837 | M14: 0.5075465856 | N14: 0
A15: Swimming, one hour | B15: Adult Female | C15: ='D11'!Dose_C -> 3.6504e-05 | D15: ='D11'!Dose_L -> 1.79478e-06 | E15: ='D11'!Dose_U -> 0.00090077 | F15: D11 | J15: Swim: Female | K15: 1.79478e-06 | L15: 3.470922e-05 | M15: 0.000864266 | N15: 0
A16: Water consumption | B16: Child | C16: ='D06'!Dose_C -> 0.0008661654135 | D16: ='D06'!Dose_L -> 5.283609023e-05 | E16: ='D06'!Dose_U -> 0.01479699248 | F16: D06 | J16: Water: Child | K16: 5.283609023e-05 | L16: 0.0008133293233 | M16: 0.01393082707 | N16: 0
A17: Fish consumption | B17: Adult Male | C17: =D09c!Dose_C -> 0.003120274286 | D17: =D09c!Dose_L -> 0.0003120274286 | E17: =D09c!Dose_U -> 0.03553645714 | F17: D09c | J17: Fish: Male | K17: 0.0003120274286 | L17: 0.002808246857 | M17: 0.03241618286 | N17: 0
A18: Fish consumption | B18: Subsistence Populations | C18: =D09d!Dose_C -> 0.0152064 | D18: =D09d!Dose_L -> 0.00152064 | E18: =D09d!Dose_U -> 0.173184 | F18: D09d | J18: Fish: Subsist | K18: 0.00152064 | L18: 0.01368576 | M18: 0.1579776 | N18: 0
A19: Chronic/Longer Term Exposures (dose in mg/kg/day)
A20: Contaminated Fruit | B20: Adult Female | C20: =D04a!Dose_C -> 0.0009043450512 | D20: =D04a!Dose_L -> 0.0003639351022 | E20: =D04a!Dose_U -> 0.01662899428 | F20: D04a | J20: Fruit: Female | K20: =IF(D20>0, D20, "") -> 0.0003639351022 | L20: =IF(ISERROR(C20-K20), "", C20-K20) -> 0.000540409949 | M20: =IF(ISERROR(E20-C20), "", E20-C20) -> 0.01572464923 | N20: =E20-SUM(K20:M20) -> 0
A21: Contaminated Vegetation | B21: Adult Female | C21: =D04b!Dose_C -> 0.01245781448 | D21: =D04b!Dose_L -> 0.0007615829426 | E21: =D04b!Dose_U -> 0.1203062287 | F21: D04b | J21: Veg: Female | K21: 0.0007615829426 | L21: 0.01169623154 | M21: 0.1078484143 | N21: 0
A22: Water consumption | B22: Adult Male | C22: ='D07'!Dose_C -> 0.000128 | D22: ='D07'!Dose_L -> 8.96e-06 | E22: ='D07'!Dose_U -> 0.001755428571 | F22: D07 | J22: Water: Male | K22: 8.96e-06 | L22: 0.00011904 | M22: 0.001627428571 | N22: 0
A23: Fish consumption | B23: Adult Male | C23: =D09a!Dose_C -> 7.04e-07 | D23: =D09a!Dose_L -> 7.04e-08 | E23: =D09a!Dose_U -> 8.045714286e-06 | F23: D09a | J23: Fish: Male | K23: 7.04e-08 | L23: 6.336e-07 | M23: 7.341714286e-06 | N23: 0
A24: Fish consumption | B24: Subsistence Populations | C24: =D09b!Dose_C -> 5.7024e-06 | D24: =D09b!Dose_L -> 5.7024e-07 | E24: =D09b!Dose_U -> 6.517028571e-05 | F24: D09b | J24: Fish: Subsist | K24: 5.7024e-07 | L24: 5.13216e-06 | M24: 5.946788571e-05 | N24: 0

Sheet E04
A1: Summary of Hazard Quotients (Toxicity) for the General Public
A2: Application Rate: | B2: ='A01'!ApRt_C -> 0.32 | C2: lb a.e./acre | F2: E03aV6
A3: Scenario | B3: Receptor | C3: Hazard Quotients | F3: Toxicity Value
C4: Central | D4: Lower | E4: Upper | K4: Lower | L4: Central | M4: Upper | N4: Check
A5: Accidental Acute Exposures (dose in mg/kg/event)
A6: Direct Spray of Child, whole body | B6: Child | C6: =D01a!$C$37/$F$6 -> 0.03841766773 | D6: =D01a!$C$38/$F$6 -> 0.006799161088 | E6: =D01a!$C$39/$F$6 -> 0.4530611508 | F6: ='B02'!$E$4 -> 0.43 | J6: Spray: Child | K6: =IF(D6>0, D6, "") -> 0.006799161088 | L6: =IF(ISERROR(C6-K6), "", C6-K6) -> 0.03161850665 | M6: =IF(ISERROR(E6-C6), "", E6-C6) -> 0.4146434831 | N6: =E6-SUM(K6:M6) -> 0
A7: Direct Spray of Woman, feet and lower legs | B7: Adult Female | C7: =D01b!$C$37/$F$7 -> 0.003859436591 | D7: =D01b!$C$38/$F$7 -> 0.0006830433142 | E7: =D01b!$C$39/$F$7 -> 0.04551449597 | F7: ='B02'!$E$4 -> 0.43 | J7: Spray: Woman | K7: =IF(D7>0, D7, "") -> 0.0006830433142 | L7: =IF(ISERROR(C7-K7), "", C7-K7) -> 0.003176393277 | M7: =IF(ISERROR(E7-C7), "", E7-C7) -> 0.04165505938 | N7: =E7-SUM(K7:M7) -> 0
A8: Water consumption (spill) | B8: Child | C8: ='D05'!$C$17/$F$8 -> 0.1257475083 | D8: ='D05'!$C$18/$F$8 -> 0.007751341144 | E8: ='D05'!$C$19/$F$8 -> 1.528824969 | F8: ='B02'!$E$4 -> 0.43 | J8: Water: Child | K8: 0.007751341144 | L8: 0.1179961672 | M8: 1.403077461 | N8: 0
A9: Fish consumption (spill) | B9: Adult Male | C9: =D08a!$C$31/$F$9 -> 0.4529928239 | D9: =D08a!$C$32/$F$9 -> 0.04577611694 | E9: =D08a!$C$33/$F$9 -> 3.671626047 | F9: ='B02'!$E$4 -> 0.43 | J9: Fish: General | K9: 0.04577611694 | L9: 0.407216707 | M9: 3.218633223 | N9: 0
A10: Fish consumption (spill) | B10: Subsistence Populations | C10: =D08b!$C$31/$F$10 -> 2.207623256 | D10: =D08b!$C$32/$F$10 -> 0.2230861395 | E10: =D08b!$C$33/$F$10 -> 17.89336744 | F10: ='B02'!$E$4 -> 0.43 | J10: Fish: Subsist | K10: 0.2230861395 | L10: 1.984537116 | M10: 15.68574419 | N10: 0
A11: Non-Accidental Acute Exposures (dose in mg/kg/event)
A12: Vegetation Contact, shorts and T-shirt | B12: Adult Female | C12: ='D02'!$C$48/$F$12 -> 0.003956269534 | D12: ='D02'!$C$49/$F$12 -> 0.001410688831 | E12: ='D02'!$C$50/$F$12 -> 0.01093075574 | F12: ='B02'!$E$4 -> 0.43 | J12: Contact: Female | K12: =IF(D12>0, D12, "") -> 0.001410688831 | L12: =IF(ISERROR(C12-K12), "", C12-K12) -> 0.002545580703 | M12: =IF(ISERROR(E12-C12), "", E12-C12) -> 0.006974486206 | N12: =E12-SUM(K12:M12) -> 0
A13: Contaminated Fruit | B13: Adult Female | C13: =D03a!$C$19/$F$13 -> 0.01115137893 | D13: =D03a!$C$20/$F$13 -> 0.004920330093 | E13: =D03a!$C$21/$F$13 -> 0.1843824775 | F13: ='B02'!$E$4 -> 0.43 | J13: Fruit: Female | K13: 0.004920330093 | L13: 0.006231048839 | M13: 0.1732310986 | N13: 0
A14: Contaminated Vegetation | B14: Adult Female | C14: =D03b!$C$19/$F$14 -> 0.1536159343 | D14: =D03b!$C$20/$F$14 -> 0.01029644969 | E14: =D03b!$C$21/$F$14 -> 1.333956831 | F14: ='B02'!$E$4 -> 0.43 | J14: Veg: Female | K14: 0.01029644969 | L14: 0.1433194846 | M14: 1.180340897 | N14: 0
A15: Swimming, one hour | B15: Adult Female | C15: ='D11'!$C$29/$F$15 -> 8.489302326e-05 | D15: ='D11'!$C$30/$F$15 -> 4.173906977e-06 | E15: ='D11'!$C$31/$F$15 -> 0.002094813953 | F15: ='B02'!$E$4 -> 0.43 | J15: Swim: Female | K15: 4.173906977e-06 | L15: 8.071911628e-05 | M15: 0.00200992093 | N15: 0
A16: Water consumption | B16: Child | C16: ='D06'!$C$17/$F$16 -> 0.002014338171 | D16: ='D06'!$C$18/$F$16 -> 0.0001228746284 | E16: ='D06'!$C$19/$F$16 -> 0.03441161042 | F16: ='B02'!$E$4 -> 0.43 | J16: Water: Child | K16: 0.0001228746284 | L16: 0.001891463543 | M16: 0.03239727225 | N16: 0
A17: Fish consumption | B17: Adult Male | C17: =D09c!$C$31/$F$17 -> 0.007256451827 | D17: =D09c!$C$32/$F$17 -> 0.0007256451827 | E17: =D09c!$C$33/$F$17 -> 0.08264292359 | F17: ='B02'!$E$4 -> 0.43 | J17: Fish: Male | K17: 0.0007256451827 | L17: 0.006530806645 | M17: 0.07538647176 | N17: 0
A18: Fish consumption | B18: Subsistence Populations | C18: =D09d!$C$31/$F$18 -> 0.03536372093 | D18: =D09d!$C$32/$F$18 -> 0.003536372093 | E18: =D09d!$C$33/$F$18 -> 0.4027534884 | F18: ='B02'!$E$4 -> 0.43 | J18: Fish: Subsist | K18: 0.003536372093 | L18: 0.03182734884 | M18: 0.3673897674 | N18: 0
A19: Chronic/Longer Term Exposures (dose in mg/kg/day)
A20: Contaminated Fruit | B20: Adult Female | C20: =D04a!$C$19/$F$20 -> 0.1435468335 | D20: =D04a!$C$20/$F$20 -> 0.05776747653 | E20: =D04a!$C$21/$F$20 -> 2.639522902 | F20: ='B02'!$E$5 -> 0.0063 | J20: Fruit: Female | K20: =IF(D20>0, D20, "") -> 0.05776747653 | L20: =IF(ISERROR(C20-K20), "", C20-K20) -> 0.08577935699 | M20: =IF(ISERROR(E20-C20), "", E20-C20) -> 2.495976069 | N20: =E20-SUM(K20:M20) -> 0
A21: Contaminated Vegetation | B21: Adult Female | C21: =D04b!$C$19/$F$21 -> 1.97743087 | D21: =D04b!$C$20/$F$21 -> 0.1208861814 | E21: =D04b!$C$21/$F$21 -> 19.09622678 | F21: ='B02'!$E$5 -> 0.0063 | J21: Veg: Female | K21: 0.1208861814 | L21: 1.856544689 | M21: 17.11879591 | N21: 0
A22: Water consumption | B22: Adult Male | C22: ='D07'!$C$17/$F$22 -> 0.02031746032 | D22: ='D07'!$C$18/$F$22 -> 0.001422222222 | E22: ='D07'!$C$19/$F$22 -> 0.2786394558 | F22: ='B02'!$E$5 -> 0.0063 | J22: Water: Male | K22: 0.001422222222 | L22: 0.0188952381 | M22: 0.2583219955 | N22: 0
A23: Fish consumption | B23: Adult Male | C23: =D09a!$C$31/$F$23 -> 0.0001117460317 | D23: =D09a!$C$32/$F$23 -> 1.117460317e-05 | E23: =D09a!$C$33/$F$23 -> 0.001277097506 | F23: ='B02'!$E$5 -> 0.0063 | J23: Fish: Male | K23: 1.117460317e-05 | L23: 0.0001005714286 | M23: 0.001165351474 | N23: 0
A24: Fish consumption | B24: Subsistence Populations | C24: =D09b!$C$31/$F$24 -> 0.0009051428571 | D24: =D09b!$C$32/$F$24 -> 9.051428571e-05 | E24: =D09b!$C$33/$F$24 -> 0.0103444898 | F24: ='B02'!$E$5 -> 0.0063 | J24: Fish: Subsist | K24: 9.051428571e-05 | L24: 0.0008146285714 | M24: 0.009439346939 | N24: 0

Sheet F01a
A1: Direct spray of Mammal, small assuming first-order absorption kinetics with spray of 0.5 of the body surface
A2: Short Title | B2: Direct spray, first-order absorption | E2: DrmFOA_Allo
A3: Receptor | B3: Mammal, small
A4: Duration | B4: Acute
A5: Parameter/Assumption | B5: Code / Range | C5: Equation/ Value | D5: Units | E5: Reference/Designation
A6: Application rate, lb/acre | B6: ApRt | C6: ='A01'!ApRt_C -> 0.32 | D6: lb/acre | E6: Worksheet A01
A7: Duration of Exposure | B7: T | C7: 24 | D7: hours | E7: Scenario parameter
A8: Body weight | B8: BW | C8: =A02b!$C$71 -> 0.02 | D8: kg | E8: Default
A9: Allometric coefficients for surface area
B10: alpha | C10: =A02b!$C$77 -> 0.11 | E10: U.S. EPA/ORD 1993
B11: beta | C11: =A02b!$C$78 -> 0.65 | E11: U.S. EPA/ORD 1993
A12: Surface Area | C12: =C10 * C8^C11 -> 0.008650917739 | D12: meters
B13: SA | C13: =C12*10000 -> 86.50917739 | D13: cm2 | E13: 10,000 cm2/m2
A14: Conversion Factor for lbs/acre to mg/cm2 | B14: CnvF | C14: 0.01121 | D14: mg/cm2/lb/acre
A15: Application rate, mg/cm2 | B15: ApRmgcm | C15: ApRlb/a × CnvF
C16: =C6*C$14 -> 0.0035872 | D16: lb/acre | E16: Eq
A17: First-order dermal absorption rates | B17: ka
B18: Central | C18: ='B01'!$C$11 -> 0.0024 | D18: hour-1
B19: Lower | C19: ='B01'!$C$12 -> 0.00084
B20: Upper | C20: ='B01'!$C$13 -> 0.007
A21: Proportion of body surface sprayed | B21: PrpSA | C21: 0.5 | D21: unitless | E21: Scenario parameter
A22: Toxic Equivalency Factor for formulation: (See risk assessment if this has a value other than 1.) | B22: TEF
B23: Central | C23: ='A01'!C$35 -> 1 | D23: Unitless | E23: Worksheet A01
B24: Lower | C24: ='A01'!C$36 -> 1 | E24: Worksheet A01
B25: Upper | C25: ='A01'!C$37 -> 1 | E25: Worksheet A01
A26: Amount Deposited on Skin | B26: Amnt | C26: ApRmgcm × SA × PrpSAx TEF
B27: Central | C27: =C$13*C$16*C$21*C23 -> 0.1551628606 | D27: mg | E27: Eq
B28: Lower | C28: =C$13*C$16*C$21*C24 -> 0.1551628606 | E28: Eq
B29: Upper | C29: =C$13*C$16*C$21*C25 -> 0.1551628606 | E29: Eq
A30: Skin Loading | B30: Loading
B31: Central | C31: =C27/C$13 -> 0.0017936 | D31: mg/cm2 | E31: Eq
B32: Lower | C32: =C28/C$13 -> 0.0017936 | E32: Eq
B33: Upper | C33: =C29/C$13 -> 0.0017936 | E33: Eq
A35: Proportion absorbed over period T | B35: Prop | C35: 1-exp(-ka T)
B36: Central | C36: =1-EXP(-C18 *C$7) -> 0.05597251708 | D36: hour-1 | E36: Eq
B37: Lower | C37: =1-EXP(-C19 *C$7) -> 0.01995814594 | E37: Eq
B38: Upper | C38: =1-EXP(-C20 *C$7) -> 0.1546461653 | E38: Eq
A39: Absorbed Dose | B39: Dose | C39: Amnt × Prop ÷ BW
B40: Central | C40: =C27*C36/C$8 -> 0.4342427932 | D40: mg/kg bw | E40: Eq
B41: Lower | C41: =C28*C37/C$8 -> 0.1548381507 | E41: Eq
B42: Upper | C42: =C29*C38/C$8 -> 1.199767069 | E42: Eq

Sheet F01b
A1: Direct spray of Mammal, small assuming 100% absorption
A2: Short Title | B2: Direct spray, 100% absorption | E2: Drm100_Allo
A3: Receptor | B3: Mammal, small
A4: Duration | B4: Acute
A5: Parameter/Assumption | B5: Code / Range | C5: Equation/ Value | D5: Units | E5: Reference/Designation
A6: Application rate, lb/acre | B6: ApRlb/ac | C6: ='A01'!ApRt_C -> 0.32 | D6: lb/acre | E6: Worksheet A01
A7: Conversion Factor for lbs/acre to mg/cm2 | B7: CnvF | C7: 0.01121 | D7: mg/cm2/lb/acre
A8: Application rate, mg/cm2 | B8: ApRmgcm | C8: ApRlb/a × CnvF
C9: =C6*C7 -> 0.0035872 | D9: lb/acre | E9: Eq
A10: Body weight | B10: BW | C10: =A02b!$C$71 -> 0.02 | D10: kg | E10: Default
A11: Allometric coefficients for surface area
B12: alpha | C12: =A02b!$C$77 -> 0.11 | E12: U.S. EPA/ORD 1993
B13: beta | C13: =A02b!$C$78 -> 0.65 | E13: U.S. EPA/ORD 1993
A14: Surface Area | C14: =C12 * C10^C13 -> 0.008650917739 | D14: meters
B15: SA | C15: =C14*10000 -> 86.50917739 | D15: cm2[10000 cm2/m2] | E15: Eq
A16: Proportion of body surface sprayed | B16: PrpSA
B17: Central | C17: 0.5 | D17: unitless | E17: Scenario parameter
B18: Lower | C18: 0.25 | E18: Scenario parameter
B19: Upper | C19: 1 | E19: Scenario parameter
A20: Toxic Equivalency Factor for formulation: (See risk assessment if this has a value other than 1.) | B20: TEF
B21: Central | C21: ='A01'!C$35 -> 1 | D21: Unitless | E21: Worksheet A01
B22: Lower | C22: ='A01'!C$36 -> 1 | E22: Worksheet A01
B23: Upper | C23: ='A01'!C$37 -> 1 | E23: Worksheet A01
A24: Amount Deposited on Skin | B24: Amnt | C24: ApRmgcm× SA × PrpSA× TEF
B25: Central | C25: =C$9*C$15*C17*C21 -> 0.1551628606 | D25: mg | E25: Eq
B26: Lower | C26: =C$9*C$15*C18*C22 -> 0.07758143028 | E26: Eq
B27: Upper | C27: 0.3103257211 | E27: Eq
A28: Absorbed Dose | B28: Dose | C28: Amnt ÷ BW
B29: Central | C29: =C25/C$10 -> 7.758143028 | D29: mg/kg bw | E29: Eq
B30: Lower | C30: =C26/C$10 -> 3.879071514 | E30: Eq
B31: Upper | C31: =C27/C$10 -> 15.51628606 | E31: Eq

Sheet F02a
A1: Consumption of contaminated water by Mammal, small, Accidental Spill
A2: Short Title | B2: Accidental Spill | E2: WatAlloV6
A3: Receptor | B3: Mammal, small
A4: Duration | B4: Acute | E4: Scenario parameter
A5: Parameter/Assumption | B5: Code / Range | C5: Equation/ Value | D5: Units | E5: Reference/Designation
A6: Concentration in water | B6: ConcWat
B7: Central | C7: =B04b!Acute_C -> 0.71915 | D7: mg/L | E7: ='B04b'!Acute_C
B8: Lower | C8: =B04b!Acute_L -> 0.072672 | E8: ='B04b'!Acute_L
B9: Upper | C9: =B04b!Acute_U -> 5.8289 | E9: ='B04b'!Acute_U
A10: Receptor
A11: Body weight | B11: BW | C11: =A02b!$C$71 -> 0.02 | D11: kg | E11: Default
A12: Allometric coefficients forwater consumption per day in liters and BW in kilograms
B13: alpha | C13: =A02b!$C$79 -> 0.099 | E13: U.S. EPA/ORD 1993
B14: beta | C14: =A02b!$C$80 -> 0.9 | E14: U.S. EPA/ORD 1993
A15: Amount of water consumed per day | C15: Amnt = alpha BW beta
B16: Amnt | C16: =C13*(C11^C14) -> 0.002927940121 | D16: liters | E16: Eq
A17: Absorbed Dose | B17: Dose | C17: ConcWat × Amnt ÷ BW
B18: Central | C18: =C7*C$16/C$11 -> 0.1052814069 | D18: mg/kg | E18: Eq
B19: Lower | C19: =C8*C$16/C$11 -> 0.01063896322 | D19: mg/kg | E19: Eq
B20: Upper | C20: =C9*C$16/C$11 -> 0.8533335084 | D20: mg/kg | E20: Eq

Sheet F02b
A1: Consumption of contaminated water by Mammal, 400 g, Accidental Spill
A2: Short Title | B2: Accidental Spill | E2: WatAlloV6
A3: Receptor | B3: Mammal, 400 g
A4: Duration | B4: Acute | E4: Scenario parameter
A5: Parameter/Assumption | B5: Code / Range | C5: Equation/ Value | D5: Units | E5: Reference/Designation
A6: Concentration in water | B6: ConcWat
B7: Central | C7: =B04b!Acute_C -> 0.71915 | D7: mg/L | E7: ='B04b'!Acute_C
B8: Lower | C8: =B04b!Acute_L -> 0.072672 | E8: ='B04b'!Acute_L
B9: Upper | C9: =B04b!Acute_U -> 5.8289 | E9: ='B04b'!Acute_U
A10: Receptor
A11: Body weight | B11: BW | C11: =A02b!$C$40 -> 0.4 | D11: kg | E11: Default
A12: Allometric coefficients forwater consumption per day in liters and BW in kilograms
B13: alpha | C13: =A02b!$C$45 -> 0.099 | E13: U.S. EPA/ORD 1993
B14: beta | C14: =A02b!$C$46 -> 0.9 | E14: U.S. EPA/ORD 1993
A15: Amount of water consumed per day | C15: Amnt = alpha BW beta
B16: Amnt | C16: =C13*(C11^C14) -> 0.04339994576 | D16: liters | E16: Eq
A17: Absorbed Dose | B17: Dose | C17: ConcWat × Amnt ÷ BW
B18: Central | C18: =C7*C$16/C$11 -> 0.07802767749 | D18: mg/kg | E18: Eq
B19: Lower | C19: =C8*C$16/C$11 -> 0.007884902147 | D19: mg/kg | E19: Eq
B20: Upper | C20: =C9*C$16/C$11 -> 0.6324348597 | D20: mg/kg | E20: Eq

Sheet F02c
A1: Consumption of contaminated water by Mammal, carnivorous, Accidental Spill
A2: Short Title | B2: Accidental Spill | E2: WatAlloV6
A3: Receptor | B3: Mammal, carnivorous
A4: Duration | B4: Acute | E4: Scenario parameter
A5: Parameter/Assumption | B5: Code / Range | C5: Equation/ Value | D5: Units | E5: Reference/Designation
A6: Concentration in water | B6: ConcWat
B7: Central | C7: =B04b!Acute_C -> 0.71915 | D7: mg/L | E7: ='B04b'!Acute_C
B8: Lower | C8: =B04b!Acute_L -> 0.072672 | E8: ='B04b'!Acute_L
B9: Upper | C9: =B04b!Acute_U -> 5.8289 | E9: ='B04b'!Acute_U
A10: Receptor
A11: Body weight | B11: BW | C11: =A02b!$C$47 -> 5 | D11: kg | E11: U.S. EPA/ORD 1993
A12: Allometric coefficients forwater consumption per day in liters and BW in kilograms
B13: alpha | C13: =A02b!$C$50 -> 0.099 | E13: U.S. EPA/ORD 1993
B14: beta | C14: =A02b!$C$51 -> 0.9 | E14: U.S. EPA/ORD 1993
A15: Amount of water consumed per day | C15: Amnt = alpha BW beta
B16: Amnt | C16: =C13*(C11^C14) -> 0.4214132616 | D16: liters | E16: Eq
A17: Absorbed Dose | B17: Dose | C17: ConcWat × Amnt ÷ BW
B18: Central | C18: =C7*C$16/C$11 -> 0.06061186942 | D18: mg/kg | E18: Eq
B19: Lower | C19: =C8*C$16/C$11 -> 0.00612498891 | D19: mg/kg | E19: Eq
B20: Upper | C20: =C9*C$16/C$11 -> 0.4912751522 | D20: mg/kg | E20: Eq

Sheet F02d
A1: Consumption of contaminated water by Mammal, large, Accidental Spill
A2: Short Title | B2: Accidental Spill | E2: WatAlloV6
A3: Receptor | B3: Mammal, large
A4: Duration | B4: Acute | E4: Scenario parameter
A5: Parameter/Assumption | B5: Code / Range | C5: Equation/ Value | D5: Units | E5: Reference/Designation
A6: Concentration in water | B6: ConcWat
B7: Central | C7: =B04b!Acute_C -> 0.71915 | D7: mg/L | E7: ='B04b'!Acute_C
B8: Lower | C8: =B04b!Acute_L -> 0.072672 | E8: ='B04b'!Acute_L
B9: Upper | C9: =B04b!Acute_U -> 5.8289 | E9: ='B04b'!Acute_U
A10: Receptor
A11: Body weight | B11: BW | C11: =A02b!$C$61 -> 70 | D11: kg | E11: Default
A12: Allometric coefficients forwater consumption per day in liters and BW in kilograms
B13: alpha | C13: =A02b!$C$64 -> 0.099 | E13: U.S. EPA/ORD 1993
B14: beta | C14: =A02b!$C$65 -> 0.9 | E14: U.S. EPA/ORD 1993
A15: Amount of water consumed per day | C15: Amnt = alpha BW beta
B16: Amnt | C16: =C13*(C11^C14) -> 4.531306412 | D16: liters | E16: Eq
A17: Absorbed Dose | B17: Dose | C17: ConcWat × Amnt ÷ BW
B18: Central | C18: =C7*C$16/C$11 -> 0.04655270008 | D18: mg/kg | E18: Eq
B19: Lower | C19: =C8*C$16/C$11 -> 0.004704272851 | D19: mg/kg | E19: Eq
B20: Upper | C20: =C9*C$16/C$11 -> 0.3773218849 | D20: mg/kg | E20: Eq

Sheet F02e
A1: Consumption of contaminated water by Bird, small, Accidental Spill
A2: Short Title | B2: Accidental Spill | E2: WatAlloV6
A3: Receptor | B3: Bird, small
A4: Duration | B4: Acute | E4: Scenario parameter
A5: Parameter/Assumption | B5: Code / Range | C5: Equation/ Value | D5: Units | E5: Reference/Designation
A6: Concentration in water | B6: ConcWat
B7: Central | C7: =B04b!Acute_C -> 0.71915 | D7: mg/L | E7: ='B04b'!Acute_C
B8: Lower | C8: =B04b!Acute_L -> 0.072672 | E8: ='B04b'!Acute_L
B9: Upper | C9: =B04b!Acute_U -> 5.8289 | E9: ='B04b'!Acute_U
A10: Receptor
A11: Body weight | B11: BW | C11: =A02b!$C$31 -> 0.01 | D11: kg | E11: Default
A12: Allometric coefficients forwater consumption per day in liters and BW in kilograms
B13: alpha | C13: =A02b!$C$34 -> 0.059 | E13: U.S. EPA/ORD 1993
B14: beta | C14: =A02b!$C$35 -> 0.67 | E14: U.S. EPA/ORD 1993
A15: Amount of water consumed per day | C15: Amnt = alpha BW beta
B16: Amnt | C16: =C13*(C11^C14) -> 0.002696820319 | D16: liters | E16: Eq
A17: Absorbed Dose | B17: Dose | C17: ConcWat × Amnt ÷ BW
B18: Central | C18: =C7*C$16/C$11 -> 0.1939418332 | D18: mg/kg | E18: Eq
B19: Lower | C19: =C8*C$16/C$11 -> 0.01959833262 | D19: mg/kg | E19: Eq
B20: Upper | C20: =C9*C$16/C$11 -> 1.571949596 | D20: mg/kg | E20: Eq

Sheet F02f
A1: Consumption of contaminated water by Bird, large, Accidental Spill
A2: Short Title | B2: Accidental Spill | E2: WatAlloV6
A3: Receptor | B3: Bird, large
A4: Duration | B4: Acute | E4: Scenario parameter
A5: Parameter/Assumption | B5: Code / Range | C5: Equation/ Value | D5: Units | E5: Reference/Designation
A6: Concentration in water | B6: ConcWat
B7: Central | C7: =B04b!Acute_C -> 0.71915 | D7: mg/L | E7: ='B04b'!Acute_C
B8: Lower | C8: =B04b!Acute_L -> 0.072672 | E8: ='B04b'!Acute_L
B9: Upper | C9: =B04b!Acute_U -> 5.8289 | E9: ='B04b'!Acute_U
A10: Receptor
A11: Body weight | B11: BW | C11: =A02b!$C$15 -> 4 | D11: kg | E11: Default
A12: Allometric coefficients forwater consumption per day in liters and BW in kilograms
B13: alpha | C13: =A02b!$C$18 -> 0.059 | E13: U.S. EPA/ORD 1993
B14: beta | C14: =A02b!$C$19 -> 0.67 | E14: U.S. EPA/ORD 1993
A15: Amount of water consumed per day | C15: Amnt = alpha BW beta
B16: Amnt | C16: =C13*(C11^C14) -> 0.1493592781 | D16: liters | E16: Eq
A17: Absorbed Dose | B17: Dose | C17: ConcWat × Amnt ÷ BW
B18: Central | C18: =C7*C$16/C$11 -> 0.02685293121 | D18: mg/kg | E18: Eq
B19: Lower | C19: =C8*C$16/C$11 -> 0.002713559364 | D19: mg/kg | E19: Eq
B20: Upper | C20: =C9*C$16/C$11 -> 0.217650074 | D20: mg/kg | E20: Eq

Sheet F03a
A1: Acute scenario for the consumption of Contaminated Fish (Accidental Spill) by Mammal, large carnivorous
A2: Short Title | B2: Fish consumption, accidental spill | E2: FishKcalV6
A3: Predator | B3: Mammal, large carnivorous
A4: Food Item (Prey) | B4: Fish
A5: Duration | B5: Acute | E5: Scenario parameter
A6: Parameter/Assumption | B6: Code / Range | C6: Equation/ Value | D6: Units | E6: Reference/Designation
A7: Water
A8: Concentration in water | B8: ConcWat
B9: Central | C9: =B04b!Acute_C -> 0.71915 | D9: mg/L | E9: ='B04b'!Acute_C
B10: Lower | C10: =B04b!Acute_L -> 0.072672 | E10: ='B04b'!Acute_L
B11: Upper | C11: =B04b!Acute_U -> 5.8289 | E11: ='B04b'!Acute_U
A12: Fish
A13: Bioconcentration factor | B13: BCF
B14: Central | C14: ='B01'!$C$6 -> 410 | D14: L/kg | E14: MRID 93196
B15: Lower | C15: ='B01'!$C$6 -> 410 | E15: MRID 93196
B16: Upper | C16: ='B01'!$C$6 -> 410 | E16: MRID 93196
A17: Concentration in fish | B17: ConcFish | C17: ConcWat × BCF
B18: Central | C18: =C9*C14 -> 294.8515 | D18: mg/kg | E18: Eq
B19: Lower | C19: =C10*C15 -> 29.79552 | E19: Eq
B20: Upper | C20: =C11*C16 -> 2389.849 | E20: Eq
A21: Receptor
A22: Body weight | B22: BW | C22: =A02b!$C$52 -> 70 | D22: kg | E22: Reid 2006
A23: Allometric coefficients for caloric requirement per day in kilocalories and BW in grams
B24: alpha | C24: =A02b!$C$53 -> 0.6167 | E24: U.S. EPA/ORD 1993
B25: beta | C25: =A02b!$C$54 -> 0.862 | E25: U.S. EPA/ORD 1993
A26: Caloric requirement per day | B26: KR | C26: =C24*(C22*1000)^C25 -> 9258.666883 | D26: kcal/day | E26: Eq
A27: Caloric content of commodity (dry weight) | B27: KCD | C27: ='A03'!$E$59 -> 4.47 | D27: kcal/gdw [Note 1] | E27: U.S. EPA/ORD 1993
A28: Food consumed per day (dry weight) | B28: AmntDry | C28: = KR ÷ KCD
C29: =C26/C27 -> 2071.29013 | D29: gdry/day | E29: Eq
A30: Water content of vegetation as a proportion | B30: PropWater | C30: ='A03'!$E$60 -> 0.7 | D30: gwater/gfood | E30: Ali et al. 2005
A31: Dry weight content of vegetation as a proportion | B31: PropDry | C31: = 1-PropWater
C32: =1-C30 -> 0.3 | D32: gdry/gfood | E32: Eq
A33: Amount of fish consumed per day, wet weight | B33: AmntFish | C33: = (AmntDry ÷ PropDry) ÷ (1000g/kg)
B34: Central | C34: =(C29/C32)/1000 -> 6.904300435 | D34: kgfood/day | E34: Eq
B35: Lower | C35: =C34*0.3 -> 2.07129013 | D35: Note 1 | E35: Eq
B36: Upper | C36: =C34*1.7 -> 11.73731074 | D36: Note 1 | E36: Eq
A37: Proportion of diet that is contaminated | B37: Prop
B38: Central | C38: 0.3 | D38: Unitless | E38: Scenario parameter
B39: Lower | C39: 0.1 | E39: Scenario parameter
B40: Upper | C40: 1 | E40: Scenario parameter
A41: Dose
A42: Toxic Equivalency Factor for formulation: (See risk assessment if this has a value other than 1.) | B42: TEF
B43: Central | C43: ='A01'!C$35 -> 1 | D43: Unitless | E43: Worksheet A01
B44: Lower | C44: ='A01'!C$36 -> 1 | D44: Note 2 | E44: Worksheet A01
B45: Upper | C45: ='A01'!C$37 -> 1 | D45: Note 2 | E45: Worksheet A01
A46: Dose | B46: Dose | C46: = ConcFish × AmntFish × Prop ÷ BW
B47: Central | C47: =C18*C34*C38/C$22 -> 8.724614313 | D47: mg/kg | E47: Eq
B48: Lower | C48: =C19*C35*C39/C$22 -> 0.08816452358 | D48: mg/kg | E48: Eq
B49: Upper | C49: 400.7200047 | D49: mg/kg | E49: Eq
E50: FishKcalV6

Sheet F03b
A1: Acute scenario for the consumption of Contaminated Fish (Accidental Spill) by Mammal, carnivorous
A2: Short Title | B2: Fish consumption, accidental spill | E2: FishKcalV6
A3: Predator | B3: Mammal, carnivorous
A4: Food Item (Prey) | B4: Fish
A5: Duration | B5: Acute | E5: Scenario parameter
A6: Parameter/Assumption | B6: Code / Range | C6: Equation/ Value | D6: Units | E6: Reference/Designation
A7: Water
A8: Concentration in water | B8: ConcWat
B9: Central | C9: =B04b!Acute_C -> 0.71915 | D9: mg/L | E9: ='B04b'!Acute_C
B10: Lower | C10: =B04b!Acute_L -> 0.072672 | E10: ='B04b'!Acute_L
B11: Upper | C11: =B04b!Acute_U -> 5.8289 | E11: ='B04b'!Acute_U
A12: Fish
A13: Bioconcentration factor | B13: BCF
B14: Central | C14: ='B01'!$C$6 -> 410 | D14: L/kg | E14: MRID 93196
B15: Lower | C15: ='B01'!$C$6 -> 410 | E15: MRID 93196
B16: Upper | C16: ='B01'!$C$6 -> 410 | E16: MRID 93196
A17: Concentration in fish | B17: ConcFish | C17: ConcWat × BCF
B18: Central | C18: =C9*C14 -> 294.8515 | D18: mg/kg | E18: Eq
B19: Lower | C19: =C10*C15 -> 29.79552 | E19: Eq
B20: Upper | C20: =C11*C16 -> 2389.849 | E20: Eq
A21: Receptor
A22: Body weight | B22: BW | C22: =A02b!$C$47 -> 5 | D22: kg | E22: U.S. EPA/ORD 1993
A23: Allometric coefficients for caloric requirement per day in kilocalories and BW in grams
B24: alpha | C24: =A02b!$C$48 -> 0.6167 | E24: U.S. EPA/ORD 1993
B25: beta | C25: =A02b!$C$49 -> 0.862 | E25: U.S. EPA/ORD 1993
A26: Caloric requirement per day | B26: KR | C26: =C24*(C22*1000)^C25 -> 951.8885266 | D26: kcal/day | E26: Eq
A27: Caloric content of commodity (dry weight) | B27: KCD | C27: ='A03'!$E$59 -> 4.47 | D27: kcal/gdw [Note 1] | E27: U.S. EPA/ORD 1993
A28: Food consumed per day (dry weight) | B28: AmntDry | C28: = KR ÷ KCD
C29: =C26/C27 -> 212.9504534 | D29: gdry/day | E29: Eq
A30: Water content of vegetation as a proportion | B30: PropWater | C30: ='A03'!$E$60 -> 0.7 | D30: gwater/gfood | E30: Ali et al. 2005
A31: Dry weight content of vegetation as a proportion | B31: PropDry | C31: = 1-PropWater
C32: =1-C30 -> 0.3 | D32: gdry/gfood | E32: Eq
A33: Amount of fish consumed per day, wet weight | B33: AmntFish | C33: = (AmntDry ÷ PropDry) ÷ (1000g/kg)
B34: Central | C34: =(C29/C32)/1000 -> 0.7098348446 | D34: kgfood/day | E34: Eq
B35: Lower | C35: =C34*0.3 -> 0.2129504534 | D35: Note 1 | E35: Eq
B36: Upper | C36: =C34*1.7 -> 1.206719236 | D36: Note 1 | E36: Eq
A37: Proportion of diet that is contaminated | B37: Prop
B38: Central | C38: 0.3 | D38: Unitless | E38: Scenario parameter
B39: Lower | C39: 0.1 | E39: Scenario parameter
B40: Upper | C40: 1 | E40: Scenario parameter
A41: Dose
A42: Toxic Equivalency Factor for formulation: (See risk assessment if this has a value other than 1.) | B42: TEF
B43: Central | C43: ='A01'!C$35 -> 1 | D43: Unitless | E43: Worksheet A01
B44: Lower | C44: ='A01'!C$36 -> 1 | D44: Note 2 | E44: Worksheet A01
B45: Upper | C45: ='A01'!C$37 -> 1 | D45: Note 2 | E45: Worksheet A01
A46: Dose | B46: Dose | C46: = ConcFish × AmntFish × Prop ÷ BW
B47: Central | C47: =C18*C34*C38/C$22 -> 12.55775212 | D47: mg/kg | E47: Eq
B48: Lower | C48: =C19*C35*C39/C$22 -> 0.1268993899 | D48: mg/kg | E48: Eq
B49: Upper | C49: 576.7753518 | D49: mg/kg | E49: Eq
E50: FishKcalV6

Sheet F03c
A1: Acute scenario for the consumption of Contaminated Fish (Accidental Spill) by Bird, piscivorous
A2: Short Title | B2: Fish consumption, accidental spill | E2: FishKcalV6
A3: Predator | B3: Bird, piscivorous
A4: Food Item (Prey) | B4: Fish
A5: Duration | B5: Acute | E5: Scenario parameter
A6: Parameter/Assumption | B6: Code / Range | C6: Equation/ Value | D6: Units | E6: Reference/Designation
A7: Water
A8: Concentration in water | B8: ConcWat
B9: Central | C9: =B04b!Acute_C -> 0.71915 | D9: mg/L | E9: ='B04b'!Acute_C
B10: Lower | C10: =B04b!Acute_L -> 0.072672 | E10: ='B04b'!Acute_L
B11: Upper | C11: =B04b!Acute_U -> 5.8289 | E11: ='B04b'!Acute_U
A12: Fish
A13: Bioconcentration factor | B13: BCF
B14: Central | C14: ='B01'!$C$6 -> 410 | D14: L/kg | E14: MRID 93196
B15: Lower | C15: ='B01'!$C$6 -> 410 | E15: MRID 93196
B16: Upper | C16: ='B01'!$C$6 -> 410 | E16: MRID 93196
A17: Concentration in fish | B17: ConcFish | C17: ConcWat × BCF
B18: Central | C18: =C9*C14 -> 294.8515 | D18: mg/kg | E18: Eq
B19: Lower | C19: =C10*C15 -> 29.79552 | E19: Eq
B20: Upper | C20: =C11*C16 -> 2389.849 | E20: Eq
A21: Receptor
A22: Body weight | B22: BW | C22: =A02b!$C$24 -> 2.4 | D22: kg | E22: Sibley 2000
A23: Allometric coefficients for caloric requirement per day in kilocalories and BW in grams
B24: alpha | C24: =A02b!$C$27 -> 1.916 | E24: U.S. EPA/ORD 1993
B25: beta | C25: =A02b!$C$28 -> 0.704 | E25: U.S. EPA/ORD 1993
A26: Caloric requirement per day | B26: KR | C26: =C24*(C22*1000)^C25 -> 459.2659192 | D26: kcal/day | E26: Eq
A27: Caloric content of commodity (dry weight) | B27: KCD | C27: ='A03'!$E$36 -> 3.87 | D27: kcal/gdw [Note 1] | E27: U.S. EPA/ORD 1993
A28: Food consumed per day (dry weight) | B28: AmntDry | C28: = KR ÷ KCD
C29: =C26/C27 -> 118.6733641 | D29: gdry/day | E29: Eq
A30: Water content of vegetation as a proportion | B30: PropWater | C30: ='A03'!$E$37 -> 0.7 | D30: gwater/gfood | E30: Ali et al. 2005
A31: Dry weight content of vegetation as a proportion | B31: PropDry | C31: = 1-PropWater
C32: =1-C30 -> 0.3 | D32: gdry/gfood | E32: Eq
A33: Amount of fish consumed per day, wet weight | B33: AmntFish | C33: = (AmntDry ÷ PropDry) ÷ (1000g/kg)
B34: Central | C34: =(C29/C32)/1000 -> 0.3955778805 | D34: kgfood/day | E34: Eq
B35: Lower | C35: =C34*0.3 -> 0.1186733641 | D35: Note 1 | E35: Eq
B36: Upper | C36: =C34*1.7 -> 0.6724823968 | D36: Note 1 | E36: Eq
A37: Proportion of diet that is contaminated | B37: Prop
B38: Central | C38: 0.3 | D38: Unitless | E38: Scenario parameter
B39: Lower | C39: 0.1 | E39: Scenario parameter
B40: Upper | C40: 1 | E40: Scenario parameter
A41: Dose
A42: Toxic Equivalency Factor for formulation: (See risk assessment if this has a value other than 1.) | B42: TEF
B43: Central | C43: ='A01'!C$35 -> 1 | D43: Unitless | E43: Worksheet A01
B44: Lower | C44: ='A01'!C$36 -> 1 | D44: Note 2 | E44: Worksheet A01
B45: Upper | C45: ='A01'!C$37 -> 1 | D45: Note 2 | E45: Worksheet A01
A46: Dose | B46: Dose | C46: = ConcFish × AmntFish × Prop ÷ BW
B47: Central | C47: =C18*C34*C38/C$22 -> 14.57959143 | D47: mg/kg | E47: Eq
B48: Lower | C48: =C19*C35*C39/C$22 -> 0.1473306081 | D48: mg/kg | E48: Eq
B49: Upper | C49: 669.6380765 | D49: mg/kg | E49: Eq
E50: FishKcalV6

Sheet F04a
A1: Consumption of Fruit by a Mammal, small after Acute exposure.
A2: Short Title | B2: Fruit | E2: FdKcalV6
A3: Receptor | B3: Mammal, small
A4: Duration | B4: Acute | E4: Scenario parameter
A5: Material consumed | B5: Fruit
A6: Parameter/Assumption | B6: Code / Range | C6: Equation/ Value | D6: Units | E6: Reference/Designation
A7: Commodity
A8: Concentration on consumed commodity | B8: Conc
B9: Central | C9: =B05a!Acute_C -> 2.854221989 | D9: mg/kg food wet weight | E9: ='B05a'!Acute_C
B10: Lower | C10: =B05a!Acute_L -> 1.259370203 | E10: ='B05a'!Acute_L
B11: Upper | C11: =B05a!Acute_U -> 6.373349304 | E11: ='B05a'!Acute_U
A12: Receptor
A13: Body weight | B13: BW | C13: =A02b!$C$71 -> 0.02 | D13: kg | E13: Default
A14: Allometric coefficients for caloric requirement per day in kilocalories and BW in grams
B15: alpha | C15: =A02b!$C$75 -> 2.514 | E15: U.S. EPA/ORD 1993
B16: beta | C16: =A02b!$C$76 -> 0.507 | E16: U.S. EPA/ORD 1993
A17: Caloric requirement per day | B17: KR | C17: = alpha x (BW x 1kg/1000g)beta
C18: =C15*((C13*1000)^C16) -> 11.48120526 | D18: kcal/day | E18: Eq
A19: Caloric content of commodity (dry weight) | B19: KCD | C19: ='A03'!$E$61 -> 1.1 | D19: kcal/gdw [Note 1] | E19: U.S. EPA/ORD 1993
A20: Food consumed per day (dry weight) | B20: AmntDry | C20: = KR ÷ KCD
C21: =C18/C19 -> 10.43745932 | D21: gdry/day | E21: Eq
A22: Water content of food item as a proportion | B22: PropWater | C22: ='A03'!$E$62 -> 0.77 | D22: gwater/gfood | E22: U.S. EPA/ORD 1993
A23: Dry weight content of food item as a proportion | B23: PropDry | C23: = 1-PropWater
C24: =1-C22 -> 0.23 | D24: gdry/gfood | E24: Eq
A25: Variability in caloric requirements not accounted for by allometric equation | B25: Error
B26: Central | C26: 1 | D26: Note 2
B27: Lower | C27: 0.3
B28: Upper | C28: 1.7
A29: Amount of food consumed per day, wet weight | B29: AmntFood | C29: = Error x (AmntDry ÷ PropDry) ÷ (1000g/kg)
B30: Central | C30: =C26*(C$21/C$24)/1000 -> 0.04538025793 | D30: kgfood/day | E30: Eq
B31: Lower | C31: =C27*(C$21/C$24)/1000 -> 0.01361407738 | E31: Eq
B32: Upper | C32: 0.07714643848 | E32: Eq
A33: Estimate
A34: Dose | B34: Dose | C34: = AmntFood × Conc / BW
B35: Central | C35: =$C30 * C9/C$13 -> 6.476266502 | D35: mg/kg bw/day | E35: Eq
B36: Lower | C36: =$C31 * C10/C$13 -> 0.8572581693 | E36: Eq
B37: Upper | C37: =$C32 * C11/C$13 -> 24.58406 | E37: Eq

Sheet F04b
A1: Consumption of Fruit by a Mammal, 400 g after Acute exposure.
A2: Short Title | B2: Fruit | E2: FdKcalV6
A3: Receptor | B3: Mammal, 400 g
A4: Duration | B4: Acute | E4: Scenario parameter
A5: Material consumed | B5: Fruit
A6: Parameter/Assumption | B6: Code / Range | C6: Equation/ Value | D6: Units | E6: Reference/Designation
A7: Commodity
A8: Concentration on consumed commodity | B8: Conc
B9: Central | C9: =B05a!Acute_C -> 2.854221989 | D9: mg/kg food wet weight | E9: ='B05a'!Acute_C
B10: Lower | C10: =B05a!Acute_L -> 1.259370203 | E10: ='B05a'!Acute_L
B11: Upper | C11: =B05a!Acute_U -> 6.373349304 | E11: ='B05a'!Acute_U
A12: Receptor
A13: Body weight | B13: BW | C13: =A02b!$C$40 -> 0.4 | D13: kg | E13: Default
A14: Allometric coefficients for caloric requirement per day in kilocalories and BW in grams
B15: alpha | C15: =A02b!$C$43 -> 2.514 | E15: U.S. EPA/ORD 1993
B16: beta | C16: =A02b!$C$44 -> 0.507 | E16: U.S. EPA/ORD 1993
A17: Caloric requirement per day | B17: KR | C17: = alpha x (BW x 1kg/1000g)beta
C18: =C15*((C13*1000)^C16) -> 52.43360149 | D18: kcal/day | E18: Eq
A19: Caloric content of commodity (dry weight) | B19: KCD | C19: ='A03'!$E$61 -> 1.1 | D19: kcal/gdw [Note 1] | E19: U.S. EPA/ORD 1993
A20: Food consumed per day (dry weight) | B20: AmntDry | C20: = KR ÷ KCD
C21: =C18/C19 -> 47.66691044 | D21: gdry/day | E21: Eq
A22: Water content of food item as a proportion | B22: PropWater | C22: ='A03'!$E$62 -> 0.77 | D22: gwater/gfood | E22: U.S. EPA/ORD 1993
A23: Dry weight content of food item as a proportion | B23: PropDry | C23: = 1-PropWater
C24: =1-C22 -> 0.23 | D24: gdry/gfood | E24: Eq
A25: Variability in caloric requirements not accounted for by allometric equation | B25: Error
B26: Central | C26: 1 | D26: Note 2
B27: Lower | C27: 0.3
B28: Upper | C28: 1.7
A29: Amount of food consumed per day, wet weight | B29: AmntFood | C29: = Error x (AmntDry ÷ PropDry) ÷ (1000g/kg)
B30: Central | C30: =C26*(C$21/C$24)/1000 -> 0.2072474367 | D30: kgfood/day | E30: Eq
B31: Lower | C31: =C27*(C$21/C$24)/1000 -> 0.06217423101 | E31: Eq
B32: Upper | C32: 0.3523206424 | E32: Eq
A33: Estimate
A34: Dose | B34: Dose | C34: = AmntFood × Conc / BW
B35: Central | C35: =$C30 * C9/C$13 -> 1.478825477 | D35: mg/kg bw/day | E35: Eq
B36: Lower | C36: =$C31 * C10/C$13 -> 0.1957509347 | E36: Eq
B37: Upper | C37: =$C32 * C11/C$13 -> 5.613656303 | E37: Eq

Sheet F04c
A1: Consumption of Fruit by a Mammal, large after Acute exposure.
A2: Short Title | B2: Fruit | E2: FdKcalV6
A3: Receptor | B3: Mammal, large
A4: Duration | B4: Acute | E4: Scenario parameter
A5: Material consumed | B5: Fruit
A6: Parameter/Assumption | B6: Code / Range | C6: Equation/ Value | D6: Units | E6: Reference/Designation
A7: Commodity
A8: Concentration on consumed commodity | B8: Conc
B9: Central | C9: =B05a!Acute_C -> 2.854221989 | D9: mg/kg food wet weight | E9: ='B05a'!Acute_C
B10: Lower | C10: =B05a!Acute_L -> 1.259370203 | E10: ='B05a'!Acute_L
B11: Upper | C11: =B05a!Acute_U -> 6.373349304 | E11: ='B05a'!Acute_U
A12: Receptor
A13: Body weight | B13: BW | C13: =A02b!$C$61 -> 70 | D13: kg | E13: Default
A14: Allometric coefficients for caloric requirement per day in kilocalories and BW in grams
B15: alpha | C15: =A02b!$C$62 -> 1.518 | E15: U.S. EPA/ORD 1993
B16: beta | C16: =A02b!$C$63 -> 0.73 | E16: U.S. EPA/ORD 1993
A17: Caloric requirement per day | B17: KR | C17: = alpha x (BW x 1kg/1000g)beta
C18: =C15*((C13*1000)^C16) -> 5226.28803 | D18: kcal/day | E18: Eq
A19: Caloric content of commodity (dry weight) | B19: KCD | C19: ='A03'!$E$61 -> 1.1 | D19: kcal/gdw [Note 1] | E19: U.S. EPA/ORD 1993
A20: Food consumed per day (dry weight) | B20: AmntDry | C20: = KR ÷ KCD
C21: =C18/C19 -> 4751.170936 | D21: gdry/day | E21: Eq
A22: Water content of food item as a proportion | B22: PropWater | C22: ='A03'!$E$62 -> 0.77 | D22: gwater/gfood | E22: U.S. EPA/ORD 1993
A23: Dry weight content of food item as a proportion | B23: PropDry | C23: = 1-PropWater
C24: =1-C22 -> 0.23 | D24: gdry/gfood | E24: Eq
A25: Variability in caloric requirements not accounted for by allometric equation | B25: Error
B26: Central | C26: 1 | D26: Note 2
B27: Lower | C27: 0.3
B28: Upper | C28: 1.7
A29: Amount of food consumed per day, wet weight | B29: AmntFood | C29: = Error x (AmntDry ÷ PropDry) ÷ (1000g/kg)
B30: Central | C30: =C26*(C$21/C$24)/1000 -> 20.65726494 | D30: kgfood/day | E30: Eq
B31: Lower | C31: =C27*(C$21/C$24)/1000 -> 6.197179482 | E31: Eq
B32: Upper | C32: 35.1173504 | E32: Eq
A33: Estimate
A34: Dose | B34: Dose | C34: = AmntFood × Conc / BW
B35: Central | C35: =$C30 * C9/C$13 -> 0.8422917117 | D35: mg/kg bw/day | E35: Eq
B36: Lower | C36: =$C31 * C10/C$13 -> 0.111493474 | E36: Eq
B37: Upper | C37: =$C32 * C11/C$13 -> 3.197359153 | E37: Eq

Sheet F04d
A1: Consumption of Fruit by a Bird, small after Acute exposure.
A2: Short Title | B2: Fruit | E2: FdKcalV6
A3: Receptor | B3: Bird, small
A4: Duration | B4: Acute | E4: Scenario parameter
A5: Material consumed | B5: Fruit
A6: Parameter/Assumption | B6: Code / Range | C6: Equation/ Value | D6: Units | E6: Reference/Designation
A7: Commodity
A8: Concentration on consumed commodity | B8: Conc
B9: Central | C9: =B05a!Acute_C -> 2.854221989 | D9: mg/kg food wet weight | E9: ='B05a'!Acute_C
B10: Lower | C10: =B05a!Acute_L -> 1.259370203 | E10: ='B05a'!Acute_L
B11: Upper | C11: =B05a!Acute_U -> 6.373349304 | E11: ='B05a'!Acute_U
A12: Receptor
A13: Body weight | B13: BW | C13: =A02b!$C$31 -> 0.01 | D13: kg | E13: Default
A14: Allometric coefficients for caloric requirement per day in kilocalories and BW in grams
B15: alpha | C15: =A02b!$C$32 -> 3.12 | E15: U.S. EPA/ORD 1993
B16: beta | C16: =A02b!$C$33 -> 0.605 | E16: U.S. EPA/ORD 1993
A17: Caloric requirement per day | B17: KR | C17: = alpha x (BW x 1kg/1000g)beta
C18: =C15*((C13*1000)^C16) -> 12.56477147 | D18: kcal/day | E18: Eq
A19: Caloric content of commodity (dry weight) | B19: KCD | C19: ='A03'!$E$38 -> 1.1 | D19: kcal/gdw [Note 1] | E19: U.S. EPA/ORD 1993
A20: Food consumed per day (dry weight) | B20: AmntDry | C20: = KR ÷ KCD
C21: =C18/C19 -> 11.42251952 | D21: gdry/day | E21: Eq
A22: Water content of food item as a proportion | B22: PropWater | C22: ='A03'!$E$39 -> 0.77 | D22: gwater/gfood | E22: U.S. EPA/ORD 1993
A23: Dry weight content of food item as a proportion | B23: PropDry | C23: = 1-PropWater
C24: =1-C22 -> 0.23 | D24: gdry/gfood | E24: Eq
A25: Variability in caloric requirements not accounted for by allometric equation | B25: Error
B26: Central | C26: 1 | D26: Note 2
B27: Lower | C27: 0.3
B28: Upper | C28: 1.7
A29: Amount of food consumed per day, wet weight | B29: AmntFood | C29: = Error x (AmntDry ÷ PropDry) ÷ (1000g/kg)
B30: Central | C30: =C26*(C$21/C$24)/1000 -> 0.04966312834 | D30: kgfood/day | E30: Eq
B31: Lower | C31: =C27*(C$21/C$24)/1000 -> 0.0148989385 | E31: Eq
B32: Upper | C32: 0.08442731818 | E32: Eq
A33: Estimate
A34: Dose | B34: Dose | C34: = AmntFood × Conc / BW
B35: Central | C35: =$C30 * C9/C$13 -> 14.17495929 | D35: mg/kg bw/day | E35: Eq
B36: Lower | C36: =$C31 * C10/C$13 -> 1.87632792 | E36: Eq
B37: Upper | C37: =$C32 * C11/C$13 -> 53.80847896 | E37: Eq

Sheet F04e
A1: Consumption of Fruit by a Bird, large after Acute exposure.
A2: Short Title | B2: Fruit | E2: FdKcalV6
A3: Receptor | B3: Bird, large
A4: Duration | B4: Acute | E4: Scenario parameter
A5: Material consumed | B5: Fruit
A6: Parameter/Assumption | B6: Code / Range | C6: Equation/ Value | D6: Units | E6: Reference/Designation
A7: Commodity
A8: Concentration on consumed commodity | B8: Conc
B9: Central | C9: =B05a!Acute_C -> 2.854221989 | D9: mg/kg food wet weight | E9: ='B05a'!Acute_C
B10: Lower | C10: =B05a!Acute_L -> 1.259370203 | E10: ='B05a'!Acute_L
B11: Upper | C11: =B05a!Acute_U -> 6.373349304 | E11: ='B05a'!Acute_U
A12: Receptor
A13: Body weight | B13: BW | C13: =A02b!$C$15 -> 4 | D13: kg | E13: Default
A14: Allometric coefficients for caloric requirement per day in kilocalories and BW in grams
B15: alpha | C15: =A02b!$C$16 -> 1.146 | E15: U.S. EPA/ORD 1993
B16: beta | C16: =A02b!$C$17 -> 0.749 | E16: U.S. EPA/ORD 1993
A17: Caloric requirement per day | B17: KR | C17: = alpha x (BW x 1kg/1000g)beta
C18: =C15*((C13*1000)^C16) -> 571.6465031 | D18: kcal/day | E18: Eq
A19: Caloric content of commodity (dry weight) | B19: KCD | C19: ='A03'!$E$38 -> 1.1 | D19: kcal/gdw [Note 1] | E19: U.S. EPA/ORD 1993
A20: Food consumed per day (dry weight) | B20: AmntDry | C20: = KR ÷ KCD
C21: =C18/C19 -> 519.6786392 | D21: gdry/day | E21: Eq
A22: Water content of food item as a proportion | B22: PropWater | C22: ='A03'!$E$39 -> 0.77 | D22: gwater/gfood | E22: U.S. EPA/ORD 1993
A23: Dry weight content of food item as a proportion | B23: PropDry | C23: = 1-PropWater
C24: =1-C22 -> 0.23 | D24: gdry/gfood | E24: Eq
A25: Variability in caloric requirements not accounted for by allometric equation | B25: Error
B26: Central | C26: 1 | D26: Note 2
B27: Lower | C27: 0.3
B28: Upper | C28: 1.7
A29: Amount of food consumed per day, wet weight | B29: AmntFood | C29: = Error x (AmntDry ÷ PropDry) ÷ (1000g/kg)
B30: Central | C30: =C26*(C$21/C$24)/1000 -> 2.259472344 | D30: kgfood/day | E30: Eq
B31: Lower | C31: =C27*(C$21/C$24)/1000 -> 0.6778417033 | E31: Eq
B32: Upper | C32: 3.841102985 | E32: Eq
A33: Estimate
A34: Dose | B34: Dose | C34: = AmntFood × Conc / BW
B35: Central | C35: =$C30 * C9/C$13 -> 1.612258912 | D35: mg/kg bw/day | E35: Eq
B36: Lower | C36: =$C31 * C10/C$13 -> 0.2134134108 | E36: Eq
B37: Upper | C37: =$C32 * C11/C$13 -> 6.120172759 | E37: Eq

Sheet F05a
A1: Consumption of BrdLfVeg by a Mammal, small after Acute exposure.
A2: Short Title | B2: Broadleaf | E2: FdKcalV6
A3: Receptor | B3: Mammal, small
A4: Duration | B4: Acute | E4: Scenario parameter
A5: Material consumed | B5: BrdLfVeg
A6: Parameter/Assumption | B6: Code / Range | C6: Equation/ Value | D6: Units | E6: Reference/Designation
A7: Commodity
A8: Concentration on consumed commodity | B8: Conc
B9: Central | C9: =B05b!Acute_C -> 18.34856993 | D9: mg/kg food wet weight | E9: ='B05b'!Acute_C
B10: Lower | C10: =B05b!Acute_L -> 5.903297824 | E10: ='B05b'!Acute_L
B11: Upper | C11: =B05b!Acute_U -> 57.36014374 | E11: ='B05b'!Acute_U
A12: Receptor
A13: Body weight | B13: BW | C13: =A02b!$C$71 -> 0.02 | D13: kg | E13: Default
A14: Allometric coefficients for caloric requirement per day in kilocalories and BW in grams
B15: alpha | C15: =A02b!$C$75 -> 2.514 | E15: U.S. EPA/ORD 1993
B16: beta | C16: =A02b!$C$76 -> 0.507 | E16: U.S. EPA/ORD 1993
A17: Caloric requirement per day | B17: KR | C17: = alpha x (BW x 1kg/1000g)beta
C18: =C15*((C13*1000)^C16) -> 11.48120526 | D18: kcal/day | E18: Eq
A19: Caloric content of commodity (dry weight) | B19: KCD | C19: ='A03'!$E$65 -> 2.26 | D19: kcal/gdw [Note 1] | E19: U.S. EPA/ORD 1993
A20: Food consumed per day (dry weight) | B20: AmntDry | C20: = KR ÷ KCD
C21: =C18/C19 -> 5.080179317 | D21: gdry/day | E21: Eq
A22: Water content of food item as a proportion | B22: PropWater | C22: ='A03'!$E$66 -> 0.85 | D22: gwater/gfood | E22: U.S. EPA/ORD 1993
A23: Dry weight content of food item as a proportion | B23: PropDry | C23: = 1-PropWater
C24: =1-C22 -> 0.15 | D24: gdry/gfood | E24: Eq
A25: Variability in caloric requirements not accounted for by allometric equation | B25: Error
B26: Central | C26: 1 | D26: Note 2
B27: Lower | C27: 0.3
B28: Upper | C28: 1.7
A29: Amount of food consumed per day, wet weight | B29: AmntFood | C29: = Error x (AmntDry ÷ PropDry) ÷ (1000g/kg)
B30: Central | C30: =C26*(C$21/C$24)/1000 -> 0.03386786211 | D30: kgfood/day | E30: Eq
B31: Lower | C31: =C27*(C$21/C$24)/1000 -> 0.01016035863 | E31: Eq
B32: Upper | C32: 0.05757536559 | E32: Eq
A33: Estimate
A34: Dose | B34: Dose | C34: = AmntFood × Conc / BW
B35: Central | C35: =$C30 * C9/C$13 -> 31.07134181 | D35: mg/kg bw/day | E35: Eq
B36: Lower | C36: =$C31 * C10/C$13 -> 2.998981151 | E36: Eq
B37: Upper | C37: =$C32 * C11/C$13 -> 165.1265623 | E37: Eq

Sheet F05b
A1: Consumption of BrdLfVeg by a Mammal, 400 g after Acute exposure.
A2: Short Title | B2: Broadleaf | E2: FdKcalV6
A3: Receptor | B3: Mammal, 400 g
A4: Duration | B4: Acute | E4: Scenario parameter
A5: Material consumed | B5: BrdLfVeg
A6: Parameter/Assumption | B6: Code / Range | C6: Equation/ Value | D6: Units | E6: Reference/Designation
A7: Commodity
A8: Concentration on consumed commodity | B8: Conc
B9: Central | C9: =B05b!Acute_C -> 18.34856993 | D9: mg/kg food wet weight | E9: ='B05b'!Acute_C
B10: Lower | C10: =B05b!Acute_L -> 5.903297824 | E10: ='B05b'!Acute_L
B11: Upper | C11: =B05b!Acute_U -> 57.36014374 | E11: ='B05b'!Acute_U
A12: Receptor
A13: Body weight | B13: BW | C13: =A02b!$C$40 -> 0.4 | D13: kg | E13: Default
A14: Allometric coefficients for caloric requirement per day in kilocalories and BW in grams
B15: alpha | C15: =A02b!$C$43 -> 2.514 | E15: U.S. EPA/ORD 1993
B16: beta | C16: =A02b!$C$44 -> 0.507 | E16: U.S. EPA/ORD 1993
A17: Caloric requirement per day | B17: KR | C17: = alpha x (BW x 1kg/1000g)beta
C18: =C15*((C13*1000)^C16) -> 52.43360149 | D18: kcal/day | E18: Eq
A19: Caloric content of commodity (dry weight) | B19: KCD | C19: ='A03'!$E$65 -> 2.26 | D19: kcal/gdw [Note 1] | E19: U.S. EPA/ORD 1993
A20: Food consumed per day (dry weight) | B20: AmntDry | C20: = KR ÷ KCD
C21: =C18/C19 -> 23.20070862 | D21: gdry/day | E21: Eq
A22: Water content of food item as a proportion | B22: PropWater | C22: ='A03'!$E$66 -> 0.85 | D22: gwater/gfood | E22: U.S. EPA/ORD 1993
A23: Dry weight content of food item as a proportion | B23: PropDry | C23: = 1-PropWater
C24: =1-C22 -> 0.15 | D24: gdry/gfood | E24: Eq
A25: Variability in caloric requirements not accounted for by allometric equation | B25: Error
B26: Central | C26: 1 | D26: Note 2
B27: Lower | C27: 0.3
B28: Upper | C28: 1.7
A29: Amount of food consumed per day, wet weight | B29: AmntFood | C29: = Error x (AmntDry ÷ PropDry) ÷ (1000g/kg)
B30: Central | C30: =C26*(C$21/C$24)/1000 -> 0.1546713908 | D30: kgfood/day | E30: Eq
B31: Lower | C31: =C27*(C$21/C$24)/1000 -> 0.04640141724 | E31: Eq
B32: Upper | C32: 0.2629413644 | E32: Eq
A33: Estimate
A34: Dose | B34: Dose | C34: = AmntFood × Conc / BW
B35: Central | C35: =$C30 * C9/C$13 -> 7.094997075 | D35: mg/kg bw/day | E35: Eq
B36: Lower | C36: =$C31 * C10/C$13 -> 0.6848034637 | E36: Eq
B37: Upper | C37: =$C32 * C11/C$13 -> 37.70588614 | E37: Eq

Sheet F05c
A1: Consumption of BrdLfVeg by a Mammal, large after Acute exposure.
A2: Short Title | B2: Broadleaf | E2: FdKcalV6
A3: Receptor | B3: Mammal, large
A4: Duration | B4: Acute | E4: Scenario parameter
A5: Material consumed | B5: BrdLfVeg
A6: Parameter/Assumption | B6: Code / Range | C6: Equation/ Value | D6: Units | E6: Reference/Designation
A7: Commodity
A8: Concentration on consumed commodity | B8: Conc
B9: Central | C9: =B05b!Acute_C -> 18.34856993 | D9: mg/kg food wet weight | E9: ='B05b'!Acute_C
B10: Lower | C10: =B05b!Acute_L -> 5.903297824 | E10: ='B05b'!Acute_L
B11: Upper | C11: =B05b!Acute_U -> 57.36014374 | E11: ='B05b'!Acute_U
A12: Receptor
A13: Body weight | B13: BW | C13: =A02b!$C$61 -> 70 | D13: kg | E13: Default
A14: Allometric coefficients for caloric requirement per day in kilocalories and BW in grams
B15: alpha | C15: =A02b!$C$62 -> 1.518 | E15: U.S. EPA/ORD 1993
B16: beta | C16: =A02b!$C$63 -> 0.73 | E16: U.S. EPA/ORD 1993
A17: Caloric requirement per day | B17: KR | C17: = alpha x (BW x 1kg/1000g)beta
C18: =C15*((C13*1000)^C16) -> 5226.28803 | D18: kcal/day | E18: Eq
A19: Caloric content of commodity (dry weight) | B19: KCD | C19: ='A03'!$E$65 -> 2.26 | D19: kcal/gdw [Note 1] | E19: U.S. EPA/ORD 1993
A20: Food consumed per day (dry weight) | B20: AmntDry | C20: = KR ÷ KCD
C21: =C18/C19 -> 2312.516827 | D21: gdry/day | E21: Eq
A22: Water content of food item as a proportion | B22: PropWater | C22: ='A03'!$E$66 -> 0.85 | D22: gwater/gfood | E22: U.S. EPA/ORD 1993
A23: Dry weight content of food item as a proportion | B23: PropDry | C23: = 1-PropWater
C24: =1-C22 -> 0.15 | D24: gdry/gfood | E24: Eq
A25: Variability in caloric requirements not accounted for by allometric equation | B25: Error
B26: Central | C26: 1 | D26: Note 2
B27: Lower | C27: 0.3
B28: Upper | C28: 1.7
A29: Amount of food consumed per day, wet weight | B29: AmntFood | C29: = Error x (AmntDry ÷ PropDry) ÷ (1000g/kg)
B30: Central | C30: =C26*(C$21/C$24)/1000 -> 15.41677885 | D30: kgfood/day | E30: Eq
B31: Lower | C31: =C27*(C$21/C$24)/1000 -> 4.625033655 | E31: Eq
B32: Upper | C32: 26.20852404 | E32: Eq
A33: Estimate
A34: Dose | B34: Dose | C34: = AmntFood × Conc / BW
B35: Central | C35: =$C30 * C9/C$13 -> 4.041083497 | D35: mg/kg bw/day | E35: Eq
B36: Lower | C36: =$C31 * C10/C$13 -> 0.3900421587 | E36: Eq
B37: Upper | C37: =$C32 * C11/C$13 -> 21.47606723 | E37: Eq

Sheet F05d
A1: Consumption of BrdLfVeg by a Bird, small after Acute exposure.
A2: Short Title | B2: Broadleaf | E2: FdKcalV6
A3: Receptor | B3: Bird, small
A4: Duration | B4: Acute | E4: Scenario parameter
A5: Material consumed | B5: BrdLfVeg
A6: Parameter/Assumption | B6: Code / Range | C6: Equation/ Value | D6: Units | E6: Reference/Designation
A7: Commodity
A8: Concentration on consumed commodity | B8: Conc
B9: Central | C9: =B05b!Acute_C -> 18.34856993 | D9: mg/kg food wet weight | E9: ='B05b'!Acute_C
B10: Lower | C10: =B05b!Acute_L -> 5.903297824 | E10: ='B05b'!Acute_L
B11: Upper | C11: =B05b!Acute_U -> 57.36014374 | E11: ='B05b'!Acute_U
A12: Receptor
A13: Body weight | B13: BW | C13: =A02b!$C$31 -> 0.01 | D13: kg | E13: Default
A14: Allometric coefficients for caloric requirement per day in kilocalories and BW in grams
B15: alpha | C15: =A02b!$C$32 -> 3.12 | E15: U.S. EPA/ORD 1993
B16: beta | C16: =A02b!$C$33 -> 0.605 | E16: U.S. EPA/ORD 1993
A17: Caloric requirement per day | B17: KR | C17: = alpha x (BW x 1kg/1000g)beta
C18: =C15*((C13*1000)^C16) -> 12.56477147 | D18: kcal/day | E18: Eq
A19: Caloric content of commodity (dry weight) | B19: KCD | C19: ='A03'!$E$42 -> 2 | D19: kcal/gdw [Note 1] | E19: U.S. EPA/ORD 1993
A20: Food consumed per day (dry weight) | B20: AmntDry | C20: = KR ÷ KCD
C21: =C18/C19 -> 6.282385735 | D21: gdry/day | E21: Eq
A22: Water content of food item as a proportion | B22: PropWater | C22: ='A03'!$E$43 -> 0.85 | D22: gwater/gfood | E22: U.S. EPA/ORD 1993
A23: Dry weight content of food item as a proportion | B23: PropDry | C23: = 1-PropWater
C24: =1-C22 -> 0.15 | D24: gdry/gfood | E24: Eq
A25: Variability in caloric requirements not accounted for by allometric equation | B25: Error
B26: Central | C26: 1 | D26: Note 2
B27: Lower | C27: 0.3
B28: Upper | C28: 1.7
A29: Amount of food consumed per day, wet weight | B29: AmntFood | C29: = Error x (AmntDry ÷ PropDry) ÷ (1000g/kg)
B30: Central | C30: =C26*(C$21/C$24)/1000 -> 0.04188257157 | D30: kgfood/day | E30: Eq
B31: Lower | C31: =C27*(C$21/C$24)/1000 -> 0.01256477147 | E31: Eq
B32: Upper | C32: 0.07120037167 | E32: Eq
A33: Estimate
A34: Dose | B34: Dose | C34: = AmntFood × Conc / BW
B35: Central | C35: =$C30 * C9/C$13 -> 76.84852932 | D35: mg/kg bw/day | E35: Eq
B36: Lower | C36: =$C31 * C10/C$13 -> 7.417358809 | E36: Eq
B37: Upper | C37: =$C32 * C11/C$13 -> 408.4063553 | E37: Eq

Sheet F05e
A1: Consumption of BrdLfVeg by a Bird, large after Acute exposure.
A2: Short Title | B2: Broadleaf | E2: FdKcalV6
A3: Receptor | B3: Bird, large
A4: Duration | B4: Acute | E4: Scenario parameter
A5: Material consumed | B5: BrdLfVeg
A6: Parameter/Assumption | B6: Code / Range | C6: Equation/ Value | D6: Units | E6: Reference/Designation
A7: Commodity
A8: Concentration on consumed commodity | B8: Conc
B9: Central | C9: =B05b!Acute_C -> 18.34856993 | D9: mg/kg food wet weight | E9: ='B05b'!Acute_C
B10: Lower | C10: =B05b!Acute_L -> 5.903297824 | E10: ='B05b'!Acute_L
B11: Upper | C11: =B05b!Acute_U -> 57.36014374 | E11: ='B05b'!Acute_U
A12: Receptor
A13: Body weight | B13: BW | C13: =A02b!$C$15 -> 4 | D13: kg | E13: Default
A14: Allometric coefficients for caloric requirement per day in kilocalories and BW in grams
B15: alpha | C15: =A02b!$C$16 -> 1.146 | E15: U.S. EPA/ORD 1993
B16: beta | C16: =A02b!$C$17 -> 0.749 | E16: U.S. EPA/ORD 1993
A17: Caloric requirement per day | B17: KR | C17: = alpha x (BW x 1kg/1000g)beta
C18: =C15*((C13*1000)^C16) -> 571.6465031 | D18: kcal/day | E18: Eq
A19: Caloric content of commodity (dry weight) | B19: KCD | C19: ='A03'!$E$42 -> 2 | D19: kcal/gdw [Note 1] | E19: U.S. EPA/ORD 1993
A20: Food consumed per day (dry weight) | B20: AmntDry | C20: = KR ÷ KCD
C21: =C18/C19 -> 285.8232515 | D21: gdry/day | E21: Eq
A22: Water content of food item as a proportion | B22: PropWater | C22: ='A03'!$E$43 -> 0.85 | D22: gwater/gfood | E22: U.S. EPA/ORD 1993
A23: Dry weight content of food item as a proportion | B23: PropDry | C23: = 1-PropWater
C24: =1-C22 -> 0.15 | D24: gdry/gfood | E24: Eq
A25: Variability in caloric requirements not accounted for by allometric equation | B25: Error
B26: Central | C26: 1 | D26: Note 2
B27: Lower | C27: 0.3
B28: Upper | C28: 1.7
A29: Amount of food consumed per day, wet weight | B29: AmntFood | C29: = Error x (AmntDry ÷ PropDry) ÷ (1000g/kg)
B30: Central | C30: =C26*(C$21/C$24)/1000 -> 1.905488344 | D30: kgfood/day | E30: Eq
B31: Lower | C31: =C27*(C$21/C$24)/1000 -> 0.5716465031 | E31: Eq
B32: Upper | C32: 3.239330184 | E32: Eq
A33: Estimate
A34: Dose | B34: Dose | C34: = AmntFood × Conc / BW
B35: Central | C35: =$C30 * C9/C$13 -> 8.740746529 | D35: mg/kg bw/day | E35: Eq
B36: Lower | C36: =$C31 * C10/C$13 -> 0.8436498895 | E36: Eq
B37: Upper | C37: =$C32 * C11/C$13 -> 46.45211124 | E37: Eq

Sheet F06a
A1: Consumption of Tall grass by a Mammal, small after Acute exposure.
A2: Short Title | B2: Tall Grass | E2: FdKcalV6
A3: Receptor | B3: Mammal, small
A4: Duration | B4: Acute | E4: Scenario parameter
A5: Material consumed | B5: Tall grass
A6: Parameter/Assumption | B6: Code / Range | C6: Equation/ Value | D6: Units | E6: Reference/Designation
A7: Commodity
A8: Concentration on consumed commodity | B8: Conc
B9: Central | C9: =B05d!Acute_C -> 14.67885594 | D9: mg/kg food wet weight | E9: ='B05d'!Acute_C
B10: Lower | C10: =B05d!Acute_L -> 4.722638259 | E10: ='B05d'!Acute_L
B11: Upper | C11: =B05d!Acute_U -> 46.7378949 | E11: ='B05d'!Acute_U
A12: Receptor
A13: Body weight | B13: BW | C13: =A02b!$C$71 -> 0.02 | D13: kg | E13: Default
A14: Allometric coefficients for caloric requirement per day in kilocalories and BW in grams
B15: alpha | C15: =A02b!$C$75 -> 2.514 | E15: U.S. EPA/ORD 1993
B16: beta | C16: =A02b!$C$76 -> 0.507 | E16: U.S. EPA/ORD 1993
A17: Caloric requirement per day | B17: KR | C17: = alpha x (BW x 1kg/1000g)beta
C18: =C15*((C13*1000)^C16) -> 11.48120526 | D18: kcal/day | E18: Eq
A19: Caloric content of commodity (dry weight) | B19: KCD | C19: ='A03'!$E$65 -> 2.26 | D19: kcal/gdw [Note 1] | E19: U.S. EPA/ORD 1993
A20: Food consumed per day (dry weight) | B20: AmntDry | C20: = KR ÷ KCD
C21: =C18/C19 -> 5.080179317 | D21: gdry/day | E21: Eq
A22: Water content of food item as a proportion | B22: PropWater | C22: ='A03'!$E$66 -> 0.85 | D22: gwater/gfood | E22: U.S. EPA/ORD 1993
A23: Dry weight content of food item as a proportion | B23: PropDry | C23: = 1-PropWater
C24: =1-C22 -> 0.15 | D24: gdry/gfood | E24: Eq
A25: Variability in caloric requirements not accounted for by allometric equation | B25: Error
B26: Central | C26: 1 | D26: Note 2
B27: Lower | C27: 0.3
B28: Upper | C28: 1.7
A29: Amount of food consumed per day, wet weight | B29: AmntFood | C29: = Error x (AmntDry ÷ PropDry) ÷ (1000g/kg)
B30: Central | C30: =C26*(C$21/C$24)/1000 -> 0.03386786211 | D30: kgfood/day | E30: Eq
B31: Lower | C31: =C27*(C$21/C$24)/1000 -> 0.01016035863 | E31: Eq
B32: Upper | C32: 0.05757536559 | E32: Eq
A33: Estimate
A34: Dose | B34: Dose | C34: = AmntFood × Conc / BW
B35: Central | C35: =$C30 * C9/C$13 -> 24.85707345 | D35: mg/kg bw/day | E35: Eq
B36: Lower | C36: =$C31 * C10/C$13 -> 2.399184921 | E36: Eq
B37: Upper | C37: =$C32 * C11/C$13 -> 134.5475693 | E37: Eq

Sheet F06b
A1: Consumption of Tall grass by a Mammal, 400 g after Acute exposure.
A2: Short Title | B2: Tall Grass | E2: FdKcalV6
A3: Receptor | B3: Mammal, 400 g
A4: Duration | B4: Acute | E4: Scenario parameter
A5: Material consumed | B5: Tall grass
A6: Parameter/Assumption | B6: Code / Range | C6: Equation/ Value | D6: Units | E6: Reference/Designation
A7: Commodity
A8: Concentration on consumed commodity | B8: Conc
B9: Central | C9: =B05d!Acute_C -> 14.67885594 | D9: mg/kg food wet weight | E9: ='B05d'!Acute_C
B10: Lower | C10: =B05d!Acute_L -> 4.722638259 | E10: ='B05d'!Acute_L
B11: Upper | C11: =B05d!Acute_U -> 46.7378949 | E11: ='B05d'!Acute_U
A12: Receptor
A13: Body weight | B13: BW | C13: =A02b!$C$40 -> 0.4 | D13: kg | E13: Default
A14: Allometric coefficients for caloric requirement per day in kilocalories and BW in grams
B15: alpha | C15: =A02b!$C$43 -> 2.514 | E15: U.S. EPA/ORD 1993
B16: beta | C16: =A02b!$C$44 -> 0.507 | E16: U.S. EPA/ORD 1993
A17: Caloric requirement per day | B17: KR | C17: = alpha x (BW x 1kg/1000g)beta
C18: =C15*((C13*1000)^C16) -> 52.43360149 | D18: kcal/day | E18: Eq
A19: Caloric content of commodity (dry weight) | B19: KCD | C19: ='A03'!$E$65 -> 2.26 | D19: kcal/gdw [Note 1] | E19: U.S. EPA/ORD 1993
A20: Food consumed per day (dry weight) | B20: AmntDry | C20: = KR ÷ KCD
C21: =C18/C19 -> 23.20070862 | D21: gdry/day | E21: Eq
A22: Water content of food item as a proportion | B22: PropWater | C22: ='A03'!$E$66 -> 0.85 | D22: gwater/gfood | E22: U.S. EPA/ORD 1993
A23: Dry weight content of food item as a proportion | B23: PropDry | C23: = 1-PropWater
C24: =1-C22 -> 0.15 | D24: gdry/gfood | E24: Eq
A25: Variability in caloric requirements not accounted for by allometric equation | B25: Error
B26: Central | C26: 1 | D26: Note 2
B27: Lower | C27: 0.3
B28: Upper | C28: 1.7
A29: Amount of food consumed per day, wet weight | B29: AmntFood | C29: = Error x (AmntDry ÷ PropDry) ÷ (1000g/kg)
B30: Central | C30: =C26*(C$21/C$24)/1000 -> 0.1546713908 | D30: kgfood/day | E30: Eq
B31: Lower | C31: =C27*(C$21/C$24)/1000 -> 0.04640141724 | E31: Eq
B32: Upper | C32: 0.2629413644 | E32: Eq
A33: Estimate
A34: Dose | B34: Dose | C34: = AmntFood × Conc / BW
B35: Central | C35: =$C30 * C9/C$13 -> 5.67599766 | D35: mg/kg bw/day | E35: Eq
B36: Lower | C36: =$C31 * C10/C$13 -> 0.5478427709 | E36: Eq
B37: Upper | C37: =$C32 * C11/C$13 -> 30.72331463 | E37: Eq

Sheet F06c
A1: Consumption of Tall grass by a Mammal, large after Acute exposure.
A2: Short Title | B2: Tall Grass | E2: FdKcalV6
A3: Receptor | B3: Mammal, large
A4: Duration | B4: Acute | E4: Scenario parameter
A5: Material consumed | B5: Tall grass
A6: Parameter/Assumption | B6: Code / Range | C6: Equation/ Value | D6: Units | E6: Reference/Designation
A7: Commodity
A8: Concentration on consumed commodity | B8: Conc
B9: Central | C9: =B05d!Acute_C -> 14.67885594 | D9: mg/kg food wet weight | E9: ='B05d'!Acute_C
B10: Lower | C10: =B05d!Acute_L -> 4.722638259 | E10: ='B05d'!Acute_L
B11: Upper | C11: =B05d!Acute_U -> 46.7378949 | E11: ='B05d'!Acute_U
A12: Receptor
A13: Body weight | B13: BW | C13: =A02b!$C$61 -> 70 | D13: kg | E13: Default
A14: Allometric coefficients for caloric requirement per day in kilocalories and BW in grams
B15: alpha | C15: =A02b!$C$62 -> 1.518 | E15: U.S. EPA/ORD 1993
B16: beta | C16: =A02b!$C$63 -> 0.73 | E16: U.S. EPA/ORD 1993
A17: Caloric requirement per day | B17: KR | C17: = alpha x (BW x 1kg/1000g)beta
C18: =C15*((C13*1000)^C16) -> 5226.28803 | D18: kcal/day | E18: Eq
A19: Caloric content of commodity (dry weight) | B19: KCD | C19: ='A03'!$E$65 -> 2.26 | D19: kcal/gdw [Note 1] | E19: U.S. EPA/ORD 1993
A20: Food consumed per day (dry weight) | B20: AmntDry | C20: = KR ÷ KCD
C21: =C18/C19 -> 2312.516827 | D21: gdry/day | E21: Eq
A22: Water content of food item as a proportion | B22: PropWater | C22: ='A03'!$E$66 -> 0.85 | D22: gwater/gfood | E22: U.S. EPA/ORD 1993
A23: Dry weight content of food item as a proportion | B23: PropDry | C23: = 1-PropWater
C24: =1-C22 -> 0.15 | D24: gdry/gfood | E24: Eq
A25: Variability in caloric requirements not accounted for by allometric equation | B25: Error
B26: Central | C26: 1 | D26: Note 2
B27: Lower | C27: 0.3
B28: Upper | C28: 1.7
A29: Amount of food consumed per day, wet weight | B29: AmntFood | C29: = Error x (AmntDry ÷ PropDry) ÷ (1000g/kg)
B30: Central | C30: =C26*(C$21/C$24)/1000 -> 15.41677885 | D30: kgfood/day | E30: Eq
B31: Lower | C31: =C27*(C$21/C$24)/1000 -> 4.625033655 | E31: Eq
B32: Upper | C32: 26.20852404 | E32: Eq
A33: Estimate
A34: Dose | B34: Dose | C34: = AmntFood × Conc / BW
B35: Central | C35: =$C30 * C9/C$13 -> 3.232866797 | D35: mg/kg bw/day | E35: Eq
B36: Lower | C36: =$C31 * C10/C$13 -> 0.312033727 | E36: Eq
B37: Upper | C37: =$C32 * C11/C$13 -> 17.49901774 | E37: Eq

Sheet F06d
A1: Consumption of Tall grass by a Bird, small after Acute exposure.
A2: Short Title | B2: Tall Grass | E2: FdKcalV6
A3: Receptor | B3: Bird, small
A4: Duration | B4: Acute | E4: Scenario parameter
A5: Material consumed | B5: Tall grass
A6: Parameter/Assumption | B6: Code / Range | C6: Equation/ Value | D6: Units | E6: Reference/Designation
A7: Commodity
A8: Concentration on consumed commodity | B8: Conc
B9: Central | C9: =B05d!Acute_C -> 14.67885594 | D9: mg/kg food wet weight | E9: ='B05d'!Acute_C
B10: Lower | C10: =B05d!Acute_L -> 4.722638259 | E10: ='B05d'!Acute_L
B11: Upper | C11: =B05d!Acute_U -> 46.7378949 | E11: ='B05d'!Acute_U
A12: Receptor
A13: Body weight | B13: BW | C13: =A02b!$C$31 -> 0.01 | D13: kg | E13: Default
A14: Allometric coefficients for caloric requirement per day in kilocalories and BW in grams
B15: alpha | C15: =A02b!$C$32 -> 3.12 | E15: U.S. EPA/ORD 1993
B16: beta | C16: =A02b!$C$33 -> 0.605 | E16: U.S. EPA/ORD 1993
A17: Caloric requirement per day | B17: KR | C17: = alpha x (BW x 1kg/1000g)beta
C18: =C15*((C13*1000)^C16) -> 12.56477147 | D18: kcal/day | E18: Eq
A19: Caloric content of commodity (dry weight) | B19: KCD | C19: ='A03'!$E$42 -> 2 | D19: kcal/gdw [Note 1] | E19: U.S. EPA/ORD 1993
A20: Food consumed per day (dry weight) | B20: AmntDry | C20: = KR ÷ KCD
C21: =C18/C19 -> 6.282385735 | D21: gdry/day | E21: Eq
A22: Water content of food item as a proportion | B22: PropWater | C22: ='A03'!$E$43 -> 0.85 | D22: gwater/gfood | E22: U.S. EPA/ORD 1993
A23: Dry weight content of food item as a proportion | B23: PropDry | C23: = 1-PropWater
C24: =1-C22 -> 0.15 | D24: gdry/gfood | E24: Eq
A25: Variability in caloric requirements not accounted for by allometric equation | B25: Error
B26: Central | C26: 1 | D26: Note 2
B27: Lower | C27: 0.3
B28: Upper | C28: 1.7
A29: Amount of food consumed per day, wet weight | B29: AmntFood | C29: = Error x (AmntDry ÷ PropDry) ÷ (1000g/kg)
B30: Central | C30: =C26*(C$21/C$24)/1000 -> 0.04188257157 | D30: kgfood/day | E30: Eq
B31: Lower | C31: =C27*(C$21/C$24)/1000 -> 0.01256477147 | E31: Eq
B32: Upper | C32: 0.07120037167 | E32: Eq
A33: Estimate
A34: Dose | B34: Dose | C34: = AmntFood × Conc / BW
B35: Central | C35: =$C30 * C9/C$13 -> 61.47882345 | D35: mg/kg bw/day | E35: Eq
B36: Lower | C36: =$C31 * C10/C$13 -> 5.933887047 | E36: Eq
B37: Upper | C37: =$C32 * C11/C$13 -> 332.7755488 | E37: Eq

Sheet F06e
A1: Consumption of Tall grass by a Bird, large after Acute exposure.
A2: Short Title | B2: Tall Grass | E2: FdKcalV6
A3: Receptor | B3: Bird, large
A4: Duration | B4: Acute | E4: Scenario parameter
A5: Material consumed | B5: Tall grass
A6: Parameter/Assumption | B6: Code / Range | C6: Equation/ Value | D6: Units | E6: Reference/Designation
A7: Commodity
A8: Concentration on consumed commodity | B8: Conc
B9: Central | C9: =B05d!Acute_C -> 14.67885594 | D9: mg/kg food wet weight | E9: ='B05d'!Acute_C
B10: Lower | C10: =B05d!Acute_L -> 4.722638259 | E10: ='B05d'!Acute_L
B11: Upper | C11: =B05d!Acute_U -> 46.7378949 | E11: ='B05d'!Acute_U
A12: Receptor
A13: Body weight | B13: BW | C13: =A02b!$C$15 -> 4 | D13: kg | E13: Default
A14: Allometric coefficients for caloric requirement per day in kilocalories and BW in grams
B15: alpha | C15: =A02b!$C$16 -> 1.146 | E15: U.S. EPA/ORD 1993
B16: beta | C16: =A02b!$C$17 -> 0.749 | E16: U.S. EPA/ORD 1993
A17: Caloric requirement per day | B17: KR | C17: = alpha x (BW x 1kg/1000g)beta
C18: =C15*((C13*1000)^C16) -> 571.6465031 | D18: kcal/day | E18: Eq
A19: Caloric content of commodity (dry weight) | B19: KCD | C19: ='A03'!$E$42 -> 2 | D19: kcal/gdw [Note 1] | E19: U.S. EPA/ORD 1993
A20: Food consumed per day (dry weight) | B20: AmntDry | C20: = KR ÷ KCD
C21: =C18/C19 -> 285.8232515 | D21: gdry/day | E21: Eq
A22: Water content of food item as a proportion | B22: PropWater | C22: ='A03'!$E$43 -> 0.85 | D22: gwater/gfood | E22: U.S. EPA/ORD 1993
A23: Dry weight content of food item as a proportion | B23: PropDry | C23: = 1-PropWater
C24: =1-C22 -> 0.15 | D24: gdry/gfood | E24: Eq
A25: Variability in caloric requirements not accounted for by allometric equation | B25: Error
B26: Central | C26: 1 | D26: Note 2
B27: Lower | C27: 0.3
B28: Upper | C28: 1.7
A29: Amount of food consumed per day, wet weight | B29: AmntFood | C29: = Error x (AmntDry ÷ PropDry) ÷ (1000g/kg)
B30: Central | C30: =C26*(C$21/C$24)/1000 -> 1.905488344 | D30: kgfood/day | E30: Eq
B31: Lower | C31: =C27*(C$21/C$24)/1000 -> 0.5716465031 | E31: Eq
B32: Upper | C32: 3.239330184 | E32: Eq
A33: Estimate
A34: Dose | B34: Dose | C34: = AmntFood × Conc / BW
B35: Central | C35: =$C30 * C9/C$13 -> 6.992597223 | D35: mg/kg bw/day | E35: Eq
B36: Lower | C36: =$C31 * C10/C$13 -> 0.6749199116 | E36: Eq
B37: Upper | C37: =$C32 * C11/C$13 -> 37.84986842 | E37: Eq

Sheet F07a
A1: Consumption of Short grass by a Mammal, small after Acute exposure.
A2: Short Title | B2: Short grass | E2: FdKcalV6
A3: Receptor | B3: Mammal, small
A4: Duration | B4: Acute | E4: Scenario parameter
A5: Material consumed | B5: Short grass
A6: Parameter/Assumption | B6: Code / Range | C6: Equation/ Value | D6: Units | E6: Reference/Designation
A7: Commodity
A8: Concentration on consumed commodity | B8: Conc
B9: Central | C9: =B05c!Acute_C -> 34.65840986 | D9: mg/kg food wet weight | E9: ='B05c'!Acute_C
B10: Lower | C10: =B05c!Acute_L -> 11.80659565 | E10: ='B05c'!Acute_L
B11: Upper | C11: =B05c!Acute_U -> 101.9735889 | E11: ='B05c'!Acute_U
A12: Receptor
A13: Body weight | B13: BW | C13: =A02b!$C$71 -> 0.02 | D13: kg | E13: Default
A14: Allometric coefficients for caloric requirement per day in kilocalories and BW in grams
B15: alpha | C15: =A02b!$C$75 -> 2.514 | E15: U.S. EPA/ORD 1993
B16: beta | C16: =A02b!$C$76 -> 0.507 | E16: U.S. EPA/ORD 1993
A17: Caloric requirement per day | B17: KR | C17: = alpha x (BW x 1kg/1000g)beta
C18: =C15*((C13*1000)^C16) -> 11.48120526 | D18: kcal/day | E18: Eq
A19: Caloric content of commodity (dry weight) | B19: KCD | C19: ='A03'!$E$65 -> 2.26 | D19: kcal/gdw [Note 1] | E19: U.S. EPA/ORD 1993
A20: Food consumed per day (dry weight) | B20: AmntDry | C20: = KR ÷ KCD
C21: =C18/C19 -> 5.080179317 | D21: gdry/day | E21: Eq
A22: Water content of food item as a proportion | B22: PropWater | C22: ='A03'!$E$66 -> 0.85 | D22: gwater/gfood | E22: U.S. EPA/ORD 1993
A23: Dry weight content of food item as a proportion | B23: PropDry | C23: = 1-PropWater
C24: =1-C22 -> 0.15 | D24: gdry/gfood | E24: Eq
A25: Variability in caloric requirements not accounted for by allometric equation | B25: Error
B26: Central | C26: 1 | D26: Note 2
B27: Lower | C27: 0.3
B28: Upper | C28: 1.7
A29: Amount of food consumed per day, wet weight | B29: AmntFood | C29: = Error x (AmntDry ÷ PropDry) ÷ (1000g/kg)
B30: Central | C30: =C26*(C$21/C$24)/1000 -> 0.03386786211 | D30: kgfood/day | E30: Eq
B31: Lower | C31: =C27*(C$21/C$24)/1000 -> 0.01016035863 | E31: Eq
B32: Upper | C32: 0.05757536559 | E32: Eq
A33: Estimate
A34: Dose | B34: Dose | C34: = AmntFood × Conc / BW
B35: Central | C35: =$C30 * C9/C$13 -> 58.69031231 | D35: mg/kg bw/day | E35: Eq
B36: Lower | C36: =$C31 * C10/C$13 -> 5.997962302 | E36: Eq
B37: Upper | C37: =$C32 * C11/C$13 -> 293.558333 | E37: Eq

Sheet F07b
A1: Consumption of Short grass by a Mammal, 400 g after Acute exposure.
A2: Short Title | B2: Short grass | E2: FdKcalV6
A3: Receptor | B3: Mammal, 400 g
A4: Duration | B4: Acute | E4: Scenario parameter
A5: Material consumed | B5: Short grass
A6: Parameter/Assumption | B6: Code / Range | C6: Equation/ Value | D6: Units | E6: Reference/Designation
A7: Commodity
A8: Concentration on consumed commodity | B8: Conc
B9: Central | C9: =B05c!Acute_C -> 34.65840986 | D9: mg/kg food wet weight | E9: ='B05c'!Acute_C
B10: Lower | C10: =B05c!Acute_L -> 11.80659565 | E10: ='B05c'!Acute_L
B11: Upper | C11: =B05c!Acute_U -> 101.9735889 | E11: ='B05c'!Acute_U
A12: Receptor
A13: Body weight | B13: BW | C13: =A02b!$C$40 -> 0.4 | D13: kg | E13: Default
A14: Allometric coefficients for caloric requirement per day in kilocalories and BW in grams
B15: alpha | C15: =A02b!$C$43 -> 2.514 | E15: U.S. EPA/ORD 1993
B16: beta | C16: =A02b!$C$44 -> 0.507 | E16: U.S. EPA/ORD 1993
A17: Caloric requirement per day | B17: KR | C17: = alpha x (BW x 1kg/1000g)beta
C18: =C15*((C13*1000)^C16) -> 52.43360149 | D18: kcal/day | E18: Eq
A19: Caloric content of commodity (dry weight) | B19: KCD | C19: ='A03'!$E$65 -> 2.26 | D19: kcal/gdw [Note 1] | E19: U.S. EPA/ORD 1993
A20: Food consumed per day (dry weight) | B20: AmntDry | C20: = KR ÷ KCD
C21: =C18/C19 -> 23.20070862 | D21: gdry/day | E21: Eq
A22: Water content of food item as a proportion | B22: PropWater | C22: ='A03'!$E$66 -> 0.85 | D22: gwater/gfood | E22: U.S. EPA/ORD 1993
A23: Dry weight content of food item as a proportion | B23: PropDry | C23: = 1-PropWater
C24: =1-C22 -> 0.15 | D24: gdry/gfood | E24: Eq
A25: Variability in caloric requirements not accounted for by allometric equation | B25: Error
B26: Central | C26: 1 | D26: Note 2
B27: Lower | C27: 0.3
B28: Upper | C28: 1.7
A29: Amount of food consumed per day, wet weight | B29: AmntFood | C29: = Error x (AmntDry ÷ PropDry) ÷ (1000g/kg)
B30: Central | C30: =C26*(C$21/C$24)/1000 -> 0.1546713908 | D30: kgfood/day | E30: Eq
B31: Lower | C31: =C27*(C$21/C$24)/1000 -> 0.04640141724 | E31: Eq
B32: Upper | C32: 0.2629413644 | E32: Eq
A33: Estimate
A34: Dose | B34: Dose | C34: = AmntFood × Conc / BW
B35: Central | C35: =$C30 * C9/C$13 -> 13.40166114 | D35: mg/kg bw/day | E35: Eq
B36: Lower | C36: =$C31 * C10/C$13 -> 1.369606927 | E36: Eq
B37: Upper | C37: =$C32 * C11/C$13 -> 67.03268647 | E37: Eq

Sheet F07c
A1: Consumption of Short grass by a Mammal, large after Acute exposure.
A2: Short Title | B2: Short grass | E2: FdKcalV6
A3: Receptor | B3: Mammal, large
A4: Duration | B4: Acute | E4: Scenario parameter
A5: Material consumed | B5: Short grass
A6: Parameter/Assumption | B6: Code / Range | C6: Equation/ Value | D6: Units | E6: Reference/Designation
A7: Commodity
A8: Concentration on consumed commodity | B8: Conc
B9: Central | C9: =B05c!Acute_C -> 34.65840986 | D9: mg/kg food wet weight | E9: ='B05c'!Acute_C
B10: Lower | C10: =B05c!Acute_L -> 11.80659565 | E10: ='B05c'!Acute_L
B11: Upper | C11: =B05c!Acute_U -> 101.9735889 | E11: ='B05c'!Acute_U
A12: Receptor
A13: Body weight | B13: BW | C13: =A02b!$C$61 -> 70 | D13: kg | E13: Default
A14: Allometric coefficients for caloric requirement per day in kilocalories and BW in grams
B15: alpha | C15: =A02b!$C$62 -> 1.518 | E15: U.S. EPA/ORD 1993
B16: beta | C16: =A02b!$C$63 -> 0.73 | E16: U.S. EPA/ORD 1993
A17: Caloric requirement per day | B17: KR | C17: = alpha x (BW x 1kg/1000g)beta
C18: =C15*((C13*1000)^C16) -> 5226.28803 | D18: kcal/day | E18: Eq
A19: Caloric content of commodity (dry weight) | B19: KCD | C19: ='A03'!$E$65 -> 2.26 | D19: kcal/gdw [Note 1] | E19: U.S. EPA/ORD 1993
A20: Food consumed per day (dry weight) | B20: AmntDry | C20: = KR ÷ KCD
C21: =C18/C19 -> 2312.516827 | D21: gdry/day | E21: Eq
A22: Water content of food item as a proportion | B22: PropWater | C22: ='A03'!$E$66 -> 0.85 | D22: gwater/gfood | E22: U.S. EPA/ORD 1993
A23: Dry weight content of food item as a proportion | B23: PropDry | C23: = 1-PropWater
C24: =1-C22 -> 0.15 | D24: gdry/gfood | E24: Eq
A25: Variability in caloric requirements not accounted for by allometric equation | B25: Error
B26: Central | C26: 1 | D26: Note 2
B27: Lower | C27: 0.3
B28: Upper | C28: 1.7
A29: Amount of food consumed per day, wet weight | B29: AmntFood | C29: = Error x (AmntDry ÷ PropDry) ÷ (1000g/kg)
B30: Central | C30: =C26*(C$21/C$24)/1000 -> 15.41677885 | D30: kgfood/day | E30: Eq
B31: Lower | C31: =C27*(C$21/C$24)/1000 -> 4.625033655 | E31: Eq
B32: Upper | C32: 26.20852404 | E32: Eq
A33: Estimate
A34: Dose | B34: Dose | C34: = AmntFood × Conc / BW
B35: Central | C35: =$C30 * C9/C$13 -> 7.633157716 | D35: mg/kg bw/day | E35: Eq
B36: Lower | C36: =$C31 * C10/C$13 -> 0.7800843174 | E36: Eq
B37: Upper | C37: =$C32 * C11/C$13 -> 38.17967508 | E37: Eq

Sheet F07d
A1: Consumption of Short grass by a Bird, small after Acute exposure.
A2: Short Title | B2: Short grass | E2: FdKcalV6
A3: Receptor | B3: Bird, small
A4: Duration | B4: Acute | E4: Scenario parameter
A5: Material consumed | B5: Short grass
A6: Parameter/Assumption | B6: Code / Range | C6: Equation/ Value | D6: Units | E6: Reference/Designation
A7: Commodity
A8: Concentration on consumed commodity | B8: Conc
B9: Central | C9: =B05c!Acute_C -> 34.65840986 | D9: mg/kg food wet weight | E9: ='B05c'!Acute_C
B10: Lower | C10: =B05c!Acute_L -> 11.80659565 | E10: ='B05c'!Acute_L
B11: Upper | C11: =B05c!Acute_U -> 101.9735889 | E11: ='B05c'!Acute_U
A12: Receptor
A13: Body weight | B13: BW | C13: =A02b!$C$31 -> 0.01 | D13: kg | E13: Default
A14: Allometric coefficients for caloric requirement per day in kilocalories and BW in grams
B15: alpha | C15: =A02b!$C$32 -> 3.12 | E15: U.S. EPA/ORD 1993
B16: beta | C16: =A02b!$C$33 -> 0.605 | E16: U.S. EPA/ORD 1993
A17: Caloric requirement per day | B17: KR | C17: = alpha x (BW x 1kg/1000g)beta
C18: =C15*((C13*1000)^C16) -> 12.56477147 | D18: kcal/day | E18: Eq
A19: Caloric content of commodity (dry weight) | B19: KCD | C19: ='A03'!$E$42 -> 2 | D19: kcal/gdw [Note 1] | E19: U.S. EPA/ORD 1993
A20: Food consumed per day (dry weight) | B20: AmntDry | C20: = KR ÷ KCD
C21: =C18/C19 -> 6.282385735 | D21: gdry/day | E21: Eq
A22: Water content of food item as a proportion | B22: PropWater | C22: ='A03'!$E$43 -> 0.85 | D22: gwater/gfood | E22: U.S. EPA/ORD 1993
A23: Dry weight content of food item as a proportion | B23: PropDry | C23: = 1-PropWater
C24: =1-C22 -> 0.15 | D24: gdry/gfood | E24: Eq
A25: Variability in caloric requirements not accounted for by allometric equation | B25: Error
B26: Central | C26: 1 | D26: Note 2
B27: Lower | C27: 0.3
B28: Upper | C28: 1.7
A29: Amount of food consumed per day, wet weight | B29: AmntFood | C29: = Error x (AmntDry ÷ PropDry) ÷ (1000g/kg)
B30: Central | C30: =C26*(C$21/C$24)/1000 -> 0.04188257157 | D30: kgfood/day | E30: Eq
B31: Lower | C31: =C27*(C$21/C$24)/1000 -> 0.01256477147 | E31: Eq
B32: Upper | C32: 0.07120037167 | E32: Eq
A33: Estimate
A34: Dose | B34: Dose | C34: = AmntFood × Conc / BW
B35: Central | C35: =$C30 * C9/C$13 -> 145.1583332 | D35: mg/kg bw/day | E35: Eq
B36: Lower | C36: =$C31 * C10/C$13 -> 14.83471762 | E36: Eq
B37: Upper | C37: =$C32 * C11/C$13 -> 726.0557428 | E37: Eq

Sheet F07e
A1: Consumption of Short grass by a Bird, large after Acute exposure.
A2: Short Title | B2: Short grass | E2: FdKcalV6
A3: Receptor | B3: Bird, large
A4: Duration | B4: Acute | E4: Scenario parameter
A5: Material consumed | B5: Short grass
A6: Parameter/Assumption | B6: Code / Range | C6: Equation/ Value | D6: Units | E6: Reference/Designation
A7: Commodity
A8: Concentration on consumed commodity | B8: Conc
B9: Central | C9: =B05c!Acute_C -> 34.65840986 | D9: mg/kg food wet weight | E9: ='B05c'!Acute_C
B10: Lower | C10: =B05c!Acute_L -> 11.80659565 | E10: ='B05c'!Acute_L
B11: Upper | C11: =B05c!Acute_U -> 101.9735889 | E11: ='B05c'!Acute_U
A12: Receptor
A13: Body weight | B13: BW | C13: =A02b!$C$15 -> 4 | D13: kg | E13: Default
A14: Allometric coefficients for caloric requirement per day in kilocalories and BW in grams
B15: alpha | C15: =A02b!$C$16 -> 1.146 | E15: U.S. EPA/ORD 1993
B16: beta | C16: =A02b!$C$17 -> 0.749 | E16: U.S. EPA/ORD 1993
A17: Caloric requirement per day | B17: KR | C17: = alpha x (BW x 1kg/1000g)beta
C18: =C15*((C13*1000)^C16) -> 571.6465031 | D18: kcal/day | E18: Eq
A19: Caloric content of commodity (dry weight) | B19: KCD | C19: ='A03'!$E$42 -> 2 | D19: kcal/gdw [Note 1] | E19: U.S. EPA/ORD 1993
A20: Food consumed per day (dry weight) | B20: AmntDry | C20: = KR ÷ KCD
C21: =C18/C19 -> 285.8232515 | D21: gdry/day | E21: Eq
A22: Water content of food item as a proportion | B22: PropWater | C22: ='A03'!$E$43 -> 0.85 | D22: gwater/gfood | E22: U.S. EPA/ORD 1993
A23: Dry weight content of food item as a proportion | B23: PropDry | C23: = 1-PropWater
C24: =1-C22 -> 0.15 | D24: gdry/gfood | E24: Eq
A25: Variability in caloric requirements not accounted for by allometric equation | B25: Error
B26: Central | C26: 1 | D26: Note 2
B27: Lower | C27: 0.3
B28: Upper | C28: 1.7
A29: Amount of food consumed per day, wet weight | B29: AmntFood | C29: = Error x (AmntDry ÷ PropDry) ÷ (1000g/kg)
B30: Central | C30: =C26*(C$21/C$24)/1000 -> 1.905488344 | D30: kgfood/day | E30: Eq
B31: Lower | C31: =C27*(C$21/C$24)/1000 -> 0.5716465031 | E31: Eq
B32: Upper | C32: 3.239330184 | E32: Eq
A33: Estimate
A34: Dose | B34: Dose | C34: = AmntFood × Conc / BW
B35: Central | C35: =$C30 * C9/C$13 -> 16.510299 | D35: mg/kg bw/day | E35: Eq
B36: Lower | C36: =$C31 * C10/C$13 -> 1.687299779 | E36: Eq
B37: Upper | C37: =$C32 * C11/C$13 -> 82.5815311 | E37: Eq

Sheet F08a
A1: Consumption of contaminated water by Mammal, small, Peak Concentrations
A2: Short Title | B2: Peak Concentrations | E2: WatAlloV6
A3: Receptor | B3: Mammal, small
A4: Duration | B4: Acute | E4: Scenario parameter
A5: Parameter/Assumption | B5: Code / Range | C5: Equation/ Value | D5: Units | E5: Reference/Designation
A6: Concentration in water | B6: ConcWat
B7: Central | C7: =B04a!Acute_C -> 0.01152 | D7: mg/L | E7: ='B04a'!Acute_C
B8: Lower | C8: =B04a!Acute_L -> 0.001152 | E8: ='B04a'!Acute_L
B9: Upper | C9: =B04a!Acute_U -> 0.1312 | E9: ='B04a'!Acute_U
A10: Receptor
A11: Body weight | B11: BW | C11: =A02b!$C$71 -> 0.02 | D11: kg | E11: Default
A12: Allometric coefficients forwater consumption per day in liters and BW in kilograms
B13: alpha | C13: =A02b!$C$79 -> 0.099 | E13: U.S. EPA/ORD 1993
B14: beta | C14: =A02b!$C$80 -> 0.9 | E14: U.S. EPA/ORD 1993
A15: Amount of water consumed per day | C15: Amnt = alpha BW beta
B16: Amnt | C16: =C13*(C11^C14) -> 0.002927940121 | D16: liters | E16: Eq
A17: Absorbed Dose | B17: Dose | C17: ConcWat × Amnt ÷ BW
B18: Central | C18: =C7*C$16/C$11 -> 0.001686493509 | D18: mg/kg | E18: Eq
B19: Lower | C19: =C8*C$16/C$11 -> 0.0001686493509 | D19: mg/kg | E19: Eq
B20: Upper | C20: =C9*C$16/C$11 -> 0.01920728719 | D20: mg/kg | E20: Eq

Sheet F08b
A1: Consumption of contaminated water by Mammal, 400 g, Peak Concentrations
A2: Short Title | B2: Peak Concentrations | E2: WatAlloV6
A3: Receptor | B3: Mammal, 400 g
A4: Duration | B4: Acute | E4: Scenario parameter
A5: Parameter/Assumption | B5: Code / Range | C5: Equation/ Value | D5: Units | E5: Reference/Designation
A6: Concentration in water | B6: ConcWat
B7: Central | C7: =B04a!Acute_C -> 0.01152 | D7: mg/L | E7: ='B04a'!Acute_C
B8: Lower | C8: =B04a!Acute_L -> 0.001152 | E8: ='B04a'!Acute_L
B9: Upper | C9: =B04a!Acute_U -> 0.1312 | E9: ='B04a'!Acute_U
A10: Receptor
A11: Body weight | B11: BW | C11: =A02b!$C$40 -> 0.4 | D11: kg | E11: Default
A12: Allometric coefficients forwater consumption per day in liters and BW in kilograms
B13: alpha | C13: =A02b!$C$45 -> 0.099 | E13: U.S. EPA/ORD 1993
B14: beta | C14: =A02b!$C$46 -> 0.9 | E14: U.S. EPA/ORD 1993
A15: Amount of water consumed per day | C15: Amnt = alpha BW beta
B16: Amnt | C16: =C13*(C11^C14) -> 0.04339994576 | D16: liters | E16: Eq
A17: Absorbed Dose | B17: Dose | C17: ConcWat × Amnt ÷ BW
B18: Central | C18: =C7*C$16/C$11 -> 0.001249918438 | D18: mg/kg | E18: Eq
B19: Lower | C19: =C8*C$16/C$11 -> 0.0001249918438 | D19: mg/kg | E19: Eq
B20: Upper | C20: =C9*C$16/C$11 -> 0.01423518221 | D20: mg/kg | E20: Eq

Sheet F08c
A1: Consumption of contaminated water by Mammal, carnivorous, Peak Concentrations
A2: Short Title | B2: Peak Concentrations | E2: WatAlloV6
A3: Receptor | B3: Mammal, carnivorous
A4: Duration | B4: Acute | E4: Scenario parameter
A5: Parameter/Assumption | B5: Code / Range | C5: Equation/ Value | D5: Units | E5: Reference/Designation
A6: Concentration in water | B6: ConcWat
B7: Central | C7: =B04a!Acute_C -> 0.01152 | D7: mg/L | E7: ='B04a'!Acute_C
B8: Lower | C8: =B04a!Acute_L -> 0.001152 | E8: ='B04a'!Acute_L
B9: Upper | C9: =B04a!Acute_U -> 0.1312 | E9: ='B04a'!Acute_U
A10: Receptor
A11: Body weight | B11: BW | C11: =A02b!$C$47 -> 5 | D11: kg | E11: U.S. EPA/ORD 1993
A12: Allometric coefficients forwater consumption per day in liters and BW in kilograms
B13: alpha | C13: =A02b!$C$50 -> 0.099 | E13: U.S. EPA/ORD 1993
B14: beta | C14: =A02b!$C$51 -> 0.9 | E14: U.S. EPA/ORD 1993
A15: Amount of water consumed per day | C15: Amnt = alpha BW beta
B16: Amnt | C16: =C13*(C11^C14) -> 0.4214132616 | D16: liters | E16: Eq
A17: Absorbed Dose | B17: Dose | C17: ConcWat × Amnt ÷ BW
B18: Central | C18: =C7*C$16/C$11 -> 0.0009709361548 | D18: mg/kg | E18: Eq
B19: Lower | C19: =C8*C$16/C$11 -> 9.709361548e-05 | D19: mg/kg | E19: Eq
B20: Upper | C20: =C9*C$16/C$11 -> 0.01105788399 | D20: mg/kg | E20: Eq

Sheet F08d
A1: Consumption of contaminated water by Mammal, large, Peak Concentrations
A2: Short Title | B2: Peak Concentrations | E2: WatAlloV6
A3: Receptor | B3: Mammal, large
A4: Duration | B4: Acute | E4: Scenario parameter
A5: Parameter/Assumption | B5: Code / Range | C5: Equation/ Value | D5: Units | E5: Reference/Designation
A6: Concentration in water | B6: ConcWat
B7: Central | C7: =B04a!Acute_C -> 0.01152 | D7: mg/L | E7: ='B04a'!Acute_C
B8: Lower | C8: =B04a!Acute_L -> 0.001152 | E8: ='B04a'!Acute_L
B9: Upper | C9: =B04a!Acute_U -> 0.1312 | E9: ='B04a'!Acute_U
A10: Receptor
A11: Body weight | B11: BW | C11: =A02b!$C$61 -> 70 | D11: kg | E11: Default
A12: Allometric coefficients forwater consumption per day in liters and BW in kilograms
B13: alpha | C13: =A02b!$C$64 -> 0.099 | E13: U.S. EPA/ORD 1993
B14: beta | C14: =A02b!$C$65 -> 0.9 | E14: U.S. EPA/ORD 1993
A15: Amount of water consumed per day | C15: Amnt = alpha BW beta
B16: Amnt | C16: =C13*(C11^C14) -> 4.531306412 | D16: liters | E16: Eq
A17: Absorbed Dose | B17: Dose | C17: ConcWat × Amnt ÷ BW
B18: Central | C18: =C7*C$16/C$11 -> 0.0007457235694 | D18: mg/kg | E18: Eq
B19: Lower | C19: =C8*C$16/C$11 -> 7.457235694e-05 | D19: mg/kg | E19: Eq
B20: Upper | C20: =C9*C$16/C$11 -> 0.008492962874 | D20: mg/kg | E20: Eq

Sheet F08e
A1: Consumption of contaminated water by Bird, small, Peak Concentrations
A2: Short Title | B2: Peak Concentrations | E2: WatAlloV6
A3: Receptor | B3: Bird, small
A4: Duration | B4: Acute | E4: Scenario parameter
A5: Parameter/Assumption | B5: Code / Range | C5: Equation/ Value | D5: Units | E5: Reference/Designation
A6: Concentration in water | B6: ConcWat
B7: Central | C7: =B04a!Acute_C -> 0.01152 | D7: mg/L | E7: ='B04a'!Acute_C
B8: Lower | C8: =B04a!Acute_L -> 0.001152 | E8: ='B04a'!Acute_L
B9: Upper | C9: =B04a!Acute_U -> 0.1312 | E9: ='B04a'!Acute_U
A10: Receptor
A11: Body weight | B11: BW | C11: =A02b!$C$31 -> 0.01 | D11: kg | E11: Default
A12: Allometric coefficients forwater consumption per day in liters and BW in kilograms
B13: alpha | C13: =A02b!$C$34 -> 0.059 | E13: U.S. EPA/ORD 1993
B14: beta | C14: =A02b!$C$35 -> 0.67 | E14: U.S. EPA/ORD 1993
A15: Amount of water consumed per day | C15: Amnt = alpha BW beta
B16: Amnt | C16: =C13*(C11^C14) -> 0.002696820319 | D16: liters | E16: Eq
A17: Absorbed Dose | B17: Dose | C17: ConcWat × Amnt ÷ BW
B18: Central | C18: =C7*C$16/C$11 -> 0.003106737007 | D18: mg/kg | E18: Eq
B19: Lower | C19: =C8*C$16/C$11 -> 0.0003106737007 | D19: mg/kg | E19: Eq
B20: Upper | C20: =C9*C$16/C$11 -> 0.03538228258 | D20: mg/kg | E20: Eq

Sheet F08f
A1: Consumption of contaminated water by Bird, large, Peak Concentrations
A2: Short Title | B2: Peak Concentrations | E2: WatAlloV6
A3: Receptor | B3: Bird, large
A4: Duration | B4: Acute | E4: Scenario parameter
A5: Parameter/Assumption | B5: Code / Range | C5: Equation/ Value | D5: Units | E5: Reference/Designation
A6: Concentration in water | B6: ConcWat
B7: Central | C7: =B04a!Acute_C -> 0.01152 | D7: mg/L | E7: ='B04a'!Acute_C
B8: Lower | C8: =B04a!Acute_L -> 0.001152 | E8: ='B04a'!Acute_L
B9: Upper | C9: =B04a!Acute_U -> 0.1312 | E9: ='B04a'!Acute_U
A10: Receptor
A11: Body weight | B11: BW | C11: =A02b!$C$15 -> 4 | D11: kg | E11: Default
A12: Allometric coefficients forwater consumption per day in liters and BW in kilograms
B13: alpha | C13: =A02b!$C$18 -> 0.059 | E13: U.S. EPA/ORD 1993
B14: beta | C14: =A02b!$C$19 -> 0.67 | E14: U.S. EPA/ORD 1993
A15: Amount of water consumed per day | C15: Amnt = alpha BW beta
B16: Amnt | C16: =C13*(C11^C14) -> 0.1493592781 | D16: liters | E16: Eq
A17: Absorbed Dose | B17: Dose | C17: ConcWat × Amnt ÷ BW
B18: Central | C18: =C7*C$16/C$11 -> 0.0004301547209 | D18: mg/kg | E18: Eq
B19: Lower | C19: =C8*C$16/C$11 -> 4.301547209e-05 | D19: mg/kg | E19: Eq
B20: Upper | C20: =C9*C$16/C$11 -> 0.004898984321 | D20: mg/kg | E20: Eq

Sheet F09a
A1: Consumption of Small Insects by a Mammal, small after Acute exposure.
A2: Short Title | B2: Small Insects | E2: FdKcalV6
A3: Receptor | B3: Mammal, small
A4: Duration | B4: Acute | E4: Scenario parameter
A5: Material consumed | B5: Small Insects
A6: Parameter/Assumption | B6: Code / Range | C6: Equation/ Value | D6: Units | E6: Reference/Designation
A7: Commodity
A8: Concentration on consumed commodity | B8: Conc
B9: Central | C9: =B05b!Acute_C -> 18.34856993 | D9: mg/kg food wet weight | E9: ='B05b'!Acute_C
B10: Lower | C10: =B05b!Acute_L -> 5.903297824 | E10: ='B05b'!Acute_L
B11: Upper | C11: =B05b!Acute_U -> 57.36014374 | E11: ='B05b'!Acute_U
A12: Receptor
A13: Body weight | B13: BW | C13: =A02b!$C$71 -> 0.02 | D13: kg | E13: Default
A14: Allometric coefficients for caloric requirement per day in kilocalories and BW in grams
B15: alpha | C15: =A02b!$C$75 -> 2.514 | E15: U.S. EPA/ORD 1993
B16: beta | C16: =A02b!$C$76 -> 0.507 | E16: U.S. EPA/ORD 1993
A17: Caloric requirement per day | B17: KR | C17: = alpha x (BW x 1kg/1000g)beta
C18: =C15*((C13*1000)^C16) -> 11.48120526 | D18: kcal/day | E18: Eq
A19: Caloric content of commodity (dry weight) | B19: KCD | C19: ='A03'!$E$63 -> 4.47 | D19: kcal/gdw [Note 1] | E19: U.S. EPA/ORD 1993
A20: Food consumed per day (dry weight) | B20: AmntDry | C20: = KR ÷ KCD
C21: =C18/C19 -> 2.568502294 | D21: gdry/day | E21: Eq
A22: Water content of food item as a proportion | B22: PropWater | C22: ='A03'!$E$64 -> 0.7 | D22: gwater/gfood | E22: Chapman 1998
A23: Dry weight content of food item as a proportion | B23: PropDry | C23: = 1-PropWater
C24: =1-C22 -> 0.3 | D24: gdry/gfood | E24: Eq
A25: Variability in caloric requirements not accounted for by allometric equation | B25: Error
B26: Central | C26: 1 | D26: Note 2
B27: Lower | C27: 0.3
B28: Upper | C28: 1.7
A29: Amount of food consumed per day, wet weight | B29: AmntFood | C29: = Error x (AmntDry ÷ PropDry) ÷ (1000g/kg)
B30: Central | C30: =C26*(C$21/C$24)/1000 -> 0.008561674315 | D30: kgfood/day | E30: Eq
B31: Lower | C31: =C27*(C$21/C$24)/1000 -> 0.002568502294 | E31: Eq
B32: Upper | C32: 0.01455484634 | E32: Eq
A33: Estimate
A34: Dose | B34: Dose | C34: = AmntFood × Conc / BW
B35: Central | C35: =$C30 * C9/C$13 -> 7.854723993 | D35: mg/kg bw/day | E35: Eq
B36: Lower | C36: =$C31 * C10/C$13 -> 0.7581317003 | E36: Eq
B37: Upper | C37: =$C32 * C11/C$13 -> 41.74340389 | E37: Eq

Sheet F09b
A1: Consumption of Small Insects by a Mammal, 400 g after Acute exposure.
A2: Short Title | B2: Small Insects | E2: FdKcalV6
A3: Receptor | B3: Mammal, 400 g
A4: Duration | B4: Acute | E4: Scenario parameter
A5: Material consumed | B5: Small Insects
A6: Parameter/Assumption | B6: Code / Range | C6: Equation/ Value | D6: Units | E6: Reference/Designation
A7: Commodity
A8: Concentration on consumed commodity | B8: Conc
B9: Central | C9: =B05b!Acute_C -> 18.34856993 | D9: mg/kg food wet weight | E9: ='B05b'!Acute_C
B10: Lower | C10: =B05b!Acute_L -> 5.903297824 | E10: ='B05b'!Acute_L
B11: Upper | C11: =B05b!Acute_U -> 57.36014374 | E11: ='B05b'!Acute_U
A12: Receptor
A13: Body weight | B13: BW | C13: =A02b!$C$40 -> 0.4 | D13: kg | E13: Default
A14: Allometric coefficients for caloric requirement per day in kilocalories and BW in grams
B15: alpha | C15: =A02b!$C$43 -> 2.514 | E15: U.S. EPA/ORD 1993
B16: beta | C16: =A02b!$C$44 -> 0.507 | E16: U.S. EPA/ORD 1993
A17: Caloric requirement per day | B17: KR | C17: = alpha x (BW x 1kg/1000g)beta
C18: =C15*((C13*1000)^C16) -> 52.43360149 | D18: kcal/day | E18: Eq
A19: Caloric content of commodity (dry weight) | B19: KCD | C19: ='A03'!$E$63 -> 4.47 | D19: kcal/gdw [Note 1] | E19: U.S. EPA/ORD 1993
A20: Food consumed per day (dry weight) | B20: AmntDry | C20: = KR ÷ KCD
C21: =C18/C19 -> 11.73011219 | D21: gdry/day | E21: Eq
A22: Water content of food item as a proportion | B22: PropWater | C22: ='A03'!$E$64 -> 0.7 | D22: gwater/gfood | E22: Chapman 1998
A23: Dry weight content of food item as a proportion | B23: PropDry | C23: = 1-PropWater
C24: =1-C22 -> 0.3 | D24: gdry/gfood | E24: Eq
A25: Variability in caloric requirements not accounted for by allometric equation | B25: Error
B26: Central | C26: 1 | D26: Note 2
B27: Lower | C27: 0.3
B28: Upper | C28: 1.7
A29: Amount of food consumed per day, wet weight | B29: AmntFood | C29: = Error x (AmntDry ÷ PropDry) ÷ (1000g/kg)
B30: Central | C30: =C26*(C$21/C$24)/1000 -> 0.03910037396 | D30: kgfood/day | E30: Eq
B31: Lower | C31: =C27*(C$21/C$24)/1000 -> 0.01173011219 | E31: Eq
B32: Upper | C32: 0.06647063574 | E32: Eq
A33: Estimate
A34: Dose | B34: Dose | C34: = AmntFood × Conc / BW
B35: Central | C35: =$C30 * C9/C$13 -> 1.793589865 | D35: mg/kg bw/day | E35: Eq
B36: Lower | C36: =$C31 * C10/C$13 -> 0.1731158644 | E36: Eq
B37: Upper | C37: =$C32 * C11/C$13 -> 9.531913051 | E37: Eq

Sheet F09c
A1: Consumption of Small Insects by a Bird, small after Acute exposure.
A2: Short Title | B2: Small Insects | E2: FdKcalV6
A3: Receptor | B3: Bird, small
A4: Duration | B4: Acute | E4: Scenario parameter
A5: Material consumed | B5: Small Insects
A6: Parameter/Assumption | B6: Code / Range | C6: Equation/ Value | D6: Units | E6: Reference/Designation
A7: Commodity
A8: Concentration on consumed commodity | B8: Conc
B9: Central | C9: =B05b!Acute_C -> 18.34856993 | D9: mg/kg food wet weight | E9: ='B05b'!Acute_C
B10: Lower | C10: =B05b!Acute_L -> 5.903297824 | E10: ='B05b'!Acute_L
B11: Upper | C11: =B05b!Acute_U -> 57.36014374 | E11: ='B05b'!Acute_U
A12: Receptor
A13: Body weight | B13: BW | C13: =A02b!$C$31 -> 0.01 | D13: kg | E13: Default
A14: Allometric coefficients for caloric requirement per day in kilocalories and BW in grams
B15: alpha | C15: =A02b!$C$32 -> 3.12 | E15: U.S. EPA/ORD 1993
B16: beta | C16: =A02b!$C$33 -> 0.605 | E16: U.S. EPA/ORD 1993
A17: Caloric requirement per day | B17: KR | C17: = alpha x (BW x 1kg/1000g)beta
C18: =C15*((C13*1000)^C16) -> 12.56477147 | D18: kcal/day | E18: Eq
A19: Caloric content of commodity (dry weight) | B19: KCD | C19: ='A03'!$E$40 -> 4.3 | D19: kcal/gdw [Note 1] | E19: U.S. EPA/ORD 1993
A20: Food consumed per day (dry weight) | B20: AmntDry | C20: = KR ÷ KCD
C21: =C18/C19 -> 2.922039877 | D21: gdry/day | E21: Eq
A22: Water content of food item as a proportion | B22: PropWater | C22: ='A03'!$E$41 -> 0.7 | D22: gwater/gfood | E22: Chapman 1998
A23: Dry weight content of food item as a proportion | B23: PropDry | C23: = 1-PropWater
C24: =1-C22 -> 0.3 | D24: gdry/gfood | E24: Eq
A25: Variability in caloric requirements not accounted for by allometric equation | B25: Error
B26: Central | C26: 1 | D26: Note 2
B27: Lower | C27: 0.3
B28: Upper | C28: 1.7
A29: Amount of food consumed per day, wet weight | B29: AmntFood | C29: = Error x (AmntDry ÷ PropDry) ÷ (1000g/kg)
B30: Central | C30: =C26*(C$21/C$24)/1000 -> 0.009740132923 | D30: kgfood/day | E30: Eq
B31: Lower | C31: =C27*(C$21/C$24)/1000 -> 0.002922039877 | E31: Eq
B32: Upper | C32: 0.01655822597 | E32: Eq
A33: Estimate
A34: Dose | B34: Dose | C34: = AmntFood × Conc / BW
B35: Central | C35: =$C30 * C9/C$13 -> 17.871751 | D35: mg/kg bw/day | E35: Eq
B36: Lower | C36: =$C31 * C10/C$13 -> 1.724967165 | E36: Eq
B37: Upper | C37: =$C32 * C11/C$13 -> 94.97822216 | E37: Eq

Sheet F10a
A1: Consumption of Small Mammal by Mammal, carnivorous, acute exposure scenario
A2: Short Title | B2: Consumption of Abrev(Prey) | E2: SmMKcalInd_Ac
A3: Predator | B3: Mammal, carnivorous
A4: Duration | B4: Acute
A5: Prey | B5: Mammal, small
A6: Parameter/Assumption | B6: Code / Range | C6: Equation/ Value | D6: Units | E6: Reference/Designation
A7: Application rate, lb/acre | B7: ApRlb/ac | C7: ='A01'!ApRt_C -> 0.32 | D7: lb/acre | E7: Worksheet A01
A8: Conversion Factor for lbs/acre to mg/cm2 | B8: CnvF | C8: 0.01121 | D8: mg/cm2/lb/acre
A9: Application rate, mg/cm2 | B9: ApRmgcm | C9: ApRlb/a × CnvF
C10: =C7*C$8 -> 0.0035872 | D10: lb/acre | E10: Eq
A11: Prey
A12: Body weight | B12: BWPrey | C12: =A02b!$C$71 -> 0.02 | D12: kg | E12: Default
A13: Allometric coefficients for surface area
B14: alpha | C14: =A02b!$C$77 -> 0.11 | E14: U.S. EPA/ORD 1993
B15: beta | C15: =A02b!$C$78 -> 0.65 | E15: U.S. EPA/ORD 1993
A16: Surface Area of Prey Species (m2) | B16: SAPreyM | C16: alpha x Bwbeta
C17: =C14 * C12^C15 -> 0.008650917739 | D17: meters
A18: Surface Area of Prey Species (cm2) | B18: SAPrey | C18: SAPreyM x 10,000 cm/m2
C19: =C17*10000 -> 86.50917739 | D19: cm2 | E19: Eq
A20: Proportion of body surface sprayed | B20: PrpSA | C20: 0.5 | D20: unitless | E20: Scenario parameter
A21: Amount Deposited on Skin | B21: AmntPrey | C21: ApRmgcm × SA × PrpSA
B22: Central | C22: =C$10*C$19*C$20 -> 0.1551628606 | D22: mg | E22: Eq
A23: Toxic Equivalency Factor for formulation: (See risk assessment if this has a value other than 1.) | B23: TEF
B24: Central | C24: ='A01'!C$35 -> 1 | D24: unitless | E24: Worksheet A01
B25: Lower | C25: ='A01'!C$36 -> 1 | E25: Worksheet A01
B26: Upper | C26: ='A01'!C$37 -> 1 | E26: Worksheet A01
A27: Concentration on prey item after direct spray | B27: DosePrey | C27: NPrey x Amnt x TEF ÷ BW
B28: Central | C28: =C$22*C24/C$12 -> 7.758143028 | D28: mg/kg bw | E28: Eq
B29: Lower | C29: =C$22*C25/C$12 -> 7.758143028 | E29: Eq
B30: Upper | C30: =C$22*C26/C$12 -> 7.758143028 | E30: Eq
A31: Predator
A32: Body weight | B32: BW | C32: =A02b!$C$47 -> 5 | D32: kg | E32: U.S. EPA/ORD 1993
A33: Allometric coefficients for caloric requirement per day in kilocalories and BW in grams
B34: alpha | C34: =A02b!$C$48 -> 0.6167 | E34: U.S. EPA/ORD 1993
B35: beta | C35: =A02b!$C$49 -> 0.862 | E35: U.S. EPA/ORD 1993
A36: Caloric requirement per day | B36: KR | C36: =C34*((C32*1000)^C35) -> 951.8885266 | D36: kcal/day | E36: Eq
A37: Caloric content of prey (wet weight) | B37: KCW | C37: =A02b!$C$72 -> 1.7 | D37: kcal/g | E37: U.S. EPA/ORD 1993
A38: Variability in caloric requirements not accounted for by allometric equation | B38: Error
B39: Central | C39: 1 | D39: Note 1
B40: Lower | C40: 0.3
B41: Upper | C41: 1.7
A42: Amount of food consumed per day, wet weight | B42: Amnt | C42: (KR ÷ KCW)/1000 g/kg
C43: =(C36/C37)/1000 -> 0.5599344274 | D43: kg | E43: Eq
A44: Dose | B44: Dose | C44: Error × Amnt × DosePrey / BW
B45: Central | C45: =C39* C$43 * C28/C$32 -> 0.8688102748 | D45: mg/kg bw | E45: Eq
B46: Lower | C46: =C40* C$43 * C29/C$32 -> 0.2606430824 | E46: Eq
B47: Upper | C47: 1.476977467 | E47: Eq

Sheet F10b
A1: Consumption of Small Mammal by Bird, carnivorous, acute exposure scenario
A2: Short Title | B2: Consumption of Abrev(Prey) | E2: SmMKcalInd_Ac
A3: Predator | B3: Bird, carnivorous
A4: Duration | B4: Acute
A5: Prey | B5: Mammal, small
A6: Parameter/Assumption | B6: Code / Range | C6: Equation/ Value | D6: Units | E6: Reference/Designation
A7: Application rate, lb/acre | B7: ApRlb/ac | C7: ='A01'!ApRt_C -> 0.32 | D7: lb/acre | E7: Worksheet A01
A8: Conversion Factor for lbs/acre to mg/cm2 | B8: CnvF | C8: 0.01121 | D8: mg/cm2/lb/acre
A9: Application rate, mg/cm2 | B9: ApRmgcm | C9: ApRlb/a × CnvF
C10: =C7*C$8 -> 0.0035872 | D10: lb/acre | E10: Eq
A11: Prey
A12: Body weight | B12: BWPrey | C12: =A02b!$C$71 -> 0.02 | D12: kg | E12: Default
A13: Allometric coefficients for surface area
B14: alpha | C14: =A02b!$C$77 -> 0.11 | E14: U.S. EPA/ORD 1993
B15: beta | C15: =A02b!$C$78 -> 0.65 | E15: U.S. EPA/ORD 1993
A16: Surface Area of Prey Species (m2) | B16: SAPreyM | C16: alpha x Bwbeta
C17: =C14 * C12^C15 -> 0.008650917739 | D17: meters
A18: Surface Area of Prey Species (cm2) | B18: SAPrey | C18: SAPreyM x 10,000 cm/m2
C19: =C17*10000 -> 86.50917739 | D19: cm2 | E19: Eq
A20: Proportion of body surface sprayed | B20: PrpSA | C20: 0.5 | D20: unitless | E20: Scenario parameter
A21: Amount Deposited on Skin | B21: AmntPrey | C21: ApRmgcm × SA × PrpSA
B22: Central | C22: =C$10*C$19*C$20 -> 0.1551628606 | D22: mg | E22: Eq
A23: Toxic Equivalency Factor for formulation: (See risk assessment if this has a value other than 1.) | B23: TEF
B24: Central | C24: ='A01'!C$35 -> 1 | D24: unitless | E24: Worksheet A01
B25: Lower | C25: ='A01'!C$36 -> 1 | E25: Worksheet A01
B26: Upper | C26: ='A01'!C$37 -> 1 | E26: Worksheet A01
A27: Concentration on prey item after direct spray | B27: DosePrey | C27: NPrey x Amnt x TEF ÷ BW
B28: Central | C28: =C$22*C24/C$12 -> 7.758143028 | D28: mg/kg bw | E28: Eq
B29: Lower | C29: =C$22*C25/C$12 -> 7.758143028 | E29: Eq
B30: Upper | C30: =C$22*C26/C$12 -> 7.758143028 | E30: Eq
A31: Predator
A32: Body weight | B32: BW | C32: =A02b!$C$10 -> 0.64 | D32: kg | E32: Dunning 1993
A33: Allometric coefficients for caloric requirement per day in kilocalories and BW in grams
B34: alpha | C34: =A02b!$C$11 -> 1.146 | E34: U.S. EPA/ORD 1993
B35: beta | C35: =A02b!$C$12 -> 0.749 | E35: U.S. EPA/ORD 1993
A36: Caloric requirement per day | B36: KR | C36: =C34*((C32*1000)^C35) -> 144.8816616 | D36: kcal/day | E36: Eq
A37: Caloric content of prey (wet weight) | B37: KCW | C37: =A02b!$C$72 -> 1.7 | D37: kcal/g | E37: U.S. EPA/ORD 1993
A38: Variability in caloric requirements not accounted for by allometric equation | B38: Error
B39: Central | C39: 1 | D39: Note 1
B40: Lower | C40: 0.3
B41: Upper | C41: 1.7
A42: Amount of food consumed per day, wet weight | B42: Amnt | C42: (KR ÷ KCW)/1000 g/kg
C43: =(C36/C37)/1000 -> 0.08522450683 | D43: kg | E43: Eq
A44: Dose | B44: Dose | C44: Error × Amnt × DosePrey / BW
B45: Central | C45: =C39* C$43 * C28/C$32 -> 1.033099865 | D45: mg/kg bw | E45: Eq
B46: Lower | C46: =C40* C$43 * C29/C$32 -> 0.3099299594 | E46: Eq
B47: Upper | C47: 1.75626977 | E47: Eq

Sheet F11a
A1: Acute scenario for the consumption of Contaminated Fish (Peak) by Mammal, large carnivorous
A2: Short Title | B2: Fish consumption, accidental spill | E2: FishKcalV6
A3: Predator | B3: Mammal, large carnivorous
A4: Food Item (Prey) | B4: Fish
A5: Duration | B5: Acute | E5: Scenario parameter
A6: Parameter/Assumption | B6: Code / Range | C6: Equation/ Value | D6: Units | E6: Reference/Designation
A7: Water
A8: Concentration in water | B8: ConcWat
B9: Central | C9: =B04a!Acute_C -> 0.01152 | D9: mg/L | E9: ='B04a'!Acute_C
B10: Lower | C10: =B04a!Acute_L -> 0.001152 | E10: ='B04a'!Acute_L
B11: Upper | C11: =B04a!Acute_U -> 0.1312 | E11: ='B04a'!Acute_U
A12: Fish
A13: Bioconcentration factor | B13: BCF
B14: Central | C14: ='B01'!$C$6 -> 410 | D14: L/kg | E14: MRID 93196
B15: Lower | C15: ='B01'!$C$6 -> 410 | E15: MRID 93196
B16: Upper | C16: ='B01'!$C$6 -> 410 | E16: MRID 93196
A17: Concentration in fish | B17: ConcFish | C17: ConcWat × BCF
B18: Central | C18: =C9*C14 -> 4.7232 | D18: mg/kg | E18: Eq
B19: Lower | C19: =C10*C15 -> 0.47232 | E19: Eq
B20: Upper | C20: =C11*C16 -> 53.792 | E20: Eq
A21: Receptor
A22: Body weight | B22: BW | C22: =A02b!$C$52 -> 70 | D22: kg | E22: Reid 2006
A23: Allometric coefficients for caloric requirement per day in kilocalories and BW in grams
B24: alpha | C24: =A02b!$C$53 -> 0.6167 | E24: U.S. EPA/ORD 1993
B25: beta | C25: =A02b!$C$54 -> 0.862 | E25: U.S. EPA/ORD 1993
A26: Caloric requirement per day | B26: KR | C26: =C24*(C22*1000)^C25 -> 9258.666883 | D26: kcal/day | E26: Eq
A27: Caloric content of commodity (dry weight) | B27: KCD | C27: ='A03'!$E$59 -> 4.47 | D27: kcal/gdw [Note 1] | E27: U.S. EPA/ORD 1993
A28: Food consumed per day (dry weight) | B28: AmntDry | C28: = KR ÷ KCD
C29: =C26/C27 -> 2071.29013 | D29: gdry/day | E29: Eq
A30: Water content of vegetation as a proportion | B30: PropWater | C30: ='A03'!$E$60 -> 0.7 | D30: gwater/gfood | E30: Ali et al. 2005
A31: Dry weight content of vegetation as a proportion | B31: PropDry | C31: = 1-PropWater
C32: =1-C30 -> 0.3 | D32: gdry/gfood | E32: Eq
A33: Amount of fish consumed per day, wet weight | B33: AmntFish | C33: = (AmntDry ÷ PropDry) ÷ (1000g/kg)
B34: Central | C34: =(C29/C32)/1000 -> 6.904300435 | D34: kgfood/day | E34: Eq
B35: Lower | C35: =C34*0.3 -> 2.07129013 | D35: Note 1 | E35: Eq
B36: Upper | C36: =C34*1.7 -> 11.73731074 | D36: Note 1 | E36: Eq
A37: Proportion of diet that is contaminated | B37: Prop
B38: Central | C38: 0.3 | D38: Unitless | E38: Scenario parameter
B39: Lower | C39: 0.1 | E39: Scenario parameter
B40: Upper | C40: 1 | E40: Scenario parameter
A41: Dose
A42: Toxic Equivalency Factor for formulation: (See risk assessment if this has a value other than 1.) | B42: TEF
B43: Central | C43: ='A01'!C$35 -> 1 | D43: Unitless | E43: Worksheet A01
B44: Lower | C44: ='A01'!C$36 -> 1 | D44: Note 2 | E44: Worksheet A01
B45: Upper | C45: ='A01'!C$37 -> 1 | D45: Note 2 | E45: Worksheet A01
A46: Dose | B46: Dose | C46: = ConcFish × AmntFish × Prop ÷ BW
B47: Central | C47: =C18*C34*C38/C$22 -> 0.1397588221 | D47: mg/kg | E47: Eq
B48: Lower | C48: =C19*C35*C39/C$22 -> 0.001397588221 | D48: mg/kg | E48: Eq
B49: Upper | C49: 9.019620275 | D49: mg/kg | E49: Eq
E50: FishKcalV6

Sheet F11b
A1: Acute scenario for the consumption of Contaminated Fish (Peak) by Mammal, carnivorous
A2: Short Title | B2: Fish consumption, accidental spill | E2: FishKcalV6
A3: Predator | B3: Mammal, carnivorous
A4: Food Item (Prey) | B4: Fish
A5: Duration | B5: Acute | E5: Scenario parameter
A6: Parameter/Assumption | B6: Code / Range | C6: Equation/ Value | D6: Units | E6: Reference/Designation
A7: Water
A8: Concentration in water | B8: ConcWat
B9: Central | C9: =B04a!Acute_C -> 0.01152 | D9: mg/L | E9: ='B04a'!Acute_C
B10: Lower | C10: =B04a!Acute_L -> 0.001152 | E10: ='B04a'!Acute_L
B11: Upper | C11: =B04a!Acute_U -> 0.1312 | E11: ='B04a'!Acute_U
A12: Fish
A13: Bioconcentration factor | B13: BCF
B14: Central | C14: ='B01'!$C$6 -> 410 | D14: L/kg | E14: MRID 93196
B15: Lower | C15: ='B01'!$C$6 -> 410 | E15: MRID 93196
B16: Upper | C16: ='B01'!$C$6 -> 410 | E16: MRID 93196
A17: Concentration in fish | B17: ConcFish | C17: ConcWat × BCF
B18: Central | C18: =C9*C14 -> 4.7232 | D18: mg/kg | E18: Eq
B19: Lower | C19: =C10*C15 -> 0.47232 | E19: Eq
B20: Upper | C20: =C11*C16 -> 53.792 | E20: Eq
A21: Receptor
A22: Body weight | B22: BW | C22: =A02b!$C$47 -> 5 | D22: kg | E22: U.S. EPA/ORD 1993
A23: Allometric coefficients for caloric requirement per day in kilocalories and BW in grams
B24: alpha | C24: =A02b!$C$48 -> 0.6167 | E24: U.S. EPA/ORD 1993
B25: beta | C25: =A02b!$C$49 -> 0.862 | E25: U.S. EPA/ORD 1993
A26: Caloric requirement per day | B26: KR | C26: =C24*(C22*1000)^C25 -> 951.8885266 | D26: kcal/day | E26: Eq
A27: Caloric content of commodity (dry weight) | B27: KCD | C27: ='A03'!$E$59 -> 4.47 | D27: kcal/gdw [Note 1] | E27: U.S. EPA/ORD 1993
A28: Food consumed per day (dry weight) | B28: AmntDry | C28: = KR ÷ KCD
C29: =C26/C27 -> 212.9504534 | D29: gdry/day | E29: Eq
A30: Water content of vegetation as a proportion | B30: PropWater | C30: ='A03'!$E$60 -> 0.7 | D30: gwater/gfood | E30: Ali et al. 2005
A31: Dry weight content of vegetation as a proportion | B31: PropDry | C31: = 1-PropWater
C32: =1-C30 -> 0.3 | D32: gdry/gfood | E32: Eq
A33: Amount of fish consumed per day, wet weight | B33: AmntFish | C33: = (AmntDry ÷ PropDry) ÷ (1000g/kg)
B34: Central | C34: =(C29/C32)/1000 -> 0.7098348446 | D34: kgfood/day | E34: Eq
B35: Lower | C35: =C34*0.3 -> 0.2129504534 | D35: Note 1 | E35: Eq
B36: Upper | C36: =C34*1.7 -> 1.206719236 | D36: Note 1 | E36: Eq
A37: Proportion of diet that is contaminated | B37: Prop
B38: Central | C38: 0.3 | D38: Unitless | E38: Scenario parameter
B39: Lower | C39: 0.1 | E39: Scenario parameter
B40: Upper | C40: 1 | E40: Scenario parameter
A41: Dose
A42: Toxic Equivalency Factor for formulation: (See risk assessment if this has a value other than 1.) | B42: TEF
B43: Central | C43: ='A01'!C$35 -> 1 | D43: Unitless | E43: Worksheet A01
B44: Lower | C44: ='A01'!C$36 -> 1 | D44: Note 2 | E44: Worksheet A01
B45: Upper | C45: ='A01'!C$37 -> 1 | D45: Note 2 | E45: Worksheet A01
A46: Dose | B46: Dose | C46: = ConcFish × AmntFish × Prop ÷ BW
B47: Central | C47: =C18*C34*C38/C$22 -> 0.2011615163 | D47: mg/kg | E47: Eq
B48: Lower | C48: =C19*C35*C39/C$22 -> 0.002011615163 | D48: mg/kg | E48: Eq
B49: Upper | C49: 12.98236823 | D49: mg/kg | E49: Eq
E50: FishKcalV6

Sheet F11c
A1: Acute scenario for the consumption of Contaminated Fish (Peak) by Bird, piscivorous
A2: Short Title | B2: Fish consumption, accidental spill | E2: FishKcalV6
A3: Predator | B3: Bird, piscivorous
A4: Food Item (Prey) | B4: Fish
A5: Duration | B5: Acute | E5: Scenario parameter
A6: Parameter/Assumption | B6: Code / Range | C6: Equation/ Value | D6: Units | E6: Reference/Designation
A7: Water
A8: Concentration in water | B8: ConcWat
B9: Central | C9: =B04a!Acute_C -> 0.01152 | D9: mg/L | E9: ='B04a'!Acute_C
B10: Lower | C10: =B04a!Acute_L -> 0.001152 | E10: ='B04a'!Acute_L
B11: Upper | C11: =B04a!Acute_U -> 0.1312 | E11: ='B04a'!Acute_U
A12: Fish
A13: Bioconcentration factor | B13: BCF
B14: Central | C14: ='B01'!$C$6 -> 410 | D14: L/kg | E14: MRID 93196
B15: Lower | C15: ='B01'!$C$6 -> 410 | E15: MRID 93196
B16: Upper | C16: ='B01'!$C$6 -> 410 | E16: MRID 93196
A17: Concentration in fish | B17: ConcFish | C17: ConcWat × BCF
B18: Central | C18: =C9*C14 -> 4.7232 | D18: mg/kg | E18: Eq
B19: Lower | C19: =C10*C15 -> 0.47232 | E19: Eq
B20: Upper | C20: =C11*C16 -> 53.792 | E20: Eq
A21: Receptor
A22: Body weight | B22: BW | C22: =A02b!$C$24 -> 2.4 | D22: kg | E22: Sibley 2000
A23: Allometric coefficients for caloric requirement per day in kilocalories and BW in grams
B24: alpha | C24: =A02b!$C$27 -> 1.916 | E24: U.S. EPA/ORD 1993
B25: beta | C25: =A02b!$C$28 -> 0.704 | E25: U.S. EPA/ORD 1993
A26: Caloric requirement per day | B26: KR | C26: =C24*(C22*1000)^C25 -> 459.2659192 | D26: kcal/day | E26: Eq
A27: Caloric content of commodity (dry weight) | B27: KCD | C27: ='A03'!$E$36 -> 3.87 | D27: kcal/gdw [Note 1] | E27: U.S. EPA/ORD 1993
A28: Food consumed per day (dry weight) | B28: AmntDry | C28: = KR ÷ KCD
C29: =C26/C27 -> 118.6733641 | D29: gdry/day | E29: Eq
A30: Water content of vegetation as a proportion | B30: PropWater | C30: ='A03'!$E$37 -> 0.7 | D30: gwater/gfood | E30: Ali et al. 2005
A31: Dry weight content of vegetation as a proportion | B31: PropDry | C31: = 1-PropWater
C32: =1-C30 -> 0.3 | D32: gdry/gfood | E32: Eq
A33: Amount of fish consumed per day, wet weight | B33: AmntFish | C33: = (AmntDry ÷ PropDry) ÷ (1000g/kg)
B34: Central | C34: =(C29/C32)/1000 -> 0.3955778805 | D34: kgfood/day | E34: Eq
B35: Lower | C35: =C34*0.3 -> 0.1186733641 | D35: Note 1 | E35: Eq
B36: Upper | C36: =C34*1.7 -> 0.6724823968 | D36: Note 1 | E36: Eq
A37: Proportion of diet that is contaminated | B37: Prop
B38: Central | C38: 0.3 | D38: Unitless | E38: Scenario parameter
B39: Lower | C39: 0.1 | E39: Scenario parameter
B40: Upper | C40: 1 | E40: Scenario parameter
A41: Dose
A42: Toxic Equivalency Factor for formulation: (See risk assessment if this has a value other than 1.) | B42: TEF
B43: Central | C43: ='A01'!C$35 -> 1 | D43: Unitless | E43: Worksheet A01
B44: Lower | C44: ='A01'!C$36 -> 1 | D44: Note 2 | E44: Worksheet A01
B45: Upper | C45: ='A01'!C$37 -> 1 | D45: Note 2 | E45: Worksheet A01
A46: Dose | B46: Dose | C46: = ConcFish × AmntFish × Prop ÷ BW
B47: Central | C47: =C18*C34*C38/C$22 -> 0.2335491806 | D47: mg/kg | E47: Eq
B48: Lower | C48: =C19*C35*C39/C$22 -> 0.002335491806 | D48: mg/kg | E48: Eq
B49: Upper | C49: 15.07257212 | D49: mg/kg | E49: Eq
E50: FishKcalV6

Sheet F12a
A1: Consumption of Fruit by a Mammal, small after Chronic exposure.
A2: Short Title | B2: Fruit | E2: FdKcalV6
A3: Receptor | B3: Mammal, small
A4: Duration | B4: Chronic | E4: Scenario parameter
A5: Material consumed | B5: Fruit
A6: Parameter/Assumption | B6: Code / Range | C6: Equation/ Value | D6: Units | E6: Reference/Designation
A7: Commodity
A8: Concentration on consumed commodity | B8: Conc
B9: Central | C9: =B05a!Chronic_C -> 0.5383006257 | D9: mg/kg food wet weight | E9: ='B05a'!Chronic_C
B10: Lower | C10: =B05a!Chronic_L -> 0.216628037 | E10: ='B05a'!Chronic_L
B11: Upper | C11: =B05a!Chronic_U -> 1.336735875 | E11: ='B05a'!Chronic_U
A12: Receptor
A13: Body weight | B13: BW | C13: =A02b!$C$71 -> 0.02 | D13: kg | E13: Default
A14: Allometric coefficients for caloric requirement per day in kilocalories and BW in grams
B15: alpha | C15: =A02b!$C$75 -> 2.514 | E15: U.S. EPA/ORD 1993
B16: beta | C16: =A02b!$C$76 -> 0.507 | E16: U.S. EPA/ORD 1993
A17: Caloric requirement per day | B17: KR | C17: = alpha x (BW x 1kg/1000g)beta
C18: =C15*((C13*1000)^C16) -> 11.48120526 | D18: kcal/day | E18: Eq
A19: Caloric content of commodity (dry weight) | B19: KCD | C19: ='A03'!$E$61 -> 1.1 | D19: kcal/gdw [Note 1] | E19: U.S. EPA/ORD 1993
A20: Food consumed per day (dry weight) | B20: AmntDry | C20: = KR ÷ KCD
C21: =C18/C19 -> 10.43745932 | D21: gdry/day | E21: Eq
A22: Water content of food item as a proportion | B22: PropWater | C22: ='A03'!$E$62 -> 0.77 | D22: gwater/gfood | E22: U.S. EPA/ORD 1993
A23: Dry weight content of food item as a proportion | B23: PropDry | C23: = 1-PropWater
C24: =1-C22 -> 0.23 | D24: gdry/gfood | E24: Eq
A25: Variability in caloric requirements not accounted for by allometric equation | B25: Error
B26: Central | C26: 1 | D26: Note 2
B27: Lower | C27: 0.3
B28: Upper | C28: 1.7
A29: Amount of food consumed per day, wet weight | B29: AmntFood | C29: = Error x (AmntDry ÷ PropDry) ÷ (1000g/kg)
B30: Central | C30: =C26*(C$21/C$24)/1000 -> 0.04538025793 | D30: kgfood/day | E30: Eq
B31: Lower | C31: =C27*(C$21/C$24)/1000 -> 0.01361407738 | E31: Eq
B32: Upper | C32: 0.07714643848 | E32: Eq
A33: Estimate
A34: Dose | B34: Dose | C34: = AmntFood × Conc / BW
B35: Central | C35: =$C30 * C9/C$13 -> 1.221411062 | D35: mg/kg bw/day | E35: Eq
B36: Lower | C36: =$C31 * C10/C$13 -> 0.1474595429 | E36: Eq
B37: Upper | C37: =$C32 * C11/C$13 -> 5.156220597 | E37: Eq

Sheet F12b
A1: Consumption of Fruit by a Mammal, 400 g after Chronic exposure.
A2: Short Title | B2: Fruit | E2: FdKcalV6
A3: Receptor | B3: Mammal, 400 g
A4: Duration | B4: Chronic | E4: Scenario parameter
A5: Material consumed | B5: Fruit
A6: Parameter/Assumption | B6: Code / Range | C6: Equation/ Value | D6: Units | E6: Reference/Designation
A7: Commodity
A8: Concentration on consumed commodity | B8: Conc
B9: Central | C9: =B05a!Chronic_C -> 0.5383006257 | D9: mg/kg food wet weight | E9: ='B05a'!Chronic_C
B10: Lower | C10: =B05a!Chronic_L -> 0.216628037 | E10: ='B05a'!Chronic_L
B11: Upper | C11: =B05a!Chronic_U -> 1.336735875 | E11: ='B05a'!Chronic_U
A12: Receptor
A13: Body weight | B13: BW | C13: =A02b!$C$40 -> 0.4 | D13: kg | E13: Default
A14: Allometric coefficients for caloric requirement per day in kilocalories and BW in grams
B15: alpha | C15: =A02b!$C$43 -> 2.514 | E15: U.S. EPA/ORD 1993
B16: beta | C16: =A02b!$C$44 -> 0.507 | E16: U.S. EPA/ORD 1993
A17: Caloric requirement per day | B17: KR | C17: = alpha x (BW x 1kg/1000g)beta
C18: =C15*((C13*1000)^C16) -> 52.43360149 | D18: kcal/day | E18: Eq
A19: Caloric content of commodity (dry weight) | B19: KCD | C19: ='A03'!$E$61 -> 1.1 | D19: kcal/gdw [Note 1] | E19: U.S. EPA/ORD 1993
A20: Food consumed per day (dry weight) | B20: AmntDry | C20: = KR ÷ KCD
C21: =C18/C19 -> 47.66691044 | D21: gdry/day | E21: Eq
A22: Water content of food item as a proportion | B22: PropWater | C22: ='A03'!$E$62 -> 0.77 | D22: gwater/gfood | E22: U.S. EPA/ORD 1993
A23: Dry weight content of food item as a proportion | B23: PropDry | C23: = 1-PropWater
C24: =1-C22 -> 0.23 | D24: gdry/gfood | E24: Eq
A25: Variability in caloric requirements not accounted for by allometric equation | B25: Error
B26: Central | C26: 1 | D26: Note 2
B27: Lower | C27: 0.3
B28: Upper | C28: 1.7
A29: Amount of food consumed per day, wet weight | B29: AmntFood | C29: = Error x (AmntDry ÷ PropDry) ÷ (1000g/kg)
B30: Central | C30: =C26*(C$21/C$24)/1000 -> 0.2072474367 | D30: kgfood/day | E30: Eq
B31: Lower | C31: =C27*(C$21/C$24)/1000 -> 0.06217423101 | E31: Eq
B32: Upper | C32: 0.3523206424 | E32: Eq
A33: Estimate
A34: Dose | B34: Dose | C34: = AmntFood × Conc / BW
B35: Central | C35: =$C30 * C9/C$13 -> 0.2789035621 | D35: mg/kg bw/day | E35: Eq
B36: Lower | C36: =$C31 * C10/C$13 -> 0.03367170404 | E36: Eq
B37: Upper | C37: =$C32 * C11/C$13 -> 1.177399105 | E37: Eq

Sheet F12c
A1: Consumption of Fruit by a Mammal, large after Chronic exposure.
A2: Short Title | B2: Fruit | E2: FdKcalV6
A3: Receptor | B3: Mammal, large
A4: Duration | B4: Chronic | E4: Scenario parameter
A5: Material consumed | B5: Fruit
A6: Parameter/Assumption | B6: Code / Range | C6: Equation/ Value | D6: Units | E6: Reference/Designation
A7: Commodity
A8: Concentration on consumed commodity | B8: Conc
B9: Central | C9: =B05a!Chronic_C -> 0.5383006257 | D9: mg/kg food wet weight | E9: ='B05a'!Chronic_C
B10: Lower | C10: =B05a!Chronic_L -> 0.216628037 | E10: ='B05a'!Chronic_L
B11: Upper | C11: =B05a!Chronic_U -> 1.336735875 | E11: ='B05a'!Chronic_U
A12: Receptor
A13: Body weight | B13: BW | C13: =A02b!$C$61 -> 70 | D13: kg | E13: Default
A14: Allometric coefficients for caloric requirement per day in kilocalories and BW in grams
B15: alpha | C15: =A02b!$C$62 -> 1.518 | E15: U.S. EPA/ORD 1993
B16: beta | C16: =A02b!$C$63 -> 0.73 | E16: U.S. EPA/ORD 1993
A17: Caloric requirement per day | B17: KR | C17: = alpha x (BW x 1kg/1000g)beta
C18: =C15*((C13*1000)^C16) -> 5226.28803 | D18: kcal/day | E18: Eq
A19: Caloric content of commodity (dry weight) | B19: KCD | C19: ='A03'!$E$61 -> 1.1 | D19: kcal/gdw [Note 1] | E19: U.S. EPA/ORD 1993
A20: Food consumed per day (dry weight) | B20: AmntDry | C20: = KR ÷ KCD
C21: =C18/C19 -> 4751.170936 | D21: gdry/day | E21: Eq
A22: Water content of food item as a proportion | B22: PropWater | C22: ='A03'!$E$62 -> 0.77 | D22: gwater/gfood | E22: U.S. EPA/ORD 1993
A23: Dry weight content of food item as a proportion | B23: PropDry | C23: = 1-PropWater
C24: =1-C22 -> 0.23 | D24: gdry/gfood | E24: Eq
A25: Variability in caloric requirements not accounted for by allometric equation | B25: Error
B26: Central | C26: 1 | D26: Note 2
B27: Lower | C27: 0.3
B28: Upper | C28: 1.7
A29: Amount of food consumed per day, wet weight | B29: AmntFood | C29: = Error x (AmntDry ÷ PropDry) ÷ (1000g/kg)
B30: Central | C30: =C26*(C$21/C$24)/1000 -> 20.65726494 | D30: kgfood/day | E30: Eq
B31: Lower | C31: =C27*(C$21/C$24)/1000 -> 6.197179482 | E31: Eq
B32: Upper | C32: 35.1173504 | E32: Eq
A33: Estimate
A34: Dose | B34: Dose | C34: = AmntFood × Conc / BW
B35: Central | C35: =$C30 * C9/C$13 -> 0.158854552 | D35: mg/kg bw/day | E35: Eq
B36: Lower | C36: =$C31 * C10/C$13 -> 0.01917832609 | E36: Eq
B37: Upper | C37: =$C32 * C11/C$13 -> 0.6706088873 | E37: Eq

Sheet F12d
A1: Consumption of Fruit by a Bird, small after Chronic exposure.
A2: Short Title | B2: Fruit | E2: FdKcalV6
A3: Receptor | B3: Bird, small
A4: Duration | B4: Chronic | E4: Scenario parameter
A5: Material consumed | B5: Fruit
A6: Parameter/Assumption | B6: Code / Range | C6: Equation/ Value | D6: Units | E6: Reference/Designation
A7: Commodity
A8: Concentration on consumed commodity | B8: Conc
B9: Central | C9: =B05a!Chronic_C -> 0.5383006257 | D9: mg/kg food wet weight | E9: ='B05a'!Chronic_C
B10: Lower | C10: =B05a!Chronic_L -> 0.216628037 | E10: ='B05a'!Chronic_L
B11: Upper | C11: =B05a!Chronic_U -> 1.336735875 | E11: ='B05a'!Chronic_U
A12: Receptor
A13: Body weight | B13: BW | C13: =A02b!$C$31 -> 0.01 | D13: kg | E13: Default
A14: Allometric coefficients for caloric requirement per day in kilocalories and BW in grams
B15: alpha | C15: =A02b!$C$32 -> 3.12 | E15: U.S. EPA/ORD 1993
B16: beta | C16: =A02b!$C$33 -> 0.605 | E16: U.S. EPA/ORD 1993
A17: Caloric requirement per day | B17: KR | C17: = alpha x (BW x 1kg/1000g)beta
C18: =C15*((C13*1000)^C16) -> 12.56477147 | D18: kcal/day | E18: Eq
A19: Caloric content of commodity (dry weight) | B19: KCD | C19: ='A03'!$E$38 -> 1.1 | D19: kcal/gdw [Note 1] | E19: U.S. EPA/ORD 1993
A20: Food consumed per day (dry weight) | B20: AmntDry | C20: = KR ÷ KCD
C21: =C18/C19 -> 11.42251952 | D21: gdry/day | E21: Eq
A22: Water content of food item as a proportion | B22: PropWater | C22: ='A03'!$E$39 -> 0.77 | D22: gwater/gfood | E22: U.S. EPA/ORD 1993
A23: Dry weight content of food item as a proportion | B23: PropDry | C23: = 1-PropWater
C24: =1-C22 -> 0.23 | D24: gdry/gfood | E24: Eq
A25: Variability in caloric requirements not accounted for by allometric equation | B25: Error
B26: Central | C26: 1 | D26: Note 2
B27: Lower | C27: 0.3
B28: Upper | C28: 1.7
A29: Amount of food consumed per day, wet weight | B29: AmntFood | C29: = Error x (AmntDry ÷ PropDry) ÷ (1000g/kg)
B30: Central | C30: =C26*(C$21/C$24)/1000 -> 0.04966312834 | D30: kgfood/day | E30: Eq
B31: Lower | C31: =C27*(C$21/C$24)/1000 -> 0.0148989385 | E31: Eq
B32: Upper | C32: 0.08442731818 | E32: Eq
A33: Estimate
A34: Dose | B34: Dose | C34: = AmntFood × Conc / BW
B35: Central | C35: =$C30 * C9/C$13 -> 2.673369306 | D35: mg/kg bw/day | E35: Eq
B36: Lower | C36: =$C31 * C10/C$13 -> 0.3227527801 | E36: Eq
B37: Upper | C37: =$C32 * C11/C$13 -> 11.2857025 | E37: Eq

Sheet F12e
A1: Consumption of Fruit by a Bird, large after Chronic exposure.
A2: Short Title | B2: Fruit | E2: FdKcalV6
A3: Receptor | B3: Bird, large
A4: Duration | B4: Chronic | E4: Scenario parameter
A5: Material consumed | B5: Fruit
A6: Parameter/Assumption | B6: Code / Range | C6: Equation/ Value | D6: Units | E6: Reference/Designation
A7: Commodity
A8: Concentration on consumed commodity | B8: Conc
B9: Central | C9: =B05a!Chronic_C -> 0.5383006257 | D9: mg/kg food wet weight | E9: ='B05a'!Chronic_C
B10: Lower | C10: =B05a!Chronic_L -> 0.216628037 | E10: ='B05a'!Chronic_L
B11: Upper | C11: =B05a!Chronic_U -> 1.336735875 | E11: ='B05a'!Chronic_U
A12: Receptor
A13: Body weight | B13: BW | C13: =A02b!$C$15 -> 4 | D13: kg | E13: Default
A14: Allometric coefficients for caloric requirement per day in kilocalories and BW in grams
B15: alpha | C15: =A02b!$C$16 -> 1.146 | E15: U.S. EPA/ORD 1993
B16: beta | C16: =A02b!$C$17 -> 0.749 | E16: U.S. EPA/ORD 1993
A17: Caloric requirement per day | B17: KR | C17: = alpha x (BW x 1kg/1000g)beta
C18: =C15*((C13*1000)^C16) -> 571.6465031 | D18: kcal/day | E18: Eq
A19: Caloric content of commodity (dry weight) | B19: KCD | C19: ='A03'!$E$38 -> 1.1 | D19: kcal/gdw [Note 1] | E19: U.S. EPA/ORD 1993
A20: Food consumed per day (dry weight) | B20: AmntDry | C20: = KR ÷ KCD
C21: =C18/C19 -> 519.6786392 | D21: gdry/day | E21: Eq
A22: Water content of food item as a proportion | B22: PropWater | C22: ='A03'!$E$39 -> 0.77 | D22: gwater/gfood | E22: U.S. EPA/ORD 1993
A23: Dry weight content of food item as a proportion | B23: PropDry | C23: = 1-PropWater
C24: =1-C22 -> 0.23 | D24: gdry/gfood | E24: Eq
A25: Variability in caloric requirements not accounted for by allometric equation | B25: Error
B26: Central | C26: 1 | D26: Note 2
B27: Lower | C27: 0.3
B28: Upper | C28: 1.7
A29: Amount of food consumed per day, wet weight | B29: AmntFood | C29: = Error x (AmntDry ÷ PropDry) ÷ (1000g/kg)
B30: Central | C30: =C26*(C$21/C$24)/1000 -> 2.259472344 | D30: kgfood/day | E30: Eq
B31: Lower | C31: =C27*(C$21/C$24)/1000 -> 0.6778417033 | E31: Eq
B32: Upper | C32: 3.841102985 | E32: Eq
A33: Estimate
A34: Dose | B34: Dose | C34: = AmntFood × Conc / BW
B35: Central | C35: =$C30 * C9/C$13 -> 0.3040688442 | D35: mg/kg bw/day | E35: Eq
B36: Lower | C36: =$C31 * C10/C$13 -> 0.03670987939 | E36: Eq
B37: Upper | C37: =$C32 * C11/C$13 -> 1.28363504 | E37: Eq

Sheet F13a
A1: Consumption of BrdLfVeg by a Mammal, small after Chronic exposure.
A2: Short Title | B2: Broadleaf | E2: FdKcalV6
A3: Receptor | B3: Mammal, small
A4: Duration | B4: Chronic | E4: Scenario parameter
A5: Material consumed | B5: BrdLfVeg
A6: Parameter/Assumption | B6: Code / Range | C6: Equation/ Value | D6: Units | E6: Reference/Designation
A7: Commodity
A8: Concentration on consumed commodity | B8: Conc
B9: Central | C9: =B05b!Chronic_C -> 3.460504022 | D9: mg/kg food wet weight | E9: ='B05b'!Chronic_C
B10: Lower | C10: =B05b!Chronic_L -> 1.015443923 | E10: ='B05b'!Chronic_L
B11: Upper | C11: =B05b!Chronic_U -> 12.03062287 | E11: ='B05b'!Chronic_U
A12: Receptor
A13: Body weight | B13: BW | C13: =A02b!$C$71 -> 0.02 | D13: kg | E13: Default
A14: Allometric coefficients for caloric requirement per day in kilocalories and BW in grams
B15: alpha | C15: =A02b!$C$75 -> 2.514 | E15: U.S. EPA/ORD 1993
B16: beta | C16: =A02b!$C$76 -> 0.507 | E16: U.S. EPA/ORD 1993
A17: Caloric requirement per day | B17: KR | C17: = alpha x (BW x 1kg/1000g)beta
C18: =C15*((C13*1000)^C16) -> 11.48120526 | D18: kcal/day | E18: Eq
A19: Caloric content of commodity (dry weight) | B19: KCD | C19: ='A03'!$E$65 -> 2.26 | D19: kcal/gdw [Note 1] | E19: U.S. EPA/ORD 1993
A20: Food consumed per day (dry weight) | B20: AmntDry | C20: = KR ÷ KCD
C21: =C18/C19 -> 5.080179317 | D21: gdry/day | E21: Eq
A22: Water content of food item as a proportion | B22: PropWater | C22: ='A03'!$E$66 -> 0.85 | D22: gwater/gfood | E22: U.S. EPA/ORD 1993
A23: Dry weight content of food item as a proportion | B23: PropDry | C23: = 1-PropWater
C24: =1-C22 -> 0.15 | D24: gdry/gfood | E24: Eq
A25: Variability in caloric requirements not accounted for by allometric equation | B25: Error
B26: Central | C26: 1 | D26: Note 2
B27: Lower | C27: 0.3
B28: Upper | C28: 1.7
A29: Amount of food consumed per day, wet weight | B29: AmntFood | C29: = Error x (AmntDry ÷ PropDry) ÷ (1000g/kg)
B30: Central | C30: =C26*(C$21/C$24)/1000 -> 0.03386786211 | D30: kgfood/day | E30: Eq
B31: Lower | C31: =C27*(C$21/C$24)/1000 -> 0.01016035863 | E31: Eq
B32: Upper | C32: 0.05757536559 | E32: Eq
A33: Estimate
A34: Dose | B34: Dose | C34: = AmntFood × Conc / BW
B35: Central | C35: =$C30 * C9/C$13 -> 5.859993654 | D35: mg/kg bw/day | E35: Eq
B36: Lower | C36: =$C31 * C10/C$13 -> 0.5158637217 | E36: Eq
B37: Upper | C37: =$C32 * C11/C$13 -> 34.63337551 | E37: Eq

Sheet F13b
A1: Consumption of BrdLfVeg by a Mammal, 400 g after Chronic exposure.
A2: Short Title | B2: Broadleaf | E2: FdKcalV6
A3: Receptor | B3: Mammal, 400 g
A4: Duration | B4: Chronic | E4: Scenario parameter
A5: Material consumed | B5: BrdLfVeg
A6: Parameter/Assumption | B6: Code / Range | C6: Equation/ Value | D6: Units | E6: Reference/Designation
A7: Commodity
A8: Concentration on consumed commodity | B8: Conc
B9: Central | C9: =B05b!Chronic_C -> 3.460504022 | D9: mg/kg food wet weight | E9: ='B05b'!Chronic_C
B10: Lower | C10: =B05b!Chronic_L -> 1.015443923 | E10: ='B05b'!Chronic_L
B11: Upper | C11: =B05b!Chronic_U -> 12.03062287 | E11: ='B05b'!Chronic_U
A12: Receptor
A13: Body weight | B13: BW | C13: =A02b!$C$40 -> 0.4 | D13: kg | E13: Default
A14: Allometric coefficients for caloric requirement per day in kilocalories and BW in grams
B15: alpha | C15: =A02b!$C$43 -> 2.514 | E15: U.S. EPA/ORD 1993
B16: beta | C16: =A02b!$C$44 -> 0.507 | E16: U.S. EPA/ORD 1993
A17: Caloric requirement per day | B17: KR | C17: = alpha x (BW x 1kg/1000g)beta
C18: =C15*((C13*1000)^C16) -> 52.43360149 | D18: kcal/day | E18: Eq
A19: Caloric content of commodity (dry weight) | B19: KCD | C19: ='A03'!$E$65 -> 2.26 | D19: kcal/gdw [Note 1] | E19: U.S. EPA/ORD 1993
A20: Food consumed per day (dry weight) | B20: AmntDry | C20: = KR ÷ KCD
C21: =C18/C19 -> 23.20070862 | D21: gdry/day | E21: Eq
A22: Water content of food item as a proportion | B22: PropWater | C22: ='A03'!$E$66 -> 0.85 | D22: gwater/gfood | E22: U.S. EPA/ORD 1993
A23: Dry weight content of food item as a proportion | B23: PropDry | C23: = 1-PropWater
C24: =1-C22 -> 0.15 | D24: gdry/gfood | E24: Eq
A25: Variability in caloric requirements not accounted for by allometric equation | B25: Error
B26: Central | C26: 1 | D26: Note 2
B27: Lower | C27: 0.3
B28: Upper | C28: 1.7
A29: Amount of food consumed per day, wet weight | B29: AmntFood | C29: = Error x (AmntDry ÷ PropDry) ÷ (1000g/kg)
B30: Central | C30: =C26*(C$21/C$24)/1000 -> 0.1546713908 | D30: kgfood/day | E30: Eq
B31: Lower | C31: =C27*(C$21/C$24)/1000 -> 0.04640141724 | E31: Eq
B32: Upper | C32: 0.2629413644 | E32: Eq
A33: Estimate
A34: Dose | B34: Dose | C34: = AmntFood × Conc / BW
B35: Central | C35: =$C30 * C9/C$13 -> 1.338102425 | D35: mg/kg bw/day | E35: Eq
B36: Lower | C36: =$C31 * C10/C$13 -> 0.1177950929 | E36: Eq
B37: Upper | C37: =$C32 * C11/C$13 -> 7.908370982 | E37: Eq

Sheet F13c
A1: Consumption of BrdLfVeg by a Mammal, large after Chronic exposure.
A2: Short Title | B2: Broadleaf | E2: FdKcalV6
A3: Receptor | B3: Mammal, large
A4: Duration | B4: Chronic | E4: Scenario parameter
A5: Material consumed | B5: BrdLfVeg
A6: Parameter/Assumption | B6: Code / Range | C6: Equation/ Value | D6: Units | E6: Reference/Designation
A7: Commodity
A8: Concentration on consumed commodity | B8: Conc
B9: Central | C9: =B05b!Chronic_C -> 3.460504022 | D9: mg/kg food wet weight | E9: ='B05b'!Chronic_C
B10: Lower | C10: =B05b!Chronic_L -> 1.015443923 | E10: ='B05b'!Chronic_L
B11: Upper | C11: =B05b!Chronic_U -> 12.03062287 | E11: ='B05b'!Chronic_U
A12: Receptor
A13: Body weight | B13: BW | C13: =A02b!$C$61 -> 70 | D13: kg | E13: Default
A14: Allometric coefficients for caloric requirement per day in kilocalories and BW in grams
B15: alpha | C15: =A02b!$C$62 -> 1.518 | E15: U.S. EPA/ORD 1993
B16: beta | C16: =A02b!$C$63 -> 0.73 | E16: U.S. EPA/ORD 1993
A17: Caloric requirement per day | B17: KR | C17: = alpha x (BW x 1kg/1000g)beta
C18: =C15*((C13*1000)^C16) -> 5226.28803 | D18: kcal/day | E18: Eq
A19: Caloric content of commodity (dry weight) | B19: KCD | C19: ='A03'!$E$65 -> 2.26 | D19: kcal/gdw [Note 1] | E19: U.S. EPA/ORD 1993
A20: Food consumed per day (dry weight) | B20: AmntDry | C20: = KR ÷ KCD
C21: =C18/C19 -> 2312.516827 | D21: gdry/day | E21: Eq
A22: Water content of food item as a proportion | B22: PropWater | C22: ='A03'!$E$66 -> 0.85 | D22: gwater/gfood | E22: U.S. EPA/ORD 1993
A23: Dry weight content of food item as a proportion | B23: PropDry | C23: = 1-PropWater
C24: =1-C22 -> 0.15 | D24: gdry/gfood | E24: Eq
A25: Variability in caloric requirements not accounted for by allometric equation | B25: Error
B26: Central | C26: 1 | D26: Note 2
B27: Lower | C27: 0.3
B28: Upper | C28: 1.7
A29: Amount of food consumed per day, wet weight | B29: AmntFood | C29: = Error x (AmntDry ÷ PropDry) ÷ (1000g/kg)
B30: Central | C30: =C26*(C$21/C$24)/1000 -> 15.41677885 | D30: kgfood/day | E30: Eq
B31: Lower | C31: =C27*(C$21/C$24)/1000 -> 4.625033655 | E31: Eq
B32: Upper | C32: 26.20852404 | E32: Eq
A33: Estimate
A34: Dose | B34: Dose | C34: = AmntFood × Conc / BW
B35: Central | C35: =$C30 * C9/C$13 -> 0.7621403603 | D35: mg/kg bw/day | E35: Eq
B36: Lower | C36: =$C31 * C10/C$13 -> 0.06709231886 | E36: Eq
B37: Upper | C37: =$C32 * C11/C$13 -> 4.504355269 | E37: Eq

Sheet F13d
A1: Consumption of BrdLfVeg by a Bird, small after Chronic exposure.
A2: Short Title | B2: Broadleaf | E2: FdKcalV6
A3: Receptor | B3: Bird, small
A4: Duration | B4: Chronic | E4: Scenario parameter
A5: Material consumed | B5: BrdLfVeg
A6: Parameter/Assumption | B6: Code / Range | C6: Equation/ Value | D6: Units | E6: Reference/Designation
A7: Commodity
A8: Concentration on consumed commodity | B8: Conc
B9: Central | C9: =B05b!Chronic_C -> 3.460504022 | D9: mg/kg food wet weight | E9: ='B05b'!Chronic_C
B10: Lower | C10: =B05b!Chronic_L -> 1.015443923 | E10: ='B05b'!Chronic_L
B11: Upper | C11: =B05b!Chronic_U -> 12.03062287 | E11: ='B05b'!Chronic_U
A12: Receptor
A13: Body weight | B13: BW | C13: =A02b!$C$31 -> 0.01 | D13: kg | E13: Default
A14: Allometric coefficients for caloric requirement per day in kilocalories and BW in grams
B15: alpha | C15: =A02b!$C$32 -> 3.12 | E15: U.S. EPA/ORD 1993
B16: beta | C16: =A02b!$C$33 -> 0.605 | E16: U.S. EPA/ORD 1993
A17: Caloric requirement per day | B17: KR | C17: = alpha x (BW x 1kg/1000g)beta
C18: =C15*((C13*1000)^C16) -> 12.56477147 | D18: kcal/day | E18: Eq
A19: Caloric content of commodity (dry weight) | B19: KCD | C19: ='A03'!$E$42 -> 2 | D19: kcal/gdw [Note 1] | E19: U.S. EPA/ORD 1993
A20: Food consumed per day (dry weight) | B20: AmntDry | C20: = KR ÷ KCD
C21: =C18/C19 -> 6.282385735 | D21: gdry/day | E21: Eq
A22: Water content of food item as a proportion | B22: PropWater | C22: ='A03'!$E$43 -> 0.85 | D22: gwater/gfood | E22: U.S. EPA/ORD 1993
A23: Dry weight content of food item as a proportion | B23: PropDry | C23: = 1-PropWater
C24: =1-C22 -> 0.15 | D24: gdry/gfood | E24: Eq
A25: Variability in caloric requirements not accounted for by allometric equation | B25: Error
B26: Central | C26: 1 | D26: Note 2
B27: Lower | C27: 0.3
B28: Upper | C28: 1.7
A29: Amount of food consumed per day, wet weight | B29: AmntFood | C29: = Error x (AmntDry ÷ PropDry) ÷ (1000g/kg)
B30: Central | C30: =C26*(C$21/C$24)/1000 -> 0.04188257157 | D30: kgfood/day | E30: Eq
B31: Lower | C31: =C27*(C$21/C$24)/1000 -> 0.01256477147 | E31: Eq
B32: Upper | C32: 0.07120037167 | E32: Eq
A33: Estimate
A34: Dose | B34: Dose | C34: = AmntFood × Conc / BW
B35: Central | C35: =$C30 * C9/C$13 -> 14.49348074 | D35: mg/kg bw/day | E35: Eq
B36: Lower | C36: =$C31 * C10/C$13 -> 1.275882084 | E36: Eq
B37: Upper | C37: =$C32 * C11/C$13 -> 85.65848201 | E37: Eq

Sheet F13e
A1: Consumption of BrdLfVeg by a Bird, large after Chronic exposure.
A2: Short Title | B2: Broadleaf | E2: FdKcalV6
A3: Receptor | B3: Bird, large
A4: Duration | B4: Chronic | E4: Scenario parameter
A5: Material consumed | B5: BrdLfVeg
A6: Parameter/Assumption | B6: Code / Range | C6: Equation/ Value | D6: Units | E6: Reference/Designation
A7: Commodity
A8: Concentration on consumed commodity | B8: Conc
B9: Central | C9: =B05b!Chronic_C -> 3.460504022 | D9: mg/kg food wet weight | E9: ='B05b'!Chronic_C
B10: Lower | C10: =B05b!Chronic_L -> 1.015443923 | E10: ='B05b'!Chronic_L
B11: Upper | C11: =B05b!Chronic_U -> 12.03062287 | E11: ='B05b'!Chronic_U
A12: Receptor
A13: Body weight | B13: BW | C13: =A02b!$C$15 -> 4 | D13: kg | E13: Default
A14: Allometric coefficients for caloric requirement per day in kilocalories and BW in grams
B15: alpha | C15: =A02b!$C$16 -> 1.146 | E15: U.S. EPA/ORD 1993
B16: beta | C16: =A02b!$C$17 -> 0.749 | E16: U.S. EPA/ORD 1993
A17: Caloric requirement per day | B17: KR | C17: = alpha x (BW x 1kg/1000g)beta
C18: =C15*((C13*1000)^C16) -> 571.6465031 | D18: kcal/day | E18: Eq
A19: Caloric content of commodity (dry weight) | B19: KCD | C19: ='A03'!$E$42 -> 2 | D19: kcal/gdw [Note 1] | E19: U.S. EPA/ORD 1993
A20: Food consumed per day (dry weight) | B20: AmntDry | C20: = KR ÷ KCD
C21: =C18/C19 -> 285.8232515 | D21: gdry/day | E21: Eq
A22: Water content of food item as a proportion | B22: PropWater | C22: ='A03'!$E$43 -> 0.85 | D22: gwater/gfood | E22: U.S. EPA/ORD 1993
A23: Dry weight content of food item as a proportion | B23: PropDry | C23: = 1-PropWater
C24: =1-C22 -> 0.15 | D24: gdry/gfood | E24: Eq
A25: Variability in caloric requirements not accounted for by allometric equation | B25: Error
B26: Central | C26: 1 | D26: Note 2
B27: Lower | C27: 0.3
B28: Upper | C28: 1.7
A29: Amount of food consumed per day, wet weight | B29: AmntFood | C29: = Error x (AmntDry ÷ PropDry) ÷ (1000g/kg)
B30: Central | C30: =C26*(C$21/C$24)/1000 -> 1.905488344 | D30: kgfood/day | E30: Eq
B31: Lower | C31: =C27*(C$21/C$24)/1000 -> 0.5716465031 | E31: Eq
B32: Upper | C32: 3.239330184 | E32: Eq
A33: Estimate
A34: Dose | B34: Dose | C34: = AmntFood × Conc / BW
B35: Central | C35: =$C30 * C9/C$13 -> 1.648487519 | D35: mg/kg bw/day | E35: Eq
B36: Lower | C36: =$C31 * C10/C$13 -> 0.145118742 | E36: Eq
B37: Upper | C37: =$C32 * C11/C$13 -> 9.742789953 | E37: Eq

Sheet F14a
A1: Consumption of Tall grass by a Mammal, small after Chronic exposure.
A2: Short Title | B2: Tall Grass | E2: FdKcalV6
A3: Receptor | B3: Mammal, small
A4: Duration | B4: Chronic | E4: Scenario parameter
A5: Material consumed | B5: Tall grass
A6: Parameter/Assumption | B6: Code / Range | C6: Equation/ Value | D6: Units | E6: Reference/Designation
A7: Commodity
A8: Concentration on consumed commodity | B8: Conc
B9: Central | C9: =B05d!Chronic_C -> 2.768403218 | D9: mg/kg food wet weight | E9: ='B05d'!Chronic_C
B10: Lower | C10: =B05d!Chronic_L -> 0.8123551387 | E10: ='B05d'!Chronic_L
B11: Upper | C11: =B05d!Chronic_U -> 9.802729749 | E11: ='B05d'!Chronic_U
A12: Receptor
A13: Body weight | B13: BW | C13: =A02b!$C$71 -> 0.02 | D13: kg | E13: Default
A14: Allometric coefficients for caloric requirement per day in kilocalories and BW in grams
B15: alpha | C15: =A02b!$C$75 -> 2.514 | E15: U.S. EPA/ORD 1993
B16: beta | C16: =A02b!$C$76 -> 0.507 | E16: U.S. EPA/ORD 1993
A17: Caloric requirement per day | B17: KR | C17: = alpha x (BW x 1kg/1000g)beta
C18: =C15*((C13*1000)^C16) -> 11.48120526 | D18: kcal/day | E18: Eq
A19: Caloric content of commodity (dry weight) | B19: KCD | C19: ='A03'!$E$65 -> 2.26 | D19: kcal/gdw [Note 1] | E19: U.S. EPA/ORD 1993
A20: Food consumed per day (dry weight) | B20: AmntDry | C20: = KR ÷ KCD
C21: =C18/C19 -> 5.080179317 | D21: gdry/day | E21: Eq
A22: Water content of food item as a proportion | B22: PropWater | C22: ='A03'!$E$66 -> 0.85 | D22: gwater/gfood | E22: U.S. EPA/ORD 1993
A23: Dry weight content of food item as a proportion | B23: PropDry | C23: = 1-PropWater
C24: =1-C22 -> 0.15 | D24: gdry/gfood | E24: Eq
A25: Variability in caloric requirements not accounted for by allometric equation | B25: Error
B26: Central | C26: 1 | D26: Note 2
B27: Lower | C27: 0.3
B28: Upper | C28: 1.7
A29: Amount of food consumed per day, wet weight | B29: AmntFood | C29: = Error x (AmntDry ÷ PropDry) ÷ (1000g/kg)
B30: Central | C30: =C26*(C$21/C$24)/1000 -> 0.03386786211 | D30: kgfood/day | E30: Eq
B31: Lower | C31: =C27*(C$21/C$24)/1000 -> 0.01016035863 | E31: Eq
B32: Upper | C32: 0.05757536559 | E32: Eq
A33: Estimate
A34: Dose | B34: Dose | C34: = AmntFood × Conc / BW
B35: Central | C35: =$C30 * C9/C$13 -> 4.687994923 | D35: mg/kg bw/day | E35: Eq
B36: Lower | C36: =$C31 * C10/C$13 -> 0.4126909774 | E36: Eq
B37: Upper | C37: =$C32 * C11/C$13 -> 28.21978746 | E37: Eq

Sheet F14b
A1: Consumption of Tall grass by a Mammal, 400 g after Chronic exposure.
A2: Short Title | B2: Tall Grass | E2: FdKcalV6
A3: Receptor | B3: Mammal, 400 g
A4: Duration | B4: Chronic | E4: Scenario parameter
A5: Material consumed | B5: Tall grass
A6: Parameter/Assumption | B6: Code / Range | C6: Equation/ Value | D6: Units | E6: Reference/Designation
A7: Commodity
A8: Concentration on consumed commodity | B8: Conc
B9: Central | C9: =B05d!Chronic_C -> 2.768403218 | D9: mg/kg food wet weight | E9: ='B05d'!Chronic_C
B10: Lower | C10: =B05d!Chronic_L -> 0.8123551387 | E10: ='B05d'!Chronic_L
B11: Upper | C11: =B05d!Chronic_U -> 9.802729749 | E11: ='B05d'!Chronic_U
A12: Receptor
A13: Body weight | B13: BW | C13: =A02b!$C$40 -> 0.4 | D13: kg | E13: Default
A14: Allometric coefficients for caloric requirement per day in kilocalories and BW in grams
B15: alpha | C15: =A02b!$C$43 -> 2.514 | E15: U.S. EPA/ORD 1993
B16: beta | C16: =A02b!$C$44 -> 0.507 | E16: U.S. EPA/ORD 1993
A17: Caloric requirement per day | B17: KR | C17: = alpha x (BW x 1kg/1000g)beta
C18: =C15*((C13*1000)^C16) -> 52.43360149 | D18: kcal/day | E18: Eq
A19: Caloric content of commodity (dry weight) | B19: KCD | C19: ='A03'!$E$65 -> 2.26 | D19: kcal/gdw [Note 1] | E19: U.S. EPA/ORD 1993
A20: Food consumed per day (dry weight) | B20: AmntDry | C20: = KR ÷ KCD
C21: =C18/C19 -> 23.20070862 | D21: gdry/day | E21: Eq
A22: Water content of food item as a proportion | B22: PropWater | C22: ='A03'!$E$66 -> 0.85 | D22: gwater/gfood | E22: U.S. EPA/ORD 1993
A23: Dry weight content of food item as a proportion | B23: PropDry | C23: = 1-PropWater
C24: =1-C22 -> 0.15 | D24: gdry/gfood | E24: Eq
